Workbook

Sheet Contents
C3: Sheet Tab | D3: Description
B4: 1 | C4: Contents
B5: 2 | C5: Project Summary
B6: 3 | C6: Master Scenario
B7: 4 | C7: Assumptions
B8: 5 | C8: Working
B9: 6 | C9: Audit
B10: 7 | C10: Valuation Summary
B11: 8 | C11: Tornado Diagram
B12: 9 | C12: Construction Graph
B13: 10 | C13: Annual
B14: 11 | C14: Capital Expenditures
B15: 12 | C15: Capacity Databook
B16: 13 | C16: Irridation
B17: 14 | C17: Loss Diagram
B18: 15 | C18: Yield Analysis
B19: 16 | C19: O&M Expenses
B20: 17 | C20: Circular Reference Checks
B21: 18 | C21: Other
B23: File Name: | D23: C:\Users\Monika\Documents\Courses\Chapter 1. Models and Analysis\2 Project Finance Templates and Exercises\Project Finance Model Examples\Solar Model Example.xlsm
B25: Colour Codes
B27: Last Save Date | D27: 2014-06-01T20:30:56
B28: Last Save By | D28: Boris Yeltsin

Sheet Project Summary
P1: LCOE | Q1: ='Operating and Financing Model'!G84 -> 70.36898669 | R1: LCOE Real | S1: ='Operating and Financing Model'!G85 -> 59.77696962
B2: Scenario | J2: Model Mode
AB3: Eq IRR | AC3: Base Int | AD3: Credit Sp | AE3: Type | AF3: Tenor | AG3: Debt/Cap | AH3: DSCR | AI3: Inflation | AJ3: Dev Fee | AK3: EBL | AL3: DSRA
B4: Operating Assumptions | H4: Returns | K4: Nominal | L4: Real | M4: MIRR | AA4: Base | AB4: 0.1 | AC4: 0.025 | AD4: 0.03 | AE4: Annuity | AF4: 14 | AG4: 0.75 | AH4: 1.35 | AI4: 0.01 | AJ4: 0 | AK4: FALSE | AL4: 6
C5: Construction period (Months) | D5: ='Operating Assumptions'!E5 -> 8 | I5: Pre-tax Project IRR | K5: ='Operating and Financing Model'!E551 -> 0.07877739966 | L5: ='Operating and Financing Model'!F551 -> 0.06814238131 | M5: ='Operating and Financing Model'!G551 -> 0.06930850472 | AA5: Agressive | AB5: 0.065 | AC5: 0.015 | AD5: 0.015 | AE5: Sculpt | AF5: 24 | AG5: 0.85 | AH5: 1.2 | AI5: 0.025 | AJ5: 0.04 | AK5: TRUE | AL5: 0
C6: Construction Costs (€/kW) | D6: ='Master Scenario'!F40 -> 1089.420846 | I6: Post-tax Project IRR | K6: ='Operating and Financing Model'!G177 -> 0.07877739966 | L6: ='Operating and Financing Model'!F552 -> 0.06814238131 | M6: ='Operating and Financing Model'!G552 -> 0.06930850472 | AA6: Worst | AB6: 0.17 | AC6: 0.03 | AD6: 0.045 | AE6: Equal | AF6: 8 | AG6: 0.7 | AH6: 1.3 | AI6: 0.01 | AJ6: 0 | AK6: FALSE | AL6: 12
C7: Energy Production Scenario | E7: ='Operating Assumptions'!E100 -> 0.220608054 | I7: Debt IRR before Tax | K7: ='Operating and Financing Model'!E554 -> 0.05890172422 | L7: ='Operating and Financing Model'!F554 -> 0.04842357934 | M7: ='Operating and Financing Model'!G554 -> 0.06810524233
C8: Feed in Tariff or PPA (€/MWH) | D8: ='Master Scenario'!J40 -> 70.36898669 | I8: Debt IRR after Tax | K8: ='Operating and Financing Model'!E555 -> 0.05890172422 | L8: ='Operating and Financing Model'!F555 -> 0.04842357934 | M8: ='Operating and Financing Model'!G555 -> 0.06810524233
C9: Index of Price | D9: ='Operating Assumptions'!E124 -> FALSE | I9: Equity IRR | K9: ='Operating and Financing Model'!I630 -> 0.1041386187 | L9: ='Operating and Financing Model'!I632 -> 0.09334049523 | M9: ='Operating and Financing Model'!G553 -> 0.06623707163
C10: Inverter Replacement (years) | D10: ='Master Scenario'!K40 -> 40 | I10: Target IRR | K10: =M10/100 -> 0.1 | M10: 10
C11: O&M Expenses (€/kW-Yr) | D11: ='Master Scenario'!$L$40 -> 16.28695652 | I11: Equity IRR with 2nd Sponsor | K11: ='Operating and Financing Model'!F651 -> 0.1247380912 | L11: Other IRR | M11: ='Financing Assumptions'!$E$120 -> 0.08 | N11: ='Financing Assumptions'!E119 -> 0.4
C12: Inflation Index for O&M Cost | K12: IRR | L12: Margin | M12: Include
C13: Performance Ratio | I13: Developer as Sponsor | K13: =K9 -> 0.1041386187 | L13: ='Operating Assumptions'!E55 -> 0.05
C14: Degradation | D14: ='Master Scenario'!I40 -> 0.004 | I14: O&M Profit Margin Included | K14: ='Operating and Financing Model'!E670 -> 0.1071818531 | L14: ='Financing Assumptions'!E113 -> 0.06
B15: Financing Structure | I15: EPC Profit Margin Included | K15: ='Operating and Financing Model'!E680 -> 0.1396045148 | L15: ='Financing Assumptions'!E116 -> 0.08
C16: Debt Sizing
C17: DSCR Target | D17: ='Financing Assumptions'!E7 -> 1.13 | F17: =L26 -> 0.7744954366 | K17: =K4 -> Nominal | L17: =L4 -> Real
C18: Gearing Ratio | D18: ='Financing Assumptions'!E6 -> 0.85 | F18: =K21 -> 1.13 | H18: Cost of Electricity - LCOE | K18: =Q1 -> 70.36898669 | L18: =S1 -> 59.77696962
C19: Repayment Method
C20: Funding Mehtod | H20: Credit | K20: Inital Debt | L20: Re-Finance
C21: Debt Tenor in Years | D21: ='Financing Assumptions'!E33 -> 20 | I21: Minimum DSCR | K21: ='Operating and Financing Model'!H516 -> 1.13 | L21: ='Operating and Financing Model'!H522 -> 0
C22: Capitalise Interest | D22: ='Financing Assumptions'!E16 -> FALSE | I22: LLCR | K22: ='Operating and Financing Model'!H528 -> 1.416623932
C23: DSRA | D23: ='Financing Assumptions'!E43 -> 0 | I23: PLCR | K23: ='Operating and Financing Model'!H533 -> 1.589463132
C24: Cash Sweep Percent | D24: ='Financing Assumptions'!E44 -> 0
C25: DSCR Covenant | D25: ='Financing Assumptions'!E45 -> 1.2 | H25: Sources of Funds | K25: Amount | L25: Percent | M25: Per kW
C26: Credit Spread | D26: ='Financing Assumptions'!E22 -> 0.041 | I26: Debt | K26: ='Financing Assumptions'!H60 -> 470.6266819 | L26: =K26/K28 -> 0.7744954366 | M26: =K26/M38 -> 942.7617827
C27: Base Rate (e.g. LIBOR swap) | D27: ='Financing Assumptions'!E19 -> 0.015 | I27: Equity | K27: ='Financing Assumptions'!H61 -> 137.0291668 | L27: =K27/K28 -> 0.2255045634 | M27: =K27/M38 -> 274.4975297
C28: Equity Bridge Loan | D28: ='Financing Assumptions'!E101 -> FALSE | E28: =IF(AND(D28,'Financing Assumptions'!$E$10<>2)," EBL makes sense only with equity first","") ->  | I28: Total | K28: =SUM(K26:K27) -> 607.6558488 | L28: =K28/K28 -> 1 | M28: =K28/M38 -> 1217.259312
B29: Re-financing | H29: Uses of Funds
C30: Include Re-Financing | D30: ='Financing Assumptions'!E68 -> FALSE | I30: Construction | K30: =SUM('Operating and Financing Model'!242:242) -> 537.3320319 | L30: =K30/$K$36 -> 0.8842703202 | M30: =K30/$M$38 -> 1076.386282
C31: Year of Re-Financing | D31: ='Financing Assumptions'!$E$69 -> 3 | I31: Development Cost | K31: =SUM('Operating and Financing Model'!243:243) -> 54.38388864 | L31: 0.08949784446 | M31: 108.9420846
C32: Re-financing Target DSCR | D32: ='Financing Assumptions'!$E$72 -> 1.16 | I32: Development Fees | K32: ='Financing Assumptions'!H51 -> 0 | L32: 0 | M32: 0
C33: Re-financing Tenor | D33: ='Financing Assumptions'!$E$73 -> 16 | F33: ='Financing Assumptions'!F76 ->  | I33: Interest During Construction | K33: ='Financing Assumptions'!H53 -> 8.915465725 | L33: 0.0146718998 | M33: 17.85950666
C34: Re-financed Debt | D34: ='Financing Assumptions'!E78 -> 574.5123487 | I34: Total Fees | K34: ='Financing Assumptions'!H54 -> 7.024462462 | L34: 0.01155993557 | M34: 14.07143923
B35: Other | I35: DSRA | K35: ='Financing Assumptions'!H55 -> 0 | L35: 0 | M35: 0
C36: Income Tax Rate | D36: ='Operating Assumptions'!E171 -> 0 | J36: Total | K36: =SUM(K30:K35) -> 607.6558488 | L36: =K36/K36 -> 1 | M36: =K36/M38 -> 1217.259312
C37: Depreciation Life | D37: ='Operating Assumptions'!E172 -> 25
C38: LCOE Nominal Rate | D38: ='Operating Assumptions'!E167 -> 0.1 | J38: =Audit!E24 -> Model ok | L38: MW | M38: ='Operating and Financing Model'!H29/1000 -> 0.4992
C39: Project Life | D39: ='Operating Assumptions'!E8 -> 25 | H39: Fund MRA | L39: ='Operating Assumptions'!E161 -> FALSE
N41: 37

Sheet Project Diagram
O1: SPV
O3: ="Off-taker - LCOE "&TEXT('Project Summary'!S1,"###.00")&" $/MWH" -> Off-taker - LCOE 59.78 $/MWH
O4: ="Developer Fee as % of EPC "&TEXT('Project Summary'!L32,"##.00%")&" Profit "&TEXT('Operating and Financing Model'!E689,"###.00") -> Developer Fee as % of EPC .00% Profit 26.80
O5: ="EPC Contractor - Profit Margin "&TEXT('Financing Assumptions'!E116,"##.00%")&" Profit "&TEXT('Operating and Financing Model'!E682,"###.00") -> EPC Contractor - Profit Margin 8.00% Profit 42.66
O6: ="O&M - Profit Margin "&TEXT('Financing Assumptions'!E113,"##.00%")&" Profit "&TEXT('Operating and Financing Model'!E674,"###.00") -> O&M - Profit Margin 6.00% Profit 10.63
O7: ="Sponsor - Equity IRR "&TEXT('Project Summary'!K9,"##.00%")&" Profit "&TEXT('Operating and Financing Model'!E696,"###.00") -> Sponsor - Equity IRR 10.41% Profit 253.89
O8: ="Special Purpose Vehicle " -> Special Purpose Vehicle
O9: ="Lender - Debt IRR "&TEXT('Operating and Financing Model'!F660,"##.00%")&" Profit "&TEXT('Operating and Financing Model'!F663,"###.00") -> Lender - Debt IRR 5.89% Profit 135.33

Sheet Scenario Tabulation
AE1: Base Row | AF1: =ROW(P5) -> 5 | AG1: Base Row | AH1: =ADDRESS(Base_Row,Sc_Num_Col) -> $B$5 | AI1: Name col NUM | AJ1: =Sc_Num_Col+1 -> 3
AE2: Sc Num Col | AF2: =COLUMN(B3) -> 2 | AG2: Col_name | AH2: =MID(AH1,2,1) -> B | AI2: name_col | AJ2: =MID(ADDRESS(Base_Row,AJ1),2,1) -> C
B4: Number | C4: Name | D4: Equity IRR | E4: Project IRR | F4: First Year Price | G4: Real LCOE | H4: Nominal LCOE | I4: Total Cost/kW | J4: O&M Cost/kW-yr | K4: Capcity Factor | L4: Debt to Capital | M4: Target DSCR | N4: Debt Tenor | O4: Debt Repayment | P4: Base Interest Rate | Q4: Credit Spread | R4: Construction Funding | S4: EBL | T4: Development Fee | U4: LLCR | V4: PLCR
D5: ='Project Summary'!K9 -> 0.1041386187 | E5: ='Project Summary'!K6 -> 0.07877739966 | F5: ='Project Summary'!D8 -> 70.36898669 | G5: ='Project Summary'!L18 -> 59.77696962 | H5: ='Project Summary'!K18 -> 70.36898669 | I5: ='Project Summary'!D6 -> 1089.420846 | J5: ='Project Summary'!D11 -> 16.28695652 | K5: ='Project Summary'!E7 -> 0.220608054 | L5: ='Project Summary'!L26 -> 0.7744954366 | M5: ='Project Summary'!K21 -> 1.13 | N5: ='Project Summary'!D21 -> 20 | O5: ='Financing Assumptions'!G36 -> Level | P5: ='Project Summary'!D27 -> 0.015 | Q5: ='Project Summary'!D26 -> 0.041 | R5: ='Financing Assumptions'!G10 -> Equity First | S5: ='Financing Assumptions'!E101 -> FALSE | T5: ='Project Summary'!L32 -> 0 | U5: ='Project Summary'!K22 -> 1.416623932 | V5: ='Project Summary'!K23 -> 1.589463132
B7: 1 | C7: No Financing with Tax | D7: 0.100000006 | E7: 0.09999999404 | F7: 81.42971246 | G7: 85.5895099 | H7: 99.01641632 | I7: 1089.420846 | J7: 16.28695652 | K7: 0.220608054 | L7: 2.575109568e-16 | M7: 0 | N7: 18 | O7: Sculpting | P7: 0.015 | Q7: 0.029 | R7: Equity First | S7: FALSE | T7: 0 | U7: 0 | V7: 0
B8: 2 | C8: No Financing No Taxes | D8: 0.100000006 | E8: 0.09999999404 | F8: 67.36427601 | G8: 70.80554744 | H8: 81.91321075 | I8: 1089.420846 | J8: 16.28695652 | K8: 0.220608054 | L8: 1.950172149e-16 | M8: 0 | N8: 18 | O8: Sculpting | P8: 0.015 | Q8: 0.029 | R8: Equity First | S8: FALSE | T8: 0 | U8: 0 | V8: 0
B9: 3 | C9: Base Financing | D9: 0.100000006 | E9: 0.08502334654 | F9: 60.94244444 | G9: 64.05565971 | H9: 74.10443028 | I9: 1089.420846 | J9: 16.28695652 | K9: 0.220608054 | L9: 0.6137008467 | M9: 1.3 | N9: 14 | O9: Annuity | P9: 0.03 | Q9: 0.025 | R9: Equity First | S9: FALSE | T9: 0 | U9: 1.555960524 | V9: 2.121094829
B10: 4 | C10: Lower Interest Rate | D10: 0.09999999404 | E10: 0.07197444141 | F10: 55.62542756 | G10: 58.4670256 | H10: 67.6390758 | I10: 1089.420846 | J10: 16.28695652 | K10: 0.220608054 | L10: 0.6508108898 | M10: 1.3 | N10: 14 | O10: Annuity | P10: 0.015 | Q10: 0.015 | R10: Equity First | S10: FALSE | T10: 0 | U10: 1.571014959 | V10: 2.249742477
B11: 5 | C11: Sculpting | D11: 0.09999999404 | E11: 0.06670310199 | F11: 53.55547914 | G11: 56.29133487 | H11: 65.12207226 | I11: 1089.420846 | J11: 16.28695652 | K11: 0.220608054 | L11: 0.7241249578 | M11: 1.35 | N11: 14 | O11: Sculpting | P11: 0.015 | Q11: 0.015 | R11: Equity First | S11: FALSE | T11: 0 | U11: 1.35 | V11: 1.933290506
B12: 6 | C12: Longer Debt Tenor | D12: 0.09999999404 | E12: 0.04719191492 | F12: 46.30734721 | G12: 48.67293562 | H12: 56.308532 | I12: 1089.420846 | J12: 16.28695652 | K12: 0.220608054 | L12: 0.846025241 | M12: 1.35 | N12: 24 | O12: Sculpting | P12: 0.015 | Q12: 0.015 | R12: Equity First | S12: FALSE | T12: 0 | U12: 1.35 | V12: 1.35
B13: 7 | C13: 85% Gearing Constraint | D13: 0.100000006 | E13: 0.0538117975 | F13: 48.69174221 | G13: 51.17913629 | H13: 59.20789442 | I13: 1089.420846 | J13: 16.28695652 | K13: 0.220608054 | L13: 0.85 | M13: 1.21 | N13: 24 | O13: Sculpting | P13: 0.015 | Q13: 0.015 | R13: Equity First | S13: FALSE | T13: 0 | U13: 1.422512058 | V13: 1.422512058
B14: 8 | C14: Development Fee | D14: 0.09999999404 | E14: 0.04592779577 | F14: 45.86098578 | G14: 48.20377203 | H14: 55.76576809 | I14: 1089.420846 | J14: 16.28695652 | K14: 0.220608054 | L14: 0.85 | M14: 1.21 | N14: 24 | O14: Sculpting | P14: 0.015 | Q14: 0.015 | R14: Equity First | S14: FALSE | T14: 0.04372924858 | U14: 1.265225353 | V14: 1.265225353
B15: 9 | C15: DSRA L/C | D15: 0.100000006 | E15: 0.04278382957 | F15: 44.76345775 | G15: 47.05017732 | H15: 54.4312025 | I15: 1089.420846 | J15: 16.28695652 | K15: 0.220608054 | L15: 0.85 | M15: 1.21 | N15: 24 | O15: Sculpting | P15: 0.015 | Q15: 0.015 | R15: Equity First | S15: FALSE | T15: 0.04477606512 | U15: 1.257624639 | V15: 1.257624639
B16: 10 | C16: Lower Equity IRR | D16: 0.0650000006 | E16: 0.02187772691 | F16: 37.93325996 | G16: 39.87106218 | H16: 46.12585931 | I16: 1089.420846 | J16: 16.28695652 | K16: 0.220608054 | L16: 0.85 | M16: 0 | N16: 24 | O16: Sculpting | P16: 0.015 | Q16: 0.015 | R16: Equity First | S16: FALSE | T16: 0.04472533621 | U16: 1.020677587 | V16: 1.020677587

Sheet Alternatives
B1: Code Num | D1: 5
D3: =INDEX(E3:K3,$D$1) -> Other 1 | E3: India | F3: Egypt | G3: UK Small | H3: Australia | I3: Other 1 | J3: Nigeria | K3: Generic | M3: =TRANSPOSE(E3:K3) -> India
B4: Capacity | C4: kWp | D4: =INDEX(E4:K4,$D$1) -> 125000 | E4: 612 | F4: 30000 | G4: 1017.12 | H4: 1000 | I4: 125000 | J4: 50000 | K4: 10000 | M4: Egypt
B5: Cost/kW | C5: €/kWp | D5: 1089.420846 | E5: 780.076909 | F5: 1541.905092 | G5: 1247.342595 | H5: 752.0384919 | I5: 1089.420846 | J5: 1739.130435 | K5: 1250 | M5: UK Small
B6: Development Cost | C6: €/kWp | D6: 9.368638796 | F6: 167.6667019 | G6: 139.3097732 | I6: 9.368638796 | M6: Australia
B7: Development Fee | C7: €/kWp | D7: 33.44481605 | I7: 33.44481605 | M7: Other 1
B8: Panels, Inverters | C8: €/kWp | D8: 695.1803652 | G8: 641.5534057 | H8: 680 | I8: 695.1803652 | M8: Nigeria
B9: Cost/kWp EPC | C9: €/kWp | D9: 1046.34381 | F9: 1374.23839 | I9: 1046.34381 | M9: Generic
B11: Capacity Factor | C11: % | D11: 0.2206 | E11: 0.2173134578 | F11: 0.2716894977 | G11: 0.1139269406 | H11: 0.2089041096 | I11: 0.2206 | J11: 0.18 | K11: 0.15
B13: O&M | C13: €/kWp-yr | D13: 14.19130435 | E13: 15 | F13: 44.58285847 | G13: 23.95354039 | H13: 11.28057738 | I13: 14.19130435 | J13: 47.82608696 | K13: 18
B14: Insurance | C14: €/kWp-yr | D14: =IF(INDEX(E14:K14,$D$1)<>0,INDEX(E14:K14,$D$1),3) -> 2.095652174 | E14: 3 | F14: 8.167620369 | G14: 6.532783742 | I14: 2.095652174
C17: Eq IRR | D17: Base Int | E17: Credit Sp | F17: Debt/Cap | G17: DSCR | H17: Tenor | I17: Type | J17: Inflation | K17: Dev Fee | L17: EBL | M17: DSRA
B18: Base | C18: 0.1 | D18: 0.025 | E18: 0.03 | F18: 0.75 | G18: 1.35 | H18: 13 | I18: Equal | J18: 0.025 | K18: 0 | L18: FALSE | M18: 6
B19: Agressive | C19: 0.065 | D19: 0.015 | E19: 0.015 | F19: 0.85 | G19: 1.2 | H19: 24 | I19: Sculpt | J19: 0.01 | K19: 0.04 | L19: TRUE | M19: 0
B20: Worst | C20: 0.17 | D20: 0.03 | E20: 0.045 | F20: 0.7 | G20: 1.3 | H20: 8 | I20: Equal | J20: 0.01 | K20: 0 | L20: FALSE | M20: 12

Sheet Master Scenario
D3: Scenario Number | E3: 24 | L3: Graph Item
D4: Holding period
D6: Model Mode (True -- Structuring) | E6: ='Financing Assumptions'!E2 -> TRUE
D8: Scenario Sheet | E8: =sheet_name(F8) -> Master Scenario
D10: Capacity Factor Input | E10: =Alternatives!D11 -> 0.2206
E13: Construction period | F13: Construction Cost | G13: Energy Yield Scenario Code | H13: Performance Ratio Code | I13: Annual Degradation | J13: Fixed Feed Iin Tariff | K13: Years to Replace Inverter | L13: Operating Expense Level | M13: FIT Inflation Index Code | N13: O&M Inflation Index Code | O13: Scenraio Number | P13: Pre-tax Project IRR | Q13: After-tax Project IRR | R13: Equity IRR | S13: DSCR | T13: LLCR | U13: PLCR
E14: Months | F14: USD/kW | G14: Code # | H14: Code # | I14: Percent | J14: USD/MWH | K14: Years | L14: USD/kW/Year | M14: Code # | N14: Code # | P14: ='Operating and Financing Model'!E592 -> 0.07877739966 | Q14: ='Project Summary'!K6 -> 0.07877739966 | R14: ='Operating and Financing Model'!E553 -> 0.1041386187 | S14: ='Operating and Financing Model'!H516 -> 1.13 | T14: ='Operating and Financing Model'!H528 -> 1.416623932 | U14: ='Operating and Financing Model'!H533 -> 1.589463132
C15: 1 | D15: Base Case | E15: 8 | F15: 1050 | G15: 1 | H15: 1 | I15: 0.004 | J15: 61 | K15: 40 | L15: 12 | M15: 1 | N15: 1 | O15: 1 | P15: 0.1092671573 | Q15: 0.1092671573 | R15: 0.09388585389 | S15: 1.36 | T15: 1.971766984 | U15: 2.356189303 | Y15: Start Row | Z15: =ROW(P15) -> 15
C16: =C15+1 -> 2 | D16: Low Case | E16: 14 | F16: 1200 | G16: 4 | H16: 3 | I16: 0.005 | J16: =J15 -> 61 | K16: 40 | L16: 15 | M16: 2 | N16: 3 | O16: 2 | P16: 0.04198816121 | Q16: 0.04198816121 | R16: 0.03864422143 | S16: 1.36 | T16: 1.373026696 | U16: 1.688232838 | Y16: End Row | Z16: =ROW(O38) -> 38
C17: =C16+1 -> 3 | D17: High Case | E17: 5 | F17: 950 | G17: 2 | H17: 2 | I17: 0.003 | J17: =J16 -> 61 | K17: 40 | L17: 10 | M17: 3 | N17: 2 | O17: 3 | P17: 0.1689975798 | Q17: 0.1689975798 | R17: 0.1466357052 | S17: 1.36 | T17: 2.639385358 | U17: 3.127804364
C18: 4 | D18: =TRANSPOSE(E13:N13)&" Low Case" -> Construction period Low Case | E18: =E16 -> 14 | F18: =F$15 -> 1050 | G18: 1 | H18: 1 | I18: 0.004 | J18: 61 | K18: 40 | L18: 12 | M18: 1 | N18: 1 | O18: 4 | P18: 0.108622998 | Q18: 0.108622998 | R18: 0.09372657239 | S18: 1.36 | T18: 1.97094806 | U18: 2.355077118 | Y18: Start Col | Z18: =COLUMN(P14) -> 16
C19: 5 | D19: Construction Cost Low Case | E19: =E$15 -> 8 | F19: =F16 -> 1200 | G19: 1 | H19: 1 | I19: 0.004 | J19: 61 | K19: 40 | L19: 12 | M19: 1 | N19: 1 | O19: 5 | P19: 0.0951682359 | Q19: 0.0951682359 | R19: 0.08306137025 | S19: 1.36 | T19: 1.854944755 | U19: 2.211836089 | Y19: End Col | Z19: =COLUMN(U14) -> 21
C20: 6 | D20: Energy Yield Scenario Code Low Case | E20: 8 | F20: 1050 | G20: =G16 -> 4 | H20: 1 | I20: 0.004 | J20: 61 | K20: 40 | L20: 12 | M20: 1 | N20: 1 | O20: 6 | P20: 0.1032495558 | Q20: 0.1032495558 | R20: 0.08926379383 | S20: 1.36 | T20: 1.920241717 | U20: 2.2951342
C21: 7 | D21: Performance Ratio Code Low Case | E21: 8 | F21: 1050 | G21: 1 | H21: =H16 -> 3 | I21: 0.004 | J21: 61 | K21: 40 | L21: 12 | M21: 1 | N21: 1 | O21: 7 | P21: 0.1067468822 | Q21: 0.1067468822 | R21: 0.09196174443 | S21: 1.36 | T21: 1.950172323 | U21: 2.330604072
C22: 8 | D22: Annual Degradation Low Case | E22: 8 | F22: 1050 | G22: 1 | H22: 1 | I22: =I16 -> 0.005 | J22: 61 | K22: 40 | L22: 12 | M22: 1 | N22: 1 | O22: 8 | P22: 0.1066490471 | Q22: 0.1066490471 | R22: 0.09174257219 | S22: 1.36 | T22: 1.942263983 | U22: 2.312552916
C23: 9 | D23: Fixed Feed Iin Tariff Low Case | E23: 8 | F23: 1050 | G23: 1 | H23: 1 | I23: 0.004 | J23: =J16 -> 61 | K23: 40 | L23: 12 | M23: 1 | N23: 1 | O23: 9 | P23: 0.09661508203 | Q23: 0.09661508203 | R23: 0.08408786356 | S23: 1.36 | T23: 1.863416333 | U23: 2.227803358
C24: 10 | D24: Years to Replace Inverter Low Case | E24: 8 | F24: 1050 | G24: 1 | H24: 1 | I24: 0.004 | J24: 61 | K24: =K16 -> 40 | L24: 12 | M24: 1 | N24: 1 | O24: 10 | P24: 0.09123576581 | Q24: 0.09123576581 | R24: 0.08197243512 | S24: 1.36 | T24: 1.756354489 | U24: 2.186568531
C25: 11 | D25: Operating Expense Level Low Case | E25: 8 | F25: 1050 | G25: 1 | H25: 1 | I25: 0.004 | J25: 61 | K25: 40 | L25: =L16 -> 15 | M25: 1 | N25: 1 | O25: 11 | P25: 0.1042173564 | Q25: 0.1042173564 | R25: 0.09000155032 | S25: 1.36 | T25: 1.926665572 | U25: 2.300684616
C26: 12 | D26: FIT Inflation Index Code Low Case | E26: 8 | F26: 1050 | G26: 1 | H26: 1 | I26: 0.004 | J26: 61 | K26: 40 | L26: 12 | M26: =M16 -> 2 | N26: 1 | O26: 12 | P26: 0.1071478426 | Q26: 0.1071478426 | R26: 0.09257462919 | S26: 1.36 | T26: 1.953124264 | U26: 2.319071615
C27: 13 | D27: O&M Inflation Index Code Low Case | E27: 8 | F27: 1050 | G27: 1 | H27: 1 | I27: 0.004 | J27: 61 | K27: 40 | L27: 12 | M27: 1 | N27: =N16 -> 3 | O27: 13 | P27: 0.1077702343 | Q27: 0.1077702343 | R27: 0.09267056286 | S27: 1.36 | T27: 1.955586862 | U27: 2.332257296
C28: 14 | D28: =TRANSPOSE(E13:N13)&" High Case" -> Construction period High Case | E28: =E17 -> 5 | F28: 1050 | G28: 1 | H28: 1 | I28: 0.004 | J28: 61 | K28: 40 | L28: 12 | M28: 1 | N28: 1 | O28: 14 | P28: 0.1098665416 | Q28: 0.1098665416 | R28: 0.093914029 | S28: 1.36 | T28: 1.973992217 | U28: 2.359064179
C29: 15 | D29: Construction Cost High Case | E29: =E$15 -> 8 | F29: =F17 -> 950 | G29: 1 | H29: 1 | I29: 0.004 | J29: 61 | K29: 40 | L29: 12 | M29: 1 | N29: 1 | O29: 15 | P29: 0.1259195387 | Q29: 0.1259195387 | R29: 0.1060471356 | S29: 1.36 | T29: 2.10757667 | U29: 2.524132528
C30: 16 | D30: Energy Yield Scenario Code High Case | E30: 8 | F30: 1050 | G30: =G17 -> 2 | H30: 1 | I30: 0.004 | J30: 61 | K30: 40 | L30: 12 | M30: 1 | N30: 1 | O30: 16 | P30: 0.1123920381 | Q30: 0.1123920381 | R30: 0.09626098275 | S30: 1.36 | T30: 1.998463362 | U30: 2.387829687
C31: 17 | D31: Performance Ratio Code High Case | E31: 8 | F31: 1050 | G31: 1 | H31: =H17 -> 2 | I31: 0.004 | J31: 61 | K31: 40 | L31: 12 | M31: 1 | N31: 1 | O31: 17 | P31: 0.1117692411 | Q31: 0.1117692411 | R31: 0.09578277171 | S31: 1.36 | T31: 1.993142526 | U31: 2.381523948
C32: 18 | D32: Annual Degradation High Case | E32: 8 | F32: 1050 | G32: 1 | H32: 1 | I32: =I17 -> 0.003 | J32: 61 | K32: 40 | L32: 12 | M32: 1 | N32: 1 | O32: 18 | P32: 0.1118743718 | Q32: 0.1118743718 | R32: 0.09600817859 | S32: 1.36 | T32: 2.001821734 | U32: 2.400883554
C33: 19 | D33: Fixed Feed Iin Tariff High Case | E33: 8 | F33: 1050 | G33: 1 | H33: 1 | I33: 0.004 | J33: =J17 -> 61 | K33: 40 | L33: 12 | M33: 1 | N33: 1 | O33: 19 | P33: 0.1214705884 | Q33: 0.1214705884 | R33: 0.1031132638 | S33: 1.36 | T33: 2.075769602 | U33: 2.479458395
C34: 20 | D34: Years to Replace Inverter High Case | E34: 8 | F34: =F$15 -> 1050 | G34: 1 | H34: 1 | I34: 0.004 | J34: 61 | K34: =K17 -> 40 | L34: =L$15 -> 12 | M34: =M$15 -> 1 | N34: =N$15 -> 1 | O34: 20 | P34: 0.1219591439 | Q34: 0.1219591439 | R34: 0.1121934593 | S34: 1.36 | T34: 2.184776211 | U34: 2.542003347
C35: 21 | D35: Operating Expense Level High Case | E35: 8 | F35: 1050 | G35: 1 | H35: 1 | I35: 0.004 | J35: 61 | K35: =K$15 -> 40 | L35: =L17 -> 10 | M35: =M$15 -> 1 | N35: =N$15 -> 1 | O35: 21 | P35: 0.1114013731 | Q35: 0.1114013731 | R35: 0.09550797045 | S35: 1.36 | T35: 1.990871496 | U35: 2.379706757
C36: 22 | D36: FIT Inflation Index Code High Case | E36: 8 | F36: 1050 | G36: 1 | H36: 1 | I36: 0.004 | J36: 61 | K36: =K$15 -> 40 | L36: =L$15 -> 12 | M36: =M17 -> 3 | N36: =N$15 -> 1 | O36: 22 | P36: 0.1153085887 | Q36: 0.1153085887 | R36: 0.09751783013 | S36: 1.36 | T36: 2.026667682 | U36: 2.460653712
C37: 23 | D37: O&M Inflation Index Code High Case | E37: 8 | F37: 1050 | G37: 1 | H37: 1 | I37: 0.004 | J37: 61 | K37: =K$15 -> 40 | L37: =L$15 -> 12 | M37: =M$15 -> 1 | N37: =N17 -> 2 | O37: 23 | P37: 0.1097923219 | Q37: 0.1097923219 | R37: 0.09431563914 | S37: 1.36 | T37: 1.977514398 | U37: 2.364833168
C38: 24 | D38: Sensitivity Case | E38: =E45 -> 8 | F38: =F45 -> 1089.420846 | G38: =G45 -> 1 | H38: =H45 -> 1 | I38: =I45*I43 -> 0.004 | J38: =J45 -> 70.36898669 | K38: =K45 -> 40 | L38: =L45 -> 16.28695652 | M38: 2 | N38: =N45 -> 1 | O38: 24 | P38: 0.1092671573 | Q38: 0.1092671573 | R38: 0.09388585389 | S38: 1.36 | T38: 1.971766984 | U38: 2.356189303
D40: =INDEX(D15:D38,$E$3) -> Sensitivity Case | E40: 8 | F40: 1089.420846 | G40: 1 | H40: 1 | I40: =INDEX(I15:I38,scenario) -> 0.004 | J40: 70.36898669 | K40: 40 | L40: 16.28695652 | M40: 2 | N40: =INDEX(N15:N38,scenario) -> 1
D42: Sensitivity1 | E42: 8 | F42: 1050 | G42: 1 | H42: 1 | I42: 0.004 | J42: 60 | K42: 40 | L42: 12 | M42: 1 | N42: 1
D43: Multiplier | E43: 1 | F43: 1 | G43: 1 | H43: 1 | I43: 0.001 | J43: 1 | K43: 1 | L43: 1 | M43: 1 | N43: 1
D44: Adjusted | E44: =E42/E43 -> 8 | F44: =F42/F43 -> 1050 | G44: 1 | H44: 1 | I44: 4 | J44: 60 | K44: 40 | L44: 12 | M44: 1 | N44: 1
D45: Fixed | E45: 8 | F45: =Alternatives!D5 -> 1089.420846 | G45: 1 | H45: 1 | I45: 4 | J45: 70.36898669 | K45: 40 | L45: =Alternatives!D13+Alternatives!D14 -> 16.28695652 | M45: 1 | N45: 1
E47: Low vs Base | F47: High vs Base
D48: =TRANSPOSE(E13:N13) -> Construction period | E48: =Q18-$Q$15 -> -0.000644159317 | F48: =Q28-$Q$15 -> 0.0005993843079
D49: Construction Cost | E49: =Q19-$Q$15 -> -0.01409892142 | F49: =Q29-$Q$15 -> 0.01665238142
D50: Energy Yield Scenario Code | E50: -0.00601760149 | F50: 0.003124880791
D51: Performance Ratio Code | E51: -0.002520275116 | F51: 0.002502083778
D52: Annual Degradation | E52: -0.00261811018 | F52: 0.002607214451
D53: Fixed Feed Iin Tariff | E53: -0.01265207529 | F53: 0.01220343113
D54: Years to Replace Inverter | E54: -0.0180313915 | F54: 0.01269198656
D55: Operating Expense Level | E55: -0.005049800873 | F55: 0.002134215832
D56: FIT Inflation Index Code | E56: -0.002119314671 | F56: 0.006041431427
D57: O&M Inflation Index Code | E57: -0.00149692297 | F57: 0.0005251646042

Sheet Operating Assumptions
A1: Timing
B2: Model start date | D2: date | E2: 2016-11-01
B3: Development period | D3: months | E3: 6
B4: Financial close | D4: date | E4: =+EDATE(E2,E3) -> 2017-05-01
B5: Construction period | D5: months | E5: ='Master Scenario'!E40 -> 8
B6: Commercial operation date (COD) | D6: date | E6: =EDATE(E4,E5) -> 2018-01-01
B7: DSRA funding | D7: date | E7: =EDATE(E6,-1) -> 2017-12-01
B8: Project lifetime | D8: years | E8: 25
B9: Decommissioning date | D9: date | E9: =EDATE(E6,E8*12) -> 2043-01-01
B11: Months of Detailed Analysis After COD | D11: months | E11: 0
B12: End of Detailed Analysis Period | D12: date | E12: =EDATE(E6,E11) -> 2018-01-01
B14: Post COD Warranty Period | D14: months | E14: 24
B15: End of Warranty Period | D15: Date | E15: =EDATE(E6,E14) -> 2020-01-01
B17: Months in period pre-COD | D17: months | E17: 1
B18: Periods to comprise a year pre-COD | D18: periods | E18: =12/E17 -> 12
B19: Months in period post-COD | D19: months | E19: 6
B20: Periods to comprise a year post-COD | D20: periods | E20: =12/E19 -> 2
B22: Months pre-COD | D22: months | E22: =E3+E5 -> 14
A24: Operations
B25: Panel Capacity
C26: Tested Capacity per Panel | D26: Wp | E26: ='Capacity Databook'!N14 -> 300 | G26: Capacity Databook'!A1
C27: Number of Panels | D27: Number | E27: ='Capacity Databook'!N13 -> 1664 | G27: Capacity Databook'!A1
C28: Total Capacity at Std Temp Condition | D28: kWp | E28: =E26*E27/1000 -> 499.2
C30: Percent Reduction from Temprature | D30: Percent | E30: ='Capacity Databook'!N16 -> 0.9034455128
C31: Maximum Capacity at Operating Condition | D31: kWp | E31: =E28*E30 -> 451
B33: Date of Panel Installation | E33: Date | F33: Panels | G33: Percent | H33: Capactiy
C34: First Installation | D34: Date/Percent | E34: =E6-52 -> 2017-11-10 | F34: =ROUND($E$27*G34,0) -> 399 | G34: 0.24 | H34: =$E$28*G34 -> 119.808
C35: Second Installation | D35: Date/Percent | E35: =E34+9 -> 2017-11-19 | F35: =ROUND($E$27*G35,0) -> 532 | G35: 0.32 | H35: =$E$28*G35 -> 159.744
C36: Third Installation | D36: Date/Percent | E36: =E35+15 -> 2017-12-04 | F36: =ROUND($E$27*G36,0) -> 250 | G36: 0.15 | H36: =$E$28*G36 -> 74.88
C37: Fourth Installation | D37: Date/Percent | E37: =E6 -> 2018-01-01 | F37: =ROUND($E$27*G37,0) -> 483 | G37: =1-G34-G35-G36 -> 0.29 | H37: =$E$28*G37 -> 144.768
H38: =SUM(H34:H37) -> 499.2
B39: Inverters
C40: Capacity per Inverter | E40: ='Capacity Databook'!N25 -> 20
C41: Number of Inverters | E41: ='Capacity Databook'!N26 -> 23
C42: Total Capacity of Inverters | E42: =PRODUCT(E40:E41) -> 460
B44: Capital Expenditures
C45: Total Cost | D45: USD/kW | E45: ='Master Scenario'!F40 -> 1089.420846 | G45: Capital Expenditures'!A1
C46: Inverter Cost | D46: USD/kW | E46: ='Capital Expenditures'!G11*1000 -> 107.01684
C47: Non- Inverter Percent | D47: % | E47: =1-E46/E45 -> 0.9017672184
C48: Mean Period | D48: Month | E48: =E5/2 -> 4
C49: Gamma for Weibull | D49: Constant | E49: =F49/100 -> 0.98 | F49: 98
C50: Beta for Weibull | D50: Month | E50: =E48/E49 -> 4.081632653
C51: Alpha for Weibull | D51: Constant | E51: =F51/100 -> 1.72 | F51: 172
B53: Development
C54: Development Cost as Percent of Cap Exp | D54: Percent | E54: 0.05
C55: Development Fee as Percent of Cap Exp | D55: Percent | E55: =F55/100 -> 0.05 | F55: 5
C56: Sponsor as Developer | D56: Switch | E56: ='Financing Assumptions'!E111 -> FALSE
C58: Module Area (m2) | D58: m2 | E58: ='Capacity Databook'!N19 -> 2714
C59: Cell Area (m2) | D59: m2 | E59: ='Capacity Databook'!N20 -> 2375
C61: Standard Deviation of Annual Irradiation | D61: % | E61: 0.025
H62: 0.5 | I62: 0.75 | J62: 0.25 | K62: 0.1 | L62: 0.05 | M62: 0.01
D63: Code # | E63: ='Master Scenario'!G40 -> 1 | H63: 1 | I63: 2 | J63: 3 | K63: 4 | L63: 5 | M63: 6 | R63: Transpose
B64: Irradiation and Production | D64: =O64 -> Wh/m2 | E64: Applied | F64: Percent | G64: Pct of Avg | H64: P50 | I64: P25 | J64: P75 | K64: P90 | L64: P95 | M64: P99 | O64: Wh/m2 | P64: Irridation!A1 | R64: =TRANSPOSE(H64:M64) -> P50
C65: January | E65: =INDEX(H65:M65,E$63) -> 230.4195356 | F65: =E65/$E$78 -> 0.1058119503 | G65: =E65/$E$79 -> 1.269743404 | H65: =O65 -> 230.4195356 | I65: =NORMINV(I$62,$H65,$E$61*$H65) -> 234.304926 | J65: 226.5341452 | K65: 223.0371727 | L65: 220.9443754 | M65: 217.0186357 | O65: =Irridation!B2 -> 230.4195356 | R65: P25
C66: February | E66: 191.5226645 | F66: 0.08794995013 | G66: 1.055399402 | H66: 191.5226645 | I66: 194.7521664 | J66: 188.2931627 | K66: 185.3865103 | L66: 183.6469958 | M66: 180.383956 | O66: =Irridation!B3 -> 191.5226645 | R66: P75
C67: March | E67: 196.2613696 | F67: 0.09012603137 | G67: 1.081512376 | H67: 196.2613696 | I67: 199.5707767 | J67: 192.9519626 | K67: 189.973393 | L67: 188.190839 | M67: 184.8470641 | O67: =Irridation!B4 -> 196.2613696 | R67: P90
C68: April | E68: 163.485326 | F68: 0.07507480279 | G68: 0.9008976335 | H68: 163.485326 | I68: 166.2420554 | J68: 160.7285966 | K68: 158.2474541 | L68: 156.7625902 | M68: 153.9772325 | O68: =Irridation!B5 -> 163.485326 | R68: P95
C69: May | E69: 137.1262789 | F69: 0.06297035089 | G69: 0.7556442107 | H69: 137.1262789 | I69: 139.4385356 | J69: 134.8140221 | K69: 132.732919 | L69: 131.4874625 | M69: 129.1511932 | O69: =Irridation!B6 -> 137.1262789 | R69: P99
C70: June | E70: 121.1331492 | F70: 0.05562607671 | G70: 0.6675129205 | H70: 121.1331492 | I70: 123.1757259 | J70: 119.0905725 | K70: 117.2521897 | L70: 116.1519917 | M70: 114.0882031 | O70: =Irridation!B7 -> 121.1331492
C71: July | E71: 137.1262789 | F71: 0.06297035089 | G71: 0.7556442107 | H71: 137.1262789 | I71: 139.4385356 | J71: 134.8140221 | K71: 132.732919 | L71: 131.4874625 | M71: 129.1511932 | O71: =Irridation!B8 -> 137.1262789
C72: August | E72: 162.3993728 | F72: 0.07457611751 | G72: 0.8949134101 | H72: 162.3993728 | I72: 165.1377906 | J72: 159.660955 | K72: 157.1962935 | L72: 155.7212928 | M72: 152.9544369 | O72: =Irridation!B9 -> 162.3993728
C73: September | E73: 184.710776 | F73: 0.08482183335 | G73: 1.017862 | H73: 184.710776 | I73: 187.8254141 | J73: 181.5961378 | K73: 178.7928664 | L73: 177.1152212 | M73: 173.9682379 | O73: =Irridation!B10 -> 184.710776
C74: October | E74: 211.1685461 | F74: 0.09697162027 | G74: 1.163659443 | H74: 211.1685461 | I74: 214.7293216 | J74: 207.6077706 | K74: 204.4029616 | L74: 202.4850124 | M74: 198.8872586 | O74: =Irridation!B11 -> 211.1685461
C75: November | E75: 215.9072512 | F75: 0.09914770151 | G75: 1.189772418 | H75: 215.9072512 | I75: 219.5479319 | J75: 212.2665705 | K75: 208.9898443 | L75: 207.0288556 | M75: 203.3503668 | O75: =Irridation!B12 -> 215.9072512
C76: December | E76: 226.3718916 | F76: 0.1039532143 | G76: 1.247438571 | H76: 226.3718916 | I76: 230.1890297 | J76: 222.5547536 | K76: 219.1192103 | L76: 217.063176 | M76: 213.2063974 | O76: =Irridation!B13 -> 226.3718916
C78: Total | E78: =O78 -> 2177.63244 | H78: =SUM(H65:H77) -> 2177.63244 | I78: 2214.352209 | J78: 2140.912671 | K78: 2107.863734 | L78: 2088.085275 | M78: 2050.984175 | O78: =SUM(O65:O77) -> 2177.63244
C79: Average | E79: =AVERAGE(E65:E76) -> 181.46937
C80: Maximum | G80: Area
C81: Total Energy to Module Area kWh/m2 x m2 | D81: kWh | E81: =INDEX(H81:M81,$E$63) -> 5910094.443 | G81: =E58 -> 2714 | H81: =H78*$E$58 -> 5910094.443 | I81: 6009751.896 | J81: 5810436.99 | K81: 5720742.174 | L81: 5667063.436 | M81: 5566371.052
C82: Adjustment for Inclination and IAM | D82: % | E82: ='Loss Diagram'!O13 -> 1.060452
C83: Adjusted Energy to Modules | D83: kWh | E83: =E81*E82 -> 6267371.473
C85: Panel Effiency at STC | D85: % | E85: ='Loss Diagram'!O17 -> 0.1845 | O85: Loss Diagram'!A1
C86: Nominal Energy at STC | D86: kWh | E86: =E83*E85 -> 1156330.037
C88: Standard Deviation of Performance Ratio | E88: 0.02
E89: Code # | G89: 0.5 | H89: 0.75 | I89: 0.25 | J89: 0.1 | K89: 0.05 | L89: 0.01
E90: ='Master Scenario'!H40 -> 1 | G90: P50 | H90: P25 | I90: P75 | J90: P90 | K90: P95 | L90: P99
C91: Performance Ratio | D91: % | E91: =INDEX(G91:L91,E90) -> 0.8342923081 | G91: ='Loss Diagram'!O40 -> 0.8342923081 | H91: =NORMINV(H89,$G91,$E$88*$G$91) -> 0.8455467403 | I91: =NORMINV(I89,$G91,$E$88*$G$91) -> 0.8230378759 | J91: =NORMINV(J89,$G91,$E$88*$G$91) -> 0.8129085358 | K91: =NORMINV(K89,$G91,$E$88*$G$91) -> 0.8068465335 | L91: =NORMINV(L89,$G91,$E$88*$G$91) -> 0.7954752253
C93: Production Sensitivity | D93: % | E93: 1
C94: Net Energy Injected to Grid | D94: kWh | E94: =E86*E91*E93 -> 964717.2552
C95: Nominal Capacity | D95: kW | E95: =E28 -> 499.2
C97: Yield from Nominal Capacity | D97: kWh/kWp | E97: =E94/E28 -> 1932.526553 | F97: =E28 -> 499.2
C98: Yield from Effective Capacity | D98: kWh/kWp | E98: =E94/E31 -> 2139.06265
C100: Capacity Factor using Nominal Capacity | D100: % | E100: =E97/8760 -> 0.220608054
C101: Capacity Factor using Effective Capacity | D101: % | E101: =E98/8760 -> 0.244185234
B103: Capacity Factor Applied in Model | E103: Nominal CF | F103: Generation
C104: January | D104: % | E104: =G65*$E$100 -> 0.2801156214 | F104: =E104*$E$95*1/12*8760 -> 102078.6143
C105: February | D105: % | E105: 0.2328296082 | F105: 84846.83449
C106: March | D106: % | E106: 0.2385903407 | F106: 86946.13761
C107: April | D107: % | E107: 0.1987452738 | F107: 72425.95769
C108: May | D108: % | E108: 0.1667011988 | F108: 60748.58407
C109: June | D109: % | E109: 0.1472587264 | F109: 53663.43604
C110: July | D110: % | E110: 0.1667011988 | F110: 60748.58407
C111: August | D111: % | E111: 0.1974251059 | F111: 71944.86739
C112: September | D112: % | E112: 0.2245485551 | F112: 81829.08625
C113: October | D113: % | E113: 0.2567126453 | F113: 93550.19534
C114: November | D114: % | E114: 0.2624733779 | F114: 95649.49846
C115: December | D115: % | E115: 0.2751949956 | F115: 100285.4595
C117: Total | E117: =E100 -> 0.220608054 | F117: =SUM(F104:F116) -> 964717.2552
C119: Annual Degradation | D119: % | E119: ='Master Scenario'!I40 -> 0.004
B122: Electricity Prices
C123: FIT | D123: USD/MWH | E123: ='Master Scenario'!$J$15 -> 61
C124: Indexed | D124: Switch | E124: FALSE
C125: Percentage of FIT subject to inflation | D125: % | E125: =IF(E124,1,0) -> 0
B127: Inflation rate for FIT
C128: Code | E128: ='Master Scenario'!M40 -> 2 | H128: ='Operating and Financing Model'!N8 -> 2016 | I128: =H128+1 -> 2017 | J128: 2018 | K128: 2019 | L128: 2020 | M128: 2021 | N128: 2022 | O128: 2023 | P128: 2024
C129: Base inflation rate | E129: 1 | H129: 0.025 | I129: 0.025 | J129: 0.025 | K129: 0.025 | L129: 0.025 | M129: 0.025 | N129: 0.025 | O129: 0.025 | P129: 0.025
C130: Low inflation rate | E130: 2 | H130: 0.01 | I130: 0.01 | J130: 0.01 | K130: 0.01 | L130: 0.01 | M130: 0.01 | N130: 0.01 | O130: 0.01 | P130: 0.01
C131: High inflation rate | E131: 3 | H131: 0.035 | I131: 0.035 | J131: 0.035 | K131: 0.03 | L131: 0.0275 | M131: 0.0275 | N131: 0.0275 | O131: 0.0275 | P131: 0.0275
C132: =INDEX(C129:C131,$E$128) -> Low inflation rate | H132: =INDEX(H129:H131,$E$128) -> 0.01 | I132: 0.01 | J132: 0.01 | K132: 0.01 | L132: 0.01 | M132: 0.01 | N132: 0.01 | O132: 0.01 | P132: 0.01
C133: Date FIT awarded | D133: date | E133: =EDATE(E6,-6) -> 2017-07-01
B135: Merchant price
C136: Code | E136: 1 | H136: =H128 -> 2016 | I136: =H136+1 -> 2017 | J136: 2018 | K136: 2019 | L136: 2020 | M136: 2021 | N136: 2022 | O136: 2023 | P136: 2024
C137: Central | D137: USD/MWH | E137: 1 | H137: 50 | I137: 50 | J137: 48 | K137: 45 | L137: 45 | M137: 43 | N137: 43 | O137: 40 | P137: 40
C138: Low | D138: USD/MWH | E138: 2 | H138: 40 | I138: 40 | J138: 40 | K138: 40 | L138: 40 | M138: 40 | N138: 40 | O138: 40 | P138: 40
C139: High | D139: USD/MWH | E139: 3 | H139: 50 | I139: 50 | J139: 52 | K139: 52 | L139: 54 | M139: 54 | N139: 54 | O139: 56 | P139: 56
C140: Sensitivity | D140: USD/MWH | E140: 4 | H140: 46 | I140: =H140 -> 46 | J140: 46 | K140: 46 | L140: 46 | M140: 46 | N140: 46 | O140: 46 | P140: 46
C141: =INDEX(C137:C140,$E$136) -> Central | D141: =INDEX(D137:D140,$E$136) -> USD/MWH | H141: =INDEX(H137:H140,$E$136) -> 50 | I141: 50 | J141: 48 | K141: 45 | L141: 45 | M141: 43 | N141: 43 | O141: 40 | P141: 40
C142: Base Date for Inflation | D142: date | E142: 2011-01-01
A144: Operating Costs and Inverter Replacement
B145: Inflation Index for Operating Costs | H145: =H136 -> 2016 | I145: 2017 | J145: 2018 | K145: 2019 | L145: 2020 | M145: 2021 | N145: 2022 | O145: 2023 | P145: 2024
C146: Base inflation rate | E146: 1 | H146: 0.01 | I146: 0.015 | J146: 0.0175 | K146: 0.02 | L146: 0.015 | M146: 0.02 | N146: 0.02 | O146: 0.02 | P146: 0.02
C147: Low inflation rate | E147: 2 | H147: 0.01 | I147: 0.0075 | J147: 0.01 | K147: 0.015 | L147: 0.015 | M147: 0.015 | N147: 0.015 | O147: 0.015 | P147: 0.015
C148: High inflation rate | E148: 3 | H148: 0.035 | I148: 0.035 | J148: 0.035 | K148: 0.035 | L148: 0.035 | M148: 0.03 | N148: 0.03 | O148: 0.03 | P148: 0.03
C150: =INDEX(C146:C148,$E$150) -> Base inflation rate | E150: ='Master Scenario'!N40 -> 1 | H150: =INDEX(H146:H148,$E$150) -> 0.01 | I150: 0.015 | J150: 0.0175 | K150: 0.02 | L150: 0.015 | M150: 0.02 | N150: 0.02 | O150: 0.02 | P150: 0.02
C152: Date for Real Operating Expenses | D152: Date | E152: =E2 -> 2016-11-01
B154: Operating Expenses
C155: Fixed O&M Expense | D155: USD/MWH | E155: ='Master Scenario'!L40 -> 16.28695652
C156: Other costs | D156: USD 000's | E156: 0
B158: Inverter Replacement
C159: Cost in Real Currency | D159: USD/kW | E159: ='Capital Expenditures'!G11*1000 -> 107.01684
C160: Years to Replacement | D160: Years | E160: ='Master Scenario'!K40 -> 40
C161: MRA Switch | D161: Switch | E161: FALSE
F163: Cost/kW | G163: Period | H163: Capacity (kW) | I163: Inflation Index | J163: Cost USD 000
C164: First Inverter Replacement Date | D164: Date | E164: =EDATE(E6,E160*12) -> 2058-01-01 | F164: =E159*0.9 -> 96.315156 | G164: =MATCH(E164,'Operating and Financing Model'!$6:$6,0) -> 108 | H164: =INDEX('Operating and Financing Model'!$29:$29,G164) -> 0 | I164: =INDEX('Operating and Financing Model'!$68:$68,G164) -> 1.503752371 | J164: =F164*H164*I164/1000 -> 0
C165: Second Inverter Replacement Date | D165: Date | E165: =EDATE(E164,E160*12) -> 2098-01-01 | F165: =F164*0.9 -> 86.6836404 | G165: =MATCH(E165,'Operating and Financing Model'!$6:$6,0) ->  | H165: =INDEX('Operating and Financing Model'!$29:$29,G165) ->  | I165: =INDEX('Operating and Financing Model'!$68:$68,G165) ->  | J165: =F165*H165*I165/1000 -> 
C167: Nominal Discount Rate | D167: Discount Rate | E167: =G167/100 -> 0.1 | G167: 10
C168: Real Discount Rate | D168: Discount Rate | E168: =(1+E167)/(1+0.0175)-1 -> 0.08108108108
A170: Taxes & Depreciation
B171: Tax Rate | D171: % | E171: =G171/100 -> 0 | G171: 0
B172: Tax Life - Panels and Other | D172: years | E172: 25
B173: Tax Life - Inverters | D173: years | E173: 25
B174: Amortisation Period | D174: Years | E174: 25
B176: Year | H176: 0 | I176: 1 | J176: 2 | K176: 3 | L176: 4 | M176: 5 | N176: 6 | O176: 7 | P176: 8 | Q176: 9 | R176: 10 | S176: 11 | T176: 12 | U176: 13 | V176: 14 | W176: 15 | X176: 16 | Y176: 17 | Z176: 18 | AA176: 19 | AB176: 20
B177: Depreciation Rate for Panels and Other | E177: =SUM(I177:R177)=1 -> FALSE | I177: =IFERROR(VDB(1,0,$E$172,H176,I176,2),0) -> 0.08 | J177: 0.0736 | K177: 0.067712 | L177: 0.06229504 | M177: 0.0573114368 | N177: 0.05272652186 | O177: 0.04850840011 | P177: 0.0446277281 | Q177: 0.04105750985 | R177: 0.03777290906 | S177: 0.03475107634 | T177: 0.03197099023 | U177: 0.02941331101 | V177: 0.02818775639 | W177: 0.02818775639 | X177: 0.02818775639 | Y177: 0.02818775639 | Z177: 0.02818775639 | AA177: 0.02818775639 | AB177: 0.02818775639
B178: Depreciaion Rate for Inverters | E178: =SUM(I178:R178)=1 -> FALSE | I178: =IFERROR(VDB(1,0,$E$173,H176,I176,2),0) -> 0.08 | J178: 0.0736 | K178: 0.067712 | L178: 0.06229504 | M178: 0.0573114368 | N178: 0.05272652186 | O178: 0.04850840011 | P178: 0.0446277281 | Q178: 0.04105750985 | R178: 0.03777290906 | S178: 0.03475107634 | T178: 0.03197099023 | U178: 0.02941331101 | V178: 0.02818775639 | W178: 0.02818775639 | X178: 0.02818775639 | Y178: 0.02818775639 | Z178: 0.02818775639 | AA178: 0.02818775639 | AB178: 0.02818775639
B180: Period | H180: 0 | I180: =H180+1 -> 1 | J180: 2 | K180: 3 | L180: 4 | M180: 5 | N180: 6 | O180: 7 | P180: 8 | Q180: 9 | R180: 10 | S180: 11 | T180: 12 | U180: 13 | V180: 14 | W180: 15 | X180: 16 | Y180: 17 | Z180: 18 | AA180: 19 | AB180: 20 | AC180: 21 | AD180: 22 | AE180: 23 | AF180: 24 | AG180: 25 | AH180: 26 | AI180: 27 | AJ180: 28 | AK180: 29 | AL180: 30 | AM180: 31 | AN180: 32 | AO180: =AN180+1 -> 33 | AP180: 34 | AQ180: 35 | AR180: 36 | AS180: 37 | AT180: 38 | AU180: 39 | AV180: 40 | AW180: 41 | AX180: 42 | AY180: 43 | AZ180: 44 | BA180: 45 | BB180: 46 | BC180: 47 | BD180: 48 | BE180: 49 | BF180: 50 | BG180: 51 | BH180: 52 | BI180: 53 | BJ180: 54 | BK180: 55 | BL180: 56 | BM180: 57 | BN180: 58 | BO180: 59 | BP180: 60
B181: Year (Using Roundup function) | I181: =ROUNDUP(I180/$E$20,0) -> 1 | J181: 1 | K181: 2 | L181: 2 | M181: 3 | N181: 3 | O181: 4 | P181: 4 | Q181: 5 | R181: 5 | S181: 6 | T181: 6 | U181: 7 | V181: 7 | W181: 8 | X181: 8 | Y181: 9 | Z181: 9 | AA181: 10 | AB181: 10 | AC181: 11 | AD181: 11 | AE181: 12 | AF181: 12 | AG181: 13 | AH181: 13 | AI181: 14 | AJ181: 14 | AK181: 15 | AL181: 15 | AM181: 16 | AN181: 16 | AO181: =ROUNDUP(AO180/$E$20,0) -> 17 | AP181: 17 | AQ181: 18 | AR181: 18 | AS181: 19 | AT181: 19 | AU181: 20 | AV181: 20 | AW181: 21 | AX181: 21 | AY181: 22 | AZ181: 22 | BA181: 23 | BB181: 23 | BC181: 24 | BD181: 24 | BE181: 25 | BF181: 25 | BG181: 26 | BH181: 26 | BI181: 27 | BJ181: 27 | BK181: 28 | BL181: 28 | BM181: 29 | BN181: 29 | BO181: 30 | BP181: 30
B182: Periodic Depreciation Rate | I182: =LOOKUP(I181,$I$176:$AB$176,$I$178:$AB$178)/$E$20 -> 0.04 | J182: 0.04 | K182: 0.0368 | L182: 0.0368 | M182: 0.033856 | N182: 0.033856 | O182: 0.03114752 | P182: 0.03114752 | Q182: 0.0286557184 | R182: 0.0286557184 | S182: 0.02636326093 | T182: 0.02636326093 | U182: 0.02425420005 | V182: 0.02425420005 | W182: 0.02231386405 | X182: 0.02231386405 | Y182: 0.02052875493 | Z182: 0.02052875493 | AA182: 0.01888645453 | AB182: 0.01888645453 | AC182: 0.01737553817 | AD182: 0.01737553817 | AE182: 0.01598549512 | AF182: 0.01598549512 | AG182: 0.01470665551 | AH182: 0.01470665551 | AI182: 0.01409387819 | AJ182: 0.01409387819 | AK182: 0.01409387819 | AL182: 0.01409387819 | AM182: 0.01409387819 | AN182: 0.01409387819 | AO182: =LOOKUP(AO181,$I$176:$AB$176,$I$178:$AB$178)/$E$20 -> 0.01409387819 | AP182: 0.01409387819 | AQ182: 0.01409387819 | AR182: 0.01409387819 | AS182: 0.01409387819 | AT182: 0.01409387819 | AU182: 0.01409387819 | AV182: 0.01409387819 | AW182: 0.01409387819 | AX182: 0.01409387819 | AY182: 0.01409387819 | AZ182: 0.01409387819 | BA182: 0.01409387819 | BB182: 0.01409387819 | BC182: 0.01409387819 | BD182: 0.01409387819 | BE182: 0.01409387819 | BF182: 0.01409387819 | BG182: 0.01409387819 | BH182: 0.01409387819 | BI182: 0.01409387819 | BJ182: 0.01409387819 | BK182: 0.01409387819 | BL182: 0.01409387819 | BM182: 0.01409387819 | BN182: 0.01409387819 | BO182: 0.01409387819 | BP182: 0.01409387819
E198: 2
E208: 3

Sheet Financing Assumptions
A1: Base Debt Assumptions
B2: Analysis Mode (TRUE is Structuring FALSE is Risk Analysis) | E2: =AQ2=1 -> TRUE | AQ2: 1
B4: Debt Sizing
C5: Switch for Gearning (TRUE) | D5: Switch | E5: =AQ5=1 -> FALSE | AQ5: 2
C6: Gearing Ratio | D6: Percent | E6: =F6/100 -> 0.85 | F6: 85
C7: Target DSCR | D7: Times | E7: =F7/100 -> 1.13 | F7: 113
B9: Debt Funding
C10: Code number for Debt Draw Funding | E10: 2 | G10: =INDEX(C12:C14,E10) -> Equity First
C12: Pro-Rata | D12: Switch/Code | E12: =F12=$E$10 -> FALSE | F12: 1
C13: Equity First | D13: Switch/Code | E13: =F13=$E$10 -> TRUE | F13: 2
C14: Debt First | D14: Switch/Code | E14: =F14=$E$10 -> FALSE | F14: 3
C16: Capitalise Interest and Fees | D16: Switch | E16: FALSE
B18: Interest Rate and Fees
C19: LIBOR Rate | D19: Annual Pct | E19: =G19/1000 -> 0.015 | G19: 15
C21: Credit Spread/Year | D21: Year | E21: Annual %
D22: ='Operating Assumptions'!E4 -> 2017-05-01 | E22: =G22/1000 -> 0.041 | G22: 41
D23: ='Operating Assumptions'!E6 -> 2018-01-01 | E23: =E22 -> 0.041
D24: =EDATE(D23,2*12) -> 2020-01-01 | E24: =E23 -> 0.041
D25: =EDATE(D24,2*12) -> 2022-01-01 | E25: =E24 -> 0.041
C27: Up-Front Fee Percent | D27: Percent | E27: 0.01
C28: Commitment Fee Percent | D28: Annual Pct | E28: 0.015 | G28: Periodic | H28: =E28/'Operating Assumptions'!E18 -> 0.00125
B30: Debt Repayment
B32: Debt Tenor
C33: Debt Tenor After COD | D33: Years | E33: 20
C34: Date of Debt Retirement | D34: Date | E34: =EDATE('Operating Assumptions'!E6,E33*12) -> 2038-01-01
C36: Code for Repayment Type | D36: Code | E36: 1 | G36: =INDEX(C38:C40,E36) -> Level
C38: Level | D38: Switch/Code | E38: =F38=$E$36 -> TRUE | F38: 1
C39: Annuity | D39: Switch/Code | E39: =F39=$E$36 -> FALSE | F39: 2
C40: Sculpting | D40: Switch/Code | E40: =F40=$E$36 -> FALSE | F40: 3
B42: Credit Enhancements
C43: DSRA | D43: Months | E43: 0 | G43: Periods | H43: =E43/'Operating Assumptions'!E19 -> 0
C44: Cash Sweep Percent | D44: Percent | E44: =F44/100 -> 0 | F44: 0
C45: DSCR Covenant | D45: Times | E45: 1.2 | M45: Debt Function
A47: Debt Size from Sources and Uses Summary | G47: Applied | H47: Computed | I47: Function | J47: Fixed | M47: Skip Function | N47: FALSE
B48: Uses of Funds | G48: in Model | H48: in Model | I48: Structuring | J48: Risk Analysis | M48: Debt Size | N48: =Debt_Resolve(N47,'Operating and Financing Model'!N11:DI11,'Operating and Financing Model'!N17:DI17,'Operating and Financing Model'!N102:DI102,'Operating and Financing Model'!N214:DI214,'Operating and Financing Model'!N149:DI149,'Operating Assumptions'!E171,E5,E6,E7,E33,E36,'Operating and Financing Model'!N267:DI267,E27,H28,E16,E33,E10,E43,'Operating Assumptions'!E19,'Operating and Financing Model'!N189:DI189,'Operating and Financing Model'!N156:DI156) -> 470.6266819
C49: Construction net of Operating Income | G49: =SUM('Operating and Financing Model'!205:205) -> 537.3320319 | H49: =SUM('Operating and Financing Model'!205:205) -> 537.3320319 | I49: =SUM('Operating and Financing Model'!205:205) -> 537.3320319 | J49: 878.2667536 | M49: Total Adders | N49: 15.93992819
C50: Development Cost | G50: =SUM('Operating and Financing Model'!206:206) -> 54.38388864 | H50: =SUM('Operating and Financing Model'!206:206) -> 54.38388864 | I50: =SUM('Operating and Financing Model'!206:206) -> 54.38388864 | J50: 44.25189141 | M50: DSRA | N50: 0
C51: Development Fees | G51: =SUM('Operating and Financing Model'!207:207) -> 0 | H51: =SUM('Operating and Financing Model'!207:207) -> 0 | I51: =SUM('Operating and Financing Model'!207:207) -> 0 | J51: 0
C52: Sub-Total | G52: =SUM(G49:G51) -> 591.7159206 | H52: =SUM(H49:H51) -> 591.7159206 | I52: =SUM(I49:I51) -> 591.7159206 | J52: 922.518645
C53: Interest During Construction | H53: =SUM('Operating and Financing Model'!269:269) -> 8.915465725
C54: Total Fees | D54: Structuring | H54: =SUM('Operating and Financing Model'!277:277) -> 7.024462462
C55: DSRA | D55: =E2 -> TRUE | G55: =IF(D55,I55,J55) -> 0 | H55: =SUM('Operating and Financing Model'!347:347) -> 0 | I55: =N50 -> 0 | J55: 106.7807487
C56: Sub-Total | D56: =E2 -> TRUE | G56: =IF(D56,I56,J56) -> 15.93992819 | H56: =SUM(H53:H55) -> 15.93992819 | I56: =N49 -> 15.93992819 | J56: 119.6353547
C57: Total | G57: =G56+G52 -> 607.6558488 | H57: =H56+H52 -> 607.6558488 | I57: =I56+I52 -> 607.6558488 | J57: 1042.154
B59: Sources of Funds
C60: Debt | D60: =D55 -> TRUE | G60: =IF(D60,I60,J60) -> 470.6266819 | H60: =SUM('Operating and Financing Model'!261:261) -> 470.6266819 | I60: =N48 -> 470.6266819 | J60: 625.2923998
C61: Equity | G61: =G57-G60 -> 137.0291668 | H61: =H57-H60 -> 137.0291668 | I61: =I57-I60 -> 137.0291668 | J61: 416.8615999
C62: Total | G62: =SUM(G60:G61) -> 607.6558488 | H62: =SUM(H60:H61) -> 607.6558488 | I62: =SUM(I60:I61) -> 607.6558488 | J62: 1042.154
C64: Capitalised Interest and Fees | G64: =IF(E16,G56-G55,0) -> 0
C65: Debt Funded | G65: =G60-G64 -> 470.6266819 | H65: =SUM('Operating and Financing Model'!N250:EA250) -> 470.6266819
A67: Re-Financing Assumptions
B68: Re-Financing Switch | D68: Switch | E68: FALSE
C69: Year of Re-Financing | D69: Year | E69: =F69 -> 3 | F69: 3
C70: Date of Re-financing | D70: Date | E70: =EDATE('Operating Assumptions'!E6,E69*12) -> 2021-01-01
C72: Re-financing Target DSCR | D72: Times | E72: =F72/100 -> 1.16 | F72: 116
C73: Re-financing Debt Term | D73: Year | E73: 16
C75: Start of Re-financing | D75: Date | E75: =EDATE(E70,'Operating Assumptions'!E19) -> 2021-07-01
C76: Finish of Re-financing | D76: Date | E76: =EDATE(E75,E73*12) -> 2037-07-01 | F76: =IF(E76>'Operating Assumptions'!E9,"Too Long","") -> 
C78: Re-financing Amount | E78: =sculpt_debt_refinance('Operating and Financing Model'!N20:FN20,'Operating and Financing Model'!N383:FN383,'Operating and Financing Model'!N424:FN424,'Operating Assumptions'!E171,'Operating and Financing Model'!N418:EE418,E72,0,E80,'Operating and Financing Model'!N189:EE189) -> 574.5123487 | F78: ='Operating and Financing Model'!L375 -> TRUE | G78: =E78-F78 -> 573.5123487
C80: Starting NOL in Re-finance Period | D80: EUR 000 | E80: =SUMIF('Operating and Financing Model'!19:19,TRUE,'Operating and Financing Model'!438:438) -> 0
C81: Credit Spread on Re-financing | D81: Percent | E81: 0.02
C82: Fees on Re-financing | D82: Percent | E82: 0.015
A84: Valuation Assumptions
B85: Assumed Valuation Date
C86: Year of Sale After COD | D86: Year | E86: =F86-5 -> 3 | F86: 8
C87: Date of Sale | D87: Date | E87: =EDATE('Operating Assumptions'!E6,E86*12) -> 2021-01-01
C89: Discount Rate and Year | G89: Un-Geared | H89: Equity
C90: Development Period | D90: ='Operating and Financing Model'!I9 -> 2016-11-01 | F90: =LOOKUP(D90,'Operating and Financing Model'!$N$6:$FN$6,'Operating and Financing Model'!$N$1:$FN$1) -> -2 | G90: 0.18 | H90: 0.2
C91: Construction | D91: ='Operating Assumptions'!E4 -> 2017-05-01 | F91: =LOOKUP(D91,'Operating and Financing Model'!$N$6:$FN$6,'Operating and Financing Model'!$N$1:$FN$1) -> -1 | G91: 0.15 | H91: 0.165
C92: Commercial Operation | D92: ='Operating Assumptions'!E6 -> 2018-01-01 | F92: =LOOKUP(D92,'Operating and Financing Model'!$N$6:$FN$6,'Operating and Financing Model'!$N$1:$FN$1) -> 1 | G92: 0.13 | H92: 0.14
D93: =EDATE(D92,12) -> 2019-01-01 | F93: =LOOKUP(D93,'Operating and Financing Model'!$N$6:$FN$6,'Operating and Financing Model'!$N$1:$FN$1) -> 2 | G93: 0.09 | H93: 0.13
D94: =EDATE(D93,12) -> 2020-01-01 | F94: =LOOKUP(D94,'Operating and Financing Model'!$N$6:$FN$6,'Operating and Financing Model'!$N$1:$FN$1) -> 3 | G94: 0.08 | H94: 0.11
D95: =EDATE(D94,12) -> 2021-01-01 | F95: =LOOKUP(D95,'Operating and Financing Model'!$N$6:$FN$6,'Operating and Financing Model'!$N$1:$FN$1) -> 4 | G95: 0.07 | H95: 0.09
D96: =EDATE(D95,12) -> 2022-01-01 | F96: =LOOKUP(D96,'Operating and Financing Model'!$N$6:$FN$6,'Operating and Financing Model'!$N$1:$FN$1) -> 5 | G96: 0.065 | H96: 0.08
D97: ='Operating Assumptions'!E9 -> 2043-01-01 | F97: =LOOKUP(D97,'Operating and Financing Model'!$N$6:$FN$6,'Operating and Financing Model'!$N$1:$FN$1) -> 26 | G97: 0.06 | H97: 0.08
A99: Equity Bridge Loan, Margins and Multiple Sponsors
B101: Apply Equty Bridge Loan in IRR Calculations | D101: Switch | E101: FALSE | F101: =IF(AND(E101,'Financing Assumptions'!$E$10<>2)," EBL makes sense only with equity first","") -> 
B102: Draw Method | E102: =E10 -> 2
B104: Base Rate | D104: % | E104: 0.004
B105: Credit Spread | D105: % | E105: 0.003
B107: Up-front Fee | D107: % | E107: 0.005
A109: Margins and Fees to Alternative Parties
B110: Developer Fee from Inputs | D110: % | E110: ='Operating Assumptions'!E55 -> 0.05
B111: Sponsor as Developer | D111: Switch | E111: FALSE
B113: O&M Profit Margin | D113: % | E113: =G113/100 -> 0.06 | G113: 6
B114: Sponsor as O&M Contractor | D114: Switch | E114: FALSE
B116: EPC Margin | D116: % | E116: =G116/100 -> 0.08 | G116: 8
B117: Sponsor as EPC Contractor | D117: Switch | E117: FALSE
B119: Dividend Percent to New Sponsor | D119: % | E119: 0.4
B120: Target to New Sponsor | D120: % | E120: =G120/100 -> 0.08 | G120: 8
B122: Risk Free Rate for Analysis | D122: % | E122: 0.025

Sheet Operating and Financing Model
B1: Age in years | M1: =ROUNDUP(M2/M5,0) -> -2 | N1: -2 | O1: -1 | P1: -1 | Q1: -1 | R1: -1 | S1: -1 | T1: -1 | U1: -1 | V1: -1 | W1: -1 | X1: -1 | Y1: -1 | Z1: -1 | AA1: 0 | AB1: 1 | AC1: 1 | AD1: 2 | AE1: 2 | AF1: 3 | AG1: 3 | AH1: 4 | AI1: 4 | AJ1: 5 | AK1: 5 | AL1: 6 | AM1: 6 | AN1: 7 | AO1: 7 | AP1: 8 | AQ1: 8 | AR1: 9 | AS1: =ROUNDUP(AS2/AS5,0) -> 9 | AT1: 10 | AU1: 10 | AV1: 11 | AW1: 11 | AX1: 12 | AY1: 12 | AZ1: 13 | BA1: 13 | BB1: 14 | BC1: 14 | BD1: 15 | BE1: 15 | BF1: 16 | BG1: 16 | BH1: 17 | BI1: 17 | BJ1: 18 | BK1: 18 | BL1: 19 | BM1: 19 | BN1: 20 | BO1: 20 | BP1: 21 | BQ1: 21 | BR1: 22 | BS1: 22 | BT1: 23 | BU1: 23 | BV1: 24 | BW1: 24 | BX1: 25 | BY1: =ROUNDUP(BY2/BY5,0) -> 25 | BZ1: 26 | CA1: 26 | CB1: 27 | CC1: 27 | CD1: 28 | CE1: 28 | CF1: 29 | CG1: 29 | CH1: 30 | CI1: 30 | CJ1: 31 | CK1: 31 | CL1: 32 | CM1: 32 | CN1: 33 | CO1: 33 | CP1: 34 | CQ1: 34 | CR1: 35 | CS1: 35 | CT1: 36 | CU1: 36 | CV1: 37 | CW1: 37 | CX1: 38 | CY1: 38 | CZ1: 39 | DA1: 39 | DB1: 40 | DC1: 40 | DD1: 41 | DE1: =ROUNDUP(DE2/DE5,0) -> 41 | DF1: 42 | DG1: 42 | DH1: 43 | DI1: 43
B2: Period counter | E2: ='Project Summary'!J38 -> Model ok | M2: =-'Operating Assumptions'!E22 -> -14 | N2: =M2+1 -> -13 | O2: -12 | P2: -11 | Q2: -10 | R2: -9 | S2: -8 | T2: -7 | U2: -6 | V2: -5 | W2: -4 | X2: -3 | Y2: -2 | Z2: -1 | AA2: 0 | AB2: 1 | AC2: 2 | AD2: 3 | AE2: 4 | AF2: 5 | AG2: 6 | AH2: 7 | AI2: 8 | AJ2: 9 | AK2: 10 | AL2: 11 | AM2: 12 | AN2: 13 | AO2: 14 | AP2: 15 | AQ2: 16 | AR2: 17 | AS2: 18 | AT2: =AS2+1 -> 19 | AU2: 20 | AV2: 21 | AW2: 22 | AX2: 23 | AY2: 24 | AZ2: 25 | BA2: 26 | BB2: 27 | BC2: 28 | BD2: 29 | BE2: 30 | BF2: 31 | BG2: 32 | BH2: 33 | BI2: 34 | BJ2: 35 | BK2: 36 | BL2: 37 | BM2: 38 | BN2: 39 | BO2: 40 | BP2: 41 | BQ2: 42 | BR2: 43 | BS2: 44 | BT2: 45 | BU2: 46 | BV2: 47 | BW2: 48 | BX2: 49 | BY2: 50 | BZ2: =BY2+1 -> 51 | CA2: 52 | CB2: 53 | CC2: 54 | CD2: 55 | CE2: 56 | CF2: 57 | CG2: 58 | CH2: 59 | CI2: 60 | CJ2: 61 | CK2: 62 | CL2: 63 | CM2: 64 | CN2: 65 | CO2: 66 | CP2: 67 | CQ2: 68 | CR2: 69 | CS2: 70 | CT2: 71 | CU2: 72 | CV2: 73 | CW2: 74 | CX2: 75 | CY2: 76 | CZ2: 77 | DA2: 78 | DB2: 79 | DC2: 80 | DD2: 81 | DE2: 82 | DF2: =DE2+1 -> 83 | DG2: 84 | DH2: 85 | DI2: 86
B3: Pre-COD Switch | M3: =M2<='Operating Assumptions'!$E$11 -> TRUE | N3: =N2<='Operating Assumptions'!$E$11 -> TRUE | O3: =O2<='Operating Assumptions'!$E$11 -> TRUE | P3: =P2<='Operating Assumptions'!$E$11 -> TRUE | Q3: =Q2<='Operating Assumptions'!$E$11 -> TRUE | R3: =R2<='Operating Assumptions'!$E$11 -> TRUE | S3: =S2<='Operating Assumptions'!$E$11 -> TRUE | T3: =T2<='Operating Assumptions'!$E$11 -> TRUE | U3: =U2<='Operating Assumptions'!$E$11 -> TRUE | V3: =V2<='Operating Assumptions'!$E$11 -> TRUE | W3: =W2<='Operating Assumptions'!$E$11 -> TRUE | X3: =X2<='Operating Assumptions'!$E$11 -> TRUE | Y3: =Y2<='Operating Assumptions'!$E$11 -> TRUE | Z3: =Z2<='Operating Assumptions'!$E$11 -> TRUE | AA3: =AA2<='Operating Assumptions'!$E$11 -> TRUE | AB3: =AB2<='Operating Assumptions'!$E$11 -> FALSE | AC3: =AC2<='Operating Assumptions'!$E$11 -> FALSE | AD3: =AD2<='Operating Assumptions'!$E$11 -> FALSE | AE3: =AE2<='Operating Assumptions'!$E$11 -> FALSE | AF3: =AF2<='Operating Assumptions'!$E$11 -> FALSE | AG3: =AG2<='Operating Assumptions'!$E$11 -> FALSE | AH3: =AH2<='Operating Assumptions'!$E$11 -> FALSE | AI3: =AI2<='Operating Assumptions'!$E$11 -> FALSE | AJ3: =AJ2<='Operating Assumptions'!$E$11 -> FALSE | AK3: =AK2<='Operating Assumptions'!$E$11 -> FALSE | AL3: =AL2<='Operating Assumptions'!$E$11 -> FALSE | AM3: =AM2<='Operating Assumptions'!$E$11 -> FALSE | AN3: =AN2<='Operating Assumptions'!$E$11 -> FALSE | AO3: =AO2<='Operating Assumptions'!$E$11 -> FALSE | AP3: =AP2<='Operating Assumptions'!$E$11 -> FALSE | AQ3: =AQ2<='Operating Assumptions'!$E$11 -> FALSE | AR3: =AR2<='Operating Assumptions'!$E$11 -> FALSE | AS3: =AS2<='Operating Assumptions'!$E$11 -> FALSE | AT3: =AT2<='Operating Assumptions'!$E$11 -> FALSE | AU3: =AU2<='Operating Assumptions'!$E$11 -> FALSE | AV3: =AV2<='Operating Assumptions'!$E$11 -> FALSE | AW3: =AW2<='Operating Assumptions'!$E$11 -> FALSE | AX3: =AX2<='Operating Assumptions'!$E$11 -> FALSE | AY3: =AY2<='Operating Assumptions'!$E$11 -> FALSE | AZ3: =AZ2<='Operating Assumptions'!$E$11 -> FALSE | BA3: =BA2<='Operating Assumptions'!$E$11 -> FALSE | BB3: =BB2<='Operating Assumptions'!$E$11 -> FALSE | BC3: =BC2<='Operating Assumptions'!$E$11 -> FALSE | BD3: =BD2<='Operating Assumptions'!$E$11 -> FALSE | BE3: =BE2<='Operating Assumptions'!$E$11 -> FALSE | BF3: =BF2<='Operating Assumptions'!$E$11 -> FALSE | BG3: =BG2<='Operating Assumptions'!$E$11 -> FALSE | BH3: =BH2<='Operating Assumptions'!$E$11 -> FALSE | BI3: =BI2<='Operating Assumptions'!$E$11 -> FALSE | BJ3: =BJ2<='Operating Assumptions'!$E$11 -> FALSE | BK3: =BK2<='Operating Assumptions'!$E$11 -> FALSE | BL3: =BL2<='Operating Assumptions'!$E$11 -> FALSE | BM3: =BM2<='Operating Assumptions'!$E$11 -> FALSE | BN3: =BN2<='Operating Assumptions'!$E$11 -> FALSE | BO3: =BO2<='Operating Assumptions'!$E$11 -> FALSE | BP3: =BP2<='Operating Assumptions'!$E$11 -> FALSE | BQ3: =BQ2<='Operating Assumptions'!$E$11 -> FALSE | BR3: =BR2<='Operating Assumptions'!$E$11 -> FALSE | BS3: =BS2<='Operating Assumptions'!$E$11 -> FALSE | BT3: =BT2<='Operating Assumptions'!$E$11 -> FALSE | BU3: =BU2<='Operating Assumptions'!$E$11 -> FALSE | BV3: =BV2<='Operating Assumptions'!$E$11 -> FALSE | BW3: =BW2<='Operating Assumptions'!$E$11 -> FALSE | BX3: =BX2<='Operating Assumptions'!$E$11 -> FALSE | BY3: =BY2<='Operating Assumptions'!$E$11 -> FALSE | BZ3: =BZ2<='Operating Assumptions'!$E$11 -> FALSE | CA3: =CA2<='Operating Assumptions'!$E$11 -> FALSE | CB3: =CB2<='Operating Assumptions'!$E$11 -> FALSE | CC3: =CC2<='Operating Assumptions'!$E$11 -> FALSE | CD3: =CD2<='Operating Assumptions'!$E$11 -> FALSE | CE3: =CE2<='Operating Assumptions'!$E$11 -> FALSE | CF3: =CF2<='Operating Assumptions'!$E$11 -> FALSE | CG3: =CG2<='Operating Assumptions'!$E$11 -> FALSE | CH3: =CH2<='Operating Assumptions'!$E$11 -> FALSE | CI3: =CI2<='Operating Assumptions'!$E$11 -> FALSE | CJ3: =CJ2<='Operating Assumptions'!$E$11 -> FALSE | CK3: =CK2<='Operating Assumptions'!$E$11 -> FALSE | CL3: =CL2<='Operating Assumptions'!$E$11 -> FALSE | CM3: =CM2<='Operating Assumptions'!$E$11 -> FALSE | CN3: =CN2<='Operating Assumptions'!$E$11 -> FALSE | CO3: =CO2<='Operating Assumptions'!$E$11 -> FALSE | CP3: =CP2<='Operating Assumptions'!$E$11 -> FALSE | CQ3: =CQ2<='Operating Assumptions'!$E$11 -> FALSE | CR3: =CR2<='Operating Assumptions'!$E$11 -> FALSE | CS3: =CS2<='Operating Assumptions'!$E$11 -> FALSE | CT3: =CT2<='Operating Assumptions'!$E$11 -> FALSE | CU3: =CU2<='Operating Assumptions'!$E$11 -> FALSE | CV3: =CV2<='Operating Assumptions'!$E$11 -> FALSE | CW3: =CW2<='Operating Assumptions'!$E$11 -> FALSE | CX3: =CX2<='Operating Assumptions'!$E$11 -> FALSE | CY3: =CY2<='Operating Assumptions'!$E$11 -> FALSE | CZ3: =CZ2<='Operating Assumptions'!$E$11 -> FALSE | DA3: =DA2<='Operating Assumptions'!$E$11 -> FALSE | DB3: =DB2<='Operating Assumptions'!$E$11 -> FALSE | DC3: =DC2<='Operating Assumptions'!$E$11 -> FALSE | DD3: =DD2<='Operating Assumptions'!$E$11 -> FALSE | DE3: =DE2<='Operating Assumptions'!$E$11 -> FALSE | DF3: =DF2<='Operating Assumptions'!$E$11 -> FALSE | DG3: =DG2<='Operating Assumptions'!$E$11 -> FALSE | DH3: =DH2<='Operating Assumptions'!$E$11 -> FALSE | DI3: =DI2<='Operating Assumptions'!$E$11 -> FALSE
B4: Months in period | M4: =IF(M3,'Operating Assumptions'!$E$17,'Operating Assumptions'!$E$19) -> 1 | N4: =IF(N3,'Operating Assumptions'!$E$17,'Operating Assumptions'!$E$19) -> 1 | O4: =IF(O3,'Operating Assumptions'!$E$17,'Operating Assumptions'!$E$19) -> 1 | P4: =IF(P3,'Operating Assumptions'!$E$17,'Operating Assumptions'!$E$19) -> 1 | Q4: =IF(Q3,'Operating Assumptions'!$E$17,'Operating Assumptions'!$E$19) -> 1 | R4: =IF(R3,'Operating Assumptions'!$E$17,'Operating Assumptions'!$E$19) -> 1 | S4: =IF(S3,'Operating Assumptions'!$E$17,'Operating Assumptions'!$E$19) -> 1 | T4: =IF(T3,'Operating Assumptions'!$E$17,'Operating Assumptions'!$E$19) -> 1 | U4: =IF(U3,'Operating Assumptions'!$E$17,'Operating Assumptions'!$E$19) -> 1 | V4: =IF(V3,'Operating Assumptions'!$E$17,'Operating Assumptions'!$E$19) -> 1 | W4: =IF(W3,'Operating Assumptions'!$E$17,'Operating Assumptions'!$E$19) -> 1 | X4: =IF(X3,'Operating Assumptions'!$E$17,'Operating Assumptions'!$E$19) -> 1 | Y4: =IF(Y3,'Operating Assumptions'!$E$17,'Operating Assumptions'!$E$19) -> 1 | Z4: =IF(Z3,'Operating Assumptions'!$E$17,'Operating Assumptions'!$E$19) -> 1 | AA4: =IF(AA3,'Operating Assumptions'!$E$17,'Operating Assumptions'!$E$19) -> 1 | AB4: =IF(AB3,'Operating Assumptions'!$E$17,'Operating Assumptions'!$E$19) -> 6 | AC4: =IF(AC3,'Operating Assumptions'!$E$17,'Operating Assumptions'!$E$19) -> 6 | AD4: =IF(AD3,'Operating Assumptions'!$E$17,'Operating Assumptions'!$E$19) -> 6 | AE4: =IF(AE3,'Operating Assumptions'!$E$17,'Operating Assumptions'!$E$19) -> 6 | AF4: =IF(AF3,'Operating Assumptions'!$E$17,'Operating Assumptions'!$E$19) -> 6 | AG4: =IF(AG3,'Operating Assumptions'!$E$17,'Operating Assumptions'!$E$19) -> 6 | AH4: =IF(AH3,'Operating Assumptions'!$E$17,'Operating Assumptions'!$E$19) -> 6 | AI4: =IF(AI3,'Operating Assumptions'!$E$17,'Operating Assumptions'!$E$19) -> 6 | AJ4: =IF(AJ3,'Operating Assumptions'!$E$17,'Operating Assumptions'!$E$19) -> 6 | AK4: =IF(AK3,'Operating Assumptions'!$E$17,'Operating Assumptions'!$E$19) -> 6 | AL4: =IF(AL3,'Operating Assumptions'!$E$17,'Operating Assumptions'!$E$19) -> 6 | AM4: =IF(AM3,'Operating Assumptions'!$E$17,'Operating Assumptions'!$E$19) -> 6 | AN4: =IF(AN3,'Operating Assumptions'!$E$17,'Operating Assumptions'!$E$19) -> 6 | AO4: =IF(AO3,'Operating Assumptions'!$E$17,'Operating Assumptions'!$E$19) -> 6 | AP4: =IF(AP3,'Operating Assumptions'!$E$17,'Operating Assumptions'!$E$19) -> 6 | AQ4: =IF(AQ3,'Operating Assumptions'!$E$17,'Operating Assumptions'!$E$19) -> 6 | AR4: =IF(AR3,'Operating Assumptions'!$E$17,'Operating Assumptions'!$E$19) -> 6 | AS4: =IF(AS3,'Operating Assumptions'!$E$17,'Operating Assumptions'!$E$19) -> 6 | AT4: =IF(AT3,'Operating Assumptions'!$E$17,'Operating Assumptions'!$E$19) -> 6 | AU4: =IF(AU3,'Operating Assumptions'!$E$17,'Operating Assumptions'!$E$19) -> 6 | AV4: =IF(AV3,'Operating Assumptions'!$E$17,'Operating Assumptions'!$E$19) -> 6 | AW4: =IF(AW3,'Operating Assumptions'!$E$17,'Operating Assumptions'!$E$19) -> 6 | AX4: =IF(AX3,'Operating Assumptions'!$E$17,'Operating Assumptions'!$E$19) -> 6 | AY4: =IF(AY3,'Operating Assumptions'!$E$17,'Operating Assumptions'!$E$19) -> 6 | AZ4: =IF(AZ3,'Operating Assumptions'!$E$17,'Operating Assumptions'!$E$19) -> 6 | BA4: =IF(BA3,'Operating Assumptions'!$E$17,'Operating Assumptions'!$E$19) -> 6 | BB4: =IF(BB3,'Operating Assumptions'!$E$17,'Operating Assumptions'!$E$19) -> 6 | BC4: =IF(BC3,'Operating Assumptions'!$E$17,'Operating Assumptions'!$E$19) -> 6 | BD4: =IF(BD3,'Operating Assumptions'!$E$17,'Operating Assumptions'!$E$19) -> 6 | BE4: =IF(BE3,'Operating Assumptions'!$E$17,'Operating Assumptions'!$E$19) -> 6 | BF4: =IF(BF3,'Operating Assumptions'!$E$17,'Operating Assumptions'!$E$19) -> 6 | BG4: =IF(BG3,'Operating Assumptions'!$E$17,'Operating Assumptions'!$E$19) -> 6 | BH4: =IF(BH3,'Operating Assumptions'!$E$17,'Operating Assumptions'!$E$19) -> 6 | BI4: =IF(BI3,'Operating Assumptions'!$E$17,'Operating Assumptions'!$E$19) -> 6 | BJ4: =IF(BJ3,'Operating Assumptions'!$E$17,'Operating Assumptions'!$E$19) -> 6 | BK4: =IF(BK3,'Operating Assumptions'!$E$17,'Operating Assumptions'!$E$19) -> 6 | BL4: =IF(BL3,'Operating Assumptions'!$E$17,'Operating Assumptions'!$E$19) -> 6 | BM4: =IF(BM3,'Operating Assumptions'!$E$17,'Operating Assumptions'!$E$19) -> 6 | BN4: =IF(BN3,'Operating Assumptions'!$E$17,'Operating Assumptions'!$E$19) -> 6 | BO4: =IF(BO3,'Operating Assumptions'!$E$17,'Operating Assumptions'!$E$19) -> 6 | BP4: =IF(BP3,'Operating Assumptions'!$E$17,'Operating Assumptions'!$E$19) -> 6 | BQ4: =IF(BQ3,'Operating Assumptions'!$E$17,'Operating Assumptions'!$E$19) -> 6 | BR4: =IF(BR3,'Operating Assumptions'!$E$17,'Operating Assumptions'!$E$19) -> 6 | BS4: =IF(BS3,'Operating Assumptions'!$E$17,'Operating Assumptions'!$E$19) -> 6 | BT4: =IF(BT3,'Operating Assumptions'!$E$17,'Operating Assumptions'!$E$19) -> 6 | BU4: =IF(BU3,'Operating Assumptions'!$E$17,'Operating Assumptions'!$E$19) -> 6 | BV4: =IF(BV3,'Operating Assumptions'!$E$17,'Operating Assumptions'!$E$19) -> 6 | BW4: =IF(BW3,'Operating Assumptions'!$E$17,'Operating Assumptions'!$E$19) -> 6 | BX4: =IF(BX3,'Operating Assumptions'!$E$17,'Operating Assumptions'!$E$19) -> 6 | BY4: =IF(BY3,'Operating Assumptions'!$E$17,'Operating Assumptions'!$E$19) -> 6 | BZ4: =IF(BZ3,'Operating Assumptions'!$E$17,'Operating Assumptions'!$E$19) -> 6 | CA4: =IF(CA3,'Operating Assumptions'!$E$17,'Operating Assumptions'!$E$19) -> 6 | CB4: =IF(CB3,'Operating Assumptions'!$E$17,'Operating Assumptions'!$E$19) -> 6 | CC4: =IF(CC3,'Operating Assumptions'!$E$17,'Operating Assumptions'!$E$19) -> 6 | CD4: =IF(CD3,'Operating Assumptions'!$E$17,'Operating Assumptions'!$E$19) -> 6 | CE4: =IF(CE3,'Operating Assumptions'!$E$17,'Operating Assumptions'!$E$19) -> 6 | CF4: =IF(CF3,'Operating Assumptions'!$E$17,'Operating Assumptions'!$E$19) -> 6 | CG4: =IF(CG3,'Operating Assumptions'!$E$17,'Operating Assumptions'!$E$19) -> 6 | CH4: =IF(CH3,'Operating Assumptions'!$E$17,'Operating Assumptions'!$E$19) -> 6 | CI4: =IF(CI3,'Operating Assumptions'!$E$17,'Operating Assumptions'!$E$19) -> 6 | CJ4: =IF(CJ3,'Operating Assumptions'!$E$17,'Operating Assumptions'!$E$19) -> 6 | CK4: =IF(CK3,'Operating Assumptions'!$E$17,'Operating Assumptions'!$E$19) -> 6 | CL4: =IF(CL3,'Operating Assumptions'!$E$17,'Operating Assumptions'!$E$19) -> 6 | CM4: =IF(CM3,'Operating Assumptions'!$E$17,'Operating Assumptions'!$E$19) -> 6 | CN4: =IF(CN3,'Operating Assumptions'!$E$17,'Operating Assumptions'!$E$19) -> 6 | CO4: =IF(CO3,'Operating Assumptions'!$E$17,'Operating Assumptions'!$E$19) -> 6 | CP4: =IF(CP3,'Operating Assumptions'!$E$17,'Operating Assumptions'!$E$19) -> 6 | CQ4: =IF(CQ3,'Operating Assumptions'!$E$17,'Operating Assumptions'!$E$19) -> 6 | CR4: =IF(CR3,'Operating Assumptions'!$E$17,'Operating Assumptions'!$E$19) -> 6 | CS4: =IF(CS3,'Operating Assumptions'!$E$17,'Operating Assumptions'!$E$19) -> 6 | CT4: =IF(CT3,'Operating Assumptions'!$E$17,'Operating Assumptions'!$E$19) -> 6 | CU4: =IF(CU3,'Operating Assumptions'!$E$17,'Operating Assumptions'!$E$19) -> 6 | CV4: =IF(CV3,'Operating Assumptions'!$E$17,'Operating Assumptions'!$E$19) -> 6 | CW4: =IF(CW3,'Operating Assumptions'!$E$17,'Operating Assumptions'!$E$19) -> 6 | CX4: =IF(CX3,'Operating Assumptions'!$E$17,'Operating Assumptions'!$E$19) -> 6 | CY4: =IF(CY3,'Operating Assumptions'!$E$17,'Operating Assumptions'!$E$19) -> 6 | CZ4: =IF(CZ3,'Operating Assumptions'!$E$17,'Operating Assumptions'!$E$19) -> 6 | DA4: =IF(DA3,'Operating Assumptions'!$E$17,'Operating Assumptions'!$E$19) -> 6 | DB4: =IF(DB3,'Operating Assumptions'!$E$17,'Operating Assumptions'!$E$19) -> 6 | DC4: =IF(DC3,'Operating Assumptions'!$E$17,'Operating Assumptions'!$E$19) -> 6 | DD4: =IF(DD3,'Operating Assumptions'!$E$17,'Operating Assumptions'!$E$19) -> 6 | DE4: =IF(DE3,'Operating Assumptions'!$E$17,'Operating Assumptions'!$E$19) -> 6 | DF4: =IF(DF3,'Operating Assumptions'!$E$17,'Operating Assumptions'!$E$19) -> 6 | DG4: =IF(DG3,'Operating Assumptions'!$E$17,'Operating Assumptions'!$E$19) -> 6 | DH4: =IF(DH3,'Operating Assumptions'!$E$17,'Operating Assumptions'!$E$19) -> 6 | DI4: =IF(DI3,'Operating Assumptions'!$E$17,'Operating Assumptions'!$E$19) -> 6
B5: Periods per year | M5: =12/M4 -> 12 | N5: 12 | O5: 12 | P5: 12 | Q5: 12 | R5: 12 | S5: 12 | T5: 12 | U5: 12 | V5: 12 | W5: 12 | X5: 12 | Y5: 12 | Z5: 12 | AA5: 12 | AB5: 2 | AC5: 2 | AD5: 2 | AE5: 2 | AF5: 2 | AG5: 2 | AH5: 2 | AI5: 2 | AJ5: 2 | AK5: 2 | AL5: 2 | AM5: 2 | AN5: 2 | AO5: 2 | AP5: 2 | AQ5: 2 | AR5: 2 | AS5: =12/AS4 -> 2 | AT5: 2 | AU5: 2 | AV5: 2 | AW5: 2 | AX5: 2 | AY5: 2 | AZ5: 2 | BA5: 2 | BB5: 2 | BC5: 2 | BD5: 2 | BE5: 2 | BF5: 2 | BG5: 2 | BH5: 2 | BI5: 2 | BJ5: 2 | BK5: 2 | BL5: 2 | BM5: 2 | BN5: 2 | BO5: 2 | BP5: 2 | BQ5: 2 | BR5: 2 | BS5: 2 | BT5: 2 | BU5: 2 | BV5: 2 | BW5: 2 | BX5: 2 | BY5: =12/BY4 -> 2 | BZ5: 2 | CA5: 2 | CB5: 2 | CC5: 2 | CD5: 2 | CE5: 2 | CF5: 2 | CG5: 2 | CH5: 2 | CI5: 2 | CJ5: 2 | CK5: 2 | CL5: 2 | CM5: 2 | CN5: 2 | CO5: 2 | CP5: 2 | CQ5: 2 | CR5: 2 | CS5: 2 | CT5: 2 | CU5: 2 | CV5: 2 | CW5: 2 | CX5: 2 | CY5: 2 | CZ5: 2 | DA5: 2 | DB5: 2 | DC5: 2 | DD5: 2 | DE5: =12/DE4 -> 2 | DF5: 2 | DG5: 2 | DH5: 2 | DI5: 2
B6: Start of period | N6: =M7+1 -> 2016-11-01 | O6: 2016-12-01 | P6: 2017-01-01 | Q6: 2017-02-01 | R6: 2017-03-01 | S6: 2017-04-01 | T6: 2017-05-01 | U6: 2017-06-01 | V6: 2017-07-01 | W6: 2017-08-01 | X6: 2017-09-01 | Y6: 2017-10-01 | Z6: 2017-11-01 | AA6: 2017-12-01 | AB6: 2018-01-01 | AC6: 2018-07-01 | AD6: 2019-01-01 | AE6: 2019-07-01 | AF6: 2020-01-01 | AG6: 2020-07-01 | AH6: 2021-01-01 | AI6: 2021-07-01 | AJ6: 2022-01-01 | AK6: 2022-07-01 | AL6: 2023-01-01 | AM6: 2023-07-01 | AN6: 2024-01-01 | AO6: 2024-07-01 | AP6: 2025-01-01 | AQ6: 2025-07-01 | AR6: 2026-01-01 | AS6: 2026-07-01 | AT6: =AS7+1 -> 2027-01-01 | AU6: 2027-07-01 | AV6: 2028-01-01 | AW6: 2028-07-01 | AX6: 2029-01-01 | AY6: 2029-07-01 | AZ6: 2030-01-01 | BA6: 2030-07-01 | BB6: 2031-01-01 | BC6: 2031-07-01 | BD6: 2032-01-01 | BE6: 2032-07-01 | BF6: 2033-01-01 | BG6: 2033-07-01 | BH6: 2034-01-01 | BI6: 2034-07-01 | BJ6: 2035-01-01 | BK6: 2035-07-01 | BL6: 2036-01-01 | BM6: 2036-07-01 | BN6: 2037-01-01 | BO6: 2037-07-01 | BP6: 2038-01-01 | BQ6: 2038-07-01 | BR6: 2039-01-01 | BS6: 2039-07-01 | BT6: 2040-01-01 | BU6: 2040-07-01 | BV6: 2041-01-01 | BW6: 2041-07-01 | BX6: 2042-01-01 | BY6: 2042-07-01 | BZ6: =BY7+1 -> 2043-01-01 | CA6: 2043-07-01 | CB6: 2044-01-01 | CC6: 2044-07-01 | CD6: 2045-01-01 | CE6: 2045-07-01 | CF6: 2046-01-01 | CG6: 2046-07-01 | CH6: 2047-01-01 | CI6: 2047-07-01 | CJ6: 2048-01-01 | CK6: 2048-07-01 | CL6: 2049-01-01 | CM6: 2049-07-01 | CN6: 2050-01-01 | CO6: 2050-07-01 | CP6: 2051-01-01 | CQ6: 2051-07-01 | CR6: 2052-01-01 | CS6: 2052-07-01 | CT6: 2053-01-01 | CU6: 2053-07-01 | CV6: 2054-01-01 | CW6: 2054-07-01 | CX6: 2055-01-01 | CY6: 2055-07-01 | CZ6: 2056-01-01 | DA6: 2056-07-01 | DB6: 2057-01-01 | DC6: 2057-07-01 | DD6: 2058-01-01 | DE6: 2058-07-01 | DF6: =DE7+1 -> 2059-01-01 | DG6: 2059-07-01 | DH6: 2060-01-01 | DI6: 2060-07-01
B7: End of period | G7: ='Project Summary'!J38 -> Model ok | M7: ='Operating Assumptions'!E2-1 -> 2016-10-31 | N7: =EDATE(N6,N4)-1 -> 2016-11-30 | O7: 2016-12-31 | P7: 2017-01-31 | Q7: 2017-02-28 | R7: 2017-03-31 | S7: 2017-04-30 | T7: 2017-05-31 | U7: 2017-06-30 | V7: 2017-07-31 | W7: 2017-08-31 | X7: 2017-09-30 | Y7: 2017-10-31 | Z7: 2017-11-30 | AA7: 2017-12-31 | AB7: 2018-06-30 | AC7: 2018-12-31 | AD7: 2019-06-30 | AE7: 2019-12-31 | AF7: 2020-06-30 | AG7: 2020-12-31 | AH7: 2021-06-30 | AI7: 2021-12-31 | AJ7: 2022-06-30 | AK7: 2022-12-31 | AL7: 2023-06-30 | AM7: 2023-12-31 | AN7: 2024-06-30 | AO7: 2024-12-31 | AP7: 2025-06-30 | AQ7: 2025-12-31 | AR7: 2026-06-30 | AS7: 2026-12-31 | AT7: =EDATE(AT6,AT4)-1 -> 2027-06-30 | AU7: 2027-12-31 | AV7: 2028-06-30 | AW7: 2028-12-31 | AX7: 2029-06-30 | AY7: 2029-12-31 | AZ7: 2030-06-30 | BA7: 2030-12-31 | BB7: 2031-06-30 | BC7: 2031-12-31 | BD7: 2032-06-30 | BE7: 2032-12-31 | BF7: 2033-06-30 | BG7: 2033-12-31 | BH7: 2034-06-30 | BI7: 2034-12-31 | BJ7: 2035-06-30 | BK7: 2035-12-31 | BL7: 2036-06-30 | BM7: 2036-12-31 | BN7: 2037-06-30 | BO7: 2037-12-31 | BP7: 2038-06-30 | BQ7: 2038-12-31 | BR7: 2039-06-30 | BS7: 2039-12-31 | BT7: 2040-06-30 | BU7: 2040-12-31 | BV7: 2041-06-30 | BW7: 2041-12-31 | BX7: 2042-06-30 | BY7: 2042-12-31 | BZ7: =EDATE(BZ6,BZ4)-1 -> 2043-06-30 | CA7: 2043-12-31 | CB7: 2044-06-30 | CC7: 2044-12-31 | CD7: 2045-06-30 | CE7: 2045-12-31 | CF7: 2046-06-30 | CG7: 2046-12-31 | CH7: 2047-06-30 | CI7: 2047-12-31 | CJ7: 2048-06-30 | CK7: 2048-12-31 | CL7: 2049-06-30 | CM7: 2049-12-31 | CN7: 2050-06-30 | CO7: 2050-12-31 | CP7: 2051-06-30 | CQ7: 2051-12-31 | CR7: 2052-06-30 | CS7: 2052-12-31 | CT7: 2053-06-30 | CU7: 2053-12-31 | CV7: 2054-06-30 | CW7: 2054-12-31 | CX7: 2055-06-30 | CY7: 2055-12-31 | CZ7: 2056-06-30 | DA7: 2056-12-31 | DB7: 2057-06-30 | DC7: 2057-12-31 | DD7: 2058-06-30 | DE7: 2058-12-31 | DF7: =EDATE(DF6,DF4)-1 -> 2059-06-30 | DG7: 2059-12-31 | DH7: 2060-06-30 | DI7: 2060-12-31
B8: Year | I8: From | J8: To | L8: Check | N8: =YEAR(N7) -> 2016 | O8: 2016 | P8: 2017 | Q8: 2017 | R8: 2017 | S8: 2017 | T8: 2017 | U8: 2017 | V8: 2017 | W8: 2017 | X8: 2017 | Y8: 2017 | Z8: 2017 | AA8: 2017 | AB8: 2018 | AC8: 2018 | AD8: 2019 | AE8: 2019 | AF8: 2020 | AG8: 2020 | AH8: 2021 | AI8: 2021 | AJ8: 2022 | AK8: 2022 | AL8: 2023 | AM8: 2023 | AN8: 2024 | AO8: 2024 | AP8: 2025 | AQ8: 2025 | AR8: 2026 | AS8: 2026 | AT8: =YEAR(AT7) -> 2027 | AU8: 2027 | AV8: 2028 | AW8: 2028 | AX8: 2029 | AY8: 2029 | AZ8: 2030 | BA8: 2030 | BB8: 2031 | BC8: 2031 | BD8: 2032 | BE8: 2032 | BF8: 2033 | BG8: 2033 | BH8: 2034 | BI8: 2034 | BJ8: 2035 | BK8: 2035 | BL8: 2036 | BM8: 2036 | BN8: 2037 | BO8: 2037 | BP8: 2038 | BQ8: 2038 | BR8: 2039 | BS8: 2039 | BT8: 2040 | BU8: 2040 | BV8: 2041 | BW8: 2041 | BX8: 2042 | BY8: 2042 | BZ8: =YEAR(BZ7) -> 2043 | CA8: 2043 | CB8: 2044 | CC8: 2044 | CD8: 2045 | CE8: 2045 | CF8: 2046 | CG8: 2046 | CH8: 2047 | CI8: 2047 | CJ8: 2048 | CK8: 2048 | CL8: 2049 | CM8: 2049 | CN8: 2050 | CO8: 2050 | CP8: 2051 | CQ8: 2051 | CR8: 2052 | CS8: 2052 | CT8: 2053 | CU8: 2053 | CV8: 2054 | CW8: 2054 | CX8: 2055 | CY8: 2055 | CZ8: 2056 | DA8: 2056 | DB8: 2057 | DC8: 2057 | DD8: 2058 | DE8: 2058 | DF8: =YEAR(DF7) -> 2059 | DG8: 2059 | DH8: 2060 | DI8: 2060
C9: Development period | I9: ='Operating Assumptions'!E2 -> 2016-11-01 | J9: ='Operating Assumptions'!E4 -> 2017-05-01 | K9: =COUNTIF(N9:FN9,TRUE) -> 6 | L9: =K9='Operating Assumptions'!E3 -> TRUE | N9: =AND(N$6>=$I9,N$6<$J9) -> TRUE | O9: TRUE | P9: TRUE | Q9: TRUE | R9: TRUE | S9: TRUE | T9: FALSE | U9: FALSE | V9: FALSE | W9: FALSE | X9: FALSE | Y9: FALSE | Z9: FALSE | AA9: FALSE | AB9: FALSE | AC9: FALSE | AD9: FALSE | AE9: FALSE | AF9: FALSE | AG9: FALSE | AH9: FALSE | AI9: FALSE | AJ9: FALSE | AK9: FALSE | AL9: FALSE | AM9: FALSE | AN9: FALSE | AO9: FALSE | AP9: FALSE | AQ9: FALSE | AR9: FALSE | AS9: FALSE | AT9: =AND(AT$6>=$I9,AT$6<$J9) -> FALSE | AU9: FALSE | AV9: FALSE | AW9: FALSE | AX9: FALSE | AY9: FALSE | AZ9: FALSE | BA9: FALSE | BB9: FALSE | BC9: FALSE | BD9: FALSE | BE9: FALSE | BF9: FALSE | BG9: FALSE | BH9: FALSE | BI9: FALSE | BJ9: FALSE | BK9: FALSE | BL9: FALSE | BM9: FALSE | BN9: FALSE | BO9: FALSE | BP9: FALSE | BQ9: FALSE | BR9: FALSE | BS9: FALSE | BT9: FALSE | BU9: FALSE | BV9: FALSE | BW9: FALSE | BX9: FALSE | BY9: FALSE | BZ9: =AND(BZ$6>=$I9,BZ$6<$J9) -> FALSE | CA9: FALSE | CB9: FALSE | CC9: FALSE | CD9: FALSE | CE9: FALSE | CF9: FALSE | CG9: FALSE | CH9: FALSE | CI9: FALSE | CJ9: FALSE | CK9: FALSE | CL9: FALSE | CM9: FALSE | CN9: FALSE | CO9: FALSE | CP9: FALSE | CQ9: FALSE | CR9: FALSE | CS9: FALSE | CT9: FALSE | CU9: FALSE | CV9: FALSE | CW9: FALSE | CX9: FALSE | CY9: FALSE | CZ9: FALSE | DA9: FALSE | DB9: FALSE | DC9: FALSE | DD9: FALSE | DE9: FALSE | DF9: =AND(DF$6>=$I9,DF$6<$J9) -> FALSE | DG9: FALSE | DH9: FALSE | DI9: FALSE
C10: Financial close date | I10: ='Operating Assumptions'!E4 -> 2017-05-01 | J10: ='Operating Assumptions'!E4 -> 2017-05-01 | K10: 1 | L10: =K10=1 -> TRUE | N10: =AND(N$6>=$I10,N$6<=$J10) -> FALSE | O10: FALSE | P10: FALSE | Q10: FALSE | R10: FALSE | S10: FALSE | T10: TRUE | U10: FALSE | V10: FALSE | W10: FALSE | X10: FALSE | Y10: FALSE | Z10: FALSE | AA10: FALSE | AB10: FALSE | AC10: FALSE | AD10: FALSE | AE10: FALSE | AF10: FALSE | AG10: FALSE | AH10: FALSE | AI10: FALSE | AJ10: FALSE | AK10: FALSE | AL10: FALSE | AM10: FALSE | AN10: FALSE | AO10: FALSE | AP10: FALSE | AQ10: FALSE | AR10: FALSE | AS10: FALSE | AT10: =AND(AT$6>=$I10,AT$6<=$J10) -> FALSE | AU10: FALSE | AV10: FALSE | AW10: FALSE | AX10: FALSE | AY10: FALSE | AZ10: FALSE | BA10: FALSE | BB10: FALSE | BC10: FALSE | BD10: FALSE | BE10: FALSE | BF10: FALSE | BG10: FALSE | BH10: FALSE | BI10: FALSE | BJ10: FALSE | BK10: FALSE | BL10: FALSE | BM10: FALSE | BN10: FALSE | BO10: FALSE | BP10: FALSE | BQ10: FALSE | BR10: FALSE | BS10: FALSE | BT10: FALSE | BU10: FALSE | BV10: FALSE | BW10: FALSE | BX10: FALSE | BY10: FALSE | BZ10: =AND(BZ$6>=$I10,BZ$6<=$J10) -> FALSE | CA10: FALSE | CB10: FALSE | CC10: FALSE | CD10: FALSE | CE10: FALSE | CF10: FALSE | CG10: FALSE | CH10: FALSE | CI10: FALSE | CJ10: FALSE | CK10: FALSE | CL10: FALSE | CM10: FALSE | CN10: FALSE | CO10: FALSE | CP10: FALSE | CQ10: FALSE | CR10: FALSE | CS10: FALSE | CT10: FALSE | CU10: FALSE | CV10: FALSE | CW10: FALSE | CX10: FALSE | CY10: FALSE | CZ10: FALSE | DA10: FALSE | DB10: FALSE | DC10: FALSE | DD10: FALSE | DE10: FALSE | DF10: =AND(DF$6>=$I10,DF$6<=$J10) -> FALSE | DG10: FALSE | DH10: FALSE | DI10: FALSE
C11: Construction period | I11: ='Operating Assumptions'!E4 -> 2017-05-01 | J11: ='Operating Assumptions'!E6 -> 2018-01-01 | K11: 8 | L11: =K11='Operating Assumptions'!E5 -> TRUE | N11: =AND(N$6>=$I11,N$6<$J11) -> FALSE | O11: FALSE | P11: FALSE | Q11: FALSE | R11: FALSE | S11: FALSE | T11: TRUE | U11: TRUE | V11: TRUE | W11: TRUE | X11: TRUE | Y11: TRUE | Z11: TRUE | AA11: TRUE | AB11: FALSE | AC11: FALSE | AD11: FALSE | AE11: FALSE | AF11: FALSE | AG11: FALSE | AH11: FALSE | AI11: FALSE | AJ11: FALSE | AK11: FALSE | AL11: FALSE | AM11: FALSE | AN11: FALSE | AO11: FALSE | AP11: FALSE | AQ11: FALSE | AR11: FALSE | AS11: FALSE | AT11: =AND(AT$6>=$I11,AT$6<$J11) -> FALSE | AU11: FALSE | AV11: FALSE | AW11: FALSE | AX11: FALSE | AY11: FALSE | AZ11: FALSE | BA11: FALSE | BB11: FALSE | BC11: FALSE | BD11: FALSE | BE11: FALSE | BF11: FALSE | BG11: FALSE | BH11: FALSE | BI11: FALSE | BJ11: FALSE | BK11: FALSE | BL11: FALSE | BM11: FALSE | BN11: FALSE | BO11: FALSE | BP11: FALSE | BQ11: FALSE | BR11: FALSE | BS11: FALSE | BT11: FALSE | BU11: FALSE | BV11: FALSE | BW11: FALSE | BX11: FALSE | BY11: FALSE | BZ11: =AND(BZ$6>=$I11,BZ$6<$J11) -> FALSE | CA11: FALSE | CB11: FALSE | CC11: FALSE | CD11: FALSE | CE11: FALSE | CF11: FALSE | CG11: FALSE | CH11: FALSE | CI11: FALSE | CJ11: FALSE | CK11: FALSE | CL11: FALSE | CM11: FALSE | CN11: FALSE | CO11: FALSE | CP11: FALSE | CQ11: FALSE | CR11: FALSE | CS11: FALSE | CT11: FALSE | CU11: FALSE | CV11: FALSE | CW11: FALSE | CX11: FALSE | CY11: FALSE | CZ11: FALSE | DA11: FALSE | DB11: FALSE | DC11: FALSE | DD11: FALSE | DE11: FALSE | DF11: =AND(DF$6>=$I11,DF$6<$J11) -> FALSE | DG11: FALSE | DH11: FALSE | DI11: FALSE
C12: Commercial Operation Date | I12: ='Operating Assumptions'!E6 -> 2018-01-01 | J12: ='Operating Assumptions'!E6 -> 2018-01-01 | K12: 1 | L12: =K12=1 -> TRUE | N12: =AND(N$6>=$I12,N$6<=$J12) -> FALSE | O12: FALSE | P12: FALSE | Q12: FALSE | R12: FALSE | S12: FALSE | T12: FALSE | U12: FALSE | V12: FALSE | W12: FALSE | X12: =AND(X$6>=$I12,X$6<=$J12) -> FALSE | Y12: FALSE | Z12: FALSE | AA12: FALSE | AB12: TRUE | AC12: FALSE | AD12: FALSE | AE12: FALSE | AF12: FALSE | AG12: FALSE | AH12: =AND(AH$6>=$I12,AH$6<=$J12) -> FALSE | AI12: FALSE | AJ12: FALSE | AK12: FALSE | AL12: FALSE | AM12: FALSE | AN12: FALSE | AO12: FALSE | AP12: FALSE | AQ12: FALSE | AR12: =AND(AR$6>=$I12,AR$6<=$J12) -> FALSE | AS12: FALSE | AT12: FALSE | AU12: FALSE | AV12: FALSE | AW12: FALSE | AX12: FALSE | AY12: FALSE | AZ12: FALSE | BA12: FALSE | BB12: =AND(BB$6>=$I12,BB$6<=$J12) -> FALSE | BC12: FALSE | BD12: FALSE | BE12: FALSE | BF12: FALSE | BG12: FALSE | BH12: FALSE | BI12: FALSE | BJ12: FALSE | BK12: FALSE | BL12: =AND(BL$6>=$I12,BL$6<=$J12) -> FALSE | BM12: FALSE | BN12: FALSE | BO12: FALSE | BP12: FALSE | BQ12: FALSE | BR12: FALSE | BS12: FALSE | BT12: FALSE | BU12: FALSE | BV12: =AND(BV$6>=$I12,BV$6<=$J12) -> FALSE | BW12: FALSE | BX12: FALSE | BY12: FALSE | BZ12: FALSE | CA12: FALSE | CB12: FALSE | CC12: FALSE | CD12: FALSE | CE12: FALSE | CF12: =AND(CF$6>=$I12,CF$6<=$J12) -> FALSE | CG12: FALSE | CH12: FALSE | CI12: FALSE | CJ12: FALSE | CK12: FALSE | CL12: FALSE | CM12: FALSE | CN12: FALSE | CO12: FALSE | CP12: =AND(CP$6>=$I12,CP$6<=$J12) -> FALSE | CQ12: FALSE | CR12: FALSE | CS12: FALSE | CT12: FALSE | CU12: FALSE | CV12: FALSE | CW12: FALSE | CX12: FALSE | CY12: FALSE | CZ12: =AND(CZ$6>=$I12,CZ$6<=$J12) -> FALSE | DA12: FALSE | DB12: FALSE | DC12: FALSE | DD12: FALSE | DE12: FALSE | DF12: FALSE | DG12: FALSE | DH12: FALSE | DI12: FALSE
C13: Month before COD | I13: =EDATE(I12,-1) -> 2017-12-01 | J13: =EDATE(J12,-1) -> 2017-12-01 | K13: 1 | L13: =K13=1 -> TRUE | N13: FALSE | O13: FALSE | P13: FALSE | Q13: FALSE | R13: FALSE | S13: FALSE | T13: FALSE | U13: FALSE | V13: FALSE | W13: FALSE | X13: FALSE | Y13: FALSE | Z13: FALSE | AA13: TRUE | AB13: FALSE | AC13: FALSE | AD13: FALSE | AE13: FALSE | AF13: FALSE | AG13: FALSE | AH13: FALSE | AI13: FALSE | AJ13: FALSE | AK13: FALSE | AL13: FALSE | AM13: FALSE | AN13: FALSE | AO13: FALSE | AP13: FALSE | AQ13: FALSE | AR13: FALSE | AS13: FALSE | AT13: FALSE | AU13: FALSE | AV13: FALSE | AW13: FALSE | AX13: FALSE | AY13: FALSE | AZ13: FALSE | BA13: FALSE | BB13: FALSE | BC13: FALSE | BD13: FALSE | BE13: FALSE | BF13: FALSE | BG13: FALSE | BH13: FALSE | BI13: FALSE | BJ13: FALSE | BK13: FALSE | BL13: FALSE | BM13: FALSE | BN13: FALSE | BO13: FALSE | BP13: FALSE | BQ13: FALSE | BR13: FALSE | BS13: FALSE | BT13: FALSE | BU13: FALSE | BV13: FALSE | BW13: FALSE | BX13: FALSE | BY13: FALSE | BZ13: FALSE | CA13: FALSE | CB13: FALSE | CC13: FALSE | CD13: FALSE | CE13: FALSE | CF13: FALSE | CG13: FALSE | CH13: FALSE | CI13: FALSE | CJ13: FALSE | CK13: FALSE | CL13: FALSE | CM13: FALSE | CN13: FALSE | CO13: FALSE | CP13: FALSE | CQ13: FALSE | CR13: FALSE | CS13: FALSE | CT13: FALSE | CU13: FALSE | CV13: FALSE | CW13: FALSE | CX13: FALSE | CY13: FALSE | CZ13: FALSE | DA13: FALSE | DB13: FALSE | DC13: FALSE | DD13: FALSE | DE13: FALSE | DF13: FALSE | DG13: FALSE | DH13: FALSE | DI13: FALSE
C14: Operation period | I14: ='Operating Assumptions'!E6 -> 2018-01-01 | J14: ='Operating Assumptions'!E9 -> 2043-01-01 | K14: 50 | L14: =K14='Operating Assumptions'!E8*'Operating Assumptions'!E20 -> TRUE | N14: =AND(N$6>=$I14,N$6<$J14) -> FALSE | O14: FALSE | P14: FALSE | Q14: FALSE | R14: FALSE | S14: FALSE | T14: FALSE | U14: FALSE | V14: FALSE | W14: FALSE | X14: FALSE | Y14: FALSE | Z14: FALSE | AA14: FALSE | AB14: TRUE | AC14: TRUE | AD14: TRUE | AE14: TRUE | AF14: TRUE | AG14: TRUE | AH14: TRUE | AI14: TRUE | AJ14: TRUE | AK14: TRUE | AL14: TRUE | AM14: TRUE | AN14: TRUE | AO14: TRUE | AP14: TRUE | AQ14: TRUE | AR14: TRUE | AS14: TRUE | AT14: =AND(AT$6>=$I14,AT$6<$J14) -> TRUE | AU14: TRUE | AV14: TRUE | AW14: TRUE | AX14: TRUE | AY14: TRUE | AZ14: TRUE | BA14: TRUE | BB14: TRUE | BC14: TRUE | BD14: TRUE | BE14: TRUE | BF14: TRUE | BG14: TRUE | BH14: TRUE | BI14: TRUE | BJ14: TRUE | BK14: TRUE | BL14: TRUE | BM14: TRUE | BN14: TRUE | BO14: TRUE | BP14: TRUE | BQ14: TRUE | BR14: TRUE | BS14: TRUE | BT14: TRUE | BU14: TRUE | BV14: TRUE | BW14: TRUE | BX14: TRUE | BY14: TRUE | BZ14: =AND(BZ$6>=$I14,BZ$6<$J14) -> FALSE | CA14: FALSE | CB14: FALSE | CC14: FALSE | CD14: FALSE | CE14: FALSE | CF14: FALSE | CG14: FALSE | CH14: FALSE | CI14: FALSE | CJ14: FALSE | CK14: FALSE | CL14: FALSE | CM14: FALSE | CN14: FALSE | CO14: FALSE | CP14: FALSE | CQ14: FALSE | CR14: FALSE | CS14: FALSE | CT14: FALSE | CU14: FALSE | CV14: FALSE | CW14: FALSE | CX14: FALSE | CY14: FALSE | CZ14: FALSE | DA14: FALSE | DB14: FALSE | DC14: FALSE | DD14: FALSE | DE14: FALSE | DF14: =AND(DF$6>=$I14,DF$6<$J14) -> FALSE | DG14: FALSE | DH14: FALSE | DI14: FALSE
C15: Retirement Date | I15: =EDATE('Operating Assumptions'!E9,-'Operating Assumptions'!E19) -> 2042-07-01 | J15: =I15 -> 2042-07-01 | K15: 1 | L15: =K15=1 -> TRUE | N15: =AND(N$6>=$I15,N$6<=$J15) -> FALSE | O15: FALSE | P15: FALSE | Q15: FALSE | R15: FALSE | S15: FALSE | T15: FALSE | U15: FALSE | V15: FALSE | W15: FALSE | X15: FALSE | Y15: FALSE | Z15: FALSE | AA15: FALSE | AB15: FALSE | AC15: FALSE | AD15: FALSE | AE15: FALSE | AF15: FALSE | AG15: FALSE | AH15: FALSE | AI15: FALSE | AJ15: FALSE | AK15: FALSE | AL15: FALSE | AM15: FALSE | AN15: FALSE | AO15: FALSE | AP15: FALSE | AQ15: FALSE | AR15: FALSE | AS15: FALSE | AT15: =AND(AT$6>=$I15,AT$6<=$J15) -> FALSE | AU15: FALSE | AV15: FALSE | AW15: FALSE | AX15: FALSE | AY15: FALSE | AZ15: FALSE | BA15: FALSE | BB15: FALSE | BC15: FALSE | BD15: FALSE | BE15: FALSE | BF15: FALSE | BG15: FALSE | BH15: FALSE | BI15: FALSE | BJ15: FALSE | BK15: FALSE | BL15: FALSE | BM15: FALSE | BN15: FALSE | BO15: FALSE | BP15: FALSE | BQ15: FALSE | BR15: FALSE | BS15: FALSE | BT15: FALSE | BU15: FALSE | BV15: FALSE | BW15: FALSE | BX15: FALSE | BY15: TRUE | BZ15: =AND(BZ$6>=$I15,BZ$6<=$J15) -> FALSE | CA15: FALSE | CB15: FALSE | CC15: FALSE | CD15: FALSE | CE15: FALSE | CF15: FALSE | CG15: FALSE | CH15: FALSE | CI15: FALSE | CJ15: FALSE | CK15: FALSE | CL15: FALSE | CM15: FALSE | CN15: FALSE | CO15: FALSE | CP15: FALSE | CQ15: FALSE | CR15: FALSE | CS15: FALSE | CT15: FALSE | CU15: FALSE | CV15: FALSE | CW15: FALSE | CX15: FALSE | CY15: FALSE | CZ15: FALSE | DA15: FALSE | DB15: FALSE | DC15: FALSE | DD15: FALSE | DE15: FALSE | DF15: =AND(DF$6>=$I15,DF$6<=$J15) -> FALSE | DG15: FALSE | DH15: FALSE | DI15: FALSE
C17: Debt Repayment Period | I17: =I12 -> 2018-01-01 | J17: ='Financing Assumptions'!E34 -> 2038-01-01 | K17: =COUNTIF(N17:FN17,TRUE) -> 40 | L17: =K17/'Operating Assumptions'!E20='Financing Assumptions'!E33 -> TRUE | N17: =AND(N$6>=$I17,N$6<$J17) -> FALSE | O17: FALSE | P17: FALSE | Q17: FALSE | R17: FALSE | S17: FALSE | T17: FALSE | U17: FALSE | V17: FALSE | W17: FALSE | X17: FALSE | Y17: FALSE | Z17: FALSE | AA17: FALSE | AB17: TRUE | AC17: TRUE | AD17: TRUE | AE17: TRUE | AF17: TRUE | AG17: TRUE | AH17: TRUE | AI17: TRUE | AJ17: TRUE | AK17: TRUE | AL17: TRUE | AM17: TRUE | AN17: TRUE | AO17: TRUE | AP17: TRUE | AQ17: TRUE | AR17: TRUE | AS17: TRUE | AT17: =AND(AT$6>=$I17,AT$6<$J17) -> TRUE | AU17: TRUE | AV17: TRUE | AW17: TRUE | AX17: TRUE | AY17: TRUE | AZ17: TRUE | BA17: TRUE | BB17: TRUE | BC17: TRUE | BD17: TRUE | BE17: TRUE | BF17: TRUE | BG17: TRUE | BH17: TRUE | BI17: TRUE | BJ17: TRUE | BK17: TRUE | BL17: TRUE | BM17: TRUE | BN17: TRUE | BO17: TRUE | BP17: FALSE | BQ17: FALSE | BR17: FALSE | BS17: FALSE | BT17: FALSE | BU17: FALSE | BV17: FALSE | BW17: FALSE | BX17: FALSE | BY17: FALSE | BZ17: =AND(BZ$6>=$I17,BZ$6<$J17) -> FALSE | CA17: FALSE | CB17: FALSE | CC17: FALSE | CD17: FALSE | CE17: FALSE | CF17: FALSE | CG17: FALSE | CH17: FALSE | CI17: FALSE | CJ17: FALSE | CK17: FALSE | CL17: FALSE | CM17: FALSE | CN17: FALSE | CO17: FALSE | CP17: FALSE | CQ17: FALSE | CR17: FALSE | CS17: FALSE | CT17: FALSE | CU17: FALSE | CV17: FALSE | CW17: FALSE | CX17: FALSE | CY17: FALSE | CZ17: FALSE | DA17: FALSE | DB17: FALSE | DC17: FALSE | DD17: FALSE | DE17: FALSE | DF17: =AND(DF$6>=$I17,DF$6<$J17) -> FALSE | DG17: FALSE | DH17: FALSE | DI17: FALSE
C18: Debt Retirement Period | I18: =J17 -> 2038-01-01 | J18: =J17 -> 2038-01-01 | K18: =COUNTIF(N18:FN18,TRUE) -> 1 | L18: =K18=1 -> TRUE | N18: =AND(N$6>=$I18,N$6<=$J18) -> FALSE | O18: FALSE | P18: FALSE | Q18: FALSE | R18: FALSE | S18: FALSE | T18: FALSE | U18: FALSE | V18: FALSE | W18: FALSE | X18: FALSE | Y18: FALSE | Z18: FALSE | AA18: FALSE | AB18: FALSE | AC18: FALSE | AD18: FALSE | AE18: FALSE | AF18: FALSE | AG18: FALSE | AH18: FALSE | AI18: FALSE | AJ18: FALSE | AK18: FALSE | AL18: FALSE | AM18: FALSE | AN18: FALSE | AO18: FALSE | AP18: FALSE | AQ18: FALSE | AR18: FALSE | AS18: FALSE | AT18: =AND(AT$6>=$I18,AT$6<=$J18) -> FALSE | AU18: FALSE | AV18: FALSE | AW18: FALSE | AX18: FALSE | AY18: FALSE | AZ18: FALSE | BA18: FALSE | BB18: FALSE | BC18: FALSE | BD18: FALSE | BE18: FALSE | BF18: FALSE | BG18: FALSE | BH18: FALSE | BI18: FALSE | BJ18: FALSE | BK18: FALSE | BL18: FALSE | BM18: FALSE | BN18: FALSE | BO18: FALSE | BP18: TRUE | BQ18: FALSE | BR18: FALSE | BS18: FALSE | BT18: FALSE | BU18: FALSE | BV18: FALSE | BW18: FALSE | BX18: FALSE | BY18: FALSE | BZ18: =AND(BZ$6>=$I18,BZ$6<=$J18) -> FALSE | CA18: FALSE | CB18: FALSE | CC18: FALSE | CD18: FALSE | CE18: FALSE | CF18: FALSE | CG18: FALSE | CH18: FALSE | CI18: FALSE | CJ18: FALSE | CK18: FALSE | CL18: FALSE | CM18: FALSE | CN18: FALSE | CO18: FALSE | CP18: FALSE | CQ18: FALSE | CR18: FALSE | CS18: FALSE | CT18: FALSE | CU18: FALSE | CV18: FALSE | CW18: FALSE | CX18: FALSE | CY18: FALSE | CZ18: FALSE | DA18: FALSE | DB18: FALSE | DC18: FALSE | DD18: FALSE | DE18: FALSE | DF18: =AND(DF$6>=$I18,DF$6<=$J18) -> FALSE | DG18: FALSE | DH18: FALSE | DI18: FALSE
C19: Re-financing Date | I19: ='Financing Assumptions'!E70 -> 2021-01-01 | J19: =I19 -> 2021-01-01 | K19: =COUNTIF(N19:FN19,TRUE) -> 0 | N19: =IF('Financing Assumptions'!$E$68,AND(N$6>=$I19,N$6<=$J19)) -> FALSE | O19: =IF('Financing Assumptions'!$E$68,AND(O$6>=$I19,O$6<=$J19)) -> FALSE | P19: =IF('Financing Assumptions'!$E$68,AND(P$6>=$I19,P$6<=$J19)) -> FALSE | Q19: =IF('Financing Assumptions'!$E$68,AND(Q$6>=$I19,Q$6<=$J19)) -> FALSE | R19: =IF('Financing Assumptions'!$E$68,AND(R$6>=$I19,R$6<=$J19)) -> FALSE | S19: =IF('Financing Assumptions'!$E$68,AND(S$6>=$I19,S$6<=$J19)) -> FALSE | T19: =IF('Financing Assumptions'!$E$68,AND(T$6>=$I19,T$6<=$J19)) -> FALSE | U19: =IF('Financing Assumptions'!$E$68,AND(U$6>=$I19,U$6<=$J19)) -> FALSE | V19: =IF('Financing Assumptions'!$E$68,AND(V$6>=$I19,V$6<=$J19)) -> FALSE | W19: =IF('Financing Assumptions'!$E$68,AND(W$6>=$I19,W$6<=$J19)) -> FALSE | X19: =IF('Financing Assumptions'!$E$68,AND(X$6>=$I19,X$6<=$J19)) -> FALSE | Y19: =IF('Financing Assumptions'!$E$68,AND(Y$6>=$I19,Y$6<=$J19)) -> FALSE | Z19: =IF('Financing Assumptions'!$E$68,AND(Z$6>=$I19,Z$6<=$J19)) -> FALSE | AA19: =IF('Financing Assumptions'!$E$68,AND(AA$6>=$I19,AA$6<=$J19)) -> FALSE | AB19: =IF('Financing Assumptions'!$E$68,AND(AB$6>=$I19,AB$6<=$J19)) -> FALSE | AC19: =IF('Financing Assumptions'!$E$68,AND(AC$6>=$I19,AC$6<=$J19)) -> FALSE | AD19: =IF('Financing Assumptions'!$E$68,AND(AD$6>=$I19,AD$6<=$J19)) -> FALSE | AE19: =IF('Financing Assumptions'!$E$68,AND(AE$6>=$I19,AE$6<=$J19)) -> FALSE | AF19: =IF('Financing Assumptions'!$E$68,AND(AF$6>=$I19,AF$6<=$J19)) -> FALSE | AG19: =IF('Financing Assumptions'!$E$68,AND(AG$6>=$I19,AG$6<=$J19)) -> FALSE | AH19: =IF('Financing Assumptions'!$E$68,AND(AH$6>=$I19,AH$6<=$J19)) -> FALSE | AI19: =IF('Financing Assumptions'!$E$68,AND(AI$6>=$I19,AI$6<=$J19)) -> FALSE | AJ19: =IF('Financing Assumptions'!$E$68,AND(AJ$6>=$I19,AJ$6<=$J19)) -> FALSE | AK19: =IF('Financing Assumptions'!$E$68,AND(AK$6>=$I19,AK$6<=$J19)) -> FALSE | AL19: =IF('Financing Assumptions'!$E$68,AND(AL$6>=$I19,AL$6<=$J19)) -> FALSE | AM19: =IF('Financing Assumptions'!$E$68,AND(AM$6>=$I19,AM$6<=$J19)) -> FALSE | AN19: =IF('Financing Assumptions'!$E$68,AND(AN$6>=$I19,AN$6<=$J19)) -> FALSE | AO19: =IF('Financing Assumptions'!$E$68,AND(AO$6>=$I19,AO$6<=$J19)) -> FALSE | AP19: =IF('Financing Assumptions'!$E$68,AND(AP$6>=$I19,AP$6<=$J19)) -> FALSE | AQ19: =IF('Financing Assumptions'!$E$68,AND(AQ$6>=$I19,AQ$6<=$J19)) -> FALSE | AR19: =IF('Financing Assumptions'!$E$68,AND(AR$6>=$I19,AR$6<=$J19)) -> FALSE | AS19: =IF('Financing Assumptions'!$E$68,AND(AS$6>=$I19,AS$6<=$J19)) -> FALSE | AT19: =IF('Financing Assumptions'!$E$68,AND(AT$6>=$I19,AT$6<=$J19)) -> FALSE | AU19: =IF('Financing Assumptions'!$E$68,AND(AU$6>=$I19,AU$6<=$J19)) -> FALSE | AV19: =IF('Financing Assumptions'!$E$68,AND(AV$6>=$I19,AV$6<=$J19)) -> FALSE | AW19: =IF('Financing Assumptions'!$E$68,AND(AW$6>=$I19,AW$6<=$J19)) -> FALSE | AX19: =IF('Financing Assumptions'!$E$68,AND(AX$6>=$I19,AX$6<=$J19)) -> FALSE | AY19: =IF('Financing Assumptions'!$E$68,AND(AY$6>=$I19,AY$6<=$J19)) -> FALSE | AZ19: =IF('Financing Assumptions'!$E$68,AND(AZ$6>=$I19,AZ$6<=$J19)) -> FALSE | BA19: =IF('Financing Assumptions'!$E$68,AND(BA$6>=$I19,BA$6<=$J19)) -> FALSE | BB19: =IF('Financing Assumptions'!$E$68,AND(BB$6>=$I19,BB$6<=$J19)) -> FALSE | BC19: =IF('Financing Assumptions'!$E$68,AND(BC$6>=$I19,BC$6<=$J19)) -> FALSE | BD19: =IF('Financing Assumptions'!$E$68,AND(BD$6>=$I19,BD$6<=$J19)) -> FALSE | BE19: =IF('Financing Assumptions'!$E$68,AND(BE$6>=$I19,BE$6<=$J19)) -> FALSE | BF19: =IF('Financing Assumptions'!$E$68,AND(BF$6>=$I19,BF$6<=$J19)) -> FALSE | BG19: =IF('Financing Assumptions'!$E$68,AND(BG$6>=$I19,BG$6<=$J19)) -> FALSE | BH19: =IF('Financing Assumptions'!$E$68,AND(BH$6>=$I19,BH$6<=$J19)) -> FALSE | BI19: =IF('Financing Assumptions'!$E$68,AND(BI$6>=$I19,BI$6<=$J19)) -> FALSE | BJ19: =IF('Financing Assumptions'!$E$68,AND(BJ$6>=$I19,BJ$6<=$J19)) -> FALSE | BK19: =IF('Financing Assumptions'!$E$68,AND(BK$6>=$I19,BK$6<=$J19)) -> FALSE | BL19: =IF('Financing Assumptions'!$E$68,AND(BL$6>=$I19,BL$6<=$J19)) -> FALSE | BM19: =IF('Financing Assumptions'!$E$68,AND(BM$6>=$I19,BM$6<=$J19)) -> FALSE | BN19: =IF('Financing Assumptions'!$E$68,AND(BN$6>=$I19,BN$6<=$J19)) -> FALSE | BO19: =IF('Financing Assumptions'!$E$68,AND(BO$6>=$I19,BO$6<=$J19)) -> FALSE | BP19: =IF('Financing Assumptions'!$E$68,AND(BP$6>=$I19,BP$6<=$J19)) -> FALSE | BQ19: =IF('Financing Assumptions'!$E$68,AND(BQ$6>=$I19,BQ$6<=$J19)) -> FALSE | BR19: =IF('Financing Assumptions'!$E$68,AND(BR$6>=$I19,BR$6<=$J19)) -> FALSE | BS19: =IF('Financing Assumptions'!$E$68,AND(BS$6>=$I19,BS$6<=$J19)) -> FALSE | BT19: =IF('Financing Assumptions'!$E$68,AND(BT$6>=$I19,BT$6<=$J19)) -> FALSE | BU19: =IF('Financing Assumptions'!$E$68,AND(BU$6>=$I19,BU$6<=$J19)) -> FALSE | BV19: =IF('Financing Assumptions'!$E$68,AND(BV$6>=$I19,BV$6<=$J19)) -> FALSE | BW19: =IF('Financing Assumptions'!$E$68,AND(BW$6>=$I19,BW$6<=$J19)) -> FALSE | BX19: =IF('Financing Assumptions'!$E$68,AND(BX$6>=$I19,BX$6<=$J19)) -> FALSE | BY19: =IF('Financing Assumptions'!$E$68,AND(BY$6>=$I19,BY$6<=$J19)) -> FALSE | BZ19: =IF('Financing Assumptions'!$E$68,AND(BZ$6>=$I19,BZ$6<=$J19)) -> FALSE | CA19: =IF('Financing Assumptions'!$E$68,AND(CA$6>=$I19,CA$6<=$J19)) -> FALSE | CB19: =IF('Financing Assumptions'!$E$68,AND(CB$6>=$I19,CB$6<=$J19)) -> FALSE | CC19: =IF('Financing Assumptions'!$E$68,AND(CC$6>=$I19,CC$6<=$J19)) -> FALSE | CD19: =IF('Financing Assumptions'!$E$68,AND(CD$6>=$I19,CD$6<=$J19)) -> FALSE | CE19: =IF('Financing Assumptions'!$E$68,AND(CE$6>=$I19,CE$6<=$J19)) -> FALSE | CF19: =IF('Financing Assumptions'!$E$68,AND(CF$6>=$I19,CF$6<=$J19)) -> FALSE | CG19: =IF('Financing Assumptions'!$E$68,AND(CG$6>=$I19,CG$6<=$J19)) -> FALSE | CH19: =IF('Financing Assumptions'!$E$68,AND(CH$6>=$I19,CH$6<=$J19)) -> FALSE | CI19: =IF('Financing Assumptions'!$E$68,AND(CI$6>=$I19,CI$6<=$J19)) -> FALSE | CJ19: =IF('Financing Assumptions'!$E$68,AND(CJ$6>=$I19,CJ$6<=$J19)) -> FALSE | CK19: =IF('Financing Assumptions'!$E$68,AND(CK$6>=$I19,CK$6<=$J19)) -> FALSE | CL19: =IF('Financing Assumptions'!$E$68,AND(CL$6>=$I19,CL$6<=$J19)) -> FALSE | CM19: =IF('Financing Assumptions'!$E$68,AND(CM$6>=$I19,CM$6<=$J19)) -> FALSE | CN19: =IF('Financing Assumptions'!$E$68,AND(CN$6>=$I19,CN$6<=$J19)) -> FALSE | CO19: =IF('Financing Assumptions'!$E$68,AND(CO$6>=$I19,CO$6<=$J19)) -> FALSE | CP19: =IF('Financing Assumptions'!$E$68,AND(CP$6>=$I19,CP$6<=$J19)) -> FALSE | CQ19: =IF('Financing Assumptions'!$E$68,AND(CQ$6>=$I19,CQ$6<=$J19)) -> FALSE | CR19: =IF('Financing Assumptions'!$E$68,AND(CR$6>=$I19,CR$6<=$J19)) -> FALSE | CS19: =IF('Financing Assumptions'!$E$68,AND(CS$6>=$I19,CS$6<=$J19)) -> FALSE | CT19: =IF('Financing Assumptions'!$E$68,AND(CT$6>=$I19,CT$6<=$J19)) -> FALSE | CU19: =IF('Financing Assumptions'!$E$68,AND(CU$6>=$I19,CU$6<=$J19)) -> FALSE | CV19: =IF('Financing Assumptions'!$E$68,AND(CV$6>=$I19,CV$6<=$J19)) -> FALSE | CW19: =IF('Financing Assumptions'!$E$68,AND(CW$6>=$I19,CW$6<=$J19)) -> FALSE | CX19: =IF('Financing Assumptions'!$E$68,AND(CX$6>=$I19,CX$6<=$J19)) -> FALSE | CY19: =IF('Financing Assumptions'!$E$68,AND(CY$6>=$I19,CY$6<=$J19)) -> FALSE | CZ19: =IF('Financing Assumptions'!$E$68,AND(CZ$6>=$I19,CZ$6<=$J19)) -> FALSE | DA19: =IF('Financing Assumptions'!$E$68,AND(DA$6>=$I19,DA$6<=$J19)) -> FALSE | DB19: =IF('Financing Assumptions'!$E$68,AND(DB$6>=$I19,DB$6<=$J19)) -> FALSE | DC19: =IF('Financing Assumptions'!$E$68,AND(DC$6>=$I19,DC$6<=$J19)) -> FALSE | DD19: =IF('Financing Assumptions'!$E$68,AND(DD$6>=$I19,DD$6<=$J19)) -> FALSE | DE19: =IF('Financing Assumptions'!$E$68,AND(DE$6>=$I19,DE$6<=$J19)) -> FALSE | DF19: =IF('Financing Assumptions'!$E$68,AND(DF$6>=$I19,DF$6<=$J19)) -> FALSE | DG19: =IF('Financing Assumptions'!$E$68,AND(DG$6>=$I19,DG$6<=$J19)) -> FALSE | DH19: =IF('Financing Assumptions'!$E$68,AND(DH$6>=$I19,DH$6<=$J19)) -> FALSE | DI19: =IF('Financing Assumptions'!$E$68,AND(DI$6>=$I19,DI$6<=$J19)) -> FALSE
C20: Re-financing Repayment Period | I20: ='Financing Assumptions'!E75 -> 2021-07-01 | J20: ='Financing Assumptions'!E76 -> 2037-07-01 | K20: =COUNTIF(N20:FN20,TRUE) -> 32 | L20: =K20/'Operating Assumptions'!E20='Financing Assumptions'!E73 -> TRUE | N20: =AND(N$6>=$I20,N$6<$J20) -> FALSE | O20: FALSE | P20: FALSE | Q20: FALSE | R20: FALSE | S20: FALSE | T20: FALSE | U20: FALSE | V20: FALSE | W20: FALSE | X20: FALSE | Y20: FALSE | Z20: FALSE | AA20: FALSE | AB20: FALSE | AC20: FALSE | AD20: FALSE | AE20: FALSE | AF20: FALSE | AG20: FALSE | AH20: FALSE | AI20: TRUE | AJ20: TRUE | AK20: TRUE | AL20: TRUE | AM20: TRUE | AN20: TRUE | AO20: TRUE | AP20: TRUE | AQ20: TRUE | AR20: TRUE | AS20: TRUE | AT20: =AND(AT$6>=$I20,AT$6<$J20) -> TRUE | AU20: TRUE | AV20: TRUE | AW20: TRUE | AX20: TRUE | AY20: TRUE | AZ20: TRUE | BA20: TRUE | BB20: TRUE | BC20: TRUE | BD20: TRUE | BE20: TRUE | BF20: TRUE | BG20: TRUE | BH20: TRUE | BI20: TRUE | BJ20: TRUE | BK20: TRUE | BL20: TRUE | BM20: TRUE | BN20: TRUE | BO20: FALSE | BP20: FALSE | BQ20: FALSE | BR20: FALSE | BS20: FALSE | BT20: FALSE | BU20: FALSE | BV20: FALSE | BW20: FALSE | BX20: FALSE | BY20: FALSE | BZ20: =AND(BZ$6>=$I20,BZ$6<$J20) -> FALSE | CA20: FALSE | CB20: FALSE | CC20: FALSE | CD20: FALSE | CE20: FALSE | CF20: FALSE | CG20: FALSE | CH20: FALSE | CI20: FALSE | CJ20: FALSE | CK20: FALSE | CL20: FALSE | CM20: FALSE | CN20: FALSE | CO20: FALSE | CP20: FALSE | CQ20: FALSE | CR20: FALSE | CS20: FALSE | CT20: FALSE | CU20: FALSE | CV20: FALSE | CW20: FALSE | CX20: FALSE | CY20: FALSE | CZ20: FALSE | DA20: FALSE | DB20: FALSE | DC20: FALSE | DD20: FALSE | DE20: FALSE | DF20: =AND(DF$6>=$I20,DF$6<$J20) -> FALSE | DG20: FALSE | DH20: FALSE | DI20: FALSE
A22: EBITDA and Capital Expenditures to Compute Pre-tax Flow
B24: Capacity | F24: Start | G24: End | H24: Capacity
C25: First Increment of Capacity | F25: ='Operating Assumptions'!E34 -> 2017-11-10 | G25: ='Operating Assumptions'!E9 -> 2043-01-01 | H25: ='Operating Assumptions'!H34 -> 119.808 | N25: =percent_of_time($F25,$G25,N$6,N$7)*$H25 -> 0 | O25: 0 | P25: 0 | Q25: 0 | R25: 0 | S25: 0 | T25: 0 | U25: 0 | V25: 0 | W25: 0 | X25: =percent_of_time($F25,$G25,X$6,X$7)*$H25 -> 0 | Y25: 0 | Z25: 83.8656 | AA25: 119.808 | AB25: 119.808 | AC25: 119.808 | AD25: 119.808 | AE25: 119.808 | AF25: 119.808 | AG25: 119.808 | AH25: =percent_of_time($F25,$G25,AH$6,AH$7)*$H25 -> 119.808 | AI25: 119.808 | AJ25: 119.808 | AK25: 119.808 | AL25: 119.808 | AM25: 119.808 | AN25: 119.808 | AO25: 119.808 | AP25: 119.808 | AQ25: 119.808 | AR25: =percent_of_time($F25,$G25,AR$6,AR$7)*$H25 -> 119.808 | AS25: 119.808 | AT25: 119.808 | AU25: 119.808 | AV25: 119.808 | AW25: 119.808 | AX25: 119.808 | AY25: 119.808 | AZ25: 119.808 | BA25: 119.808 | BB25: =percent_of_time($F25,$G25,BB$6,BB$7)*$H25 -> 119.808 | BC25: 119.808 | BD25: 119.808 | BE25: 119.808 | BF25: 119.808 | BG25: 119.808 | BH25: 119.808 | BI25: 119.808 | BJ25: 119.808 | BK25: 119.808 | BL25: =percent_of_time($F25,$G25,BL$6,BL$7)*$H25 -> 119.808 | BM25: 119.808 | BN25: 119.808 | BO25: 119.808 | BP25: 119.808 | BQ25: 119.808 | BR25: 119.808 | BS25: 119.808 | BT25: 119.808 | BU25: 119.808 | BV25: =percent_of_time($F25,$G25,BV$6,BV$7)*$H25 -> 119.808 | BW25: 119.808 | BX25: 119.808 | BY25: 119.808 | BZ25: 0 | CA25: 0 | CB25: 0 | CC25: 0 | CD25: 0 | CE25: 0 | CF25: =percent_of_time($F25,$G25,CF$6,CF$7)*$H25 -> 0 | CG25: 0 | CH25: 0 | CI25: 0 | CJ25: 0 | CK25: 0 | CL25: 0 | CM25: 0 | CN25: 0 | CO25: 0 | CP25: =percent_of_time($F25,$G25,CP$6,CP$7)*$H25 -> 0 | CQ25: 0 | CR25: 0 | CS25: 0 | CT25: 0 | CU25: 0 | CV25: 0 | CW25: 0 | CX25: 0 | CY25: 0 | CZ25: =percent_of_time($F25,$G25,CZ$6,CZ$7)*$H25 -> 0 | DA25: 0 | DB25: 0 | DC25: 0 | DD25: 0 | DE25: 0 | DF25: 0 | DG25: 0 | DH25: 0 | DI25: 0
C26: Second Increment of Capacity | F26: ='Operating Assumptions'!E35 -> 2017-11-19 | G26: =G25 -> 2043-01-01 | H26: ='Operating Assumptions'!H35 -> 159.744 | N26: 0 | O26: 0 | P26: 0 | Q26: 0 | R26: 0 | S26: 0 | T26: 0 | U26: 0 | V26: 0 | W26: 0 | X26: 0 | Y26: 0 | Z26: 63.8976 | AA26: 159.744 | AB26: 159.744 | AC26: 159.744 | AD26: 159.744 | AE26: 159.744 | AF26: 159.744 | AG26: 159.744 | AH26: 159.744 | AI26: 159.744 | AJ26: 159.744 | AK26: 159.744 | AL26: 159.744 | AM26: 159.744 | AN26: 159.744 | AO26: 159.744 | AP26: 159.744 | AQ26: 159.744 | AR26: 159.744 | AS26: 159.744 | AT26: 159.744 | AU26: 159.744 | AV26: 159.744 | AW26: 159.744 | AX26: 159.744 | AY26: 159.744 | AZ26: 159.744 | BA26: 159.744 | BB26: 159.744 | BC26: 159.744 | BD26: 159.744 | BE26: 159.744 | BF26: 159.744 | BG26: 159.744 | BH26: 159.744 | BI26: 159.744 | BJ26: 159.744 | BK26: 159.744 | BL26: 159.744 | BM26: 159.744 | BN26: 159.744 | BO26: 159.744 | BP26: 159.744 | BQ26: 159.744 | BR26: 159.744 | BS26: 159.744 | BT26: 159.744 | BU26: 159.744 | BV26: 159.744 | BW26: 159.744 | BX26: 159.744 | BY26: 159.744 | BZ26: 0 | CA26: 0 | CB26: 0 | CC26: 0 | CD26: 0 | CE26: 0 | CF26: 0 | CG26: 0 | CH26: 0 | CI26: 0 | CJ26: 0 | CK26: 0 | CL26: 0 | CM26: 0 | CN26: 0 | CO26: 0 | CP26: 0 | CQ26: 0 | CR26: 0 | CS26: 0 | CT26: 0 | CU26: 0 | CV26: 0 | CW26: 0 | CX26: 0 | CY26: 0 | CZ26: 0 | DA26: 0 | DB26: 0 | DC26: 0 | DD26: 0 | DE26: 0 | DF26: 0 | DG26: 0 | DH26: 0 | DI26: 0
C27: Third Increment of Capacity | F27: ='Operating Assumptions'!E36 -> 2017-12-04 | G27: =G26 -> 2043-01-01 | H27: ='Operating Assumptions'!H36 -> 74.88 | N27: 0 | O27: 0 | P27: 0 | Q27: 0 | R27: 0 | S27: 0 | T27: 0 | U27: 0 | V27: 0 | W27: 0 | X27: 0 | Y27: 0 | Z27: 0 | AA27: 67.63354839 | AB27: 74.88 | AC27: 74.88 | AD27: 74.88 | AE27: 74.88 | AF27: 74.88 | AG27: 74.88 | AH27: 74.88 | AI27: 74.88 | AJ27: 74.88 | AK27: 74.88 | AL27: 74.88 | AM27: 74.88 | AN27: 74.88 | AO27: 74.88 | AP27: 74.88 | AQ27: 74.88 | AR27: 74.88 | AS27: 74.88 | AT27: 74.88 | AU27: 74.88 | AV27: 74.88 | AW27: 74.88 | AX27: 74.88 | AY27: 74.88 | AZ27: 74.88 | BA27: 74.88 | BB27: 74.88 | BC27: 74.88 | BD27: 74.88 | BE27: 74.88 | BF27: 74.88 | BG27: 74.88 | BH27: 74.88 | BI27: 74.88 | BJ27: 74.88 | BK27: 74.88 | BL27: 74.88 | BM27: 74.88 | BN27: 74.88 | BO27: 74.88 | BP27: 74.88 | BQ27: 74.88 | BR27: 74.88 | BS27: 74.88 | BT27: 74.88 | BU27: 74.88 | BV27: 74.88 | BW27: 74.88 | BX27: 74.88 | BY27: 74.88 | BZ27: 0 | CA27: 0 | CB27: 0 | CC27: 0 | CD27: 0 | CE27: 0 | CF27: 0 | CG27: 0 | CH27: 0 | CI27: 0 | CJ27: 0 | CK27: 0 | CL27: 0 | CM27: 0 | CN27: 0 | CO27: 0 | CP27: 0 | CQ27: 0 | CR27: 0 | CS27: 0 | CT27: 0 | CU27: 0 | CV27: 0 | CW27: 0 | CX27: 0 | CY27: 0 | CZ27: 0 | DA27: 0 | DB27: 0 | DC27: 0 | DD27: 0 | DE27: 0 | DF27: 0 | DG27: 0 | DH27: 0 | DI27: 0
C28: Fourth Increment of Capacity | F28: ='Operating Assumptions'!E37 -> 2018-01-01 | G28: =G27 -> 2043-01-01 | H28: ='Operating Assumptions'!H37 -> 144.768 | N28: 0 | O28: 0 | P28: 0 | Q28: 0 | R28: 0 | S28: 0 | T28: 0 | U28: 0 | V28: 0 | W28: 0 | X28: 0 | Y28: 0 | Z28: 0 | AA28: 0 | AB28: 144.768 | AC28: 144.768 | AD28: 144.768 | AE28: 144.768 | AF28: 144.768 | AG28: 144.768 | AH28: 144.768 | AI28: 144.768 | AJ28: 144.768 | AK28: 144.768 | AL28: 144.768 | AM28: 144.768 | AN28: 144.768 | AO28: 144.768 | AP28: 144.768 | AQ28: 144.768 | AR28: 144.768 | AS28: 144.768 | AT28: 144.768 | AU28: 144.768 | AV28: 144.768 | AW28: 144.768 | AX28: 144.768 | AY28: 144.768 | AZ28: 144.768 | BA28: 144.768 | BB28: 144.768 | BC28: 144.768 | BD28: 144.768 | BE28: 144.768 | BF28: 144.768 | BG28: 144.768 | BH28: 144.768 | BI28: 144.768 | BJ28: 144.768 | BK28: 144.768 | BL28: 144.768 | BM28: 144.768 | BN28: 144.768 | BO28: 144.768 | BP28: 144.768 | BQ28: 144.768 | BR28: 144.768 | BS28: 144.768 | BT28: 144.768 | BU28: 144.768 | BV28: 144.768 | BW28: 144.768 | BX28: 144.768 | BY28: 144.768 | BZ28: 0 | CA28: 0 | CB28: 0 | CC28: 0 | CD28: 0 | CE28: 0 | CF28: 0 | CG28: 0 | CH28: 0 | CI28: 0 | CJ28: 0 | CK28: 0 | CL28: 0 | CM28: 0 | CN28: 0 | CO28: 0 | CP28: 0 | CQ28: 0 | CR28: 0 | CS28: 0 | CT28: 0 | CU28: 0 | CV28: 0 | CW28: 0 | CX28: 0 | CY28: 0 | CZ28: 0 | DA28: 0 | DB28: 0 | DC28: 0 | DD28: 0 | DE28: 0 | DF28: 0 | DG28: 0 | DH28: 0 | DI28: 0
D29: Total Nominal Capacity | H29: =SUM(H25:H28) -> 499.2 | N29: =SUM(N25:N28) -> 0 | O29: =SUM(O25:O28) -> 0 | P29: 0 | Q29: 0 | R29: 0 | S29: 0 | T29: 0 | U29: 0 | V29: 0 | W29: 0 | X29: 0 | Y29: 0 | Z29: 147.7632 | AA29: 347.1855484 | AB29: 499.2 | AC29: 499.2 | AD29: 499.2 | AE29: 499.2 | AF29: 499.2 | AG29: 499.2 | AH29: 499.2 | AI29: 499.2 | AJ29: 499.2 | AK29: 499.2 | AL29: 499.2 | AM29: 499.2 | AN29: 499.2 | AO29: 499.2 | AP29: 499.2 | AQ29: 499.2 | AR29: 499.2 | AS29: 499.2 | AT29: 499.2 | AU29: 499.2 | AV29: 499.2 | AW29: 499.2 | AX29: 499.2 | AY29: 499.2 | AZ29: 499.2 | BA29: 499.2 | BB29: 499.2 | BC29: 499.2 | BD29: 499.2 | BE29: 499.2 | BF29: 499.2 | BG29: 499.2 | BH29: 499.2 | BI29: 499.2 | BJ29: 499.2 | BK29: 499.2 | BL29: 499.2 | BM29: 499.2 | BN29: 499.2 | BO29: 499.2 | BP29: 499.2 | BQ29: 499.2 | BR29: 499.2 | BS29: 499.2 | BT29: 499.2 | BU29: 499.2 | BV29: 499.2 | BW29: 499.2 | BX29: 499.2 | BY29: 499.2 | BZ29: 0 | CA29: =SUM(CA25:CA28) -> 0 | CB29: 0 | CC29: 0 | CD29: 0 | CE29: 0 | CF29: 0 | CG29: 0 | CH29: 0 | CI29: 0 | CJ29: 0 | CK29: 0 | CL29: 0 | CM29: 0 | CN29: 0 | CO29: 0 | CP29: 0 | CQ29: 0 | CR29: 0 | CS29: 0 | CT29: 0 | CU29: 0 | CV29: 0 | CW29: 0 | CX29: 0 | CY29: 0 | CZ29: 0 | DA29: 0 | DB29: 0 | DC29: 0 | DD29: 0 | DE29: 0 | DF29: 0 | DG29: 0 | DH29: 0 | DI29: 0
C31: Monthly Generation
D32: Start Month | N32: =MONTH(N6) -> 11 | O32: 12 | P32: 1 | Q32: 2 | R32: 3 | S32: 4 | T32: 5 | U32: 6 | V32: 7 | W32: 8 | X32: 9 | Y32: 10 | Z32: 11 | AA32: 12 | AB32: 1 | AC32: 7 | AD32: 1 | AE32: 7 | AF32: 1 | AG32: 7 | AH32: 1 | AI32: 7 | AJ32: 1 | AK32: 7 | AL32: 1 | AM32: 7 | AN32: 1 | AO32: 7 | AP32: 1 | AQ32: 7 | AR32: 1 | AS32: 7 | AT32: =MONTH(AT6) -> 1 | AU32: 7 | AV32: 1 | AW32: 7 | AX32: 1 | AY32: 7 | AZ32: 1 | BA32: 7 | BB32: 1 | BC32: 7 | BD32: 1 | BE32: 7 | BF32: 1 | BG32: 7 | BH32: 1 | BI32: 7 | BJ32: 1 | BK32: 7 | BL32: 1 | BM32: 7 | BN32: 1 | BO32: 7 | BP32: 1 | BQ32: 7 | BR32: 1 | BS32: 7 | BT32: 1 | BU32: 7 | BV32: 1 | BW32: 7 | BX32: 1 | BY32: 7 | BZ32: =MONTH(BZ6) -> 1 | CA32: 7 | CB32: 1 | CC32: 7 | CD32: 1 | CE32: 7 | CF32: 1 | CG32: 7 | CH32: 1 | CI32: 7 | CJ32: 1 | CK32: 7 | CL32: 1 | CM32: 7 | CN32: 1 | CO32: 7 | CP32: 1 | CQ32: 7 | CR32: 1 | CS32: 7 | CT32: 1 | CU32: 7 | CV32: 1 | CW32: 7 | CX32: 1 | CY32: 7 | CZ32: 1 | DA32: 7 | DB32: 1 | DC32: 7 | DD32: 1 | DE32: 7 | DF32: =MONTH(DF6) -> 1 | DG32: 7 | DH32: 1 | DI32: 7
D33: End Month | N33: =MONTH(N7) -> 11 | O33: 12 | P33: 1 | Q33: 2 | R33: 3 | S33: 4 | T33: 5 | U33: 6 | V33: 7 | W33: 8 | X33: 9 | Y33: 10 | Z33: 11 | AA33: 12 | AB33: 6 | AC33: 12 | AD33: 6 | AE33: 12 | AF33: 6 | AG33: 12 | AH33: 6 | AI33: 12 | AJ33: 6 | AK33: 12 | AL33: 6 | AM33: 12 | AN33: 6 | AO33: 12 | AP33: 6 | AQ33: 12 | AR33: 6 | AS33: 12 | AT33: =MONTH(AT7) -> 6 | AU33: 12 | AV33: 6 | AW33: 12 | AX33: 6 | AY33: 12 | AZ33: 6 | BA33: 12 | BB33: 6 | BC33: 12 | BD33: 6 | BE33: 12 | BF33: 6 | BG33: 12 | BH33: 6 | BI33: 12 | BJ33: 6 | BK33: 12 | BL33: 6 | BM33: 12 | BN33: 6 | BO33: 12 | BP33: 6 | BQ33: 12 | BR33: 6 | BS33: 12 | BT33: 6 | BU33: 12 | BV33: 6 | BW33: 12 | BX33: 6 | BY33: 12 | BZ33: =MONTH(BZ7) -> 6 | CA33: 12 | CB33: 6 | CC33: 12 | CD33: 6 | CE33: 12 | CF33: 6 | CG33: 12 | CH33: 6 | CI33: 12 | CJ33: 6 | CK33: 12 | CL33: 6 | CM33: 12 | CN33: 6 | CO33: 12 | CP33: 6 | CQ33: 12 | CR33: 6 | CS33: 12 | CT33: 6 | CU33: 12 | CV33: 6 | CW33: 12 | CX33: 6 | CY33: 12 | CZ33: 6 | DA33: 12 | DB33: 6 | DC33: 12 | DD33: 6 | DE33: 12 | DF33: =MONTH(DF7) -> 6 | DG33: 12 | DH33: 6 | DI33: 12
D34: Start >= End | N34: =N32<=N33 -> TRUE | O34: =O32<=O33 -> TRUE | P34: TRUE | Q34: TRUE | R34: TRUE | S34: TRUE | T34: TRUE | U34: TRUE | V34: TRUE | W34: TRUE | X34: TRUE | Y34: TRUE | Z34: TRUE | AA34: TRUE | AB34: TRUE | AC34: TRUE | AD34: TRUE | AE34: TRUE | AF34: TRUE | AG34: TRUE | AH34: TRUE | AI34: TRUE | AJ34: TRUE | AK34: TRUE | AL34: TRUE | AM34: TRUE | AN34: TRUE | AO34: TRUE | AP34: TRUE | AQ34: TRUE | AR34: TRUE | AS34: TRUE | AT34: TRUE | AU34: TRUE | AV34: TRUE | AW34: TRUE | AX34: TRUE | AY34: TRUE | AZ34: TRUE | BA34: TRUE | BB34: TRUE | BC34: TRUE | BD34: TRUE | BE34: TRUE | BF34: TRUE | BG34: TRUE | BH34: TRUE | BI34: TRUE | BJ34: TRUE | BK34: TRUE | BL34: TRUE | BM34: TRUE | BN34: TRUE | BO34: TRUE | BP34: TRUE | BQ34: TRUE | BR34: TRUE | BS34: TRUE | BT34: TRUE | BU34: TRUE | BV34: TRUE | BW34: TRUE | BX34: TRUE | BY34: TRUE | BZ34: TRUE | CA34: =CA32<=CA33 -> TRUE | CB34: TRUE | CC34: TRUE | CD34: TRUE | CE34: TRUE | CF34: TRUE | CG34: TRUE | CH34: TRUE | CI34: TRUE | CJ34: TRUE | CK34: TRUE | CL34: TRUE | CM34: TRUE | CN34: TRUE | CO34: TRUE | CP34: TRUE | CQ34: TRUE | CR34: TRUE | CS34: TRUE | CT34: TRUE | CU34: TRUE | CV34: TRUE | CW34: TRUE | CX34: TRUE | CY34: TRUE | CZ34: TRUE | DA34: TRUE | DB34: TRUE | DC34: TRUE | DD34: TRUE | DE34: TRUE | DF34: TRUE | DG34: TRUE | DH34: TRUE | DI34: TRUE
E35: Month Number | F35: Generation
D36: January | E36: 1 | F36: ='Operating Assumptions'!F104 -> 102078.6143 | N36: =IF(N$34,AND(N$32<=$E36,N$33>=$E36),OR($E36<=N$33,$E36>=N$32)) -> FALSE | O36: FALSE | P36: TRUE | Q36: FALSE | R36: FALSE | S36: FALSE | T36: FALSE | U36: FALSE | V36: FALSE | W36: FALSE | X36: FALSE | Y36: FALSE | Z36: FALSE | AA36: FALSE | AB36: TRUE | AC36: FALSE | AD36: TRUE | AE36: FALSE | AF36: TRUE | AG36: FALSE | AH36: TRUE | AI36: FALSE | AJ36: TRUE | AK36: FALSE | AL36: TRUE | AM36: FALSE | AN36: TRUE | AO36: FALSE | AP36: TRUE | AQ36: FALSE | AR36: TRUE | AS36: FALSE | AT36: TRUE | AU36: FALSE | AV36: TRUE | AW36: FALSE | AX36: TRUE | AY36: FALSE | AZ36: TRUE | BA36: FALSE | BB36: TRUE | BC36: FALSE | BD36: TRUE | BE36: FALSE | BF36: TRUE | BG36: FALSE | BH36: TRUE | BI36: FALSE | BJ36: TRUE | BK36: FALSE | BL36: TRUE | BM36: FALSE | BN36: TRUE | BO36: FALSE | BP36: TRUE | BQ36: FALSE | BR36: TRUE | BS36: FALSE | BT36: TRUE | BU36: FALSE | BV36: TRUE | BW36: FALSE | BX36: TRUE | BY36: FALSE | BZ36: =IF(BZ$34,AND(BZ$32<=$E36,BZ$33>=$E36),OR($E36<=BZ$33,$E36>=BZ$32)) -> TRUE | CA36: FALSE | CB36: TRUE | CC36: FALSE | CD36: TRUE | CE36: FALSE | CF36: TRUE | CG36: FALSE | CH36: TRUE | CI36: FALSE | CJ36: TRUE | CK36: FALSE | CL36: TRUE | CM36: FALSE | CN36: TRUE | CO36: FALSE | CP36: TRUE | CQ36: FALSE | CR36: TRUE | CS36: FALSE | CT36: TRUE | CU36: FALSE | CV36: TRUE | CW36: =IF(CW$34,AND(CW$32<=$E36,CW$33>=$E36),OR($E36<=CW$33,$E36>=CW$32)) -> FALSE | CX36: =IF(CX$34,AND(CX$32<=$E36,CX$33>=$E36),OR($E36<=CX$33,$E36>=CX$32)) -> TRUE | CY36: FALSE | CZ36: TRUE | DA36: FALSE | DB36: TRUE | DC36: FALSE | DD36: TRUE | DE36: FALSE | DF36: TRUE | DG36: FALSE | DH36: TRUE | DI36: FALSE
D37: February | E37: 2 | F37: ='Operating Assumptions'!F105 -> 84846.83449 | N37: FALSE | O37: FALSE | P37: FALSE | Q37: TRUE | R37: FALSE | S37: FALSE | T37: FALSE | U37: FALSE | V37: FALSE | W37: FALSE | X37: FALSE | Y37: FALSE | Z37: FALSE | AA37: FALSE | AB37: TRUE | AC37: FALSE | AD37: TRUE | AE37: FALSE | AF37: TRUE | AG37: FALSE | AH37: TRUE | AI37: FALSE | AJ37: TRUE | AK37: FALSE | AL37: TRUE | AM37: FALSE | AN37: TRUE | AO37: FALSE | AP37: TRUE | AQ37: FALSE | AR37: TRUE | AS37: FALSE | AT37: TRUE | AU37: FALSE | AV37: TRUE | AW37: FALSE | AX37: TRUE | AY37: FALSE | AZ37: TRUE | BA37: FALSE | BB37: TRUE | BC37: FALSE | BD37: TRUE | BE37: FALSE | BF37: TRUE | BG37: FALSE | BH37: TRUE | BI37: FALSE | BJ37: TRUE | BK37: FALSE | BL37: TRUE | BM37: FALSE | BN37: TRUE | BO37: FALSE | BP37: TRUE | BQ37: FALSE | BR37: TRUE | BS37: FALSE | BT37: TRUE | BU37: FALSE | BV37: TRUE | BW37: FALSE | BX37: TRUE | BY37: FALSE | BZ37: TRUE | CA37: FALSE | CB37: TRUE | CC37: FALSE | CD37: TRUE | CE37: FALSE | CF37: TRUE | CG37: FALSE | CH37: TRUE | CI37: FALSE | CJ37: TRUE | CK37: FALSE | CL37: TRUE | CM37: FALSE | CN37: TRUE | CO37: FALSE | CP37: TRUE | CQ37: FALSE | CR37: TRUE | CS37: FALSE | CT37: TRUE | CU37: FALSE | CV37: TRUE | CW37: FALSE | CX37: =IF(CX$34,AND(CX$32<=$E37,CX$33>=$E37),OR($E37<=CX$33,$E37>=CX$32)) -> TRUE | CY37: FALSE | CZ37: TRUE | DA37: FALSE | DB37: TRUE | DC37: FALSE | DD37: TRUE | DE37: FALSE | DF37: TRUE | DG37: FALSE | DH37: TRUE | DI37: FALSE
D38: March | E38: 3 | F38: ='Operating Assumptions'!F106 -> 86946.13761 | N38: FALSE | O38: FALSE | P38: FALSE | Q38: FALSE | R38: TRUE | S38: FALSE | T38: FALSE | U38: FALSE | V38: FALSE | W38: FALSE | X38: FALSE | Y38: FALSE | Z38: FALSE | AA38: FALSE | AB38: TRUE | AC38: FALSE | AD38: TRUE | AE38: FALSE | AF38: TRUE | AG38: FALSE | AH38: TRUE | AI38: FALSE | AJ38: TRUE | AK38: FALSE | AL38: TRUE | AM38: FALSE | AN38: TRUE | AO38: FALSE | AP38: TRUE | AQ38: FALSE | AR38: TRUE | AS38: FALSE | AT38: TRUE | AU38: FALSE | AV38: TRUE | AW38: FALSE | AX38: TRUE | AY38: FALSE | AZ38: TRUE | BA38: FALSE | BB38: TRUE | BC38: FALSE | BD38: TRUE | BE38: FALSE | BF38: TRUE | BG38: FALSE | BH38: TRUE | BI38: FALSE | BJ38: TRUE | BK38: FALSE | BL38: TRUE | BM38: FALSE | BN38: TRUE | BO38: FALSE | BP38: TRUE | BQ38: FALSE | BR38: TRUE | BS38: FALSE | BT38: TRUE | BU38: FALSE | BV38: TRUE | BW38: FALSE | BX38: TRUE | BY38: FALSE | BZ38: TRUE | CA38: FALSE | CB38: TRUE | CC38: FALSE | CD38: TRUE | CE38: FALSE | CF38: TRUE | CG38: FALSE | CH38: TRUE | CI38: FALSE | CJ38: TRUE | CK38: FALSE | CL38: TRUE | CM38: FALSE | CN38: TRUE | CO38: FALSE | CP38: TRUE | CQ38: FALSE | CR38: TRUE | CS38: FALSE | CT38: TRUE | CU38: FALSE | CV38: TRUE | CW38: FALSE | CX38: TRUE | CY38: FALSE | CZ38: TRUE | DA38: FALSE | DB38: TRUE | DC38: FALSE | DD38: TRUE | DE38: FALSE | DF38: TRUE | DG38: FALSE | DH38: TRUE | DI38: FALSE
D39: April | E39: 4 | F39: ='Operating Assumptions'!F107 -> 72425.95769 | N39: FALSE | O39: FALSE | P39: FALSE | Q39: FALSE | R39: FALSE | S39: TRUE | T39: FALSE | U39: FALSE | V39: FALSE | W39: FALSE | X39: FALSE | Y39: FALSE | Z39: FALSE | AA39: FALSE | AB39: TRUE | AC39: FALSE | AD39: TRUE | AE39: FALSE | AF39: TRUE | AG39: FALSE | AH39: TRUE | AI39: FALSE | AJ39: TRUE | AK39: FALSE | AL39: TRUE | AM39: FALSE | AN39: TRUE | AO39: FALSE | AP39: TRUE | AQ39: FALSE | AR39: TRUE | AS39: FALSE | AT39: TRUE | AU39: FALSE | AV39: TRUE | AW39: FALSE | AX39: TRUE | AY39: FALSE | AZ39: TRUE | BA39: FALSE | BB39: TRUE | BC39: FALSE | BD39: TRUE | BE39: FALSE | BF39: TRUE | BG39: FALSE | BH39: TRUE | BI39: FALSE | BJ39: TRUE | BK39: FALSE | BL39: TRUE | BM39: FALSE | BN39: TRUE | BO39: FALSE | BP39: TRUE | BQ39: FALSE | BR39: TRUE | BS39: FALSE | BT39: TRUE | BU39: FALSE | BV39: TRUE | BW39: FALSE | BX39: TRUE | BY39: =IF(BY$34,AND(BY$32<=$E39,BY$33>=$E39),OR($E39<=BY$33,$E39>=BY$32)) -> FALSE | BZ39: TRUE | CA39: FALSE | CB39: TRUE | CC39: FALSE | CD39: TRUE | CE39: FALSE | CF39: TRUE | CG39: FALSE | CH39: TRUE | CI39: FALSE | CJ39: TRUE | CK39: FALSE | CL39: TRUE | CM39: FALSE | CN39: TRUE | CO39: FALSE | CP39: TRUE | CQ39: FALSE | CR39: TRUE | CS39: FALSE | CT39: TRUE | CU39: FALSE | CV39: TRUE | CW39: FALSE | CX39: TRUE | CY39: FALSE | CZ39: TRUE | DA39: FALSE | DB39: TRUE | DC39: FALSE | DD39: TRUE | DE39: FALSE | DF39: TRUE | DG39: FALSE | DH39: TRUE | DI39: FALSE
D40: May | E40: 5 | F40: ='Operating Assumptions'!F108 -> 60748.58407 | N40: =IF(N$34,AND(N$32<=$E40,N$33>=$E40),OR($E40<=N$33,$E40>=N$32)) -> FALSE | O40: FALSE | P40: FALSE | Q40: FALSE | R40: FALSE | S40: FALSE | T40: TRUE | U40: FALSE | V40: FALSE | W40: FALSE | X40: FALSE | Y40: FALSE | Z40: FALSE | AA40: FALSE | AB40: TRUE | AC40: FALSE | AD40: TRUE | AE40: FALSE | AF40: TRUE | AG40: FALSE | AH40: TRUE | AI40: FALSE | AJ40: TRUE | AK40: FALSE | AL40: TRUE | AM40: FALSE | AN40: TRUE | AO40: FALSE | AP40: TRUE | AQ40: FALSE | AR40: TRUE | AS40: FALSE | AT40: TRUE | AU40: FALSE | AV40: TRUE | AW40: FALSE | AX40: TRUE | AY40: FALSE | AZ40: TRUE | BA40: FALSE | BB40: TRUE | BC40: FALSE | BD40: TRUE | BE40: FALSE | BF40: TRUE | BG40: FALSE | BH40: TRUE | BI40: FALSE | BJ40: TRUE | BK40: FALSE | BL40: TRUE | BM40: FALSE | BN40: TRUE | BO40: FALSE | BP40: TRUE | BQ40: FALSE | BR40: TRUE | BS40: FALSE | BT40: TRUE | BU40: FALSE | BV40: TRUE | BW40: FALSE | BX40: TRUE | BY40: FALSE | BZ40: TRUE | CA40: FALSE | CB40: TRUE | CC40: FALSE | CD40: TRUE | CE40: FALSE | CF40: TRUE | CG40: FALSE | CH40: TRUE | CI40: FALSE | CJ40: TRUE | CK40: FALSE | CL40: TRUE | CM40: FALSE | CN40: TRUE | CO40: FALSE | CP40: TRUE | CQ40: FALSE | CR40: TRUE | CS40: FALSE | CT40: TRUE | CU40: FALSE | CV40: TRUE | CW40: FALSE | CX40: TRUE | CY40: FALSE | CZ40: TRUE | DA40: FALSE | DB40: TRUE | DC40: FALSE | DD40: TRUE | DE40: FALSE | DF40: TRUE | DG40: FALSE | DH40: TRUE | DI40: FALSE
D41: June | E41: 6 | F41: ='Operating Assumptions'!F109 -> 53663.43604 | N41: FALSE | O41: FALSE | P41: FALSE | Q41: FALSE | R41: FALSE | S41: FALSE | T41: FALSE | U41: TRUE | V41: FALSE | W41: FALSE | X41: FALSE | Y41: FALSE | Z41: FALSE | AA41: FALSE | AB41: TRUE | AC41: FALSE | AD41: TRUE | AE41: FALSE | AF41: TRUE | AG41: FALSE | AH41: TRUE | AI41: FALSE | AJ41: TRUE | AK41: FALSE | AL41: TRUE | AM41: FALSE | AN41: TRUE | AO41: FALSE | AP41: TRUE | AQ41: FALSE | AR41: TRUE | AS41: FALSE | AT41: TRUE | AU41: FALSE | AV41: TRUE | AW41: FALSE | AX41: TRUE | AY41: FALSE | AZ41: TRUE | BA41: FALSE | BB41: TRUE | BC41: FALSE | BD41: TRUE | BE41: FALSE | BF41: TRUE | BG41: FALSE | BH41: TRUE | BI41: FALSE | BJ41: TRUE | BK41: FALSE | BL41: TRUE | BM41: FALSE | BN41: TRUE | BO41: FALSE | BP41: TRUE | BQ41: FALSE | BR41: TRUE | BS41: FALSE | BT41: TRUE | BU41: FALSE | BV41: TRUE | BW41: FALSE | BX41: TRUE | BY41: FALSE | BZ41: TRUE | CA41: FALSE | CB41: TRUE | CC41: FALSE | CD41: TRUE | CE41: FALSE | CF41: TRUE | CG41: FALSE | CH41: TRUE | CI41: FALSE | CJ41: TRUE | CK41: FALSE | CL41: TRUE | CM41: FALSE | CN41: TRUE | CO41: FALSE | CP41: TRUE | CQ41: FALSE | CR41: TRUE | CS41: FALSE | CT41: TRUE | CU41: FALSE | CV41: TRUE | CW41: FALSE | CX41: TRUE | CY41: FALSE | CZ41: TRUE | DA41: FALSE | DB41: TRUE | DC41: FALSE | DD41: TRUE | DE41: FALSE | DF41: TRUE | DG41: FALSE | DH41: TRUE | DI41: FALSE
D42: July | E42: 7 | F42: ='Operating Assumptions'!F110 -> 60748.58407 | N42: FALSE | O42: FALSE | P42: FALSE | Q42: FALSE | R42: FALSE | S42: FALSE | T42: FALSE | U42: FALSE | V42: TRUE | W42: FALSE | X42: FALSE | Y42: FALSE | Z42: FALSE | AA42: FALSE | AB42: FALSE | AC42: TRUE | AD42: FALSE | AE42: TRUE | AF42: FALSE | AG42: TRUE | AH42: FALSE | AI42: TRUE | AJ42: FALSE | AK42: TRUE | AL42: FALSE | AM42: TRUE | AN42: FALSE | AO42: TRUE | AP42: FALSE | AQ42: TRUE | AR42: FALSE | AS42: TRUE | AT42: FALSE | AU42: TRUE | AV42: FALSE | AW42: TRUE | AX42: FALSE | AY42: TRUE | AZ42: FALSE | BA42: TRUE | BB42: FALSE | BC42: TRUE | BD42: FALSE | BE42: TRUE | BF42: FALSE | BG42: TRUE | BH42: FALSE | BI42: TRUE | BJ42: FALSE | BK42: TRUE | BL42: FALSE | BM42: TRUE | BN42: FALSE | BO42: TRUE | BP42: FALSE | BQ42: TRUE | BR42: FALSE | BS42: TRUE | BT42: FALSE | BU42: TRUE | BV42: FALSE | BW42: TRUE | BX42: FALSE | BY42: TRUE | BZ42: FALSE | CA42: TRUE | CB42: FALSE | CC42: TRUE | CD42: FALSE | CE42: TRUE | CF42: FALSE | CG42: TRUE | CH42: FALSE | CI42: TRUE | CJ42: FALSE | CK42: TRUE | CL42: FALSE | CM42: TRUE | CN42: FALSE | CO42: TRUE | CP42: FALSE | CQ42: TRUE | CR42: FALSE | CS42: TRUE | CT42: FALSE | CU42: TRUE | CV42: FALSE | CW42: TRUE | CX42: FALSE | CY42: TRUE | CZ42: FALSE | DA42: TRUE | DB42: FALSE | DC42: TRUE | DD42: FALSE | DE42: TRUE | DF42: FALSE | DG42: TRUE | DH42: FALSE | DI42: TRUE
D43: August | E43: 8 | F43: ='Operating Assumptions'!F111 -> 71944.86739 | N43: FALSE | O43: FALSE | P43: FALSE | Q43: FALSE | R43: FALSE | S43: FALSE | T43: FALSE | U43: FALSE | V43: FALSE | W43: TRUE | X43: FALSE | Y43: FALSE | Z43: FALSE | AA43: FALSE | AB43: FALSE | AC43: TRUE | AD43: FALSE | AE43: TRUE | AF43: FALSE | AG43: TRUE | AH43: FALSE | AI43: TRUE | AJ43: FALSE | AK43: TRUE | AL43: FALSE | AM43: TRUE | AN43: FALSE | AO43: TRUE | AP43: FALSE | AQ43: TRUE | AR43: FALSE | AS43: TRUE | AT43: FALSE | AU43: TRUE | AV43: FALSE | AW43: TRUE | AX43: FALSE | AY43: TRUE | AZ43: FALSE | BA43: TRUE | BB43: FALSE | BC43: TRUE | BD43: FALSE | BE43: TRUE | BF43: FALSE | BG43: TRUE | BH43: FALSE | BI43: TRUE | BJ43: FALSE | BK43: TRUE | BL43: FALSE | BM43: TRUE | BN43: FALSE | BO43: TRUE | BP43: FALSE | BQ43: TRUE | BR43: FALSE | BS43: TRUE | BT43: FALSE | BU43: TRUE | BV43: FALSE | BW43: TRUE | BX43: FALSE | BY43: =IF(BY$34,AND(BY$32<=$E43,BY$33>=$E43),OR($E43<=BY$33,$E43>=BY$32)) -> TRUE | BZ43: FALSE | CA43: TRUE | CB43: FALSE | CC43: TRUE | CD43: FALSE | CE43: TRUE | CF43: FALSE | CG43: TRUE | CH43: FALSE | CI43: TRUE | CJ43: FALSE | CK43: TRUE | CL43: FALSE | CM43: TRUE | CN43: FALSE | CO43: TRUE | CP43: FALSE | CQ43: TRUE | CR43: FALSE | CS43: TRUE | CT43: FALSE | CU43: TRUE | CV43: FALSE | CW43: TRUE | CX43: FALSE | CY43: TRUE | CZ43: FALSE | DA43: TRUE | DB43: FALSE | DC43: TRUE | DD43: FALSE | DE43: TRUE | DF43: FALSE | DG43: TRUE | DH43: FALSE | DI43: TRUE
D44: September | E44: 9 | F44: ='Operating Assumptions'!F112 -> 81829.08625 | N44: =IF(N$34,AND(N$32<=$E44,N$33>=$E44),OR($E44<=N$33,$E44>=N$32)) -> FALSE | O44: FALSE | P44: FALSE | Q44: FALSE | R44: FALSE | S44: FALSE | T44: FALSE | U44: FALSE | V44: FALSE | W44: FALSE | X44: TRUE | Y44: FALSE | Z44: FALSE | AA44: FALSE | AB44: FALSE | AC44: TRUE | AD44: FALSE | AE44: TRUE | AF44: FALSE | AG44: TRUE | AH44: FALSE | AI44: TRUE | AJ44: FALSE | AK44: TRUE | AL44: FALSE | AM44: TRUE | AN44: FALSE | AO44: TRUE | AP44: FALSE | AQ44: TRUE | AR44: FALSE | AS44: TRUE | AT44: FALSE | AU44: TRUE | AV44: FALSE | AW44: TRUE | AX44: FALSE | AY44: TRUE | AZ44: FALSE | BA44: TRUE | BB44: FALSE | BC44: TRUE | BD44: FALSE | BE44: TRUE | BF44: FALSE | BG44: TRUE | BH44: FALSE | BI44: TRUE | BJ44: FALSE | BK44: TRUE | BL44: FALSE | BM44: TRUE | BN44: FALSE | BO44: TRUE | BP44: FALSE | BQ44: TRUE | BR44: FALSE | BS44: TRUE | BT44: FALSE | BU44: TRUE | BV44: FALSE | BW44: TRUE | BX44: FALSE | BY44: TRUE | BZ44: FALSE | CA44: TRUE | CB44: FALSE | CC44: TRUE | CD44: FALSE | CE44: TRUE | CF44: FALSE | CG44: TRUE | CH44: FALSE | CI44: TRUE | CJ44: FALSE | CK44: TRUE | CL44: FALSE | CM44: TRUE | CN44: FALSE | CO44: TRUE | CP44: FALSE | CQ44: TRUE | CR44: FALSE | CS44: TRUE | CT44: FALSE | CU44: TRUE | CV44: FALSE | CW44: TRUE | CX44: =IF(CX$34,AND(CX$32<=$E44,CX$33>=$E44),OR($E44<=CX$33,$E44>=CX$32)) -> FALSE | CY44: TRUE | CZ44: FALSE | DA44: TRUE | DB44: FALSE | DC44: TRUE | DD44: FALSE | DE44: TRUE | DF44: FALSE | DG44: TRUE | DH44: FALSE | DI44: TRUE
D45: October | E45: 10 | F45: ='Operating Assumptions'!F113 -> 93550.19534 | N45: FALSE | O45: FALSE | P45: FALSE | Q45: FALSE | R45: FALSE | S45: FALSE | T45: FALSE | U45: FALSE | V45: FALSE | W45: FALSE | X45: FALSE | Y45: TRUE | Z45: FALSE | AA45: FALSE | AB45: FALSE | AC45: TRUE | AD45: FALSE | AE45: TRUE | AF45: FALSE | AG45: TRUE | AH45: FALSE | AI45: TRUE | AJ45: FALSE | AK45: TRUE | AL45: FALSE | AM45: TRUE | AN45: FALSE | AO45: TRUE | AP45: FALSE | AQ45: TRUE | AR45: FALSE | AS45: TRUE | AT45: FALSE | AU45: TRUE | AV45: FALSE | AW45: TRUE | AX45: FALSE | AY45: TRUE | AZ45: FALSE | BA45: TRUE | BB45: FALSE | BC45: TRUE | BD45: FALSE | BE45: TRUE | BF45: FALSE | BG45: TRUE | BH45: FALSE | BI45: TRUE | BJ45: FALSE | BK45: TRUE | BL45: FALSE | BM45: TRUE | BN45: FALSE | BO45: TRUE | BP45: FALSE | BQ45: TRUE | BR45: FALSE | BS45: TRUE | BT45: FALSE | BU45: TRUE | BV45: FALSE | BW45: TRUE | BX45: FALSE | BY45: TRUE | BZ45: FALSE | CA45: TRUE | CB45: FALSE | CC45: TRUE | CD45: FALSE | CE45: TRUE | CF45: FALSE | CG45: TRUE | CH45: FALSE | CI45: TRUE | CJ45: FALSE | CK45: TRUE | CL45: FALSE | CM45: TRUE | CN45: FALSE | CO45: TRUE | CP45: FALSE | CQ45: TRUE | CR45: FALSE | CS45: TRUE | CT45: FALSE | CU45: TRUE | CV45: FALSE | CW45: TRUE | CX45: FALSE | CY45: TRUE | CZ45: FALSE | DA45: TRUE | DB45: FALSE | DC45: TRUE | DD45: FALSE | DE45: TRUE | DF45: FALSE | DG45: TRUE | DH45: FALSE | DI45: TRUE
D46: November | E46: 11 | F46: ='Operating Assumptions'!F114 -> 95649.49846 | N46: TRUE | O46: FALSE | P46: FALSE | Q46: FALSE | R46: FALSE | S46: FALSE | T46: FALSE | U46: FALSE | V46: FALSE | W46: FALSE | X46: FALSE | Y46: FALSE | Z46: TRUE | AA46: FALSE | AB46: FALSE | AC46: TRUE | AD46: FALSE | AE46: TRUE | AF46: FALSE | AG46: TRUE | AH46: FALSE | AI46: TRUE | AJ46: FALSE | AK46: TRUE | AL46: FALSE | AM46: TRUE | AN46: FALSE | AO46: TRUE | AP46: FALSE | AQ46: TRUE | AR46: FALSE | AS46: TRUE | AT46: FALSE | AU46: TRUE | AV46: FALSE | AW46: TRUE | AX46: FALSE | AY46: TRUE | AZ46: FALSE | BA46: TRUE | BB46: FALSE | BC46: TRUE | BD46: FALSE | BE46: TRUE | BF46: FALSE | BG46: TRUE | BH46: FALSE | BI46: TRUE | BJ46: FALSE | BK46: TRUE | BL46: FALSE | BM46: TRUE | BN46: FALSE | BO46: TRUE | BP46: FALSE | BQ46: TRUE | BR46: FALSE | BS46: TRUE | BT46: FALSE | BU46: TRUE | BV46: FALSE | BW46: TRUE | BX46: FALSE | BY46: TRUE | BZ46: FALSE | CA46: TRUE | CB46: FALSE | CC46: TRUE | CD46: FALSE | CE46: TRUE | CF46: FALSE | CG46: TRUE | CH46: FALSE | CI46: TRUE | CJ46: FALSE | CK46: TRUE | CL46: FALSE | CM46: TRUE | CN46: FALSE | CO46: TRUE | CP46: FALSE | CQ46: TRUE | CR46: FALSE | CS46: TRUE | CT46: FALSE | CU46: TRUE | CV46: FALSE | CW46: TRUE | CX46: FALSE | CY46: TRUE | CZ46: FALSE | DA46: TRUE | DB46: FALSE | DC46: TRUE | DD46: FALSE | DE46: TRUE | DF46: FALSE | DG46: TRUE | DH46: FALSE | DI46: TRUE
D47: December | E47: 12 | F47: ='Operating Assumptions'!F115 -> 100285.4595 | N47: FALSE | O47: TRUE | P47: FALSE | Q47: FALSE | R47: FALSE | S47: FALSE | T47: FALSE | U47: FALSE | V47: FALSE | W47: FALSE | X47: FALSE | Y47: FALSE | Z47: FALSE | AA47: TRUE | AB47: FALSE | AC47: TRUE | AD47: FALSE | AE47: TRUE | AF47: FALSE | AG47: TRUE | AH47: FALSE | AI47: TRUE | AJ47: FALSE | AK47: TRUE | AL47: FALSE | AM47: TRUE | AN47: FALSE | AO47: TRUE | AP47: FALSE | AQ47: TRUE | AR47: FALSE | AS47: TRUE | AT47: FALSE | AU47: TRUE | AV47: FALSE | AW47: TRUE | AX47: FALSE | AY47: TRUE | AZ47: FALSE | BA47: TRUE | BB47: FALSE | BC47: TRUE | BD47: FALSE | BE47: TRUE | BF47: FALSE | BG47: TRUE | BH47: FALSE | BI47: TRUE | BJ47: FALSE | BK47: TRUE | BL47: FALSE | BM47: TRUE | BN47: FALSE | BO47: TRUE | BP47: FALSE | BQ47: TRUE | BR47: FALSE | BS47: TRUE | BT47: FALSE | BU47: TRUE | BV47: FALSE | BW47: TRUE | BX47: FALSE | BY47: =IF(BY$34,AND(BY$32<=$E47,BY$33>=$E47),OR($E47<=BY$33,$E47>=BY$32)) -> TRUE | BZ47: FALSE | CA47: TRUE | CB47: FALSE | CC47: TRUE | CD47: FALSE | CE47: TRUE | CF47: FALSE | CG47: TRUE | CH47: FALSE | CI47: TRUE | CJ47: FALSE | CK47: TRUE | CL47: FALSE | CM47: TRUE | CN47: FALSE | CO47: TRUE | CP47: FALSE | CQ47: TRUE | CR47: FALSE | CS47: TRUE | CT47: FALSE | CU47: TRUE | CV47: FALSE | CW47: TRUE | CX47: FALSE | CY47: TRUE | CZ47: FALSE | DA47: TRUE | DB47: FALSE | DC47: TRUE | DD47: FALSE | DE47: TRUE | DF47: FALSE | DG47: TRUE | DH47: FALSE | DI47: TRUE
D49: Total Production before Degradation | E49: kWh | N49: =SUMPRODUCT(N36:N47*$F$36:$F$47)*N29/$H$29 -> 0 | O49: 0 | P49: 0 | Q49: 0 | R49: 0 | S49: 0 | T49: 0 | U49: 0 | V49: 0 | W49: 0 | X49: 0 | Y49: 0 | Z49: 28312.25155 | AA49: 69746.91959 | AB49: 460709.5642 | AC49: 504007.691 | AD49: 460709.5642 | AE49: 504007.691 | AF49: 460709.5642 | AG49: 504007.691 | AH49: 460709.5642 | AI49: 504007.691 | AJ49: 460709.5642 | AK49: 504007.691 | AL49: 460709.5642 | AM49: 504007.691 | AN49: 460709.5642 | AO49: 504007.691 | AP49: 460709.5642 | AQ49: 504007.691 | AR49: 460709.5642 | AS49: 504007.691 | AT49: =SUMPRODUCT(AT36:AT47*$F$36:$F$47)*AT29/$H$29 -> 460709.5642 | AU49: 504007.691 | AV49: 460709.5642 | AW49: 504007.691 | AX49: 460709.5642 | AY49: 504007.691 | AZ49: 460709.5642 | BA49: 504007.691 | BB49: 460709.5642 | BC49: 504007.691 | BD49: 460709.5642 | BE49: 504007.691 | BF49: 460709.5642 | BG49: 504007.691 | BH49: 460709.5642 | BI49: 504007.691 | BJ49: 460709.5642 | BK49: 504007.691 | BL49: 460709.5642 | BM49: 504007.691 | BN49: 460709.5642 | BO49: 504007.691 | BP49: 460709.5642 | BQ49: 504007.691 | BR49: 460709.5642 | BS49: 504007.691 | BT49: 460709.5642 | BU49: 504007.691 | BV49: 460709.5642 | BW49: 504007.691 | BX49: 460709.5642 | BY49: 504007.691 | BZ49: =SUMPRODUCT(BZ36:BZ47*$F$36:$F$47)*BZ29/$H$29 -> 0 | CA49: 0 | CB49: 0 | CC49: 0 | CD49: 0 | CE49: 0 | CF49: 0 | CG49: 0 | CH49: 0 | CI49: 0 | CJ49: 0 | CK49: 0 | CL49: 0 | CM49: 0 | CN49: 0 | CO49: 0 | CP49: 0 | CQ49: 0 | CR49: 0 | CS49: 0 | CT49: 0 | CU49: 0 | CV49: 0 | CW49: 0 | CX49: 0 | CY49: 0 | CZ49: 0 | DA49: 0 | DB49: 0 | DC49: 0 | DD49: 0 | DE49: 0 | DF49: =SUMPRODUCT(DF36:DF47*$F$36:$F$47)*DF29/$H$29 -> 0 | DG49: 0 | DH49: 0 | DI49: 0
C51: Degradation
D52: Annual Degradation | E52: % | F52: ='Operating Assumptions'!E119 -> 0.004 | N52: =$F$52*N14 -> 0 | O52: 0 | P52: 0 | Q52: 0 | R52: 0 | S52: 0 | T52: 0 | U52: 0 | V52: 0 | W52: 0 | X52: 0 | Y52: 0 | Z52: 0 | AA52: 0 | AB52: 0.004 | AC52: 0.004 | AD52: 0.004 | AE52: 0.004 | AF52: 0.004 | AG52: 0.004 | AH52: 0.004 | AI52: 0.004 | AJ52: 0.004 | AK52: 0.004 | AL52: 0.004 | AM52: 0.004 | AN52: 0.004 | AO52: 0.004 | AP52: 0.004 | AQ52: 0.004 | AR52: 0.004 | AS52: 0.004 | AT52: =$F$52*AT14 -> 0.004 | AU52: 0.004 | AV52: 0.004 | AW52: 0.004 | AX52: 0.004 | AY52: 0.004 | AZ52: 0.004 | BA52: 0.004 | BB52: 0.004 | BC52: 0.004 | BD52: 0.004 | BE52: 0.004 | BF52: 0.004 | BG52: 0.004 | BH52: 0.004 | BI52: 0.004 | BJ52: 0.004 | BK52: 0.004 | BL52: 0.004 | BM52: 0.004 | BN52: 0.004 | BO52: 0.004 | BP52: 0.004 | BQ52: 0.004 | BR52: 0.004 | BS52: 0.004 | BT52: 0.004 | BU52: 0.004 | BV52: 0.004 | BW52: 0.004 | BX52: 0.004 | BY52: 0.004 | BZ52: =$F$52*BZ14 -> 0 | CA52: 0 | CB52: 0 | CC52: 0 | CD52: 0 | CE52: 0 | CF52: 0 | CG52: 0 | CH52: 0 | CI52: 0 | CJ52: 0 | CK52: 0 | CL52: 0 | CM52: 0 | CN52: 0 | CO52: 0 | CP52: 0 | CQ52: 0 | CR52: 0 | CS52: 0 | CT52: 0 | CU52: 0 | CV52: 0 | CW52: 0 | CX52: 0 | CY52: 0 | CZ52: 0 | DA52: 0 | DB52: 0 | DC52: 0 | DD52: 0 | DE52: 0 | DF52: =$F$52*DF14 -> 0 | DG52: 0 | DH52: 0 | DI52: 0
D53: Periodic Degradation | E53: % | N53: =(1+N52)^(1/N5)-1 -> 0 | O53: 0 | P53: 0 | Q53: 0 | R53: 0 | S53: 0 | T53: 0 | U53: 0 | V53: 0 | W53: 0 | X53: 0 | Y53: 0 | Z53: 0 | AA53: 0 | AB53: 0.00199800399 | AC53: 0.00199800399 | AD53: 0.00199800399 | AE53: 0.00199800399 | AF53: 0.00199800399 | AG53: 0.00199800399 | AH53: 0.00199800399 | AI53: 0.00199800399 | AJ53: 0.00199800399 | AK53: 0.00199800399 | AL53: 0.00199800399 | AM53: 0.00199800399 | AN53: 0.00199800399 | AO53: 0.00199800399 | AP53: 0.00199800399 | AQ53: 0.00199800399 | AR53: 0.00199800399 | AS53: 0.00199800399 | AT53: =(1+AT52)^(1/AT5)-1 -> 0.00199800399 | AU53: 0.00199800399 | AV53: 0.00199800399 | AW53: 0.00199800399 | AX53: 0.00199800399 | AY53: 0.00199800399 | AZ53: 0.00199800399 | BA53: 0.00199800399 | BB53: 0.00199800399 | BC53: 0.00199800399 | BD53: 0.00199800399 | BE53: 0.00199800399 | BF53: 0.00199800399 | BG53: 0.00199800399 | BH53: 0.00199800399 | BI53: 0.00199800399 | BJ53: 0.00199800399 | BK53: 0.00199800399 | BL53: 0.00199800399 | BM53: 0.00199800399 | BN53: 0.00199800399 | BO53: 0.00199800399 | BP53: 0.00199800399 | BQ53: 0.00199800399 | BR53: 0.00199800399 | BS53: 0.00199800399 | BT53: 0.00199800399 | BU53: 0.00199800399 | BV53: 0.00199800399 | BW53: 0.00199800399 | BX53: 0.00199800399 | BY53: 0.00199800399 | BZ53: =(1+BZ52)^(1/BZ5)-1 -> 0 | CA53: 0 | CB53: 0 | CC53: 0 | CD53: 0 | CE53: 0 | CF53: 0 | CG53: 0 | CH53: 0 | CI53: 0 | CJ53: 0 | CK53: 0 | CL53: 0 | CM53: 0 | CN53: 0 | CO53: 0 | CP53: 0 | CQ53: 0 | CR53: 0 | CS53: 0 | CT53: 0 | CU53: 0 | CV53: 0 | CW53: 0 | CX53: 0 | CY53: 0 | CZ53: 0 | DA53: 0 | DB53: 0 | DC53: 0 | DD53: 0 | DE53: 0 | DF53: =(1+DF52)^(1/DF5)-1 -> 0 | DG53: 0 | DH53: 0 | DI53: 0
D54: Degradation Index | M54: 1 | N54: =M54*(1-N53) -> 1 | O54: =N54*(1-O53) -> 1 | P54: 1 | Q54: 1 | R54: 1 | S54: 1 | T54: 1 | U54: 1 | V54: 1 | W54: 1 | X54: 1 | Y54: 1 | Z54: 1 | AA54: 1 | AB54: 0.998001996 | AC54: 0.996007984 | AD54: 0.9940179561 | AE54: 0.9920319043 | AF54: 0.9900498206 | AG54: 0.9880716971 | AH54: 0.9860975259 | AI54: 0.9841272991 | AJ54: 0.9821610088 | AK54: 0.9801986472 | AL54: 0.9782402064 | AM54: 0.9762856786 | AN54: 0.9743350559 | AO54: 0.9723883306 | AP54: 0.9704454948 | AQ54: 0.9685065408 | AR54: 0.9665714609 | AS54: 0.9646402472 | AT54: 0.9627128922 | AU54: 0.960789388 | AV54: 0.958869727 | AW54: 0.9569539014 | AX54: 0.9550419037 | AY54: 0.9531337262 | AZ54: 0.9512293612 | BA54: 0.9493288011 | BB54: 0.9474320384 | BC54: 0.9455390654 | BD54: 0.9436498746 | BE54: 0.9417644584 | BF54: 0.9398828092 | BG54: 0.9380049196 | BH54: 0.936130782 | BI54: 0.934260389 | BJ54: 0.932393733 | BK54: 0.9305308066 | BL54: 0.9286716023 | BM54: 0.9268161128 | BN54: 0.9249643305 | BO54: 0.9231162481 | BP54: 0.9212718581 | BQ54: 0.9194311533 | BR54: 0.9175941262 | BS54: 0.9157607694 | BT54: 0.9139310758 | BU54: 0.9121050378 | BV54: 0.9102826483 | BW54: 0.9084639 | BX54: 0.9066487855 | BY54: 0.9048372976 | BZ54: 0.9048372976 | CA54: =BZ54*(1-CA53) -> 0.9048372976 | CB54: 0.9048372976 | CC54: 0.9048372976 | CD54: 0.9048372976 | CE54: 0.9048372976 | CF54: 0.9048372976 | CG54: 0.9048372976 | CH54: 0.9048372976 | CI54: 0.9048372976 | CJ54: 0.9048372976 | CK54: 0.9048372976 | CL54: 0.9048372976 | CM54: 0.9048372976 | CN54: 0.9048372976 | CO54: 0.9048372976 | CP54: 0.9048372976 | CQ54: 0.9048372976 | CR54: 0.9048372976 | CS54: 0.9048372976 | CT54: 0.9048372976 | CU54: 0.9048372976 | CV54: 0.9048372976 | CW54: 0.9048372976 | CX54: 0.9048372976 | CY54: 0.9048372976 | CZ54: 0.9048372976 | DA54: 0.9048372976 | DB54: 0.9048372976 | DC54: 0.9048372976 | DD54: 0.9048372976 | DE54: 0.9048372976 | DF54: 0.9048372976 | DG54: 0.9048372976 | DH54: 0.9048372976 | DI54: 0.9048372976
D56: Net Generation | E56: kWh | N56: =N49*N54 -> 0 | O56: 0 | P56: 0 | Q56: 0 | R56: 0 | S56: 0 | T56: 0 | U56: 0 | V56: 0 | W56: 0 | X56: 0 | Y56: 0 | Z56: 28312.25155 | AA56: 69746.91959 | AB56: 459789.0646 | AC56: 501995.6843 | AD56: 457953.5793 | AE56: 499991.7095 | AF56: 456125.4213 | AG56: 497995.7346 | AH56: 454304.5614 | AI56: 496007.7277 | AJ56: 452490.9703 | AK56: 494027.6569 | AL56: 450684.6191 | AM56: 492055.4906 | AN56: 448885.4789 | AO56: 490091.1973 | AP56: 447093.5209 | AQ56: 488134.7454 | AR56: 445308.7165 | AS56: 486186.1037 | AT56: =AT49*AT54 -> 443531.037 | AU56: 484245.241 | AV56: 441760.454 | AW56: 482312.1263 | AX56: 439996.9392 | AY56: 480386.7286 | AZ56: 438240.4644 | BA56: 478469.0171 | BB56: 436491.0015 | BC56: 476558.9611 | BD56: 434748.5224 | BE56: 474656.5302 | BF56: 433012.9994 | BG56: 472761.6937 | BH56: 431284.4046 | BI56: 470874.4215 | BJ56: 429562.7104 | BK56: 468994.6833 | BL56: 427847.8892 | BM56: 467122.449 | BN56: 426139.9136 | BO56: 465257.6888 | BP56: 424438.7562 | BQ56: 463400.3726 | BR56: 422744.3899 | BS56: 461550.4709 | BT56: 421056.7876 | BU56: 459707.9541 | BV56: 419375.9222 | BW56: 457872.7926 | BX56: 417701.7668 | BY56: 456044.9571 | BZ56: =BZ49*BZ54 -> 0 | CA56: 0 | CB56: 0 | CC56: 0 | CD56: 0 | CE56: 0 | CF56: 0 | CG56: 0 | CH56: 0 | CI56: 0 | CJ56: 0 | CK56: 0 | CL56: 0 | CM56: 0 | CN56: 0 | CO56: 0 | CP56: 0 | CQ56: 0 | CR56: 0 | CS56: 0 | CT56: 0 | CU56: 0 | CV56: 0 | CW56: 0 | CX56: 0 | CY56: 0 | CZ56: 0 | DA56: 0 | DB56: 0 | DC56: 0 | DD56: 0 | DE56: 0 | DF56: =DF49*DF54 -> 0 | DG56: 0 | DH56: 0 | DI56: 0
D59: Days in period | E59: Days | N59: =N7-N6+1 -> 30 | O59: 31 | P59: 31 | Q59: 28 | R59: 31 | S59: 30 | T59: 31 | U59: 30 | V59: 31 | W59: 31 | X59: 30 | Y59: 31 | Z59: 30 | AA59: 31 | AB59: 181 | AC59: 184 | AD59: 181 | AE59: 184 | AF59: 182 | AG59: 184 | AH59: 181 | AI59: 184 | AJ59: 181 | AK59: 184 | AL59: 181 | AM59: 184 | AN59: 182 | AO59: 184 | AP59: 181 | AQ59: 184 | AR59: 181 | AS59: 184 | AT59: =AT7-AT6+1 -> 181 | AU59: 184 | AV59: 182 | AW59: 184 | AX59: 181 | AY59: 184 | AZ59: 181 | BA59: 184 | BB59: 181 | BC59: 184 | BD59: 182 | BE59: 184 | BF59: 181 | BG59: 184 | BH59: 181 | BI59: 184 | BJ59: 181 | BK59: 184 | BL59: 182 | BM59: 184 | BN59: 181 | BO59: 184 | BP59: 181 | BQ59: 184 | BR59: 181 | BS59: 184 | BT59: 182 | BU59: 184 | BV59: 181 | BW59: 184 | BX59: 181 | BY59: 184 | BZ59: =BZ7-BZ6+1 -> 181 | CA59: 184 | CB59: 182 | CC59: 184 | CD59: 181 | CE59: 184 | CF59: 181 | CG59: 184 | CH59: 181 | CI59: 184 | CJ59: 182 | CK59: 184 | CL59: 181 | CM59: 184 | CN59: 181 | CO59: 184 | CP59: 181 | CQ59: 184 | CR59: 182 | CS59: 184 | CT59: 181 | CU59: 184 | CV59: 181 | CW59: 184 | CX59: 181 | CY59: 184 | CZ59: 182 | DA59: 184 | DB59: 181 | DC59: 184 | DD59: 181 | DE59: 184 | DF59: =DF7-DF6+1 -> 181 | DG59: 184 | DH59: 182 | DI59: 184
D60: Hours in Period | E60: Hours | N60: =N59*24 -> 720 | O60: =O59*24 -> 744 | P60: 744 | Q60: 672 | R60: 744 | S60: 720 | T60: 744 | U60: 720 | V60: 744 | W60: 744 | X60: 720 | Y60: 744 | Z60: 720 | AA60: 744 | AB60: 4344 | AC60: 4416 | AD60: 4344 | AE60: 4416 | AF60: 4368 | AG60: 4416 | AH60: 4344 | AI60: 4416 | AJ60: 4344 | AK60: 4416 | AL60: 4344 | AM60: 4416 | AN60: 4368 | AO60: 4416 | AP60: 4344 | AQ60: 4416 | AR60: 4344 | AS60: 4416 | AT60: 4344 | AU60: 4416 | AV60: 4368 | AW60: 4416 | AX60: 4344 | AY60: 4416 | AZ60: 4344 | BA60: 4416 | BB60: 4344 | BC60: 4416 | BD60: 4368 | BE60: 4416 | BF60: 4344 | BG60: 4416 | BH60: 4344 | BI60: 4416 | BJ60: 4344 | BK60: 4416 | BL60: 4368 | BM60: 4416 | BN60: 4344 | BO60: 4416 | BP60: 4344 | BQ60: 4416 | BR60: 4344 | BS60: 4416 | BT60: 4368 | BU60: 4416 | BV60: 4344 | BW60: 4416 | BX60: 4344 | BY60: 4416 | BZ60: 4344 | CA60: =CA59*24 -> 4416 | CB60: 4368 | CC60: 4416 | CD60: 4344 | CE60: 4416 | CF60: 4344 | CG60: 4416 | CH60: 4344 | CI60: 4416 | CJ60: 4368 | CK60: 4416 | CL60: 4344 | CM60: 4416 | CN60: 4344 | CO60: 4416 | CP60: 4344 | CQ60: 4416 | CR60: 4368 | CS60: 4416 | CT60: 4344 | CU60: 4416 | CV60: 4344 | CW60: 4416 | CX60: 4344 | CY60: 4416 | CZ60: 4368 | DA60: 4416 | DB60: 4344 | DC60: 4416 | DD60: 4344 | DE60: 4416 | DF60: 4344 | DG60: 4416 | DH60: 4368 | DI60: 4416
D61: Average Hourly Production | E61: kW | N61: =N56/N60 -> 0 | O61: =O56/O60 -> 0 | P61: 0 | Q61: 0 | R61: 0 | S61: 0 | T61: 0 | U61: 0 | V61: 0 | W61: 0 | X61: 0 | Y61: 0 | Z61: 39.32257159 | AA61: 93.74585967 | AB61: 105.8446281 | AC61: 113.6765589 | AD61: 105.4220947 | AE61: 113.2227603 | AF61: 104.4243181 | AG61: 112.7707732 | AH61: 104.5820813 | AI61: 112.3205905 | AJ61: 104.164588 | AK61: 111.8722049 | AL61: 103.7487613 | AM61: 111.4256093 | AN61: 102.7668221 | AO61: 110.9807965 | AP61: 102.9220812 | AQ61: 110.5377594 | AR61: 102.5112147 | AS61: 110.0964909 | AT61: 102.1019883 | AU61: 109.6569839 | AV61: 101.1356351 | AW61: 109.2192315 | AX61: 101.2884298 | AY61: 108.7832266 | AZ61: 100.8840848 | BA61: 108.3489622 | BB61: 100.4813539 | BC61: 107.9164314 | BD61: 99.53033939 | BE61: 107.4856273 | BF61: 99.68070888 | BG61: 107.056543 | BH61: 99.2827819 | BI61: 106.6291715 | BJ61: 98.88644345 | BK61: 106.2035062 | BL61: 97.95052408 | BM61: 105.7795401 | BN61: 98.09850681 | BO61: 105.3572665 | BP61: 97.706896 | BQ61: 104.9366786 | BR61: 97.31684851 | BS61: 104.5177697 | BT61: 96.3957847 | BU61: 104.1005331 | BV61: 96.54141855 | BW61: 103.6849621 | BX61: 96.15602366 | BY61: 103.2710501 | BZ61: 0 | CA61: =CA56/CA60 -> 0 | CB61: 0 | CC61: 0 | CD61: 0 | CE61: 0 | CF61: 0 | CG61: 0 | CH61: 0 | CI61: 0 | CJ61: 0 | CK61: 0 | CL61: 0 | CM61: 0 | CN61: 0 | CO61: 0 | CP61: 0 | CQ61: 0 | CR61: 0 | CS61: 0 | CT61: 0 | CU61: 0 | CV61: 0 | CW61: 0 | CX61: 0 | CY61: 0 | CZ61: 0 | DA61: 0 | DB61: 0 | DC61: 0 | DD61: 0 | DE61: 0 | DF61: 0 | DG61: 0 | DH61: 0 | DI61: 0
D62: Capacity Factor | E62: % | N62: =IF(N29,N61/N29) -> FALSE | O62: FALSE | P62: FALSE | Q62: FALSE | R62: FALSE | S62: FALSE | T62: FALSE | U62: FALSE | V62: FALSE | W62: FALSE | X62: FALSE | Y62: FALSE | Z62: 0.2661188414 | AA62: 0.2700165952 | AB62: 0.2120285019 | AC62: 0.2277174658 | AD62: 0.2111820807 | AE62: 0.2268084141 | AF62: 0.2091833295 | AG62: 0.2259029913 | AH62: 0.2094993617 | AI62: 0.2250011829 | AJ62: 0.2086630369 | AK62: 0.2241029746 | AL62: 0.2078300507 | AM62: 0.223208352 | AN62: 0.205863025 | AO62: 0.2223173007 | AP62: 0.206174041 | AQ62: 0.2214298064 | AR62: 0.2053509909 | AS62: 0.2205458551 | AT62: =IF(AT29,AT61/AT29) -> 0.2045312265 | AU62: 0.2196654325 | AV62: 0.2025954228 | AW62: 0.2187885246 | AX62: 0.2029015021 | AY62: 0.2179151173 | AZ62: 0.202091516 | BA62: 0.2170451967 | BB62: 0.2012847635 | BC62: 0.2161787488 | BD62: 0.1993796863 | BE62: 0.2153157598 | BF62: 0.1996809072 | BG62: 0.2144562159 | BH62: 0.1988837779 | BI62: 0.2136001032 | BJ62: 0.1980898306 | BK62: 0.2127474082 | BL62: 0.1962149921 | BM62: 0.2118981172 | BN62: 0.1965114319 | BO62: 0.2110522165 | BP62: 0.1957269551 | BQ62: 0.2102096927 | BR62: 0.19494561 | BS62: 0.2093705322 | BT62: 0.1931005303 | BU62: 0.2085347217 | BV62: 0.1933922647 | BW62: 0.2077022478 | BX62: 0.1926202397 | BY62: 0.2068730971 | BZ62: =IF(BZ29,BZ61/BZ29) -> FALSE | CA62: FALSE | CB62: FALSE | CC62: FALSE | CD62: FALSE | CE62: FALSE | CF62: FALSE | CG62: FALSE | CH62: FALSE | CI62: FALSE | CJ62: FALSE | CK62: FALSE | CL62: FALSE | CM62: FALSE | CN62: FALSE | CO62: FALSE | CP62: FALSE | CQ62: FALSE | CR62: FALSE | CS62: FALSE | CT62: FALSE | CU62: FALSE | CV62: FALSE | CW62: FALSE | CX62: FALSE | CY62: FALSE | CZ62: FALSE | DA62: FALSE | DB62: FALSE | DC62: FALSE | DD62: FALSE | DE62: FALSE | DF62: =IF(DF29,DF61/DF29) -> FALSE | DG62: FALSE | DH62: FALSE | DI62: FALSE
B64: Revenues
C65: Real FIT | E65: USD/MWH | F65: ='Master Scenario'!J40 -> 70.36898669 | N65: =$F$65 -> 70.36898669 | O65: 70.36898669 | P65: 70.36898669 | Q65: 70.36898669 | R65: 70.36898669 | S65: 70.36898669 | T65: 70.36898669 | U65: 70.36898669 | V65: 70.36898669 | W65: 70.36898669 | X65: 70.36898669 | Y65: 70.36898669 | Z65: 70.36898669 | AA65: 70.36898669 | AB65: 70.36898669 | AC65: 70.36898669 | AD65: 70.36898669 | AE65: 70.36898669 | AF65: 70.36898669 | AG65: 70.36898669 | AH65: 70.36898669 | AI65: 70.36898669 | AJ65: 70.36898669 | AK65: 70.36898669 | AL65: 70.36898669 | AM65: 70.36898669 | AN65: 70.36898669 | AO65: 70.36898669 | AP65: 70.36898669 | AQ65: 70.36898669 | AR65: 70.36898669 | AS65: 70.36898669 | AT65: =$F$65 -> 70.36898669 | AU65: 70.36898669 | AV65: 70.36898669 | AW65: 70.36898669 | AX65: 70.36898669 | AY65: 70.36898669 | AZ65: 70.36898669 | BA65: 70.36898669 | BB65: 70.36898669 | BC65: 70.36898669 | BD65: 70.36898669 | BE65: 70.36898669 | BF65: 70.36898669 | BG65: 70.36898669 | BH65: 70.36898669 | BI65: 70.36898669 | BJ65: 70.36898669 | BK65: 70.36898669 | BL65: 70.36898669 | BM65: 70.36898669 | BN65: 70.36898669 | BO65: 70.36898669 | BP65: 70.36898669 | BQ65: 70.36898669 | BR65: 70.36898669 | BS65: 70.36898669 | BT65: 70.36898669 | BU65: 70.36898669 | BV65: 70.36898669 | BW65: 70.36898669 | BX65: 70.36898669 | BY65: 70.36898669 | BZ65: =$F$65 -> 70.36898669 | CA65: 70.36898669 | CB65: 70.36898669 | CC65: 70.36898669 | CD65: 70.36898669 | CE65: 70.36898669 | CF65: 70.36898669 | CG65: 70.36898669 | CH65: 70.36898669 | CI65: 70.36898669 | CJ65: 70.36898669 | CK65: 70.36898669 | CL65: 70.36898669 | CM65: 70.36898669 | CN65: 70.36898669 | CO65: 70.36898669 | CP65: 70.36898669 | CQ65: 70.36898669 | CR65: 70.36898669 | CS65: 70.36898669 | CT65: 70.36898669 | CU65: 70.36898669 | CV65: 70.36898669 | CW65: 70.36898669 | CX65: 70.36898669 | CY65: 70.36898669 | CZ65: 70.36898669 | DA65: 70.36898669 | DB65: 70.36898669 | DC65: 70.36898669 | DD65: 70.36898669 | DE65: 70.36898669 | DF65: =$F$65 -> 70.36898669 | DG65: 70.36898669 | DH65: 70.36898669 | DI65: 70.36898669
C66: Annual Inflation rate | N66: =LOOKUP(N8,'Operating Assumptions'!$H$128:$P$128,'Operating Assumptions'!$H$132:$P$132) -> 0.01 | O66: =LOOKUP(O8,'Operating Assumptions'!$H$128:$P$128,'Operating Assumptions'!$H$132:$P$132) -> 0.01 | P66: =LOOKUP(P8,'Operating Assumptions'!$H$128:$P$128,'Operating Assumptions'!$H$132:$P$132) -> 0.01 | Q66: =LOOKUP(Q8,'Operating Assumptions'!$H$128:$P$128,'Operating Assumptions'!$H$132:$P$132) -> 0.01 | R66: =LOOKUP(R8,'Operating Assumptions'!$H$128:$P$128,'Operating Assumptions'!$H$132:$P$132) -> 0.01 | S66: =LOOKUP(S8,'Operating Assumptions'!$H$128:$P$128,'Operating Assumptions'!$H$132:$P$132) -> 0.01 | T66: =LOOKUP(T8,'Operating Assumptions'!$H$128:$P$128,'Operating Assumptions'!$H$132:$P$132) -> 0.01 | U66: =LOOKUP(U8,'Operating Assumptions'!$H$128:$P$128,'Operating Assumptions'!$H$132:$P$132) -> 0.01 | V66: =LOOKUP(V8,'Operating Assumptions'!$H$128:$P$128,'Operating Assumptions'!$H$132:$P$132) -> 0.01 | W66: =LOOKUP(W8,'Operating Assumptions'!$H$128:$P$128,'Operating Assumptions'!$H$132:$P$132) -> 0.01 | X66: =LOOKUP(X8,'Operating Assumptions'!$H$128:$P$128,'Operating Assumptions'!$H$132:$P$132) -> 0.01 | Y66: =LOOKUP(Y8,'Operating Assumptions'!$H$128:$P$128,'Operating Assumptions'!$H$132:$P$132) -> 0.01 | Z66: =LOOKUP(Z8,'Operating Assumptions'!$H$128:$P$128,'Operating Assumptions'!$H$132:$P$132) -> 0.01 | AA66: =LOOKUP(AA8,'Operating Assumptions'!$H$128:$P$128,'Operating Assumptions'!$H$132:$P$132) -> 0.01 | AB66: =LOOKUP(AB8,'Operating Assumptions'!$H$128:$P$128,'Operating Assumptions'!$H$132:$P$132) -> 0.01 | AC66: =LOOKUP(AC8,'Operating Assumptions'!$H$128:$P$128,'Operating Assumptions'!$H$132:$P$132) -> 0.01 | AD66: =LOOKUP(AD8,'Operating Assumptions'!$H$128:$P$128,'Operating Assumptions'!$H$132:$P$132) -> 0.01 | AE66: =LOOKUP(AE8,'Operating Assumptions'!$H$128:$P$128,'Operating Assumptions'!$H$132:$P$132) -> 0.01 | AF66: =LOOKUP(AF8,'Operating Assumptions'!$H$128:$P$128,'Operating Assumptions'!$H$132:$P$132) -> 0.01 | AG66: =LOOKUP(AG8,'Operating Assumptions'!$H$128:$P$128,'Operating Assumptions'!$H$132:$P$132) -> 0.01 | AH66: =LOOKUP(AH8,'Operating Assumptions'!$H$128:$P$128,'Operating Assumptions'!$H$132:$P$132) -> 0.01 | AI66: =LOOKUP(AI8,'Operating Assumptions'!$H$128:$P$128,'Operating Assumptions'!$H$132:$P$132) -> 0.01 | AJ66: =LOOKUP(AJ8,'Operating Assumptions'!$H$128:$P$128,'Operating Assumptions'!$H$132:$P$132) -> 0.01 | AK66: =LOOKUP(AK8,'Operating Assumptions'!$H$128:$P$128,'Operating Assumptions'!$H$132:$P$132) -> 0.01 | AL66: =LOOKUP(AL8,'Operating Assumptions'!$H$128:$P$128,'Operating Assumptions'!$H$132:$P$132) -> 0.01 | AM66: =LOOKUP(AM8,'Operating Assumptions'!$H$128:$P$128,'Operating Assumptions'!$H$132:$P$132) -> 0.01 | AN66: =LOOKUP(AN8,'Operating Assumptions'!$H$128:$P$128,'Operating Assumptions'!$H$132:$P$132) -> 0.01 | AO66: =LOOKUP(AO8,'Operating Assumptions'!$H$128:$P$128,'Operating Assumptions'!$H$132:$P$132) -> 0.01 | AP66: =LOOKUP(AP8,'Operating Assumptions'!$H$128:$P$128,'Operating Assumptions'!$H$132:$P$132) -> 0.01 | AQ66: =LOOKUP(AQ8,'Operating Assumptions'!$H$128:$P$128,'Operating Assumptions'!$H$132:$P$132) -> 0.01 | AR66: =LOOKUP(AR8,'Operating Assumptions'!$H$128:$P$128,'Operating Assumptions'!$H$132:$P$132) -> 0.01 | AS66: =LOOKUP(AS8,'Operating Assumptions'!$H$128:$P$128,'Operating Assumptions'!$H$132:$P$132) -> 0.01 | AT66: =LOOKUP(AT8,'Operating Assumptions'!$H$128:$P$128,'Operating Assumptions'!$H$132:$P$132) -> 0.01 | AU66: =LOOKUP(AU8,'Operating Assumptions'!$H$128:$P$128,'Operating Assumptions'!$H$132:$P$132) -> 0.01 | AV66: =LOOKUP(AV8,'Operating Assumptions'!$H$128:$P$128,'Operating Assumptions'!$H$132:$P$132) -> 0.01 | AW66: =LOOKUP(AW8,'Operating Assumptions'!$H$128:$P$128,'Operating Assumptions'!$H$132:$P$132) -> 0.01 | AX66: =LOOKUP(AX8,'Operating Assumptions'!$H$128:$P$128,'Operating Assumptions'!$H$132:$P$132) -> 0.01 | AY66: =LOOKUP(AY8,'Operating Assumptions'!$H$128:$P$128,'Operating Assumptions'!$H$132:$P$132) -> 0.01 | AZ66: =LOOKUP(AZ8,'Operating Assumptions'!$H$128:$P$128,'Operating Assumptions'!$H$132:$P$132) -> 0.01 | BA66: =LOOKUP(BA8,'Operating Assumptions'!$H$128:$P$128,'Operating Assumptions'!$H$132:$P$132) -> 0.01 | BB66: =LOOKUP(BB8,'Operating Assumptions'!$H$128:$P$128,'Operating Assumptions'!$H$132:$P$132) -> 0.01 | BC66: =LOOKUP(BC8,'Operating Assumptions'!$H$128:$P$128,'Operating Assumptions'!$H$132:$P$132) -> 0.01 | BD66: =LOOKUP(BD8,'Operating Assumptions'!$H$128:$P$128,'Operating Assumptions'!$H$132:$P$132) -> 0.01 | BE66: =LOOKUP(BE8,'Operating Assumptions'!$H$128:$P$128,'Operating Assumptions'!$H$132:$P$132) -> 0.01 | BF66: =LOOKUP(BF8,'Operating Assumptions'!$H$128:$P$128,'Operating Assumptions'!$H$132:$P$132) -> 0.01 | BG66: =LOOKUP(BG8,'Operating Assumptions'!$H$128:$P$128,'Operating Assumptions'!$H$132:$P$132) -> 0.01 | BH66: =LOOKUP(BH8,'Operating Assumptions'!$H$128:$P$128,'Operating Assumptions'!$H$132:$P$132) -> 0.01 | BI66: =LOOKUP(BI8,'Operating Assumptions'!$H$128:$P$128,'Operating Assumptions'!$H$132:$P$132) -> 0.01 | BJ66: =LOOKUP(BJ8,'Operating Assumptions'!$H$128:$P$128,'Operating Assumptions'!$H$132:$P$132) -> 0.01 | BK66: =LOOKUP(BK8,'Operating Assumptions'!$H$128:$P$128,'Operating Assumptions'!$H$132:$P$132) -> 0.01 | BL66: =LOOKUP(BL8,'Operating Assumptions'!$H$128:$P$128,'Operating Assumptions'!$H$132:$P$132) -> 0.01 | BM66: =LOOKUP(BM8,'Operating Assumptions'!$H$128:$P$128,'Operating Assumptions'!$H$132:$P$132) -> 0.01 | BN66: =LOOKUP(BN8,'Operating Assumptions'!$H$128:$P$128,'Operating Assumptions'!$H$132:$P$132) -> 0.01 | BO66: =LOOKUP(BO8,'Operating Assumptions'!$H$128:$P$128,'Operating Assumptions'!$H$132:$P$132) -> 0.01 | BP66: =LOOKUP(BP8,'Operating Assumptions'!$H$128:$P$128,'Operating Assumptions'!$H$132:$P$132) -> 0.01 | BQ66: =LOOKUP(BQ8,'Operating Assumptions'!$H$128:$P$128,'Operating Assumptions'!$H$132:$P$132) -> 0.01 | BR66: =LOOKUP(BR8,'Operating Assumptions'!$H$128:$P$128,'Operating Assumptions'!$H$132:$P$132) -> 0.01 | BS66: =LOOKUP(BS8,'Operating Assumptions'!$H$128:$P$128,'Operating Assumptions'!$H$132:$P$132) -> 0.01 | BT66: =LOOKUP(BT8,'Operating Assumptions'!$H$128:$P$128,'Operating Assumptions'!$H$132:$P$132) -> 0.01 | BU66: =LOOKUP(BU8,'Operating Assumptions'!$H$128:$P$128,'Operating Assumptions'!$H$132:$P$132) -> 0.01 | BV66: =LOOKUP(BV8,'Operating Assumptions'!$H$128:$P$128,'Operating Assumptions'!$H$132:$P$132) -> 0.01 | BW66: =LOOKUP(BW8,'Operating Assumptions'!$H$128:$P$128,'Operating Assumptions'!$H$132:$P$132) -> 0.01 | BX66: =LOOKUP(BX8,'Operating Assumptions'!$H$128:$P$128,'Operating Assumptions'!$H$132:$P$132) -> 0.01 | BY66: =LOOKUP(BY8,'Operating Assumptions'!$H$128:$P$128,'Operating Assumptions'!$H$132:$P$132) -> 0.01 | BZ66: =LOOKUP(BZ8,'Operating Assumptions'!$H$128:$P$128,'Operating Assumptions'!$H$132:$P$132) -> 0.01 | CA66: =LOOKUP(CA8,'Operating Assumptions'!$H$128:$P$128,'Operating Assumptions'!$H$132:$P$132) -> 0.01 | CB66: =LOOKUP(CB8,'Operating Assumptions'!$H$128:$P$128,'Operating Assumptions'!$H$132:$P$132) -> 0.01 | CC66: =LOOKUP(CC8,'Operating Assumptions'!$H$128:$P$128,'Operating Assumptions'!$H$132:$P$132) -> 0.01 | CD66: =LOOKUP(CD8,'Operating Assumptions'!$H$128:$P$128,'Operating Assumptions'!$H$132:$P$132) -> 0.01 | CE66: =LOOKUP(CE8,'Operating Assumptions'!$H$128:$P$128,'Operating Assumptions'!$H$132:$P$132) -> 0.01 | CF66: =LOOKUP(CF8,'Operating Assumptions'!$H$128:$P$128,'Operating Assumptions'!$H$132:$P$132) -> 0.01 | CG66: =LOOKUP(CG8,'Operating Assumptions'!$H$128:$P$128,'Operating Assumptions'!$H$132:$P$132) -> 0.01 | CH66: =LOOKUP(CH8,'Operating Assumptions'!$H$128:$P$128,'Operating Assumptions'!$H$132:$P$132) -> 0.01 | CI66: =LOOKUP(CI8,'Operating Assumptions'!$H$128:$P$128,'Operating Assumptions'!$H$132:$P$132) -> 0.01 | CJ66: =LOOKUP(CJ8,'Operating Assumptions'!$H$128:$P$128,'Operating Assumptions'!$H$132:$P$132) -> 0.01 | CK66: =LOOKUP(CK8,'Operating Assumptions'!$H$128:$P$128,'Operating Assumptions'!$H$132:$P$132) -> 0.01 | CL66: =LOOKUP(CL8,'Operating Assumptions'!$H$128:$P$128,'Operating Assumptions'!$H$132:$P$132) -> 0.01 | CM66: =LOOKUP(CM8,'Operating Assumptions'!$H$128:$P$128,'Operating Assumptions'!$H$132:$P$132) -> 0.01 | CN66: =LOOKUP(CN8,'Operating Assumptions'!$H$128:$P$128,'Operating Assumptions'!$H$132:$P$132) -> 0.01 | CO66: =LOOKUP(CO8,'Operating Assumptions'!$H$128:$P$128,'Operating Assumptions'!$H$132:$P$132) -> 0.01 | CP66: =LOOKUP(CP8,'Operating Assumptions'!$H$128:$P$128,'Operating Assumptions'!$H$132:$P$132) -> 0.01 | CQ66: =LOOKUP(CQ8,'Operating Assumptions'!$H$128:$P$128,'Operating Assumptions'!$H$132:$P$132) -> 0.01 | CR66: =LOOKUP(CR8,'Operating Assumptions'!$H$128:$P$128,'Operating Assumptions'!$H$132:$P$132) -> 0.01 | CS66: =LOOKUP(CS8,'Operating Assumptions'!$H$128:$P$128,'Operating Assumptions'!$H$132:$P$132) -> 0.01 | CT66: =LOOKUP(CT8,'Operating Assumptions'!$H$128:$P$128,'Operating Assumptions'!$H$132:$P$132) -> 0.01 | CU66: =LOOKUP(CU8,'Operating Assumptions'!$H$128:$P$128,'Operating Assumptions'!$H$132:$P$132) -> 0.01 | CV66: =LOOKUP(CV8,'Operating Assumptions'!$H$128:$P$128,'Operating Assumptions'!$H$132:$P$132) -> 0.01 | CW66: =LOOKUP(CW8,'Operating Assumptions'!$H$128:$P$128,'Operating Assumptions'!$H$132:$P$132) -> 0.01 | CX66: =LOOKUP(CX8,'Operating Assumptions'!$H$128:$P$128,'Operating Assumptions'!$H$132:$P$132) -> 0.01 | CY66: =LOOKUP(CY8,'Operating Assumptions'!$H$128:$P$128,'Operating Assumptions'!$H$132:$P$132) -> 0.01 | CZ66: =LOOKUP(CZ8,'Operating Assumptions'!$H$128:$P$128,'Operating Assumptions'!$H$132:$P$132) -> 0.01 | DA66: =LOOKUP(DA8,'Operating Assumptions'!$H$128:$P$128,'Operating Assumptions'!$H$132:$P$132) -> 0.01 | DB66: =LOOKUP(DB8,'Operating Assumptions'!$H$128:$P$128,'Operating Assumptions'!$H$132:$P$132) -> 0.01 | DC66: =LOOKUP(DC8,'Operating Assumptions'!$H$128:$P$128,'Operating Assumptions'!$H$132:$P$132) -> 0.01 | DD66: =LOOKUP(DD8,'Operating Assumptions'!$H$128:$P$128,'Operating Assumptions'!$H$132:$P$132) -> 0.01 | DE66: =LOOKUP(DE8,'Operating Assumptions'!$H$128:$P$128,'Operating Assumptions'!$H$132:$P$132) -> 0.01 | DF66: =LOOKUP(DF8,'Operating Assumptions'!$H$128:$P$128,'Operating Assumptions'!$H$132:$P$132) -> 0.01 | DG66: =LOOKUP(DG8,'Operating Assumptions'!$H$128:$P$128,'Operating Assumptions'!$H$132:$P$132) -> 0.01 | DH66: =LOOKUP(DH8,'Operating Assumptions'!$H$128:$P$128,'Operating Assumptions'!$H$132:$P$132) -> 0.01 | DI66: =LOOKUP(DI8,'Operating Assumptions'!$H$128:$P$128,'Operating Assumptions'!$H$132:$P$132) -> 0.01
C67: Periodic Inflation rate | F67: Start Inflation | G67: Apply | N67: =(1+N66)^(1/N5)-1 -> 0.0008295381143 | O67: 0.0008295381143 | P67: 0.0008295381143 | Q67: 0.0008295381143 | R67: 0.0008295381143 | S67: 0.0008295381143 | T67: 0.0008295381143 | U67: 0.0008295381143 | V67: 0.0008295381143 | W67: 0.0008295381143 | X67: 0.0008295381143 | Y67: 0.0008295381143 | Z67: 0.0008295381143 | AA67: 0.0008295381143 | AB67: 0.004987562112 | AC67: 0.004987562112 | AD67: 0.004987562112 | AE67: 0.004987562112 | AF67: 0.004987562112 | AG67: 0.004987562112 | AH67: 0.004987562112 | AI67: 0.004987562112 | AJ67: 0.004987562112 | AK67: 0.004987562112 | AL67: 0.004987562112 | AM67: 0.004987562112 | AN67: 0.004987562112 | AO67: 0.004987562112 | AP67: 0.004987562112 | AQ67: 0.004987562112 | AR67: 0.004987562112 | AS67: 0.004987562112 | AT67: =(1+AT66)^(1/AT5)-1 -> 0.004987562112 | AU67: 0.004987562112 | AV67: 0.004987562112 | AW67: 0.004987562112 | AX67: 0.004987562112 | AY67: 0.004987562112 | AZ67: 0.004987562112 | BA67: 0.004987562112 | BB67: 0.004987562112 | BC67: 0.004987562112 | BD67: 0.004987562112 | BE67: 0.004987562112 | BF67: 0.004987562112 | BG67: 0.004987562112 | BH67: 0.004987562112 | BI67: 0.004987562112 | BJ67: 0.004987562112 | BK67: 0.004987562112 | BL67: 0.004987562112 | BM67: 0.004987562112 | BN67: 0.004987562112 | BO67: 0.004987562112 | BP67: 0.004987562112 | BQ67: 0.004987562112 | BR67: 0.004987562112 | BS67: 0.004987562112 | BT67: 0.004987562112 | BU67: 0.004987562112 | BV67: 0.004987562112 | BW67: 0.004987562112 | BX67: 0.004987562112 | BY67: 0.004987562112 | BZ67: =(1+BZ66)^(1/BZ5)-1 -> 0.004987562112 | CA67: 0.004987562112 | CB67: 0.004987562112 | CC67: 0.004987562112 | CD67: 0.004987562112 | CE67: 0.004987562112 | CF67: 0.004987562112 | CG67: 0.004987562112 | CH67: 0.004987562112 | CI67: 0.004987562112 | CJ67: 0.004987562112 | CK67: 0.004987562112 | CL67: 0.004987562112 | CM67: 0.004987562112 | CN67: 0.004987562112 | CO67: 0.004987562112 | CP67: 0.004987562112 | CQ67: 0.004987562112 | CR67: 0.004987562112 | CS67: 0.004987562112 | CT67: 0.004987562112 | CU67: 0.004987562112 | CV67: 0.004987562112 | CW67: 0.004987562112 | CX67: 0.004987562112 | CY67: 0.004987562112 | CZ67: 0.004987562112 | DA67: 0.004987562112 | DB67: 0.004987562112 | DC67: 0.004987562112 | DD67: 0.004987562112 | DE67: 0.004987562112 | DF67: =(1+DF66)^(1/DF5)-1 -> 0.004987562112 | DG67: 0.004987562112 | DH67: 0.004987562112 | DI67: 0.004987562112
C68: Inflation Index | E68: ='Master Scenario'!M40 -> 2 | F68: ='Operating Assumptions'!E133 -> 2017-07-01 | G68: Inflation | M68: 1 | N68: =M68*(1+N67*(N6>=$F$68)) -> 1 | O68: =N68*(1+O67*(O6>=$F$68)) -> 1 | P68: 1 | Q68: 1 | R68: 1 | S68: 1 | T68: 1 | U68: 1 | V68: 1.000829538 | W68: 1.001659764 | X68: 1.002490679 | Y68: 1.003322284 | Z68: 1.004154578 | AA68: 1.004987562 | AB68: 1.01 | AC68: 1.015037438 | AD68: 1.0201 | AE68: 1.025187812 | AF68: 1.030301 | AG68: 1.03543969 | AH68: 1.04060401 | AI68: 1.045794087 | AJ68: 1.05101005 | AK68: 1.056252028 | AL68: 1.061520151 | AM68: 1.066814548 | AN68: 1.072135352 | AO68: 1.077482694 | AP68: 1.082856706 | AQ68: 1.088257521 | AR68: 1.093685273 | AS68: 1.099140096 | AT68: 1.104622125 | AU68: 1.110131497 | AV68: 1.115668347 | AW68: 1.121232812 | AX68: 1.12682503 | AY68: 1.13244514 | AZ68: 1.13809328 | BA68: 1.143769591 | BB68: 1.149474213 | BC68: 1.155207287 | BD68: 1.160968955 | BE68: 1.16675936 | BF68: 1.172578645 | BG68: 1.178426954 | BH68: 1.184304431 | BI68: 1.190211223 | BJ68: 1.196147476 | BK68: 1.202113336 | BL68: 1.20810895 | BM68: 1.214134469 | BN68: 1.22019004 | BO68: 1.226275814 | BP68: 1.23239194 | BQ68: 1.238538572 | BR68: 1.24471586 | BS68: 1.250923957 | BT68: 1.257163018 | BU68: 1.263433197 | BV68: 1.269734649 | BW68: 1.276067529 | BX68: 1.282431995 | BY68: 1.288828204 | BZ68: 1.295256315 | CA68: =BZ68*(1+CA67*(CA6>=$F$68)) -> 1.301716486 | CB68: 1.308208878 | CC68: 1.314733651 | CD68: 1.321290967 | CE68: 1.327880988 | CF68: 1.334503877 | CG68: 1.341159798 | CH68: 1.347848915 | CI68: 1.354571396 | CJ68: 1.361327404 | CK68: 1.368117109 | CL68: 1.374940679 | CM68: 1.381798281 | CN68: 1.388690085 | CO68: 1.395616263 | CP68: 1.402576986 | CQ68: 1.409572426 | CR68: 1.416602756 | CS68: 1.42366815 | CT68: 1.430768784 | CU68: 1.437904832 | CV68: 1.445076471 | CW68: 1.45228388 | CX68: 1.459527236 | CY68: 1.466806719 | CZ68: 1.474122509 | DA68: 1.481474786 | DB68: 1.488863734 | DC68: 1.496289534 | DD68: 1.503752371 | DE68: 1.511252429 | DF68: 1.518789895 | DG68: 1.526364954 | DH68: 1.533977794 | DI68: 1.541628603
C69: Percent subject to Inflation | E69: % | F69: ='Operating Assumptions'!E125 -> 0 | G69: ='Operating Assumptions'!E124 -> FALSE | N69: =$F$69 -> 0 | O69: 0 | P69: 0 | Q69: 0 | R69: 0 | S69: 0 | T69: 0 | U69: 0 | V69: 0 | W69: 0 | X69: 0 | Y69: 0 | Z69: 0 | AA69: 0 | AB69: 0 | AC69: 0 | AD69: 0 | AE69: 0 | AF69: 0 | AG69: 0 | AH69: 0 | AI69: 0 | AJ69: 0 | AK69: 0 | AL69: 0 | AM69: 0 | AN69: 0 | AO69: 0 | AP69: 0 | AQ69: 0 | AR69: 0 | AS69: 0 | AT69: =$F$69 -> 0 | AU69: 0 | AV69: 0 | AW69: 0 | AX69: 0 | AY69: 0 | AZ69: 0 | BA69: 0 | BB69: 0 | BC69: 0 | BD69: 0 | BE69: 0 | BF69: 0 | BG69: 0 | BH69: 0 | BI69: 0 | BJ69: 0 | BK69: 0 | BL69: 0 | BM69: 0 | BN69: 0 | BO69: 0 | BP69: 0 | BQ69: 0 | BR69: 0 | BS69: 0 | BT69: 0 | BU69: 0 | BV69: 0 | BW69: 0 | BX69: 0 | BY69: 0 | BZ69: =$F$69 -> 0 | CA69: 0 | CB69: 0 | CC69: 0 | CD69: 0 | CE69: 0 | CF69: 0 | CG69: 0 | CH69: 0 | CI69: 0 | CJ69: 0 | CK69: 0 | CL69: 0 | CM69: 0 | CN69: 0 | CO69: 0 | CP69: 0 | CQ69: 0 | CR69: 0 | CS69: 0 | CT69: 0 | CU69: 0 | CV69: 0 | CW69: 0 | CX69: 0 | CY69: 0 | CZ69: 0 | DA69: 0 | DB69: 0 | DC69: 0 | DD69: 0 | DE69: 0 | DF69: =$F$69 -> 0 | DG69: 0 | DH69: 0 | DI69: 0
C71: Non-Inflated Portion | N71: =N65*(1-N69) -> 70.36898669 | O71: =O65*(1-O69) -> 70.36898669 | P71: 70.36898669 | Q71: 70.36898669 | R71: 70.36898669 | S71: 70.36898669 | T71: 70.36898669 | U71: 70.36898669 | V71: 70.36898669 | W71: 70.36898669 | X71: 70.36898669 | Y71: 70.36898669 | Z71: 70.36898669 | AA71: 70.36898669 | AB71: 70.36898669 | AC71: 70.36898669 | AD71: 70.36898669 | AE71: 70.36898669 | AF71: 70.36898669 | AG71: 70.36898669 | AH71: 70.36898669 | AI71: 70.36898669 | AJ71: 70.36898669 | AK71: 70.36898669 | AL71: 70.36898669 | AM71: 70.36898669 | AN71: 70.36898669 | AO71: 70.36898669 | AP71: 70.36898669 | AQ71: 70.36898669 | AR71: 70.36898669 | AS71: 70.36898669 | AT71: 70.36898669 | AU71: 70.36898669 | AV71: 70.36898669 | AW71: 70.36898669 | AX71: 70.36898669 | AY71: 70.36898669 | AZ71: 70.36898669 | BA71: 70.36898669 | BB71: 70.36898669 | BC71: 70.36898669 | BD71: 70.36898669 | BE71: 70.36898669 | BF71: 70.36898669 | BG71: 70.36898669 | BH71: 70.36898669 | BI71: 70.36898669 | BJ71: 70.36898669 | BK71: 70.36898669 | BL71: 70.36898669 | BM71: 70.36898669 | BN71: 70.36898669 | BO71: 70.36898669 | BP71: 70.36898669 | BQ71: 70.36898669 | BR71: 70.36898669 | BS71: 70.36898669 | BT71: 70.36898669 | BU71: 70.36898669 | BV71: 70.36898669 | BW71: 70.36898669 | BX71: 70.36898669 | BY71: 70.36898669 | BZ71: 70.36898669 | CA71: =CA65*(1-CA69) -> 70.36898669 | CB71: 70.36898669 | CC71: 70.36898669 | CD71: 70.36898669 | CE71: 70.36898669 | CF71: 70.36898669 | CG71: 70.36898669 | CH71: 70.36898669 | CI71: 70.36898669 | CJ71: 70.36898669 | CK71: 70.36898669 | CL71: 70.36898669 | CM71: 70.36898669 | CN71: 70.36898669 | CO71: 70.36898669 | CP71: 70.36898669 | CQ71: 70.36898669 | CR71: 70.36898669 | CS71: 70.36898669 | CT71: 70.36898669 | CU71: 70.36898669 | CV71: 70.36898669 | CW71: 70.36898669 | CX71: 70.36898669 | CY71: 70.36898669 | CZ71: 70.36898669 | DA71: 70.36898669 | DB71: 70.36898669 | DC71: 70.36898669 | DD71: 70.36898669 | DE71: 70.36898669 | DF71: 70.36898669 | DG71: 70.36898669 | DH71: 70.36898669 | DI71: 70.36898669
C72: Inflated Portion | N72: =N69*N68*N65 -> 0 | O72: =O69*O68*O65 -> 0 | P72: 0 | Q72: 0 | R72: 0 | S72: 0 | T72: 0 | U72: 0 | V72: 0 | W72: 0 | X72: 0 | Y72: 0 | Z72: 0 | AA72: 0 | AB72: 0 | AC72: 0 | AD72: 0 | AE72: 0 | AF72: 0 | AG72: 0 | AH72: 0 | AI72: 0 | AJ72: 0 | AK72: 0 | AL72: 0 | AM72: 0 | AN72: 0 | AO72: 0 | AP72: 0 | AQ72: 0 | AR72: 0 | AS72: 0 | AT72: 0 | AU72: 0 | AV72: 0 | AW72: 0 | AX72: 0 | AY72: 0 | AZ72: 0 | BA72: 0 | BB72: 0 | BC72: 0 | BD72: 0 | BE72: 0 | BF72: 0 | BG72: 0 | BH72: 0 | BI72: 0 | BJ72: 0 | BK72: 0 | BL72: 0 | BM72: 0 | BN72: 0 | BO72: 0 | BP72: 0 | BQ72: 0 | BR72: 0 | BS72: 0 | BT72: 0 | BU72: 0 | BV72: 0 | BW72: 0 | BX72: 0 | BY72: 0 | BZ72: 0 | CA72: =CA69*CA68*CA65 -> 0 | CB72: 0 | CC72: 0 | CD72: 0 | CE72: 0 | CF72: 0 | CG72: 0 | CH72: 0 | CI72: 0 | CJ72: 0 | CK72: 0 | CL72: 0 | CM72: 0 | CN72: 0 | CO72: 0 | CP72: 0 | CQ72: 0 | CR72: 0 | CS72: 0 | CT72: 0 | CU72: 0 | CV72: 0 | CW72: 0 | CX72: 0 | CY72: 0 | CZ72: 0 | DA72: 0 | DB72: 0 | DC72: 0 | DD72: 0 | DE72: 0 | DF72: 0 | DG72: 0 | DH72: 0 | DI72: 0
D74: Nominal FIT | E74: USD/MWH | G74: ='Operating Assumptions'!E124 -> FALSE | N74: =N71+N72 -> 70.36898669 | O74: =O71+O72 -> 70.36898669 | P74: 70.36898669 | Q74: 70.36898669 | R74: 70.36898669 | S74: 70.36898669 | T74: 70.36898669 | U74: 70.36898669 | V74: 70.36898669 | W74: 70.36898669 | X74: 70.36898669 | Y74: 70.36898669 | Z74: 70.36898669 | AA74: 70.36898669 | AB74: 70.36898669 | AC74: 70.36898669 | AD74: 70.36898669 | AE74: 70.36898669 | AF74: 70.36898669 | AG74: 70.36898669 | AH74: 70.36898669 | AI74: 70.36898669 | AJ74: 70.36898669 | AK74: 70.36898669 | AL74: 70.36898669 | AM74: 70.36898669 | AN74: 70.36898669 | AO74: 70.36898669 | AP74: 70.36898669 | AQ74: 70.36898669 | AR74: 70.36898669 | AS74: 70.36898669 | AT74: 70.36898669 | AU74: 70.36898669 | AV74: 70.36898669 | AW74: 70.36898669 | AX74: 70.36898669 | AY74: 70.36898669 | AZ74: 70.36898669 | BA74: 70.36898669 | BB74: 70.36898669 | BC74: 70.36898669 | BD74: 70.36898669 | BE74: 70.36898669 | BF74: 70.36898669 | BG74: 70.36898669 | BH74: 70.36898669 | BI74: 70.36898669 | BJ74: 70.36898669 | BK74: 70.36898669 | BL74: 70.36898669 | BM74: 70.36898669 | BN74: 70.36898669 | BO74: 70.36898669 | BP74: 70.36898669 | BQ74: 70.36898669 | BR74: 70.36898669 | BS74: 70.36898669 | BT74: 70.36898669 | BU74: 70.36898669 | BV74: 70.36898669 | BW74: 70.36898669 | BX74: 70.36898669 | BY74: 70.36898669 | BZ74: 70.36898669 | CA74: =CA71+CA72 -> 70.36898669 | CB74: 70.36898669 | CC74: 70.36898669 | CD74: 70.36898669 | CE74: 70.36898669 | CF74: 70.36898669 | CG74: 70.36898669 | CH74: 70.36898669 | CI74: 70.36898669 | CJ74: 70.36898669 | CK74: 70.36898669 | CL74: 70.36898669 | CM74: 70.36898669 | CN74: 70.36898669 | CO74: 70.36898669 | CP74: 70.36898669 | CQ74: 70.36898669 | CR74: 70.36898669 | CS74: 70.36898669 | CT74: 70.36898669 | CU74: 70.36898669 | CV74: 70.36898669 | CW74: 70.36898669 | CX74: 70.36898669 | CY74: 70.36898669 | CZ74: 70.36898669 | DA74: 70.36898669 | DB74: 70.36898669 | DC74: 70.36898669 | DD74: 70.36898669 | DE74: 70.36898669 | DF74: 70.36898669 | DG74: 70.36898669 | DH74: 70.36898669 | DI74: 70.36898669
C76: Real Merchant prices | E76: USD/MWH | F76: Start Inflation | N76: =LOOKUP(N8,'Operating Assumptions'!$H$136:$P$136,'Operating Assumptions'!$H$141:$P$141) -> 50 | O76: =LOOKUP(O8,'Operating Assumptions'!$H$136:$P$136,'Operating Assumptions'!$H$141:$P$141) -> 50 | P76: =LOOKUP(P8,'Operating Assumptions'!$H$136:$P$136,'Operating Assumptions'!$H$141:$P$141) -> 50 | Q76: =LOOKUP(Q8,'Operating Assumptions'!$H$136:$P$136,'Operating Assumptions'!$H$141:$P$141) -> 50 | R76: =LOOKUP(R8,'Operating Assumptions'!$H$136:$P$136,'Operating Assumptions'!$H$141:$P$141) -> 50 | S76: =LOOKUP(S8,'Operating Assumptions'!$H$136:$P$136,'Operating Assumptions'!$H$141:$P$141) -> 50 | T76: =LOOKUP(T8,'Operating Assumptions'!$H$136:$P$136,'Operating Assumptions'!$H$141:$P$141) -> 50 | U76: =LOOKUP(U8,'Operating Assumptions'!$H$136:$P$136,'Operating Assumptions'!$H$141:$P$141) -> 50 | V76: =LOOKUP(V8,'Operating Assumptions'!$H$136:$P$136,'Operating Assumptions'!$H$141:$P$141) -> 50 | W76: =LOOKUP(W8,'Operating Assumptions'!$H$136:$P$136,'Operating Assumptions'!$H$141:$P$141) -> 50 | X76: =LOOKUP(X8,'Operating Assumptions'!$H$136:$P$136,'Operating Assumptions'!$H$141:$P$141) -> 50 | Y76: =LOOKUP(Y8,'Operating Assumptions'!$H$136:$P$136,'Operating Assumptions'!$H$141:$P$141) -> 50 | Z76: =LOOKUP(Z8,'Operating Assumptions'!$H$136:$P$136,'Operating Assumptions'!$H$141:$P$141) -> 50 | AA76: =LOOKUP(AA8,'Operating Assumptions'!$H$136:$P$136,'Operating Assumptions'!$H$141:$P$141) -> 50 | AB76: =LOOKUP(AB8,'Operating Assumptions'!$H$136:$P$136,'Operating Assumptions'!$H$141:$P$141) -> 48 | AC76: =LOOKUP(AC8,'Operating Assumptions'!$H$136:$P$136,'Operating Assumptions'!$H$141:$P$141) -> 48 | AD76: =LOOKUP(AD8,'Operating Assumptions'!$H$136:$P$136,'Operating Assumptions'!$H$141:$P$141) -> 45 | AE76: =LOOKUP(AE8,'Operating Assumptions'!$H$136:$P$136,'Operating Assumptions'!$H$141:$P$141) -> 45 | AF76: =LOOKUP(AF8,'Operating Assumptions'!$H$136:$P$136,'Operating Assumptions'!$H$141:$P$141) -> 45 | AG76: =LOOKUP(AG8,'Operating Assumptions'!$H$136:$P$136,'Operating Assumptions'!$H$141:$P$141) -> 45 | AH76: =LOOKUP(AH8,'Operating Assumptions'!$H$136:$P$136,'Operating Assumptions'!$H$141:$P$141) -> 43 | AI76: =LOOKUP(AI8,'Operating Assumptions'!$H$136:$P$136,'Operating Assumptions'!$H$141:$P$141) -> 43 | AJ76: =LOOKUP(AJ8,'Operating Assumptions'!$H$136:$P$136,'Operating Assumptions'!$H$141:$P$141) -> 43 | AK76: =LOOKUP(AK8,'Operating Assumptions'!$H$136:$P$136,'Operating Assumptions'!$H$141:$P$141) -> 43 | AL76: =LOOKUP(AL8,'Operating Assumptions'!$H$136:$P$136,'Operating Assumptions'!$H$141:$P$141) -> 40 | AM76: =LOOKUP(AM8,'Operating Assumptions'!$H$136:$P$136,'Operating Assumptions'!$H$141:$P$141) -> 40 | AN76: =LOOKUP(AN8,'Operating Assumptions'!$H$136:$P$136,'Operating Assumptions'!$H$141:$P$141) -> 40 | AO76: =LOOKUP(AO8,'Operating Assumptions'!$H$136:$P$136,'Operating Assumptions'!$H$141:$P$141) -> 40 | AP76: =LOOKUP(AP8,'Operating Assumptions'!$H$136:$P$136,'Operating Assumptions'!$H$141:$P$141) -> 40 | AQ76: =LOOKUP(AQ8,'Operating Assumptions'!$H$136:$P$136,'Operating Assumptions'!$H$141:$P$141) -> 40 | AR76: =LOOKUP(AR8,'Operating Assumptions'!$H$136:$P$136,'Operating Assumptions'!$H$141:$P$141) -> 40 | AS76: =LOOKUP(AS8,'Operating Assumptions'!$H$136:$P$136,'Operating Assumptions'!$H$141:$P$141) -> 40 | AT76: =LOOKUP(AT8,'Operating Assumptions'!$H$136:$P$136,'Operating Assumptions'!$H$141:$P$141) -> 40 | AU76: =LOOKUP(AU8,'Operating Assumptions'!$H$136:$P$136,'Operating Assumptions'!$H$141:$P$141) -> 40 | AV76: =LOOKUP(AV8,'Operating Assumptions'!$H$136:$P$136,'Operating Assumptions'!$H$141:$P$141) -> 40 | AW76: =LOOKUP(AW8,'Operating Assumptions'!$H$136:$P$136,'Operating Assumptions'!$H$141:$P$141) -> 40 | AX76: =LOOKUP(AX8,'Operating Assumptions'!$H$136:$P$136,'Operating Assumptions'!$H$141:$P$141) -> 40 | AY76: =LOOKUP(AY8,'Operating Assumptions'!$H$136:$P$136,'Operating Assumptions'!$H$141:$P$141) -> 40 | AZ76: =LOOKUP(AZ8,'Operating Assumptions'!$H$136:$P$136,'Operating Assumptions'!$H$141:$P$141) -> 40 | BA76: =LOOKUP(BA8,'Operating Assumptions'!$H$136:$P$136,'Operating Assumptions'!$H$141:$P$141) -> 40 | BB76: =LOOKUP(BB8,'Operating Assumptions'!$H$136:$P$136,'Operating Assumptions'!$H$141:$P$141) -> 40 | BC76: =LOOKUP(BC8,'Operating Assumptions'!$H$136:$P$136,'Operating Assumptions'!$H$141:$P$141) -> 40 | BD76: =LOOKUP(BD8,'Operating Assumptions'!$H$136:$P$136,'Operating Assumptions'!$H$141:$P$141) -> 40 | BE76: =LOOKUP(BE8,'Operating Assumptions'!$H$136:$P$136,'Operating Assumptions'!$H$141:$P$141) -> 40 | BF76: =LOOKUP(BF8,'Operating Assumptions'!$H$136:$P$136,'Operating Assumptions'!$H$141:$P$141) -> 40 | BG76: =LOOKUP(BG8,'Operating Assumptions'!$H$136:$P$136,'Operating Assumptions'!$H$141:$P$141) -> 40 | BH76: =LOOKUP(BH8,'Operating Assumptions'!$H$136:$P$136,'Operating Assumptions'!$H$141:$P$141) -> 40 | BI76: =LOOKUP(BI8,'Operating Assumptions'!$H$136:$P$136,'Operating Assumptions'!$H$141:$P$141) -> 40 | BJ76: =LOOKUP(BJ8,'Operating Assumptions'!$H$136:$P$136,'Operating Assumptions'!$H$141:$P$141) -> 40 | BK76: =LOOKUP(BK8,'Operating Assumptions'!$H$136:$P$136,'Operating Assumptions'!$H$141:$P$141) -> 40 | BL76: =LOOKUP(BL8,'Operating Assumptions'!$H$136:$P$136,'Operating Assumptions'!$H$141:$P$141) -> 40 | BM76: =LOOKUP(BM8,'Operating Assumptions'!$H$136:$P$136,'Operating Assumptions'!$H$141:$P$141) -> 40 | BN76: =LOOKUP(BN8,'Operating Assumptions'!$H$136:$P$136,'Operating Assumptions'!$H$141:$P$141) -> 40 | BO76: =LOOKUP(BO8,'Operating Assumptions'!$H$136:$P$136,'Operating Assumptions'!$H$141:$P$141) -> 40 | BP76: =LOOKUP(BP8,'Operating Assumptions'!$H$136:$P$136,'Operating Assumptions'!$H$141:$P$141) -> 40 | BQ76: =LOOKUP(BQ8,'Operating Assumptions'!$H$136:$P$136,'Operating Assumptions'!$H$141:$P$141) -> 40 | BR76: =LOOKUP(BR8,'Operating Assumptions'!$H$136:$P$136,'Operating Assumptions'!$H$141:$P$141) -> 40 | BS76: =LOOKUP(BS8,'Operating Assumptions'!$H$136:$P$136,'Operating Assumptions'!$H$141:$P$141) -> 40 | BT76: =LOOKUP(BT8,'Operating Assumptions'!$H$136:$P$136,'Operating Assumptions'!$H$141:$P$141) -> 40 | BU76: =LOOKUP(BU8,'Operating Assumptions'!$H$136:$P$136,'Operating Assumptions'!$H$141:$P$141) -> 40 | BV76: =LOOKUP(BV8,'Operating Assumptions'!$H$136:$P$136,'Operating Assumptions'!$H$141:$P$141) -> 40 | BW76: =LOOKUP(BW8,'Operating Assumptions'!$H$136:$P$136,'Operating Assumptions'!$H$141:$P$141) -> 40 | BX76: =LOOKUP(BX8,'Operating Assumptions'!$H$136:$P$136,'Operating Assumptions'!$H$141:$P$141) -> 40 | BY76: =LOOKUP(BY8,'Operating Assumptions'!$H$136:$P$136,'Operating Assumptions'!$H$141:$P$141) -> 40 | BZ76: =LOOKUP(BZ8,'Operating Assumptions'!$H$136:$P$136,'Operating Assumptions'!$H$141:$P$141) -> 40 | CA76: =LOOKUP(CA8,'Operating Assumptions'!$H$136:$P$136,'Operating Assumptions'!$H$141:$P$141) -> 40 | CB76: =LOOKUP(CB8,'Operating Assumptions'!$H$136:$P$136,'Operating Assumptions'!$H$141:$P$141) -> 40 | CC76: =LOOKUP(CC8,'Operating Assumptions'!$H$136:$P$136,'Operating Assumptions'!$H$141:$P$141) -> 40 | CD76: =LOOKUP(CD8,'Operating Assumptions'!$H$136:$P$136,'Operating Assumptions'!$H$141:$P$141) -> 40 | CE76: =LOOKUP(CE8,'Operating Assumptions'!$H$136:$P$136,'Operating Assumptions'!$H$141:$P$141) -> 40 | CF76: =LOOKUP(CF8,'Operating Assumptions'!$H$136:$P$136,'Operating Assumptions'!$H$141:$P$141) -> 40 | CG76: =LOOKUP(CG8,'Operating Assumptions'!$H$136:$P$136,'Operating Assumptions'!$H$141:$P$141) -> 40 | CH76: =LOOKUP(CH8,'Operating Assumptions'!$H$136:$P$136,'Operating Assumptions'!$H$141:$P$141) -> 40 | CI76: =LOOKUP(CI8,'Operating Assumptions'!$H$136:$P$136,'Operating Assumptions'!$H$141:$P$141) -> 40 | CJ76: =LOOKUP(CJ8,'Operating Assumptions'!$H$136:$P$136,'Operating Assumptions'!$H$141:$P$141) -> 40 | CK76: =LOOKUP(CK8,'Operating Assumptions'!$H$136:$P$136,'Operating Assumptions'!$H$141:$P$141) -> 40 | CL76: =LOOKUP(CL8,'Operating Assumptions'!$H$136:$P$136,'Operating Assumptions'!$H$141:$P$141) -> 40 | CM76: =LOOKUP(CM8,'Operating Assumptions'!$H$136:$P$136,'Operating Assumptions'!$H$141:$P$141) -> 40 | CN76: =LOOKUP(CN8,'Operating Assumptions'!$H$136:$P$136,'Operating Assumptions'!$H$141:$P$141) -> 40 | CO76: =LOOKUP(CO8,'Operating Assumptions'!$H$136:$P$136,'Operating Assumptions'!$H$141:$P$141) -> 40 | CP76: =LOOKUP(CP8,'Operating Assumptions'!$H$136:$P$136,'Operating Assumptions'!$H$141:$P$141) -> 40 | CQ76: =LOOKUP(CQ8,'Operating Assumptions'!$H$136:$P$136,'Operating Assumptions'!$H$141:$P$141) -> 40 | CR76: =LOOKUP(CR8,'Operating Assumptions'!$H$136:$P$136,'Operating Assumptions'!$H$141:$P$141) -> 40 | CS76: =LOOKUP(CS8,'Operating Assumptions'!$H$136:$P$136,'Operating Assumptions'!$H$141:$P$141) -> 40 | CT76: =LOOKUP(CT8,'Operating Assumptions'!$H$136:$P$136,'Operating Assumptions'!$H$141:$P$141) -> 40 | CU76: =LOOKUP(CU8,'Operating Assumptions'!$H$136:$P$136,'Operating Assumptions'!$H$141:$P$141) -> 40 | CV76: =LOOKUP(CV8,'Operating Assumptions'!$H$136:$P$136,'Operating Assumptions'!$H$141:$P$141) -> 40 | CW76: =LOOKUP(CW8,'Operating Assumptions'!$H$136:$P$136,'Operating Assumptions'!$H$141:$P$141) -> 40 | CX76: =LOOKUP(CX8,'Operating Assumptions'!$H$136:$P$136,'Operating Assumptions'!$H$141:$P$141) -> 40 | CY76: =LOOKUP(CY8,'Operating Assumptions'!$H$136:$P$136,'Operating Assumptions'!$H$141:$P$141) -> 40 | CZ76: =LOOKUP(CZ8,'Operating Assumptions'!$H$136:$P$136,'Operating Assumptions'!$H$141:$P$141) -> 40 | DA76: =LOOKUP(DA8,'Operating Assumptions'!$H$136:$P$136,'Operating Assumptions'!$H$141:$P$141) -> 40 | DB76: =LOOKUP(DB8,'Operating Assumptions'!$H$136:$P$136,'Operating Assumptions'!$H$141:$P$141) -> 40 | DC76: =LOOKUP(DC8,'Operating Assumptions'!$H$136:$P$136,'Operating Assumptions'!$H$141:$P$141) -> 40 | DD76: =LOOKUP(DD8,'Operating Assumptions'!$H$136:$P$136,'Operating Assumptions'!$H$141:$P$141) -> 40 | DE76: =LOOKUP(DE8,'Operating Assumptions'!$H$136:$P$136,'Operating Assumptions'!$H$141:$P$141) -> 40 | DF76: =LOOKUP(DF8,'Operating Assumptions'!$H$136:$P$136,'Operating Assumptions'!$H$141:$P$141) -> 40 | DG76: =LOOKUP(DG8,'Operating Assumptions'!$H$136:$P$136,'Operating Assumptions'!$H$141:$P$141) -> 40 | DH76: =LOOKUP(DH8,'Operating Assumptions'!$H$136:$P$136,'Operating Assumptions'!$H$141:$P$141) -> 40 | DI76: =LOOKUP(DI8,'Operating Assumptions'!$H$136:$P$136,'Operating Assumptions'!$H$141:$P$141) -> 40
C77: Periodic Inflation rate | E77: Percent | F77: ='Operating Assumptions'!E142 -> 2011-01-01 | N77: =N67 -> 0.0008295381143 | O77: 0.0008295381143 | P77: 0.0008295381143 | Q77: 0.0008295381143 | R77: 0.0008295381143 | S77: 0.0008295381143 | T77: 0.0008295381143 | U77: 0.0008295381143 | V77: 0.0008295381143 | W77: 0.0008295381143 | X77: 0.0008295381143 | Y77: 0.0008295381143 | Z77: 0.0008295381143 | AA77: 0.0008295381143 | AB77: 0.004987562112 | AC77: 0.004987562112 | AD77: 0.004987562112 | AE77: 0.004987562112 | AF77: 0.004987562112 | AG77: 0.004987562112 | AH77: 0.004987562112 | AI77: 0.004987562112 | AJ77: 0.004987562112 | AK77: 0.004987562112 | AL77: 0.004987562112 | AM77: 0.004987562112 | AN77: 0.004987562112 | AO77: 0.004987562112 | AP77: 0.004987562112 | AQ77: 0.004987562112 | AR77: 0.004987562112 | AS77: 0.004987562112 | AT77: =AT67 -> 0.004987562112 | AU77: 0.004987562112 | AV77: 0.004987562112 | AW77: 0.004987562112 | AX77: 0.004987562112 | AY77: 0.004987562112 | AZ77: 0.004987562112 | BA77: 0.004987562112 | BB77: 0.004987562112 | BC77: 0.004987562112 | BD77: 0.004987562112 | BE77: 0.004987562112 | BF77: 0.004987562112 | BG77: 0.004987562112 | BH77: 0.004987562112 | BI77: 0.004987562112 | BJ77: 0.004987562112 | BK77: 0.004987562112 | BL77: 0.004987562112 | BM77: 0.004987562112 | BN77: 0.004987562112 | BO77: 0.004987562112 | BP77: 0.004987562112 | BQ77: 0.004987562112 | BR77: 0.004987562112 | BS77: 0.004987562112 | BT77: 0.004987562112 | BU77: 0.004987562112 | BV77: 0.004987562112 | BW77: 0.004987562112 | BX77: 0.004987562112 | BY77: 0.004987562112 | BZ77: =BZ67 -> 0.004987562112 | CA77: 0.004987562112 | CB77: 0.004987562112 | CC77: 0.004987562112 | CD77: 0.004987562112 | CE77: 0.004987562112 | CF77: 0.004987562112 | CG77: 0.004987562112 | CH77: 0.004987562112 | CI77: 0.004987562112 | CJ77: 0.004987562112 | CK77: 0.004987562112 | CL77: 0.004987562112 | CM77: 0.004987562112 | CN77: 0.004987562112 | CO77: 0.004987562112 | CP77: 0.004987562112 | CQ77: 0.004987562112 | CR77: 0.004987562112 | CS77: 0.004987562112 | CT77: 0.004987562112 | CU77: 0.004987562112 | CV77: 0.004987562112 | CW77: 0.004987562112 | CX77: 0.004987562112 | CY77: 0.004987562112 | CZ77: 0.004987562112 | DA77: 0.004987562112 | DB77: 0.004987562112 | DC77: 0.004987562112 | DD77: 0.004987562112 | DE77: 0.004987562112 | DF77: =DF67 -> 0.004987562112 | DG77: 0.004987562112 | DH77: 0.004987562112 | DI77: 0.004987562112
C78: Inflation Index | E78: Index | M78: 1 | N78: =M78*(1+N77*(N6>=$F$77)) -> 1.000829538 | O78: 1.001659764 | P78: 1.002490679 | Q78: 1.003322284 | R78: 1.004154578 | S78: 1.004987562 | T78: 1.005821238 | U78: 1.006655605 | V78: 1.007490664 | W78: 1.008326416 | X78: 1.009162861 | Y78: 1.01 | Z78: 1.010837833 | AA78: 1.011676362 | AB78: 1.016722161 | AC78: 1.021793126 | AD78: 1.026889382 | AE78: 1.032011057 | AF78: 1.037158276 | AG78: 1.042331167 | AH78: 1.047529859 | AI78: 1.052754479 | AJ78: 1.058005157 | AK78: 1.063282024 | AL78: 1.068585209 | AM78: 1.073914844 | AN78: 1.079271061 | AO78: 1.084653993 | AP78: 1.090063772 | AQ78: 1.095500533 | AR78: 1.100964409 | AS78: 1.106455538 | AT78: =AS78*(1+AT77*(AT6>=$F$77)) -> 1.111974054 | AU78: 1.117520093 | AV78: 1.123093794 | AW78: 1.128695294 | AX78: 1.134324732 | AY78: 1.139982247 | AZ78: 1.145667979 | BA78: 1.15138207 | BB78: 1.157124659 | BC78: 1.16289589 | BD78: 1.168695906 | BE78: 1.174524849 | BF78: 1.180382865 | BG78: 1.186270098 | BH78: 1.192186693 | BI78: 1.198132799 | BJ78: 1.20410856 | BK78: 1.210114127 | BL78: 1.216149646 | BM78: 1.222215268 | BN78: 1.228311142 | BO78: 1.234437421 | BP78: 1.240594254 | BQ78: 1.246781795 | BR78: 1.253000196 | BS78: 1.259249613 | BT78: 1.265530198 | BU78: 1.271842109 | BV78: 1.2781855 | BW78: 1.28456053 | BX78: 1.290967355 | BY78: 1.297406135 | BZ78: =BY78*(1+BZ77*(BZ6>=$F$77)) -> 1.303877029 | CA78: 1.310380197 | CB78: 1.316915799 | CC78: 1.323483999 | CD78: 1.330084957 | CE78: 1.336718839 | CF78: 1.343385807 | CG78: 1.350086027 | CH78: 1.356819665 | CI78: 1.363586887 | CJ78: 1.370387861 | CK78: 1.377222756 | CL78: 1.38409174 | CM78: 1.390994984 | CN78: 1.397932658 | CO78: 1.404904933 | CP78: 1.411911984 | CQ78: 1.418953983 | CR78: 1.426031104 | CS78: 1.433143523 | CT78: 1.440291415 | CU78: 1.447474958 | CV78: 1.454694329 | CW78: 1.461949707 | CX78: 1.469241272 | CY78: 1.476569205 | CZ78: 1.483933685 | DA78: 1.491334897 | DB78: 1.498773022 | DC78: 1.506248246 | DD78: 1.513760752 | DE78: 1.521310728 | DF78: =DE78*(1+DF77*(DF6>=$F$77)) -> 1.52889836 | DG78: 1.536523835 | DH78: 1.544187343 | DI78: 1.551889074
C79: Nominal Merchant prices | E79: USD/MWH | N79: =N76*N78 -> 50.04147691 | O79: =O76*O78 -> 50.08298822 | P79: 50.12453397 | Q79: 50.16611418 | R79: 50.20772888 | S79: 50.24937811 | T79: 50.29106188 | U79: 50.33278023 | V79: 50.37453319 | W79: 50.41632079 | X79: 50.45814305 | Y79: 50.5 | Z79: 50.54189167 | AA79: 50.5838181 | AB79: 48.80266371 | AC79: 49.04607003 | AD79: 46.2100222 | AE79: 46.44049756 | AF79: 46.67212243 | AG79: 46.90490254 | AH79: 45.04378393 | AI79: 45.2684426 | AJ79: 45.49422177 | AK79: 45.72112703 | AL79: 42.74340836 | AM79: 42.95659377 | AN79: 43.17084245 | AO79: 43.3861597 | AP79: 43.60255087 | AQ79: 43.8200213 | AR79: 44.03857638 | AS79: 44.25822151 | AT79: 44.47896214 | AU79: 44.70080373 | AV79: 44.92375176 | AW79: 45.14781177 | AX79: 45.37298928 | AY79: 45.59928988 | AZ79: 45.82671917 | BA79: 46.05528278 | BB79: 46.28498637 | BC79: 46.51583561 | BD79: 46.74783623 | BE79: 46.98099397 | BF79: 47.21531459 | BG79: 47.45080391 | BH79: 47.68746774 | BI79: 47.92531195 | BJ79: 48.16434242 | BK79: 48.40456507 | BL79: 48.64598584 | BM79: 48.88861072 | BN79: 49.1324457 | BO79: 49.37749682 | BP79: 49.62377016 | BQ79: 49.87127179 | BR79: 50.12000786 | BS79: 50.36998451 | BT79: 50.62120794 | BU79: 50.87368435 | BV79: 51.12742001 | BW79: 51.3824212 | BX79: 51.63869421 | BY79: 51.89624541 | BZ79: 52.15508116 | CA79: =CA76*CA78 -> 52.41520786 | CB79: 52.67663197 | CC79: 52.93935994 | CD79: 53.20339829 | CE79: 53.46875354 | CF79: 53.73543227 | CG79: 54.00344108 | CH79: 54.27278659 | CI79: 54.54347549 | CJ79: 54.81551446 | CK79: 55.08891024 | CL79: 55.3636696 | CM79: 55.63979935 | CN79: 55.9173063 | CO79: 56.19619734 | CP79: 56.47647936 | CQ79: 56.75815931 | CR79: 57.04124416 | CS79: 57.32574091 | CT79: 57.6116566 | CU79: 57.89899831 | CV79: 58.18777316 | CW79: 58.4779883 | CX79: 58.7696509 | CY79: 59.06276818 | CZ79: 59.35734741 | DA79: 59.65339586 | DB79: 59.95092088 | DC79: 60.24992982 | DD79: 60.55043009 | DE79: 60.85242912 | DF79: 61.15593439 | DG79: 61.46095341 | DH79: 61.76749373 | DI79: 62.07556294
C81: Total Price | E81: USD/MWH | N81: =N74 -> 70.36898669 | O81: =O74 -> 70.36898669 | P81: 70.36898669 | Q81: 70.36898669 | R81: 70.36898669 | S81: 70.36898669 | T81: 70.36898669 | U81: 70.36898669 | V81: 70.36898669 | W81: 70.36898669 | X81: 70.36898669 | Y81: 70.36898669 | Z81: 70.36898669 | AA81: 70.36898669 | AB81: 70.36898669 | AC81: 70.36898669 | AD81: 70.36898669 | AE81: 70.36898669 | AF81: 70.36898669 | AG81: 70.36898669 | AH81: 70.36898669 | AI81: 70.36898669 | AJ81: 70.36898669 | AK81: 70.36898669 | AL81: 70.36898669 | AM81: 70.36898669 | AN81: 70.36898669 | AO81: 70.36898669 | AP81: 70.36898669 | AQ81: 70.36898669 | AR81: 70.36898669 | AS81: 70.36898669 | AT81: 70.36898669 | AU81: 70.36898669 | AV81: 70.36898669 | AW81: 70.36898669 | AX81: 70.36898669 | AY81: 70.36898669 | AZ81: 70.36898669 | BA81: 70.36898669 | BB81: 70.36898669 | BC81: 70.36898669 | BD81: 70.36898669 | BE81: 70.36898669 | BF81: 70.36898669 | BG81: 70.36898669 | BH81: 70.36898669 | BI81: 70.36898669 | BJ81: 70.36898669 | BK81: 70.36898669 | BL81: 70.36898669 | BM81: 70.36898669 | BN81: 70.36898669 | BO81: 70.36898669 | BP81: 70.36898669 | BQ81: 70.36898669 | BR81: 70.36898669 | BS81: 70.36898669 | BT81: 70.36898669 | BU81: 70.36898669 | BV81: 70.36898669 | BW81: 70.36898669 | BX81: 70.36898669 | BY81: 70.36898669 | BZ81: 70.36898669 | CA81: =CA74 -> 70.36898669 | CB81: 70.36898669 | CC81: 70.36898669 | CD81: 70.36898669 | CE81: 70.36898669 | CF81: 70.36898669 | CG81: 70.36898669 | CH81: 70.36898669 | CI81: 70.36898669 | CJ81: 70.36898669 | CK81: 70.36898669 | CL81: 70.36898669 | CM81: 70.36898669 | CN81: 70.36898669 | CO81: 70.36898669 | CP81: 70.36898669 | CQ81: 70.36898669 | CR81: 70.36898669 | CS81: 70.36898669 | CT81: 70.36898669 | CU81: 70.36898669 | CV81: 70.36898669 | CW81: 70.36898669 | CX81: 70.36898669 | CY81: 70.36898669 | CZ81: 70.36898669 | DA81: 70.36898669 | DB81: 70.36898669 | DC81: 70.36898669 | DD81: 70.36898669 | DE81: 70.36898669 | DF81: 70.36898669 | DG81: 70.36898669 | DH81: 70.36898669 | DI81: 70.36898669
D82: Revenues | E82: USD 000's | N82: =N81*N56/1000000 -> 0 | O82: 0 | P82: 0 | Q82: 0 | R82: 0 | S82: 0 | T82: 0 | U82: 0 | V82: 0 | W82: 0 | X82: 0 | Y82: 0 | Z82: 1.992304452 | AA82: 4.908020056 | AB82: 32.35489057 | AC82: 35.32492762 | AD82: 32.22572933 | AE82: 35.18390995 | AF82: 32.0970837 | AG82: 35.04345522 | AH82: 31.96895163 | AI82: 34.90356119 | AJ82: 31.84133107 | AK82: 34.76422561 | AL82: 31.71421996 | AM82: 34.62544627 | AN82: 31.58761629 | AO82: 34.48722094 | AP82: 31.46151802 | AQ82: 34.3495474 | AR82: 31.33592314 | AS82: 34.21242346 | AT82: =AT81*AT56/1000000 -> 31.21082964 | AU82: 34.07584692 | AV82: 31.08623551 | AW82: 33.93981559 | AX82: 30.96213876 | AY82: 33.80432731 | AZ82: 30.83853741 | BA82: 33.66937989 | BB82: 30.71542947 | BC82: 33.53497119 | BD82: 30.59281299 | BE82: 33.40109905 | BF82: 30.47068599 | BG82: 33.26776133 | BH82: 30.34904652 | BI82: 33.1349559 | BJ82: 30.22789265 | BK82: 33.00268062 | BL82: 30.10722242 | BM82: 32.8709334 | BN82: 29.9870339 | BO82: 32.73971211 | BP82: 29.86732519 | BQ82: 32.60901465 | BR82: 29.74809435 | BS82: 32.47883895 | BT82: 29.62933948 | BU82: 32.3491829 | BV82: 29.51105868 | BW82: 32.22004445 | BX82: 29.39325007 | BY82: 32.09142152 | BZ82: =BZ81*BZ56/1000000 -> 0 | CA82: 0 | CB82: 0 | CC82: 0 | CD82: 0 | CE82: 0 | CF82: 0 | CG82: 0 | CH82: 0 | CI82: 0 | CJ82: 0 | CK82: 0 | CL82: 0 | CM82: 0 | CN82: 0 | CO82: 0 | CP82: 0 | CQ82: 0 | CR82: 0 | CS82: 0 | CT82: 0 | CU82: 0 | CV82: 0 | CW82: 0 | CX82: 0 | CY82: 0 | CZ82: 0 | DA82: 0 | DB82: 0 | DC82: 0 | DD82: 0 | DE82: 0 | DF82: =DF81*DF56/1000000 -> 0 | DG82: 0 | DH82: 0 | DI82: 0
C84: Nominal LCOE | E84: Discount Rate | F84: ='Operating Assumptions'!E167 -> 0.1 | G84: =XNPV(F84,N82:DI82,N7:DI7)/XNPV(F84,N56:DI56,N7:DI7)*1000000 -> 70.36898669
C85: Real LOCE | E85: Discount Rate | F85: ='Operating Assumptions'!E168 -> 0.08108108108 | G85: =XNPV(F84,N82:DI82,N7:DI7)/XNPV(F85,N56:DI56,N7:DI7)*1000000 -> 59.77696962
B87: Operating Expenses
C88: O&M costs - Real | E88: USD/kW/Yr | F88: ='Operating Assumptions'!E155 -> 16.28695652 | N88: =$F$88 -> 16.28695652 | O88: 16.28695652 | P88: 16.28695652 | Q88: 16.28695652 | R88: 16.28695652 | S88: 16.28695652 | T88: 16.28695652 | U88: 16.28695652 | V88: 16.28695652 | W88: 16.28695652 | X88: 16.28695652 | Y88: 16.28695652 | Z88: 16.28695652 | AA88: 16.28695652 | AB88: 16.28695652 | AC88: 16.28695652 | AD88: 16.28695652 | AE88: 16.28695652 | AF88: 16.28695652 | AG88: 16.28695652 | AH88: 16.28695652 | AI88: 16.28695652 | AJ88: 16.28695652 | AK88: 16.28695652 | AL88: 16.28695652 | AM88: 16.28695652 | AN88: 16.28695652 | AO88: 16.28695652 | AP88: 16.28695652 | AQ88: 16.28695652 | AR88: 16.28695652 | AS88: 16.28695652 | AT88: =$F$88 -> 16.28695652 | AU88: 16.28695652 | AV88: 16.28695652 | AW88: 16.28695652 | AX88: 16.28695652 | AY88: 16.28695652 | AZ88: 16.28695652 | BA88: 16.28695652 | BB88: 16.28695652 | BC88: 16.28695652 | BD88: 16.28695652 | BE88: 16.28695652 | BF88: 16.28695652 | BG88: 16.28695652 | BH88: 16.28695652 | BI88: 16.28695652 | BJ88: 16.28695652 | BK88: 16.28695652 | BL88: 16.28695652 | BM88: 16.28695652 | BN88: 16.28695652 | BO88: 16.28695652 | BP88: 16.28695652 | BQ88: 16.28695652 | BR88: 16.28695652 | BS88: 16.28695652 | BT88: 16.28695652 | BU88: 16.28695652 | BV88: 16.28695652 | BW88: 16.28695652 | BX88: 16.28695652 | BY88: 16.28695652 | BZ88: =$F$88 -> 16.28695652 | CA88: 16.28695652 | CB88: 16.28695652 | CC88: 16.28695652 | CD88: 16.28695652 | CE88: 16.28695652 | CF88: 16.28695652 | CG88: 16.28695652 | CH88: 16.28695652 | CI88: 16.28695652 | CJ88: 16.28695652 | CK88: 16.28695652 | CL88: 16.28695652 | CM88: 16.28695652 | CN88: 16.28695652 | CO88: 16.28695652 | CP88: 16.28695652 | CQ88: 16.28695652 | CR88: 16.28695652 | CS88: 16.28695652 | CT88: 16.28695652 | CU88: 16.28695652 | CV88: 16.28695652 | CW88: 16.28695652 | CX88: 16.28695652 | CY88: 16.28695652 | CZ88: 16.28695652 | DA88: 16.28695652 | DB88: 16.28695652 | DC88: 16.28695652 | DD88: 16.28695652 | DE88: 16.28695652 | DF88: =$F$88 -> 16.28695652 | DG88: 16.28695652 | DH88: 16.28695652 | DI88: 16.28695652
C90: Annual Inflation Rate | N90: =LOOKUP(N8,'Operating Assumptions'!$H$145:$P$145,'Operating Assumptions'!$H$150:$P$150) -> 0.01 | O90: =LOOKUP(O8,'Operating Assumptions'!$H$145:$P$145,'Operating Assumptions'!$H$150:$P$150) -> 0.01 | P90: =LOOKUP(P8,'Operating Assumptions'!$H$145:$P$145,'Operating Assumptions'!$H$150:$P$150) -> 0.015 | Q90: =LOOKUP(Q8,'Operating Assumptions'!$H$145:$P$145,'Operating Assumptions'!$H$150:$P$150) -> 0.015 | R90: =LOOKUP(R8,'Operating Assumptions'!$H$145:$P$145,'Operating Assumptions'!$H$150:$P$150) -> 0.015 | S90: =LOOKUP(S8,'Operating Assumptions'!$H$145:$P$145,'Operating Assumptions'!$H$150:$P$150) -> 0.015 | T90: =LOOKUP(T8,'Operating Assumptions'!$H$145:$P$145,'Operating Assumptions'!$H$150:$P$150) -> 0.015 | U90: =LOOKUP(U8,'Operating Assumptions'!$H$145:$P$145,'Operating Assumptions'!$H$150:$P$150) -> 0.015 | V90: =LOOKUP(V8,'Operating Assumptions'!$H$145:$P$145,'Operating Assumptions'!$H$150:$P$150) -> 0.015 | W90: =LOOKUP(W8,'Operating Assumptions'!$H$145:$P$145,'Operating Assumptions'!$H$150:$P$150) -> 0.015 | X90: =LOOKUP(X8,'Operating Assumptions'!$H$145:$P$145,'Operating Assumptions'!$H$150:$P$150) -> 0.015 | Y90: =LOOKUP(Y8,'Operating Assumptions'!$H$145:$P$145,'Operating Assumptions'!$H$150:$P$150) -> 0.015 | Z90: =LOOKUP(Z8,'Operating Assumptions'!$H$145:$P$145,'Operating Assumptions'!$H$150:$P$150) -> 0.015 | AA90: =LOOKUP(AA8,'Operating Assumptions'!$H$145:$P$145,'Operating Assumptions'!$H$150:$P$150) -> 0.015 | AB90: =LOOKUP(AB8,'Operating Assumptions'!$H$145:$P$145,'Operating Assumptions'!$H$150:$P$150) -> 0.0175 | AC90: =LOOKUP(AC8,'Operating Assumptions'!$H$145:$P$145,'Operating Assumptions'!$H$150:$P$150) -> 0.0175 | AD90: =LOOKUP(AD8,'Operating Assumptions'!$H$145:$P$145,'Operating Assumptions'!$H$150:$P$150) -> 0.02 | AE90: =LOOKUP(AE8,'Operating Assumptions'!$H$145:$P$145,'Operating Assumptions'!$H$150:$P$150) -> 0.02 | AF90: =LOOKUP(AF8,'Operating Assumptions'!$H$145:$P$145,'Operating Assumptions'!$H$150:$P$150) -> 0.015 | AG90: =LOOKUP(AG8,'Operating Assumptions'!$H$145:$P$145,'Operating Assumptions'!$H$150:$P$150) -> 0.015 | AH90: =LOOKUP(AH8,'Operating Assumptions'!$H$145:$P$145,'Operating Assumptions'!$H$150:$P$150) -> 0.02 | AI90: =LOOKUP(AI8,'Operating Assumptions'!$H$145:$P$145,'Operating Assumptions'!$H$150:$P$150) -> 0.02 | AJ90: =LOOKUP(AJ8,'Operating Assumptions'!$H$145:$P$145,'Operating Assumptions'!$H$150:$P$150) -> 0.02 | AK90: =LOOKUP(AK8,'Operating Assumptions'!$H$145:$P$145,'Operating Assumptions'!$H$150:$P$150) -> 0.02 | AL90: =LOOKUP(AL8,'Operating Assumptions'!$H$145:$P$145,'Operating Assumptions'!$H$150:$P$150) -> 0.02 | AM90: =LOOKUP(AM8,'Operating Assumptions'!$H$145:$P$145,'Operating Assumptions'!$H$150:$P$150) -> 0.02 | AN90: =LOOKUP(AN8,'Operating Assumptions'!$H$145:$P$145,'Operating Assumptions'!$H$150:$P$150) -> 0.02 | AO90: =LOOKUP(AO8,'Operating Assumptions'!$H$145:$P$145,'Operating Assumptions'!$H$150:$P$150) -> 0.02 | AP90: =LOOKUP(AP8,'Operating Assumptions'!$H$145:$P$145,'Operating Assumptions'!$H$150:$P$150) -> 0.02 | AQ90: =LOOKUP(AQ8,'Operating Assumptions'!$H$145:$P$145,'Operating Assumptions'!$H$150:$P$150) -> 0.02 | AR90: =LOOKUP(AR8,'Operating Assumptions'!$H$145:$P$145,'Operating Assumptions'!$H$150:$P$150) -> 0.02 | AS90: =LOOKUP(AS8,'Operating Assumptions'!$H$145:$P$145,'Operating Assumptions'!$H$150:$P$150) -> 0.02 | AT90: =LOOKUP(AT8,'Operating Assumptions'!$H$145:$P$145,'Operating Assumptions'!$H$150:$P$150) -> 0.02 | AU90: =LOOKUP(AU8,'Operating Assumptions'!$H$145:$P$145,'Operating Assumptions'!$H$150:$P$150) -> 0.02 | AV90: =LOOKUP(AV8,'Operating Assumptions'!$H$145:$P$145,'Operating Assumptions'!$H$150:$P$150) -> 0.02 | AW90: =LOOKUP(AW8,'Operating Assumptions'!$H$145:$P$145,'Operating Assumptions'!$H$150:$P$150) -> 0.02 | AX90: =LOOKUP(AX8,'Operating Assumptions'!$H$145:$P$145,'Operating Assumptions'!$H$150:$P$150) -> 0.02 | AY90: =LOOKUP(AY8,'Operating Assumptions'!$H$145:$P$145,'Operating Assumptions'!$H$150:$P$150) -> 0.02 | AZ90: =LOOKUP(AZ8,'Operating Assumptions'!$H$145:$P$145,'Operating Assumptions'!$H$150:$P$150) -> 0.02 | BA90: =LOOKUP(BA8,'Operating Assumptions'!$H$145:$P$145,'Operating Assumptions'!$H$150:$P$150) -> 0.02 | BB90: =LOOKUP(BB8,'Operating Assumptions'!$H$145:$P$145,'Operating Assumptions'!$H$150:$P$150) -> 0.02 | BC90: =LOOKUP(BC8,'Operating Assumptions'!$H$145:$P$145,'Operating Assumptions'!$H$150:$P$150) -> 0.02 | BD90: =LOOKUP(BD8,'Operating Assumptions'!$H$145:$P$145,'Operating Assumptions'!$H$150:$P$150) -> 0.02 | BE90: =LOOKUP(BE8,'Operating Assumptions'!$H$145:$P$145,'Operating Assumptions'!$H$150:$P$150) -> 0.02 | BF90: =LOOKUP(BF8,'Operating Assumptions'!$H$145:$P$145,'Operating Assumptions'!$H$150:$P$150) -> 0.02 | BG90: =LOOKUP(BG8,'Operating Assumptions'!$H$145:$P$145,'Operating Assumptions'!$H$150:$P$150) -> 0.02 | BH90: =LOOKUP(BH8,'Operating Assumptions'!$H$145:$P$145,'Operating Assumptions'!$H$150:$P$150) -> 0.02 | BI90: =LOOKUP(BI8,'Operating Assumptions'!$H$145:$P$145,'Operating Assumptions'!$H$150:$P$150) -> 0.02 | BJ90: =LOOKUP(BJ8,'Operating Assumptions'!$H$145:$P$145,'Operating Assumptions'!$H$150:$P$150) -> 0.02 | BK90: =LOOKUP(BK8,'Operating Assumptions'!$H$145:$P$145,'Operating Assumptions'!$H$150:$P$150) -> 0.02 | BL90: =LOOKUP(BL8,'Operating Assumptions'!$H$145:$P$145,'Operating Assumptions'!$H$150:$P$150) -> 0.02 | BM90: =LOOKUP(BM8,'Operating Assumptions'!$H$145:$P$145,'Operating Assumptions'!$H$150:$P$150) -> 0.02 | BN90: =LOOKUP(BN8,'Operating Assumptions'!$H$145:$P$145,'Operating Assumptions'!$H$150:$P$150) -> 0.02 | BO90: =LOOKUP(BO8,'Operating Assumptions'!$H$145:$P$145,'Operating Assumptions'!$H$150:$P$150) -> 0.02 | BP90: =LOOKUP(BP8,'Operating Assumptions'!$H$145:$P$145,'Operating Assumptions'!$H$150:$P$150) -> 0.02 | BQ90: =LOOKUP(BQ8,'Operating Assumptions'!$H$145:$P$145,'Operating Assumptions'!$H$150:$P$150) -> 0.02 | BR90: =LOOKUP(BR8,'Operating Assumptions'!$H$145:$P$145,'Operating Assumptions'!$H$150:$P$150) -> 0.02 | BS90: =LOOKUP(BS8,'Operating Assumptions'!$H$145:$P$145,'Operating Assumptions'!$H$150:$P$150) -> 0.02 | BT90: =LOOKUP(BT8,'Operating Assumptions'!$H$145:$P$145,'Operating Assumptions'!$H$150:$P$150) -> 0.02 | BU90: =LOOKUP(BU8,'Operating Assumptions'!$H$145:$P$145,'Operating Assumptions'!$H$150:$P$150) -> 0.02 | BV90: =LOOKUP(BV8,'Operating Assumptions'!$H$145:$P$145,'Operating Assumptions'!$H$150:$P$150) -> 0.02 | BW90: =LOOKUP(BW8,'Operating Assumptions'!$H$145:$P$145,'Operating Assumptions'!$H$150:$P$150) -> 0.02 | BX90: =LOOKUP(BX8,'Operating Assumptions'!$H$145:$P$145,'Operating Assumptions'!$H$150:$P$150) -> 0.02 | BY90: =LOOKUP(BY8,'Operating Assumptions'!$H$145:$P$145,'Operating Assumptions'!$H$150:$P$150) -> 0.02 | BZ90: =LOOKUP(BZ8,'Operating Assumptions'!$H$145:$P$145,'Operating Assumptions'!$H$150:$P$150) -> 0.02 | CA90: =LOOKUP(CA8,'Operating Assumptions'!$H$145:$P$145,'Operating Assumptions'!$H$150:$P$150) -> 0.02 | CB90: =LOOKUP(CB8,'Operating Assumptions'!$H$145:$P$145,'Operating Assumptions'!$H$150:$P$150) -> 0.02 | CC90: =LOOKUP(CC8,'Operating Assumptions'!$H$145:$P$145,'Operating Assumptions'!$H$150:$P$150) -> 0.02 | CD90: =LOOKUP(CD8,'Operating Assumptions'!$H$145:$P$145,'Operating Assumptions'!$H$150:$P$150) -> 0.02 | CE90: =LOOKUP(CE8,'Operating Assumptions'!$H$145:$P$145,'Operating Assumptions'!$H$150:$P$150) -> 0.02 | CF90: =LOOKUP(CF8,'Operating Assumptions'!$H$145:$P$145,'Operating Assumptions'!$H$150:$P$150) -> 0.02 | CG90: =LOOKUP(CG8,'Operating Assumptions'!$H$145:$P$145,'Operating Assumptions'!$H$150:$P$150) -> 0.02 | CH90: =LOOKUP(CH8,'Operating Assumptions'!$H$145:$P$145,'Operating Assumptions'!$H$150:$P$150) -> 0.02 | CI90: =LOOKUP(CI8,'Operating Assumptions'!$H$145:$P$145,'Operating Assumptions'!$H$150:$P$150) -> 0.02 | CJ90: =LOOKUP(CJ8,'Operating Assumptions'!$H$145:$P$145,'Operating Assumptions'!$H$150:$P$150) -> 0.02 | CK90: =LOOKUP(CK8,'Operating Assumptions'!$H$145:$P$145,'Operating Assumptions'!$H$150:$P$150) -> 0.02 | CL90: =LOOKUP(CL8,'Operating Assumptions'!$H$145:$P$145,'Operating Assumptions'!$H$150:$P$150) -> 0.02 | CM90: =LOOKUP(CM8,'Operating Assumptions'!$H$145:$P$145,'Operating Assumptions'!$H$150:$P$150) -> 0.02 | CN90: =LOOKUP(CN8,'Operating Assumptions'!$H$145:$P$145,'Operating Assumptions'!$H$150:$P$150) -> 0.02 | CO90: =LOOKUP(CO8,'Operating Assumptions'!$H$145:$P$145,'Operating Assumptions'!$H$150:$P$150) -> 0.02 | CP90: =LOOKUP(CP8,'Operating Assumptions'!$H$145:$P$145,'Operating Assumptions'!$H$150:$P$150) -> 0.02 | CQ90: =LOOKUP(CQ8,'Operating Assumptions'!$H$145:$P$145,'Operating Assumptions'!$H$150:$P$150) -> 0.02 | CR90: =LOOKUP(CR8,'Operating Assumptions'!$H$145:$P$145,'Operating Assumptions'!$H$150:$P$150) -> 0.02 | CS90: =LOOKUP(CS8,'Operating Assumptions'!$H$145:$P$145,'Operating Assumptions'!$H$150:$P$150) -> 0.02 | CT90: =LOOKUP(CT8,'Operating Assumptions'!$H$145:$P$145,'Operating Assumptions'!$H$150:$P$150) -> 0.02 | CU90: =LOOKUP(CU8,'Operating Assumptions'!$H$145:$P$145,'Operating Assumptions'!$H$150:$P$150) -> 0.02 | CV90: =LOOKUP(CV8,'Operating Assumptions'!$H$145:$P$145,'Operating Assumptions'!$H$150:$P$150) -> 0.02 | CW90: =LOOKUP(CW8,'Operating Assumptions'!$H$145:$P$145,'Operating Assumptions'!$H$150:$P$150) -> 0.02 | CX90: =LOOKUP(CX8,'Operating Assumptions'!$H$145:$P$145,'Operating Assumptions'!$H$150:$P$150) -> 0.02 | CY90: =LOOKUP(CY8,'Operating Assumptions'!$H$145:$P$145,'Operating Assumptions'!$H$150:$P$150) -> 0.02 | CZ90: =LOOKUP(CZ8,'Operating Assumptions'!$H$145:$P$145,'Operating Assumptions'!$H$150:$P$150) -> 0.02 | DA90: =LOOKUP(DA8,'Operating Assumptions'!$H$145:$P$145,'Operating Assumptions'!$H$150:$P$150) -> 0.02 | DB90: =LOOKUP(DB8,'Operating Assumptions'!$H$145:$P$145,'Operating Assumptions'!$H$150:$P$150) -> 0.02 | DC90: =LOOKUP(DC8,'Operating Assumptions'!$H$145:$P$145,'Operating Assumptions'!$H$150:$P$150) -> 0.02 | DD90: =LOOKUP(DD8,'Operating Assumptions'!$H$145:$P$145,'Operating Assumptions'!$H$150:$P$150) -> 0.02 | DE90: =LOOKUP(DE8,'Operating Assumptions'!$H$145:$P$145,'Operating Assumptions'!$H$150:$P$150) -> 0.02 | DF90: =LOOKUP(DF8,'Operating Assumptions'!$H$145:$P$145,'Operating Assumptions'!$H$150:$P$150) -> 0.02 | DG90: =LOOKUP(DG8,'Operating Assumptions'!$H$145:$P$145,'Operating Assumptions'!$H$150:$P$150) -> 0.02 | DH90: =LOOKUP(DH8,'Operating Assumptions'!$H$145:$P$145,'Operating Assumptions'!$H$150:$P$150) -> 0.02 | DI90: =LOOKUP(DI8,'Operating Assumptions'!$H$145:$P$145,'Operating Assumptions'!$H$150:$P$150) -> 0.02
C91: Periodic Inflation Rate | N91: =(1+N90)^(N4/12)-1 -> 0.0008295381143 | O91: 0.0008295381143 | P91: 0.001241487716 | Q91: 0.001241487716 | R91: 0.001241487716 | S91: 0.001241487716 | T91: 0.001241487716 | U91: 0.001241487716 | V91: 0.001241487716 | W91: 0.001241487716 | X91: 0.001241487716 | Y91: 0.001241487716 | Z91: 0.001241487716 | AA91: 0.001241487716 | AB91: 0.008712050092 | AC91: 0.008712050092 | AD91: 0.009950493836 | AE91: 0.009950493836 | AF91: 0.00747208398 | AG91: 0.00747208398 | AH91: 0.009950493836 | AI91: 0.009950493836 | AJ91: 0.009950493836 | AK91: 0.009950493836 | AL91: 0.009950493836 | AM91: 0.009950493836 | AN91: 0.009950493836 | AO91: 0.009950493836 | AP91: 0.009950493836 | AQ91: 0.009950493836 | AR91: 0.009950493836 | AS91: 0.009950493836 | AT91: =(1+AT90)^(AT4/12)-1 -> 0.009950493836 | AU91: 0.009950493836 | AV91: 0.009950493836 | AW91: 0.009950493836 | AX91: 0.009950493836 | AY91: 0.009950493836 | AZ91: 0.009950493836 | BA91: 0.009950493836 | BB91: 0.009950493836 | BC91: 0.009950493836 | BD91: 0.009950493836 | BE91: 0.009950493836 | BF91: 0.009950493836 | BG91: 0.009950493836 | BH91: 0.009950493836 | BI91: 0.009950493836 | BJ91: 0.009950493836 | BK91: 0.009950493836 | BL91: 0.009950493836 | BM91: 0.009950493836 | BN91: 0.009950493836 | BO91: 0.009950493836 | BP91: 0.009950493836 | BQ91: 0.009950493836 | BR91: 0.009950493836 | BS91: 0.009950493836 | BT91: 0.009950493836 | BU91: 0.009950493836 | BV91: 0.009950493836 | BW91: 0.009950493836 | BX91: 0.009950493836 | BY91: 0.009950493836 | BZ91: =(1+BZ90)^(BZ4/12)-1 -> 0.009950493836 | CA91: 0.009950493836 | CB91: 0.009950493836 | CC91: 0.009950493836 | CD91: 0.009950493836 | CE91: 0.009950493836 | CF91: 0.009950493836 | CG91: 0.009950493836 | CH91: 0.009950493836 | CI91: 0.009950493836 | CJ91: 0.009950493836 | CK91: 0.009950493836 | CL91: 0.009950493836 | CM91: 0.009950493836 | CN91: 0.009950493836 | CO91: 0.009950493836 | CP91: 0.009950493836 | CQ91: 0.009950493836 | CR91: 0.009950493836 | CS91: 0.009950493836 | CT91: 0.009950493836 | CU91: 0.009950493836 | CV91: 0.009950493836 | CW91: 0.009950493836 | CX91: 0.009950493836 | CY91: 0.009950493836 | CZ91: 0.009950493836 | DA91: 0.009950493836 | DB91: 0.009950493836 | DC91: 0.009950493836 | DD91: 0.009950493836 | DE91: 0.009950493836 | DF91: =(1+DF90)^(DF4/12)-1 -> 0.009950493836 | DG91: 0.009950493836 | DH91: 0.009950493836 | DI91: 0.009950493836
C92: Inflation index | E92: Index | F92: ='Operating Assumptions'!E152 -> 2016-11-01 | M92: 1 | N92: =M92*(1+N91*(N6>=$F$92)) -> 1.000829538 | O92: 1.001659764 | P92: 1.002903313 | Q92: 1.004148405 | R92: 1.005395043 | S92: 1.006643228 | T92: 1.007892964 | U92: 1.00914425 | V92: 1.01039709 | W92: 1.011651486 | X92: 1.012907439 | Y92: 1.014164951 | Z92: 1.015424024 | AA92: 1.016684661 | AB92: 1.025542069 | AC92: 1.034476642 | AD92: 1.044770196 | AE92: 1.055166175 | AF92: 1.063050466 | AG92: 1.070993668 | AH92: 1.081650584 | AI92: 1.092413541 | AJ92: 1.103283595 | AK92: 1.114261812 | AL92: 1.125349267 | AM92: 1.136547048 | AN92: 1.147856253 | AO92: 1.159277989 | AP92: 1.170813378 | AQ92: 1.182463549 | AR92: 1.194229645 | AS92: 1.20611282 | AT92: =AS92*(1+AT91*(AT6>=$F$92)) -> 1.218114238 | AU92: 1.230235076 | AV92: 1.242476523 | AW92: 1.254839778 | AX92: 1.267326053 | AY92: 1.279936574 | AZ92: 1.292672574 | BA92: 1.305535305 | BB92: 1.318526026 | BC92: 1.331646011 | BD92: 1.344896547 | BE92: 1.358278931 | BF92: 1.371794477 | BG92: 1.38544451 | BH92: 1.399230367 | BI92: 1.4131534 | BJ92: 1.427214974 | BK92: 1.441416468 | BL92: 1.455759274 | BM92: 1.470244797 | BN92: 1.484874459 | BO92: 1.499649693 | BP92: 1.514571948 | BQ92: 1.529642687 | BR92: 1.544863387 | BS92: 1.560235541 | BT92: 1.575760655 | BU92: 1.591440252 | BV92: 1.607275868 | BW92: 1.623269057 | BX92: 1.639421386 | BY92: 1.655734438 | BZ92: =BY92*(1+BZ91*(BZ6>=$F$92)) -> 1.672209813 | CA92: 1.688849127 | CB92: 1.70565401 | CC92: 1.722626109 | CD92: 1.73976709 | CE92: 1.757078632 | CF92: 1.774562432 | CG92: 1.792220204 | CH92: 1.81005368 | CI92: 1.828064608 | CJ92: 1.846254754 | CK92: 1.8646259 | CL92: 1.883179849 | CM92: 1.901918418 | CN92: 1.920843446 | CO92: 1.939956787 | CP92: 1.959260315 | CQ92: 1.978755923 | CR92: 1.998445521 | CS92: 2.018331041 | CT92: 2.038414432 | CU92: 2.058697662 | CV92: 2.07918272 | CW92: 2.099871615 | CX92: 2.120766375 | CY92: 2.141869047 | CZ92: 2.163181702 | DA92: 2.184706428 | DB92: 2.206445336 | DC92: 2.228400557 | DD92: 2.250574243 | DE92: 2.272968568 | DF92: =DE92*(1+DF91*(DF6>=$F$92)) -> 2.295585728 | DG92: 2.318427939 | DH92: 2.341497442 | DI92: 2.364796498
C94: Nominal O&M | E94: USD/kW/Yr | N94: =N88*N92 -> 16.30046717 | O94: 16.31398903 | P94: 16.33424265 | Q94: 16.35452141 | R94: 16.37482535 | S94: 16.39515449 | T94: 16.41550888 | U94: 16.43588853 | V94: 16.45629348 | W94: 16.47672377 | X94: 16.49717942 | Y94: 16.51766046 | Z94: 16.53816694 | AA94: 16.55869887 | AB94: 16.70295908 | AC94: 16.8484761 | AD94: 17.01612675 | AE94: 17.18544562 | AF94: 17.31385671 | AG94: 17.4432273 | AH94: 17.61679603 | AI94: 17.79209185 | AJ94: 17.96913195 | AK94: 18.14793369 | AL94: 18.32851459 | AM94: 18.51089236 | AN94: 18.69508488 | AO94: 18.88111021 | AP94: 19.06898658 | AQ94: 19.25873241 | AR94: 19.45036631 | AS94: 19.64390706 | AT94: =AT88*AT92 -> 19.83937364 | AU94: 20.0367852 | AV94: 20.23616111 | AW94: 20.43752091 | AX94: 20.64088433 | AY94: 20.84627132 | AZ94: 21.05370202 | BA94: 21.26319675 | BB94: 21.47477606 | BC94: 21.68846068 | BD94: 21.90427158 | BE94: 22.1222299 | BF94: 22.34235701 | BG94: 22.5646745 | BH94: 22.78920415 | BI94: 23.01596799 | BJ94: 23.24498823 | BK94: 23.47628735 | BL94: 23.709888 | BM94: 23.94581309 | BN94: 24.18408576 | BO94: 24.42472935 | BP94: 24.66776747 | BQ94: 24.91322394 | BR94: 25.16112282 | BS94: 25.41148842 | BT94: 25.66434528 | BU94: 25.91971819 | BV94: 26.17763219 | BW94: 26.43811255 | BX94: 26.70118483 | BY94: 26.9668748 | BZ94: =BZ88*BZ92 -> 27.23520853 | CA94: 27.5062123 | CB94: 27.7799127 | CC94: 28.05633655 | CD94: 28.33551095 | CE94: 28.61746328 | CF94: 28.90222117 | CG94: 29.18981254 | CH94: 29.48026559 | CI94: 29.77360879 | CJ94: 30.0698709 | CK94: 30.36908097 | CL94: 30.67126832 | CM94: 30.97646259 | CN94: 31.28469369 | CO94: 31.59599184 | CP94: 31.91038756 | CQ94: 32.22791168 | CR94: 32.54859531 | CS94: 32.87246991 | CT94: 33.19956722 | CU94: 33.52991931 | CV94: 33.86355856 | CW94: 34.2005177 | CX94: 34.54082974 | CY94: 34.88452805 | CZ94: 35.23164633 | DA94: 35.58221861 | DB94: 35.93627926 | DC94: 36.29386298 | DD94: 36.65500484 | DE94: 37.01974024 | DF94: =DF88*DF92 -> 37.38810494 | DG94: 37.76013505 | DH94: 38.13586704 | DI94: 38.51533775
C95: Percent of Year | E95: % | N95: =N4/12*(N29/$H$29) -> 0 | O95: 0 | P95: 0 | Q95: 0 | R95: 0 | S95: 0 | T95: 0 | U95: 0 | V95: 0 | W95: 0 | X95: 0 | Y95: 0 | Z95: 0.02466666667 | AA95: 0.05795698925 | AB95: 0.5 | AC95: 0.5 | AD95: 0.5 | AE95: 0.5 | AF95: 0.5 | AG95: 0.5 | AH95: 0.5 | AI95: 0.5 | AJ95: 0.5 | AK95: 0.5 | AL95: 0.5 | AM95: 0.5 | AN95: 0.5 | AO95: 0.5 | AP95: 0.5 | AQ95: 0.5 | AR95: 0.5 | AS95: 0.5 | AT95: =AT4/12*(AT29/$H$29) -> 0.5 | AU95: 0.5 | AV95: 0.5 | AW95: 0.5 | AX95: 0.5 | AY95: 0.5 | AZ95: 0.5 | BA95: 0.5 | BB95: 0.5 | BC95: 0.5 | BD95: 0.5 | BE95: 0.5 | BF95: 0.5 | BG95: 0.5 | BH95: 0.5 | BI95: 0.5 | BJ95: 0.5 | BK95: 0.5 | BL95: 0.5 | BM95: 0.5 | BN95: 0.5 | BO95: 0.5 | BP95: 0.5 | BQ95: 0.5 | BR95: 0.5 | BS95: 0.5 | BT95: 0.5 | BU95: 0.5 | BV95: 0.5 | BW95: 0.5 | BX95: 0.5 | BY95: 0.5 | BZ95: =BZ4/12*(BZ29/$H$29) -> 0 | CA95: 0 | CB95: 0 | CC95: 0 | CD95: 0 | CE95: 0 | CF95: 0 | CG95: 0 | CH95: 0 | CI95: 0 | CJ95: 0 | CK95: 0 | CL95: 0 | CM95: 0 | CN95: 0 | CO95: 0 | CP95: 0 | CQ95: 0 | CR95: 0 | CS95: 0 | CT95: 0 | CU95: 0 | CV95: 0 | CW95: 0 | CX95: 0 | CY95: 0 | CZ95: 0 | DA95: 0 | DB95: 0 | DC95: 0 | DD95: 0 | DE95: 0 | DF95: =DF4/12*(DF29/$H$29) -> 0 | DG95: 0 | DH95: 0 | DI95: 0
C96: O&M per Period | E96: USD/kW/Period | N96: =N94*N95 -> 0 | O96: =O94*O95 -> 0 | P96: 0 | Q96: 0 | R96: 0 | S96: 0 | T96: 0 | U96: 0 | V96: 0 | W96: 0 | X96: 0 | Y96: 0 | Z96: 0.4079414511 | AA96: 0.9596923322 | AB96: 8.351479541 | AC96: 8.424238049 | AD96: 8.508063377 | AE96: 8.59272281 | AF96: 8.656928356 | AG96: 8.721613652 | AH96: 8.808398015 | AI96: 8.896045925 | AJ96: 8.984565975 | AK96: 9.073966843 | AL96: 9.164257294 | AM96: 9.25544618 | AN96: 9.34754244 | AO96: 9.440555104 | AP96: 9.534493289 | AQ96: 9.629366206 | AR96: 9.725183155 | AS96: 9.82195353 | AT96: 9.919686818 | AU96: 10.0183926 | AV96: 10.11808055 | AW96: 10.21876045 | AX96: 10.32044217 | AY96: 10.42313566 | AZ96: 10.52685101 | BA96: 10.63159837 | BB96: 10.73738803 | BC96: 10.84423034 | BD96: 10.95213579 | BE96: 11.06111495 | BF96: 11.17117851 | BG96: 11.28233725 | BH96: 11.39460208 | BI96: 11.50798399 | BJ96: 11.62249412 | BK96: 11.73814367 | BL96: 11.854944 | BM96: 11.97290655 | BN96: 12.09204288 | BO96: 12.21236468 | BP96: 12.33388374 | BQ96: 12.45661197 | BR96: 12.58056141 | BS96: 12.70574421 | BT96: 12.83217264 | BU96: 12.95985909 | BV96: 13.08881609 | BW96: 13.21905628 | BX96: 13.35059241 | BY96: 13.4834374 | BZ96: 0 | CA96: =CA94*CA95 -> 0 | CB96: 0 | CC96: 0 | CD96: 0 | CE96: 0 | CF96: 0 | CG96: 0 | CH96: 0 | CI96: 0 | CJ96: 0 | CK96: 0 | CL96: 0 | CM96: 0 | CN96: 0 | CO96: 0 | CP96: 0 | CQ96: 0 | CR96: 0 | CS96: 0 | CT96: 0 | CU96: 0 | CV96: 0 | CW96: 0 | CX96: 0 | CY96: 0 | CZ96: 0 | DA96: 0 | DB96: 0 | DC96: 0 | DD96: 0 | DE96: 0 | DF96: 0 | DG96: 0 | DH96: 0 | DI96: 0
C98: Total O&M | E98: USD 000 | N98: =N96*N29/1000 -> 0 | O98: 0 | P98: 0 | Q98: 0 | R98: 0 | S98: 0 | T98: 0 | U98: 0 | V98: 0 | W98: 0 | X98: 0 | Y98: 0 | Z98: 0.06027873423 | AA98: 0.3331913086 | AB98: 4.169058587 | AC98: 4.205379634 | AD98: 4.247225238 | AE98: 4.289487227 | AF98: 4.321538635 | AG98: 4.353829535 | AH98: 4.397152289 | AI98: 4.440906126 | AJ98: 4.485095335 | AK98: 4.529724248 | AL98: 4.574797241 | AM98: 4.620318733 | AN98: 4.666293186 | AO98: 4.712725108 | AP98: 4.75961905 | AQ98: 4.80697961 | AR98: 4.854811431 | AS98: 4.903119202 | AT98: =AT96*AT29/1000 -> 4.95190766 | AU98: 5.001181586 | AV98: 5.050945813 | AW98: 5.101205218 | AX98: 5.151964729 | AY98: 5.203229322 | AZ98: 5.255004024 | BA98: 5.307293909 | BB98: 5.360104104 | BC98: 5.413439787 | BD98: 5.467306186 | BE98: 5.521708583 | BF98: 5.57665231 | BG98: 5.632142754 | BH98: 5.688185356 | BI98: 5.744785609 | BJ98: 5.801949063 | BK98: 5.859681322 | BL98: 5.917988044 | BM98: 5.976874948 | BN98: 6.036347805 | BO98: 6.096412447 | BP98: 6.157074761 | BQ98: 6.218340696 | BR98: 6.280216257 | BS98: 6.34270751 | BT98: 6.405820582 | BU98: 6.46956166 | BV98: 6.533936993 | BW98: 6.598952893 | BX98: 6.664615733 | BY98: 6.730931951 | BZ98: =BZ96*BZ29/1000 -> 0 | CA98: 0 | CB98: 0 | CC98: 0 | CD98: 0 | CE98: 0 | CF98: 0 | CG98: 0 | CH98: 0 | CI98: 0 | CJ98: 0 | CK98: 0 | CL98: 0 | CM98: 0 | CN98: 0 | CO98: 0 | CP98: 0 | CQ98: 0 | CR98: 0 | CS98: 0 | CT98: 0 | CU98: 0 | CV98: 0 | CW98: 0 | CX98: 0 | CY98: 0 | CZ98: 0 | DA98: 0 | DB98: 0 | DC98: 0 | DD98: 0 | DE98: 0 | DF98: =DF96*DF29/1000 -> 0 | DG98: 0 | DH98: 0 | DI98: 0
C99: Other costs | E99: USD | F99: ='Operating Assumptions'!E156 -> 0 | N99: =F99/N5*N14*N92 -> 0 | O99: =J99/O5*O14*O92 -> 0 | P99: 0 | Q99: 0 | R99: 0 | S99: 0 | T99: 0 | U99: 0 | V99: 0 | W99: 0 | X99: 0 | Y99: 0 | Z99: 0 | AA99: 0 | AB99: 0 | AC99: 0 | AD99: 0 | AE99: 0 | AF99: 0 | AG99: 0 | AH99: 0 | AI99: 0 | AJ99: 0 | AK99: 0 | AL99: 0 | AM99: 0 | AN99: 0 | AO99: 0 | AP99: 0 | AQ99: 0 | AR99: 0 | AS99: 0 | AT99: 0 | AU99: =AP99/AU5*AU14*AU92 -> 0 | AV99: 0 | AW99: 0 | AX99: 0 | AY99: 0 | AZ99: 0 | BA99: 0 | BB99: 0 | BC99: 0 | BD99: 0 | BE99: 0 | BF99: 0 | BG99: 0 | BH99: 0 | BI99: 0 | BJ99: 0 | BK99: 0 | BL99: 0 | BM99: 0 | BN99: 0 | BO99: 0 | BP99: 0 | BQ99: 0 | BR99: 0 | BS99: 0 | BT99: 0 | BU99: 0 | BV99: 0 | BW99: 0 | BX99: 0 | BY99: 0 | BZ99: 0 | CA99: =BV99/CA5*CA14*CA92 -> 0 | CB99: 0 | CC99: 0 | CD99: 0 | CE99: 0 | CF99: 0 | CG99: 0 | CH99: 0 | CI99: 0 | CJ99: 0 | CK99: 0 | CL99: 0 | CM99: 0 | CN99: 0 | CO99: 0 | CP99: 0 | CQ99: 0 | CR99: 0 | CS99: 0 | CT99: 0 | CU99: 0 | CV99: 0 | CW99: 0 | CX99: 0 | CY99: 0 | CZ99: 0 | DA99: 0 | DB99: 0 | DC99: 0 | DD99: 0 | DE99: 0 | DF99: 0 | DG99: =DB99/DG5*DG14*DG92 -> 0 | DH99: 0 | DI99: 0
D100: Operating expenses | N100: =N98+N99 -> 0 | O100: =O98+O99 -> 0 | P100: 0 | Q100: 0 | R100: 0 | S100: 0 | T100: 0 | U100: 0 | V100: 0 | W100: 0 | X100: 0 | Y100: 0 | Z100: 0.06027873423 | AA100: 0.3331913086 | AB100: 4.169058587 | AC100: 4.205379634 | AD100: 4.247225238 | AE100: 4.289487227 | AF100: 4.321538635 | AG100: 4.353829535 | AH100: 4.397152289 | AI100: 4.440906126 | AJ100: 4.485095335 | AK100: 4.529724248 | AL100: 4.574797241 | AM100: 4.620318733 | AN100: 4.666293186 | AO100: 4.712725108 | AP100: 4.75961905 | AQ100: 4.80697961 | AR100: 4.854811431 | AS100: 4.903119202 | AT100: =AT98+AT99 -> 4.95190766 | AU100: 5.001181586 | AV100: 5.050945813 | AW100: 5.101205218 | AX100: 5.151964729 | AY100: 5.203229322 | AZ100: 5.255004024 | BA100: 5.307293909 | BB100: 5.360104104 | BC100: 5.413439787 | BD100: 5.467306186 | BE100: 5.521708583 | BF100: 5.57665231 | BG100: 5.632142754 | BH100: 5.688185356 | BI100: 5.744785609 | BJ100: 5.801949063 | BK100: 5.859681322 | BL100: 5.917988044 | BM100: 5.976874948 | BN100: 6.036347805 | BO100: 6.096412447 | BP100: 6.157074761 | BQ100: 6.218340696 | BR100: 6.280216257 | BS100: 6.34270751 | BT100: 6.405820582 | BU100: 6.46956166 | BV100: 6.533936993 | BW100: 6.598952893 | BX100: 6.664615733 | BY100: 6.730931951 | BZ100: =BZ98+BZ99 -> 0 | CA100: 0 | CB100: 0 | CC100: 0 | CD100: 0 | CE100: 0 | CF100: 0 | CG100: 0 | CH100: 0 | CI100: 0 | CJ100: 0 | CK100: 0 | CL100: 0 | CM100: 0 | CN100: 0 | CO100: 0 | CP100: 0 | CQ100: 0 | CR100: 0 | CS100: 0 | CT100: 0 | CU100: 0 | CV100: 0 | CW100: 0 | CX100: 0 | CY100: 0 | CZ100: 0 | DA100: 0 | DB100: 0 | DC100: 0 | DD100: 0 | DE100: 0 | DF100: =DF98+DF99 -> 0 | DG100: 0 | DH100: 0 | DI100: 0
D102: EBITDA | N102: =N82-N100 -> 0 | O102: 0 | P102: 0 | Q102: 0 | R102: 0 | S102: 0 | T102: 0 | U102: 0 | V102: 0 | W102: 0 | X102: 0 | Y102: 0 | Z102: 1.932025718 | AA102: 4.574828748 | AB102: 28.18583198 | AC102: 31.11954799 | AD102: 27.97850409 | AE102: 30.89442272 | AF102: 27.77554507 | AG102: 30.68962568 | AH102: 27.57179934 | AI102: 30.46265506 | AJ102: 27.35623573 | AK102: 30.23450137 | AL102: 27.13942272 | AM102: 30.00512754 | AN102: 26.92132311 | AO102: 29.77449583 | AP102: 26.70189897 | AQ102: 29.54256779 | AR102: 26.48111171 | AS102: 29.30930426 | AT102: =AT82-AT100 -> 26.25892198 | AU102: 29.07466533 | AV102: 26.03528969 | AW102: 28.83861038 | AX102: 25.81017403 | AY102: 28.60109799 | AZ102: 25.58353338 | BA102: 28.36208598 | BB102: 25.35532537 | BC102: 28.1215314 | BD102: 25.1255068 | BE102: 27.87939047 | BF102: 24.89403368 | BG102: 27.63561858 | BH102: 24.66086117 | BI102: 27.39017029 | BJ102: 24.42594358 | BK102: 27.1429993 | BL102: 24.18923437 | BM102: 26.89405845 | BN102: 23.9506861 | BO102: 26.64329966 | BP102: 23.71025042 | BQ102: 26.39067396 | BR102: 23.46787809 | BS102: 26.13613144 | BT102: 23.2235189 | BU102: 25.87962124 | BV102: 22.97712169 | BW102: 25.62109155 | BX102: 22.72863433 | BY102: 25.36048956 | BZ102: =BZ82-BZ100 -> 0 | CA102: 0 | CB102: 0 | CC102: 0 | CD102: 0 | CE102: 0 | CF102: 0 | CG102: 0 | CH102: 0 | CI102: 0 | CJ102: 0 | CK102: 0 | CL102: 0 | CM102: 0 | CN102: 0 | CO102: 0 | CP102: 0 | CQ102: 0 | CR102: 0 | CS102: 0 | CT102: 0 | CU102: 0 | CV102: 0 | CW102: 0 | CX102: 0 | CY102: 0 | CZ102: 0 | DA102: 0 | DB102: 0 | DC102: 0 | DD102: 0 | DE102: 0 | DF102: =DF82-DF100 -> 0 | DG102: 0 | DH102: 0 | DI102: 0
B104: Capital Expenditures | H104: Cost/kW | I104: MW | J104: Cost
C105: Total Costs | E105: USD 000's | H105: ='Operating Assumptions'!E45 -> 1089.420846 | I105: ='Operating Assumptions'!E26*'Operating Assumptions'!E27/1000000 -> 0.4992 | J105: =I105*H105 -> 543.8388864 | N105: =$J$105 -> 543.8388864 | O105: 543.8388864 | P105: 543.8388864 | Q105: 543.8388864 | R105: 543.8388864 | S105: 543.8388864 | T105: 543.8388864 | U105: 543.8388864 | V105: 543.8388864 | W105: 543.8388864 | X105: 543.8388864 | Y105: 543.8388864 | Z105: 543.8388864 | AA105: 543.8388864 | AB105: 543.8388864 | AC105: 543.8388864 | AD105: 543.8388864 | AE105: 543.8388864 | AF105: 543.8388864 | AG105: 543.8388864 | AH105: 543.8388864 | AI105: 543.8388864 | AJ105: 543.8388864 | AK105: 543.8388864 | AL105: 543.8388864 | AM105: 543.8388864 | AN105: 543.8388864 | AO105: 543.8388864 | AP105: 543.8388864 | AQ105: 543.8388864 | AR105: 543.8388864 | AS105: 543.8388864 | AT105: =$J$105 -> 543.8388864 | AU105: 543.8388864 | AV105: 543.8388864 | AW105: 543.8388864 | AX105: 543.8388864 | AY105: 543.8388864 | AZ105: 543.8388864 | BA105: 543.8388864 | BB105: 543.8388864 | BC105: 543.8388864 | BD105: 543.8388864 | BE105: 543.8388864 | BF105: 543.8388864 | BG105: 543.8388864 | BH105: 543.8388864 | BI105: 543.8388864 | BJ105: 543.8388864 | BK105: 543.8388864 | BL105: 543.8388864 | BM105: 543.8388864 | BN105: 543.8388864 | BO105: 543.8388864 | BP105: 543.8388864 | BQ105: 543.8388864 | BR105: 543.8388864 | BS105: 543.8388864 | BT105: 543.8388864 | BU105: 543.8388864 | BV105: 543.8388864 | BW105: 543.8388864 | BX105: 543.8388864 | BY105: 543.8388864 | BZ105: =$J$105 -> 543.8388864 | CA105: 543.8388864 | CB105: 543.8388864 | CC105: 543.8388864 | CD105: 543.8388864 | CE105: 543.8388864 | CF105: 543.8388864 | CG105: 543.8388864 | CH105: 543.8388864 | CI105: 543.8388864 | CJ105: 543.8388864 | CK105: 543.8388864 | CL105: 543.8388864 | CM105: 543.8388864 | CN105: 543.8388864 | CO105: 543.8388864 | CP105: 543.8388864 | CQ105: 543.8388864 | CR105: 543.8388864 | CS105: 543.8388864 | CT105: 543.8388864 | CU105: 543.8388864 | CV105: 543.8388864 | CW105: 543.8388864 | CX105: 543.8388864 | CY105: 543.8388864 | CZ105: 543.8388864 | DA105: 543.8388864 | DB105: 543.8388864 | DC105: 543.8388864 | DD105: 543.8388864 | DE105: 543.8388864 | DF105: =$J$105 -> 543.8388864 | DG105: 543.8388864 | DH105: 543.8388864 | DI105: 543.8388864
C106: Construction Period | E106: Month | N106: =M106+N11 -> 0 | O106: 0 | P106: 0 | Q106: 0 | R106: 0 | S106: 0 | T106: 1 | U106: 2 | V106: 3 | W106: 4 | X106: 5 | Y106: 6 | Z106: 7 | AA106: 8 | AB106: 8 | AC106: 8 | AD106: 8 | AE106: 8 | AF106: 8 | AG106: 8 | AH106: 8 | AI106: 8 | AJ106: 8 | AK106: 8 | AL106: 8 | AM106: 8 | AN106: 8 | AO106: 8 | AP106: 8 | AQ106: 8 | AR106: 8 | AS106: 8 | AT106: =AS106+AT11 -> 8 | AU106: 8 | AV106: 8 | AW106: 8 | AX106: 8 | AY106: 8 | AZ106: 8 | BA106: 8 | BB106: 8 | BC106: 8 | BD106: 8 | BE106: 8 | BF106: 8 | BG106: 8 | BH106: 8 | BI106: 8 | BJ106: 8 | BK106: 8 | BL106: 8 | BM106: 8 | BN106: 8 | BO106: 8 | BP106: 8 | BQ106: 8 | BR106: 8 | BS106: 8 | BT106: 8 | BU106: 8 | BV106: 8 | BW106: 8 | BX106: 8 | BY106: 8 | BZ106: =BY106+BZ11 -> 8 | CA106: 8 | CB106: 8 | CC106: 8 | CD106: 8 | CE106: 8 | CF106: 8 | CG106: 8 | CH106: 8 | CI106: 8 | CJ106: 8 | CK106: 8 | CL106: 8 | CM106: 8 | CN106: 8 | CO106: 8 | CP106: 8 | CQ106: 8 | CR106: 8 | CS106: 8 | CT106: 8 | CU106: 8 | CV106: 8 | CW106: 8 | CX106: 8 | CY106: 8 | CZ106: 8 | DA106: 8 | DB106: 8 | DC106: 8 | DD106: 8 | DE106: 8 | DF106: =DE106+DF11 -> 8 | DG106: 8 | DH106: 8 | DI106: 8
C107: Weibull | E107: Percent | H107: Alpha | I107: ='Operating Assumptions'!E51 -> 1.72 | J107: Beta | K107: ='Operating Assumptions'!E50 -> 4.081632653 | L107: Sum | M107: =SUM(N107:EA107) -> 0.9495802761 | N107: =IF(N11,WEIBULL(N106,$I$107,$K$107,0)) -> FALSE | O107: FALSE | P107: FALSE | Q107: FALSE | R107: FALSE | S107: FALSE | T107: 0.1400374099 | U107: 0.1880651815 | V107: 0.1873619897 | W107: 0.1580937809 | X107: 0.1181515516 | Y107: 0.07992130935 | Z107: 0.04955308708 | AA107: 0.02839596609 | AB107: FALSE | AC107: FALSE | AD107: FALSE | AE107: FALSE | AF107: FALSE | AG107: FALSE | AH107: FALSE | AI107: FALSE | AJ107: FALSE | AK107: FALSE | AL107: FALSE | AM107: FALSE | AN107: FALSE | AO107: FALSE | AP107: FALSE | AQ107: FALSE | AR107: FALSE | AS107: FALSE | AT107: =IF(AT11,WEIBULL(AT106,$I$107,$K$107,0)) -> FALSE | AU107: FALSE | AV107: FALSE | AW107: FALSE | AX107: FALSE | AY107: FALSE | AZ107: FALSE | BA107: FALSE | BB107: FALSE | BC107: FALSE | BD107: FALSE | BE107: FALSE | BF107: FALSE | BG107: FALSE | BH107: FALSE | BI107: FALSE | BJ107: FALSE | BK107: FALSE | BL107: FALSE | BM107: FALSE | BN107: FALSE | BO107: FALSE | BP107: FALSE | BQ107: FALSE | BR107: FALSE | BS107: FALSE | BT107: FALSE | BU107: FALSE | BV107: FALSE | BW107: FALSE | BX107: FALSE | BY107: FALSE | BZ107: =IF(BZ11,WEIBULL(BZ106,$I$107,$K$107,0)) -> FALSE | CA107: FALSE | CB107: FALSE | CC107: FALSE | CD107: FALSE | CE107: FALSE | CF107: FALSE | CG107: FALSE | CH107: FALSE | CI107: FALSE | CJ107: FALSE | CK107: FALSE | CL107: FALSE | CM107: FALSE | CN107: FALSE | CO107: FALSE | CP107: FALSE | CQ107: FALSE | CR107: FALSE | CS107: FALSE | CT107: FALSE | CU107: FALSE | CV107: FALSE | CW107: FALSE | CX107: FALSE | CY107: FALSE | CZ107: FALSE | DA107: FALSE | DB107: FALSE | DC107: FALSE | DD107: FALSE | DE107: FALSE | DF107: =IF(DF11,WEIBULL(DF106,$I$107,$K$107,0)) -> FALSE | DG107: FALSE | DH107: FALSE | DI107: FALSE
C108: S curve | E108: % | H108: Cstr Mnth | I108: ='Operating Assumptions'!E5 -> 8 | L108: =SUM(N108:FN108)=1 -> TRUE | N108: =N107/$M$107 -> 0 | O108: =O107/$M$107 -> 0 | P108: 0 | Q108: 0 | R108: 0 | S108: 0 | T108: 0.1474729556 | U108: 0.1980508507 | V108: 0.1973103217 | W108: 0.1664880631 | X108: 0.1244250271 | Y108: 0.08416487933 | Z108: 0.05218420004 | AA108: 0.02990370252 | AB108: 0 | AC108: 0 | AD108: 0 | AE108: 0 | AF108: 0 | AG108: 0 | AH108: 0 | AI108: 0 | AJ108: 0 | AK108: 0 | AL108: 0 | AM108: 0 | AN108: 0 | AO108: 0 | AP108: 0 | AQ108: 0 | AR108: 0 | AS108: 0 | AT108: 0 | AU108: 0 | AV108: 0 | AW108: 0 | AX108: 0 | AY108: 0 | AZ108: 0 | BA108: 0 | BB108: 0 | BC108: 0 | BD108: 0 | BE108: 0 | BF108: 0 | BG108: 0 | BH108: 0 | BI108: 0 | BJ108: 0 | BK108: 0 | BL108: 0 | BM108: 0 | BN108: 0 | BO108: 0 | BP108: 0 | BQ108: 0 | BR108: 0 | BS108: 0 | BT108: 0 | BU108: 0 | BV108: 0 | BW108: 0 | BX108: 0 | BY108: 0 | BZ108: 0 | CA108: =CA107/$M$107 -> 0 | CB108: 0 | CC108: 0 | CD108: 0 | CE108: 0 | CF108: 0 | CG108: 0 | CH108: 0 | CI108: 0 | CJ108: 0 | CK108: 0 | CL108: 0 | CM108: 0 | CN108: 0 | CO108: 0 | CP108: 0 | CQ108: 0 | CR108: 0 | CS108: 0 | CT108: 0 | CU108: 0 | CV108: 0 | CW108: 0 | CX108: 0 | CY108: 0 | CZ108: 0 | DA108: 0 | DB108: 0 | DC108: 0 | DD108: 0 | DE108: 0 | DF108: 0 | DG108: 0 | DH108: 0 | DI108: 0
C109: Construction Expenditures | E109: USD 000's | N109: =N105*N108 -> 0 | O109: =O105*O108 -> 0 | P109: 0 | Q109: 0 | R109: 0 | S109: 0 | T109: 80.20152794 | U109: 107.7077541 | V109: 107.3050256 | W109: 90.54268281 | X109: 67.66716818 | Y109: 45.77213425 | Z109: 28.37979724 | AA109: 16.26279628 | AB109: 0 | AC109: 0 | AD109: 0 | AE109: 0 | AF109: 0 | AG109: 0 | AH109: 0 | AI109: =AI105*AI108 -> 0 | AJ109: 0 | AK109: 0 | AL109: 0 | AM109: 0 | AN109: 0 | AO109: 0 | AP109: 0 | AQ109: 0 | AR109: 0 | AS109: 0 | AT109: 0 | AU109: 0 | AV109: 0 | AW109: 0 | AX109: 0 | AY109: 0 | AZ109: 0 | BA109: 0 | BB109: 0 | BC109: 0 | BD109: 0 | BE109: 0 | BF109: 0 | BG109: 0 | BH109: 0 | BI109: 0 | BJ109: 0 | BK109: 0 | BL109: 0 | BM109: 0 | BN109: 0 | BO109: 0 | BP109: 0 | BQ109: 0 | BR109: 0 | BS109: 0 | BT109: 0 | BU109: 0 | BV109: 0 | BW109: 0 | BX109: 0 | BY109: 0 | BZ109: 0 | CA109: =CA105*CA108 -> 0 | CB109: 0 | CC109: 0 | CD109: 0 | CE109: 0 | CF109: 0 | CG109: 0 | CH109: 0 | CI109: 0 | CJ109: 0 | CK109: 0 | CL109: 0 | CM109: 0 | CN109: 0 | CO109: 0 | CP109: 0 | CQ109: 0 | CR109: 0 | CS109: 0 | CT109: 0 | CU109: 0 | CV109: 0 | CW109: 0 | CX109: 0 | CY109: 0 | CZ109: 0 | DA109: 0 | DB109: 0 | DC109: 0 | DD109: 0 | DE109: 0 | DF109: 0 | DG109: 0 | DH109: 0 | DI109: 0
C111: Development Cost | E111: USD 000's | H111: Percent | I111: ='Operating Assumptions'!E54 -> 0.05 | J111: Periods | K111: ='Operating Assumptions'!E3 -> 6 | L111: Total Cost | M111: =I111*J105 -> 27.19194432 | N111: =$M$111/$K$111*N9 -> 4.53199072 | O111: 4.53199072 | P111: 4.53199072 | Q111: 4.53199072 | R111: 4.53199072 | S111: 4.53199072 | T111: 0 | U111: 0 | V111: 0 | W111: 0 | X111: 0 | Y111: 0 | Z111: 0 | AA111: 0 | AB111: 0 | AC111: 0 | AD111: 0 | AE111: 0 | AF111: 0 | AG111: 0 | AH111: 0 | AI111: 0 | AJ111: 0 | AK111: 0 | AL111: 0 | AM111: 0 | AN111: 0 | AO111: 0 | AP111: 0 | AQ111: 0 | AR111: 0 | AS111: 0 | AT111: =$M$111/$K$111*AT9 -> 0 | AU111: 0 | AV111: 0 | AW111: 0 | AX111: 0 | AY111: 0 | AZ111: 0 | BA111: 0 | BB111: 0 | BC111: 0 | BD111: 0 | BE111: 0 | BF111: 0 | BG111: 0 | BH111: 0 | BI111: 0 | BJ111: 0 | BK111: 0 | BL111: 0 | BM111: 0 | BN111: 0 | BO111: 0 | BP111: 0 | BQ111: 0 | BR111: 0 | BS111: 0 | BT111: 0 | BU111: 0 | BV111: 0 | BW111: 0 | BX111: 0 | BY111: 0 | BZ111: =$M$111/$K$111*BZ9 -> 0 | CA111: 0 | CB111: 0 | CC111: 0 | CD111: 0 | CE111: 0 | CF111: 0 | CG111: 0 | CH111: 0 | CI111: 0 | CJ111: 0 | CK111: 0 | CL111: 0 | CM111: 0 | CN111: 0 | CO111: 0 | CP111: 0 | CQ111: 0 | CR111: 0 | CS111: 0 | CT111: 0 | CU111: 0 | CV111: 0 | CW111: 0 | CX111: 0 | CY111: 0 | CZ111: 0 | DA111: 0 | DB111: 0 | DC111: 0 | DD111: 0 | DE111: 0 | DF111: =$M$111/$K$111*DF9 -> 0 | DG111: 0 | DH111: 0 | DI111: 0
C112: Development Fee Paid at FC | E112: USD 000's | F112: Paid | G112: =NOT('Financing Assumptions'!$E$111) -> TRUE | H112: Percent | I112: ='Financing Assumptions'!$E$110 -> 0.05 | J112: =J105 -> 543.8388864 | N112: =$J$112*$I$112*$G$112*N10 -> 0 | O112: =$J$112*$I$112*$G$112*O10 -> 0 | P112: 0 | Q112: 0 | R112: 0 | S112: 0 | T112: 27.19194432 | U112: 0 | V112: 0 | W112: 0 | X112: 0 | Y112: 0 | Z112: 0 | AA112: 0 | AB112: 0 | AC112: 0 | AD112: 0 | AE112: 0 | AF112: 0 | AG112: 0 | AH112: 0 | AI112: 0 | AJ112: 0 | AK112: 0 | AL112: 0 | AM112: 0 | AN112: 0 | AO112: 0 | AP112: 0 | AQ112: 0 | AR112: 0 | AS112: 0 | AT112: 0 | AU112: 0 | AV112: 0 | AW112: 0 | AX112: 0 | AY112: 0 | AZ112: 0 | BA112: 0 | BB112: 0 | BC112: 0 | BD112: 0 | BE112: 0 | BF112: 0 | BG112: 0 | BH112: 0 | BI112: 0 | BJ112: 0 | BK112: 0 | BL112: 0 | BM112: 0 | BN112: 0 | BO112: 0 | BP112: 0 | BQ112: 0 | BR112: 0 | BS112: 0 | BT112: 0 | BU112: 0 | BV112: 0 | BW112: 0 | BX112: 0 | BY112: 0 | BZ112: 0 | CA112: =$J$112*$I$112*$G$112*CA10 -> 0 | CB112: 0 | CC112: 0 | CD112: 0 | CE112: 0 | CF112: 0 | CG112: 0 | CH112: 0 | CI112: 0 | CJ112: 0 | CK112: 0 | CL112: 0 | CM112: 0 | CN112: 0 | CO112: 0 | CP112: 0 | CQ112: 0 | CR112: 0 | CS112: 0 | CT112: 0 | CU112: 0 | CV112: 0 | CW112: 0 | CX112: 0 | CY112: 0 | CZ112: 0 | DA112: 0 | DB112: 0 | DC112: 0 | DD112: 0 | DE112: 0 | DF112: 0 | DG112: 0 | DH112: 0 | DI112: 0
D113: Initial Capital Expenditures | N113: =N111+N109+N112 -> 4.53199072 | O113: =O111+O109+O112 -> 4.53199072 | P113: 4.53199072 | Q113: 4.53199072 | R113: 4.53199072 | S113: 4.53199072 | T113: 107.3934723 | U113: 107.7077541 | V113: 107.3050256 | W113: 90.54268281 | X113: 67.66716818 | Y113: 45.77213425 | Z113: 28.37979724 | AA113: 16.26279628 | AB113: 0 | AC113: 0 | AD113: 0 | AE113: 0 | AF113: 0 | AG113: 0 | AH113: 0 | AI113: 0 | AJ113: 0 | AK113: 0 | AL113: 0 | AM113: 0 | AN113: 0 | AO113: 0 | AP113: 0 | AQ113: 0 | AR113: 0 | AS113: 0 | AT113: 0 | AU113: 0 | AV113: 0 | AW113: 0 | AX113: 0 | AY113: 0 | AZ113: 0 | BA113: 0 | BB113: 0 | BC113: 0 | BD113: 0 | BE113: 0 | BF113: 0 | BG113: 0 | BH113: 0 | BI113: 0 | BJ113: 0 | BK113: 0 | BL113: 0 | BM113: 0 | BN113: 0 | BO113: 0 | BP113: 0 | BQ113: 0 | BR113: 0 | BS113: 0 | BT113: 0 | BU113: 0 | BV113: 0 | BW113: 0 | BX113: 0 | BY113: 0 | BZ113: 0 | CA113: =CA111+CA109+CA112 -> 0 | CB113: 0 | CC113: 0 | CD113: 0 | CE113: 0 | CF113: 0 | CG113: 0 | CH113: 0 | CI113: 0 | CJ113: 0 | CK113: 0 | CL113: 0 | CM113: 0 | CN113: 0 | CO113: 0 | CP113: 0 | CQ113: 0 | CR113: 0 | CS113: 0 | CT113: 0 | CU113: 0 | CV113: 0 | CW113: 0 | CX113: 0 | CY113: 0 | CZ113: 0 | DA113: 0 | DB113: 0 | DC113: 0 | DD113: 0 | DE113: 0 | DF113: 0 | DG113: 0 | DH113: 0 | DI113: 0
B115: Replacement of Inverters
C116: Replacement Period for Inverters | E116: Test | F116: Real Cost | N116: =MATCH(N6,'Operating Assumptions'!$E$164:$E$165,0) ->  | O116: =MATCH(O6,'Operating Assumptions'!$E$164:$E$165,0) ->  | P116: =MATCH(P6,'Operating Assumptions'!$E$164:$E$165,0) ->  | Q116: =MATCH(Q6,'Operating Assumptions'!$E$164:$E$165,0) ->  | R116: =MATCH(R6,'Operating Assumptions'!$E$164:$E$165,0) ->  | S116: =MATCH(S6,'Operating Assumptions'!$E$164:$E$165,0) ->  | T116: =MATCH(T6,'Operating Assumptions'!$E$164:$E$165,0) ->  | U116: =MATCH(U6,'Operating Assumptions'!$E$164:$E$165,0) ->  | V116: =MATCH(V6,'Operating Assumptions'!$E$164:$E$165,0) ->  | W116: =MATCH(W6,'Operating Assumptions'!$E$164:$E$165,0) ->  | X116: =MATCH(X6,'Operating Assumptions'!$E$164:$E$165,0) ->  | Y116: =MATCH(Y6,'Operating Assumptions'!$E$164:$E$165,0) ->  | Z116: =MATCH(Z6,'Operating Assumptions'!$E$164:$E$165,0) ->  | AA116: =MATCH(AA6,'Operating Assumptions'!$E$164:$E$165,0) ->  | AB116: =MATCH(AB6,'Operating Assumptions'!$E$164:$E$165,0) ->  | AC116: =MATCH(AC6,'Operating Assumptions'!$E$164:$E$165,0) ->  | AD116: =MATCH(AD6,'Operating Assumptions'!$E$164:$E$165,0) ->  | AE116: =MATCH(AE6,'Operating Assumptions'!$E$164:$E$165,0) ->  | AF116: =MATCH(AF6,'Operating Assumptions'!$E$164:$E$165,0) ->  | AG116: =MATCH(AG6,'Operating Assumptions'!$E$164:$E$165,0) ->  | AH116: =MATCH(AH6,'Operating Assumptions'!$E$164:$E$165,0) ->  | AI116: =MATCH(AI6,'Operating Assumptions'!$E$164:$E$165,0) ->  | AJ116: =MATCH(AJ6,'Operating Assumptions'!$E$164:$E$165,0) ->  | AK116: =MATCH(AK6,'Operating Assumptions'!$E$164:$E$165,0) ->  | AL116: =MATCH(AL6,'Operating Assumptions'!$E$164:$E$165,0) ->  | AM116: =MATCH(AM6,'Operating Assumptions'!$E$164:$E$165,0) ->  | AN116: =MATCH(AN6,'Operating Assumptions'!$E$164:$E$165,0) ->  | AO116: =MATCH(AO6,'Operating Assumptions'!$E$164:$E$165,0) ->  | AP116: =MATCH(AP6,'Operating Assumptions'!$E$164:$E$165,0) ->  | AQ116: =MATCH(AQ6,'Operating Assumptions'!$E$164:$E$165,0) ->  | AR116: =MATCH(AR6,'Operating Assumptions'!$E$164:$E$165,0) ->  | AS116: =MATCH(AS6,'Operating Assumptions'!$E$164:$E$165,0) ->  | AT116: =MATCH(AT6,'Operating Assumptions'!$E$164:$E$165,0) ->  | AU116: =MATCH(AU6,'Operating Assumptions'!$E$164:$E$165,0) ->  | AV116: =MATCH(AV6,'Operating Assumptions'!$E$164:$E$165,0) ->  | AW116: =MATCH(AW6,'Operating Assumptions'!$E$164:$E$165,0) ->  | AX116: =MATCH(AX6,'Operating Assumptions'!$E$164:$E$165,0) ->  | AY116: =MATCH(AY6,'Operating Assumptions'!$E$164:$E$165,0) ->  | AZ116: =MATCH(AZ6,'Operating Assumptions'!$E$164:$E$165,0) ->  | BA116: =MATCH(BA6,'Operating Assumptions'!$E$164:$E$165,0) ->  | BB116: =MATCH(BB6,'Operating Assumptions'!$E$164:$E$165,0) ->  | BC116: =MATCH(BC6,'Operating Assumptions'!$E$164:$E$165,0) ->  | BD116: =MATCH(BD6,'Operating Assumptions'!$E$164:$E$165,0) ->  | BE116: =MATCH(BE6,'Operating Assumptions'!$E$164:$E$165,0) ->  | BF116: =MATCH(BF6,'Operating Assumptions'!$E$164:$E$165,0) ->  | BG116: =MATCH(BG6,'Operating Assumptions'!$E$164:$E$165,0) ->  | BH116: =MATCH(BH6,'Operating Assumptions'!$E$164:$E$165,0) ->  | BI116: =MATCH(BI6,'Operating Assumptions'!$E$164:$E$165,0) ->  | BJ116: =MATCH(BJ6,'Operating Assumptions'!$E$164:$E$165,0) ->  | BK116: =MATCH(BK6,'Operating Assumptions'!$E$164:$E$165,0) ->  | BL116: =MATCH(BL6,'Operating Assumptions'!$E$164:$E$165,0) ->  | BM116: =MATCH(BM6,'Operating Assumptions'!$E$164:$E$165,0) ->  | BN116: =MATCH(BN6,'Operating Assumptions'!$E$164:$E$165,0) ->  | BO116: =MATCH(BO6,'Operating Assumptions'!$E$164:$E$165,0) ->  | BP116: =MATCH(BP6,'Operating Assumptions'!$E$164:$E$165,0) ->  | BQ116: =MATCH(BQ6,'Operating Assumptions'!$E$164:$E$165,0) ->  | BR116: =MATCH(BR6,'Operating Assumptions'!$E$164:$E$165,0) ->  | BS116: =MATCH(BS6,'Operating Assumptions'!$E$164:$E$165,0) ->  | BT116: =MATCH(BT6,'Operating Assumptions'!$E$164:$E$165,0) ->  | BU116: =MATCH(BU6,'Operating Assumptions'!$E$164:$E$165,0) ->  | BV116: =MATCH(BV6,'Operating Assumptions'!$E$164:$E$165,0) ->  | BW116: =MATCH(BW6,'Operating Assumptions'!$E$164:$E$165,0) ->  | BX116: =MATCH(BX6,'Operating Assumptions'!$E$164:$E$165,0) ->  | BY116: =MATCH(BY6,'Operating Assumptions'!$E$164:$E$165,0) ->  | BZ116: =MATCH(BZ6,'Operating Assumptions'!$E$164:$E$165,0) ->  | CA116: =MATCH(CA6,'Operating Assumptions'!$E$164:$E$165,0) ->  | CB116: =MATCH(CB6,'Operating Assumptions'!$E$164:$E$165,0) ->  | CC116: =MATCH(CC6,'Operating Assumptions'!$E$164:$E$165,0) ->  | CD116: =MATCH(CD6,'Operating Assumptions'!$E$164:$E$165,0) ->  | CE116: =MATCH(CE6,'Operating Assumptions'!$E$164:$E$165,0) ->  | CF116: =MATCH(CF6,'Operating Assumptions'!$E$164:$E$165,0) ->  | CG116: =MATCH(CG6,'Operating Assumptions'!$E$164:$E$165,0) ->  | CH116: =MATCH(CH6,'Operating Assumptions'!$E$164:$E$165,0) ->  | CI116: =MATCH(CI6,'Operating Assumptions'!$E$164:$E$165,0) ->  | CJ116: =MATCH(CJ6,'Operating Assumptions'!$E$164:$E$165,0) ->  | CK116: =MATCH(CK6,'Operating Assumptions'!$E$164:$E$165,0) ->  | CL116: =MATCH(CL6,'Operating Assumptions'!$E$164:$E$165,0) ->  | CM116: =MATCH(CM6,'Operating Assumptions'!$E$164:$E$165,0) ->  | CN116: =MATCH(CN6,'Operating Assumptions'!$E$164:$E$165,0) ->  | CO116: =MATCH(CO6,'Operating Assumptions'!$E$164:$E$165,0) ->  | CP116: =MATCH(CP6,'Operating Assumptions'!$E$164:$E$165,0) ->  | CQ116: =MATCH(CQ6,'Operating Assumptions'!$E$164:$E$165,0) ->  | CR116: =MATCH(CR6,'Operating Assumptions'!$E$164:$E$165,0) ->  | CS116: =MATCH(CS6,'Operating Assumptions'!$E$164:$E$165,0) ->  | CT116: =MATCH(CT6,'Operating Assumptions'!$E$164:$E$165,0) ->  | CU116: =MATCH(CU6,'Operating Assumptions'!$E$164:$E$165,0) ->  | CV116: =MATCH(CV6,'Operating Assumptions'!$E$164:$E$165,0) ->  | CW116: =MATCH(CW6,'Operating Assumptions'!$E$164:$E$165,0) ->  | CX116: =MATCH(CX6,'Operating Assumptions'!$E$164:$E$165,0) ->  | CY116: =MATCH(CY6,'Operating Assumptions'!$E$164:$E$165,0) ->  | CZ116: =MATCH(CZ6,'Operating Assumptions'!$E$164:$E$165,0) ->  | DA116: =MATCH(DA6,'Operating Assumptions'!$E$164:$E$165,0) ->  | DB116: =MATCH(DB6,'Operating Assumptions'!$E$164:$E$165,0) ->  | DC116: =MATCH(DC6,'Operating Assumptions'!$E$164:$E$165,0) ->  | DD116: =MATCH(DD6,'Operating Assumptions'!$E$164:$E$165,0) -> 1 | DE116: =MATCH(DE6,'Operating Assumptions'!$E$164:$E$165,0) ->  | DF116: =MATCH(DF6,'Operating Assumptions'!$E$164:$E$165,0) ->  | DG116: =MATCH(DG6,'Operating Assumptions'!$E$164:$E$165,0) ->  | DH116: =MATCH(DH6,'Operating Assumptions'!$E$164:$E$165,0) ->  | DI116: =MATCH(DI6,'Operating Assumptions'!$E$164:$E$165,0) -> 
C117: Expenditure for Inversters without Inflation | E117: USD/kW | F117: ='Operating Assumptions'!E159 -> 107.01684 | N117: =IF(N14,INDEX('Operating Assumptions'!$F$164:$F$165,N116)) -> FALSE | O117: =IF(O14,INDEX('Operating Assumptions'!$F$164:$F$165,O116)) -> FALSE | P117: =IF(P14,INDEX('Operating Assumptions'!$F$164:$F$165,P116)) -> FALSE | Q117: =IF(Q14,INDEX('Operating Assumptions'!$F$164:$F$165,Q116)) -> FALSE | R117: =IF(R14,INDEX('Operating Assumptions'!$F$164:$F$165,R116)) -> FALSE | S117: =IF(S14,INDEX('Operating Assumptions'!$F$164:$F$165,S116)) -> FALSE | T117: =IF(T14,INDEX('Operating Assumptions'!$F$164:$F$165,T116)) -> FALSE | U117: =IF(U14,INDEX('Operating Assumptions'!$F$164:$F$165,U116)) -> FALSE | V117: =IF(V14,INDEX('Operating Assumptions'!$F$164:$F$165,V116)) -> FALSE | W117: =IF(W14,INDEX('Operating Assumptions'!$F$164:$F$165,W116)) -> FALSE | X117: =IF(X14,INDEX('Operating Assumptions'!$F$164:$F$165,X116)) -> FALSE | Y117: =IF(Y14,INDEX('Operating Assumptions'!$F$164:$F$165,Y116)) -> FALSE | Z117: =IF(Z14,INDEX('Operating Assumptions'!$F$164:$F$165,Z116)) -> FALSE | AA117: =IF(AA14,INDEX('Operating Assumptions'!$F$164:$F$165,AA116)) -> FALSE | AB117: =IF(AB14,INDEX('Operating Assumptions'!$F$164:$F$165,AB116)) ->  | AC117: =IF(AC14,INDEX('Operating Assumptions'!$F$164:$F$165,AC116)) ->  | AD117: =IF(AD14,INDEX('Operating Assumptions'!$F$164:$F$165,AD116)) ->  | AE117: =IF(AE14,INDEX('Operating Assumptions'!$F$164:$F$165,AE116)) ->  | AF117: =IF(AF14,INDEX('Operating Assumptions'!$F$164:$F$165,AF116)) ->  | AG117: =IF(AG14,INDEX('Operating Assumptions'!$F$164:$F$165,AG116)) ->  | AH117: =IF(AH14,INDEX('Operating Assumptions'!$F$164:$F$165,AH116)) ->  | AI117: =IF(AI14,INDEX('Operating Assumptions'!$F$164:$F$165,AI116)) ->  | AJ117: =IF(AJ14,INDEX('Operating Assumptions'!$F$164:$F$165,AJ116)) ->  | AK117: =IF(AK14,INDEX('Operating Assumptions'!$F$164:$F$165,AK116)) ->  | AL117: =IF(AL14,INDEX('Operating Assumptions'!$F$164:$F$165,AL116)) ->  | AM117: =IF(AM14,INDEX('Operating Assumptions'!$F$164:$F$165,AM116)) ->  | AN117: =IF(AN14,INDEX('Operating Assumptions'!$F$164:$F$165,AN116)) ->  | AO117: =IF(AO14,INDEX('Operating Assumptions'!$F$164:$F$165,AO116)) ->  | AP117: =IF(AP14,INDEX('Operating Assumptions'!$F$164:$F$165,AP116)) ->  | AQ117: =IF(AQ14,INDEX('Operating Assumptions'!$F$164:$F$165,AQ116)) ->  | AR117: =IF(AR14,INDEX('Operating Assumptions'!$F$164:$F$165,AR116)) ->  | AS117: =IF(AS14,INDEX('Operating Assumptions'!$F$164:$F$165,AS116)) ->  | AT117: =IF(AT14,INDEX('Operating Assumptions'!$F$164:$F$165,AT116)) ->  | AU117: =IF(AU14,INDEX('Operating Assumptions'!$F$164:$F$165,AU116)) ->  | AV117: =IF(AV14,INDEX('Operating Assumptions'!$F$164:$F$165,AV116)) ->  | AW117: =IF(AW14,INDEX('Operating Assumptions'!$F$164:$F$165,AW116)) ->  | AX117: =IF(AX14,INDEX('Operating Assumptions'!$F$164:$F$165,AX116)) ->  | AY117: =IF(AY14,INDEX('Operating Assumptions'!$F$164:$F$165,AY116)) ->  | AZ117: =IF(AZ14,INDEX('Operating Assumptions'!$F$164:$F$165,AZ116)) ->  | BA117: =IF(BA14,INDEX('Operating Assumptions'!$F$164:$F$165,BA116)) ->  | BB117: =IF(BB14,INDEX('Operating Assumptions'!$F$164:$F$165,BB116)) ->  | BC117: =IF(BC14,INDEX('Operating Assumptions'!$F$164:$F$165,BC116)) ->  | BD117: =IF(BD14,INDEX('Operating Assumptions'!$F$164:$F$165,BD116)) ->  | BE117: =IF(BE14,INDEX('Operating Assumptions'!$F$164:$F$165,BE116)) ->  | BF117: =IF(BF14,INDEX('Operating Assumptions'!$F$164:$F$165,BF116)) ->  | BG117: =IF(BG14,INDEX('Operating Assumptions'!$F$164:$F$165,BG116)) ->  | BH117: =IF(BH14,INDEX('Operating Assumptions'!$F$164:$F$165,BH116)) ->  | BI117: =IF(BI14,INDEX('Operating Assumptions'!$F$164:$F$165,BI116)) ->  | BJ117: =IF(BJ14,INDEX('Operating Assumptions'!$F$164:$F$165,BJ116)) ->  | BK117: =IF(BK14,INDEX('Operating Assumptions'!$F$164:$F$165,BK116)) ->  | BL117: =IF(BL14,INDEX('Operating Assumptions'!$F$164:$F$165,BL116)) ->  | BM117: =IF(BM14,INDEX('Operating Assumptions'!$F$164:$F$165,BM116)) ->  | BN117: =IF(BN14,INDEX('Operating Assumptions'!$F$164:$F$165,BN116)) ->  | BO117: =IF(BO14,INDEX('Operating Assumptions'!$F$164:$F$165,BO116)) ->  | BP117: =IF(BP14,INDEX('Operating Assumptions'!$F$164:$F$165,BP116)) ->  | BQ117: =IF(BQ14,INDEX('Operating Assumptions'!$F$164:$F$165,BQ116)) ->  | BR117: =IF(BR14,INDEX('Operating Assumptions'!$F$164:$F$165,BR116)) ->  | BS117: =IF(BS14,INDEX('Operating Assumptions'!$F$164:$F$165,BS116)) ->  | BT117: =IF(BT14,INDEX('Operating Assumptions'!$F$164:$F$165,BT116)) ->  | BU117: =IF(BU14,INDEX('Operating Assumptions'!$F$164:$F$165,BU116)) ->  | BV117: =IF(BV14,INDEX('Operating Assumptions'!$F$164:$F$165,BV116)) ->  | BW117: =IF(BW14,INDEX('Operating Assumptions'!$F$164:$F$165,BW116)) ->  | BX117: =IF(BX14,INDEX('Operating Assumptions'!$F$164:$F$165,BX116)) ->  | BY117: =IF(BY14,INDEX('Operating Assumptions'!$F$164:$F$165,BY116)) ->  | BZ117: =IF(BZ14,INDEX('Operating Assumptions'!$F$164:$F$165,BZ116)) -> FALSE | CA117: =IF(CA14,INDEX('Operating Assumptions'!$F$164:$F$165,CA116)) -> FALSE | CB117: =IF(CB14,INDEX('Operating Assumptions'!$F$164:$F$165,CB116)) -> FALSE | CC117: =IF(CC14,INDEX('Operating Assumptions'!$F$164:$F$165,CC116)) -> FALSE | CD117: =IF(CD14,INDEX('Operating Assumptions'!$F$164:$F$165,CD116)) -> FALSE | CE117: =IF(CE14,INDEX('Operating Assumptions'!$F$164:$F$165,CE116)) -> FALSE | CF117: =IF(CF14,INDEX('Operating Assumptions'!$F$164:$F$165,CF116)) -> FALSE | CG117: =IF(CG14,INDEX('Operating Assumptions'!$F$164:$F$165,CG116)) -> FALSE | CH117: =IF(CH14,INDEX('Operating Assumptions'!$F$164:$F$165,CH116)) -> FALSE | CI117: =IF(CI14,INDEX('Operating Assumptions'!$F$164:$F$165,CI116)) -> FALSE | CJ117: =IF(CJ14,INDEX('Operating Assumptions'!$F$164:$F$165,CJ116)) -> FALSE | CK117: =IF(CK14,INDEX('Operating Assumptions'!$F$164:$F$165,CK116)) -> FALSE | CL117: =IF(CL14,INDEX('Operating Assumptions'!$F$164:$F$165,CL116)) -> FALSE | CM117: =IF(CM14,INDEX('Operating Assumptions'!$F$164:$F$165,CM116)) -> FALSE | CN117: =IF(CN14,INDEX('Operating Assumptions'!$F$164:$F$165,CN116)) -> FALSE | CO117: =IF(CO14,INDEX('Operating Assumptions'!$F$164:$F$165,CO116)) -> FALSE | CP117: =IF(CP14,INDEX('Operating Assumptions'!$F$164:$F$165,CP116)) -> FALSE | CQ117: =IF(CQ14,INDEX('Operating Assumptions'!$F$164:$F$165,CQ116)) -> FALSE | CR117: =IF(CR14,INDEX('Operating Assumptions'!$F$164:$F$165,CR116)) -> FALSE | CS117: =IF(CS14,INDEX('Operating Assumptions'!$F$164:$F$165,CS116)) -> FALSE | CT117: =IF(CT14,INDEX('Operating Assumptions'!$F$164:$F$165,CT116)) -> FALSE | CU117: =IF(CU14,INDEX('Operating Assumptions'!$F$164:$F$165,CU116)) -> FALSE | CV117: =IF(CV14,INDEX('Operating Assumptions'!$F$164:$F$165,CV116)) -> FALSE | CW117: =IF(CW14,INDEX('Operating Assumptions'!$F$164:$F$165,CW116)) -> FALSE | CX117: =IF(CX14,INDEX('Operating Assumptions'!$F$164:$F$165,CX116)) -> FALSE | CY117: =IF(CY14,INDEX('Operating Assumptions'!$F$164:$F$165,CY116)) -> FALSE | CZ117: =IF(CZ14,INDEX('Operating Assumptions'!$F$164:$F$165,CZ116)) -> FALSE | DA117: =IF(DA14,INDEX('Operating Assumptions'!$F$164:$F$165,DA116)) -> FALSE | DB117: =IF(DB14,INDEX('Operating Assumptions'!$F$164:$F$165,DB116)) -> FALSE | DC117: =IF(DC14,INDEX('Operating Assumptions'!$F$164:$F$165,DC116)) -> FALSE | DD117: =IF(DD14,INDEX('Operating Assumptions'!$F$164:$F$165,DD116)) -> FALSE | DE117: =IF(DE14,INDEX('Operating Assumptions'!$F$164:$F$165,DE116)) -> FALSE | DF117: =IF(DF14,INDEX('Operating Assumptions'!$F$164:$F$165,DF116)) -> FALSE | DG117: =IF(DG14,INDEX('Operating Assumptions'!$F$164:$F$165,DG116)) -> FALSE | DH117: =IF(DH14,INDEX('Operating Assumptions'!$F$164:$F$165,DH116)) -> FALSE | DI117: =IF(DI14,INDEX('Operating Assumptions'!$F$164:$F$165,DI116)) -> FALSE
C118: Inflation Index | E118: Index | M118: =M68 -> 1 | N118: 1 | O118: 1 | P118: 1 | Q118: 1 | R118: 1 | S118: 1 | T118: 1 | U118: 1 | V118: 1.000829538 | W118: 1.001659764 | X118: 1.002490679 | Y118: 1.003322284 | Z118: 1.004154578 | AA118: 1.004987562 | AB118: 1.01 | AC118: 1.015037438 | AD118: 1.0201 | AE118: 1.025187812 | AF118: 1.030301 | AG118: 1.03543969 | AH118: 1.04060401 | AI118: 1.045794087 | AJ118: 1.05101005 | AK118: 1.056252028 | AL118: 1.061520151 | AM118: 1.066814548 | AN118: 1.072135352 | AO118: 1.077482694 | AP118: 1.082856706 | AQ118: 1.088257521 | AR118: 1.093685273 | AS118: =AS68 -> 1.099140096 | AT118: 1.104622125 | AU118: 1.110131497 | AV118: 1.115668347 | AW118: 1.121232812 | AX118: 1.12682503 | AY118: 1.13244514 | AZ118: 1.13809328 | BA118: 1.143769591 | BB118: 1.149474213 | BC118: 1.155207287 | BD118: 1.160968955 | BE118: 1.16675936 | BF118: 1.172578645 | BG118: 1.178426954 | BH118: 1.184304431 | BI118: 1.190211223 | BJ118: 1.196147476 | BK118: 1.202113336 | BL118: 1.20810895 | BM118: 1.214134469 | BN118: 1.22019004 | BO118: 1.226275814 | BP118: 1.23239194 | BQ118: 1.238538572 | BR118: 1.24471586 | BS118: 1.250923957 | BT118: 1.257163018 | BU118: 1.263433197 | BV118: 1.269734649 | BW118: 1.276067529 | BX118: 1.282431995 | BY118: =BY68 -> 1.288828204 | BZ118: 1.295256315 | CA118: 1.301716486 | CB118: 1.308208878 | CC118: 1.314733651 | CD118: 1.321290967 | CE118: 1.327880988 | CF118: 1.334503877 | CG118: 1.341159798 | CH118: 1.347848915 | CI118: 1.354571396 | CJ118: 1.361327404 | CK118: 1.368117109 | CL118: 1.374940679 | CM118: 1.381798281 | CN118: 1.388690085 | CO118: 1.395616263 | CP118: 1.402576986 | CQ118: 1.409572426 | CR118: 1.416602756 | CS118: 1.42366815 | CT118: 1.430768784 | CU118: 1.437904832 | CV118: 1.445076471 | CW118: 1.45228388 | CX118: 1.459527236 | CY118: 1.466806719 | CZ118: 1.474122509 | DA118: 1.481474786 | DB118: 1.488863734 | DC118: 1.496289534 | DD118: 1.503752371 | DE118: =DE68 -> 1.511252429 | DF118: 1.518789895 | DG118: 1.526364954 | DH118: 1.533977794 | DI118: 1.541628603
C119: Inflated Expenditure | E119: USD 000's | N119: =IFERROR(N118*N117,0) -> 0 | O119: =IFERROR(O118*O117,0) -> 0 | P119: 0 | Q119: 0 | R119: 0 | S119: 0 | T119: 0 | U119: 0 | V119: 0 | W119: 0 | X119: 0 | Y119: 0 | Z119: 0 | AA119: 0 | AB119: 0 | AC119: 0 | AD119: 0 | AE119: 0 | AF119: 0 | AG119: 0 | AH119: 0 | AI119: 0 | AJ119: 0 | AK119: 0 | AL119: 0 | AM119: 0 | AN119: 0 | AO119: 0 | AP119: 0 | AQ119: 0 | AR119: 0 | AS119: 0 | AT119: 0 | AU119: 0 | AV119: 0 | AW119: 0 | AX119: 0 | AY119: 0 | AZ119: 0 | BA119: 0 | BB119: 0 | BC119: 0 | BD119: 0 | BE119: 0 | BF119: 0 | BG119: 0 | BH119: 0 | BI119: 0 | BJ119: 0 | BK119: 0 | BL119: 0 | BM119: 0 | BN119: 0 | BO119: 0 | BP119: 0 | BQ119: 0 | BR119: 0 | BS119: 0 | BT119: 0 | BU119: 0 | BV119: 0 | BW119: 0 | BX119: 0 | BY119: 0 | BZ119: 0 | CA119: =IFERROR(CA118*CA117,0) -> 0 | CB119: 0 | CC119: 0 | CD119: 0 | CE119: 0 | CF119: 0 | CG119: 0 | CH119: 0 | CI119: 0 | CJ119: 0 | CK119: 0 | CL119: 0 | CM119: 0 | CN119: 0 | CO119: 0 | CP119: 0 | CQ119: 0 | CR119: 0 | CS119: 0 | CT119: 0 | CU119: 0 | CV119: 0 | CW119: 0 | CX119: 0 | CY119: 0 | CZ119: 0 | DA119: 0 | DB119: 0 | DC119: 0 | DD119: 0 | DE119: 0 | DF119: 0 | DG119: 0 | DH119: 0 | DI119: 0
D120: Total Expenditures | E120: USD 000's | N120: =N119*N29/1000 -> 0 | O120: 0 | P120: 0 | Q120: 0 | R120: 0 | S120: 0 | T120: 0 | U120: 0 | V120: 0 | W120: 0 | X120: 0 | Y120: 0 | Z120: 0 | AA120: 0 | AB120: 0 | AC120: 0 | AD120: 0 | AE120: 0 | AF120: 0 | AG120: 0 | AH120: 0 | AI120: 0 | AJ120: 0 | AK120: 0 | AL120: 0 | AM120: 0 | AN120: 0 | AO120: 0 | AP120: 0 | AQ120: 0 | AR120: 0 | AS120: 0 | AT120: =AT119*AT29/1000 -> 0 | AU120: 0 | AV120: 0 | AW120: 0 | AX120: 0 | AY120: 0 | AZ120: 0 | BA120: 0 | BB120: 0 | BC120: 0 | BD120: 0 | BE120: 0 | BF120: 0 | BG120: 0 | BH120: 0 | BI120: 0 | BJ120: 0 | BK120: 0 | BL120: 0 | BM120: 0 | BN120: 0 | BO120: 0 | BP120: 0 | BQ120: 0 | BR120: 0 | BS120: 0 | BT120: 0 | BU120: 0 | BV120: 0 | BW120: 0 | BX120: 0 | BY120: 0 | BZ120: =BZ119*BZ29/1000 -> 0 | CA120: 0 | CB120: 0 | CC120: 0 | CD120: 0 | CE120: 0 | CF120: 0 | CG120: 0 | CH120: 0 | CI120: 0 | CJ120: 0 | CK120: 0 | CL120: 0 | CM120: 0 | CN120: 0 | CO120: 0 | CP120: 0 | CQ120: 0 | CR120: 0 | CS120: 0 | CT120: 0 | CU120: 0 | CV120: 0 | CW120: 0 | CX120: 0 | CY120: 0 | CZ120: 0 | DA120: 0 | DB120: 0 | DC120: 0 | DD120: 0 | DE120: 0 | DF120: =DF119*DF29/1000 -> 0 | DG120: 0 | DH120: 0 | DI120: 0
D122: Pre tax Cash Flow | N122: =N102-N113-0.000000001 -> -4.531990721 | O122: =O102-O113-O120 -> -4.53199072 | P122: =P102-P113-P120 -> -4.53199072 | Q122: -4.53199072 | R122: -4.53199072 | S122: -4.53199072 | T122: -107.3934723 | U122: -107.7077541 | V122: -107.3050256 | W122: -90.54268281 | X122: -67.66716818 | Y122: -45.77213425 | Z122: -26.44777152 | AA122: -11.68796753 | AB122: 28.18583198 | AC122: 31.11954799 | AD122: 27.97850409 | AE122: 30.89442272 | AF122: 27.77554507 | AG122: 30.68962568 | AH122: 27.57179934 | AI122: 30.46265506 | AJ122: 27.35623573 | AK122: 30.23450137 | AL122: 27.13942272 | AM122: 30.00512754 | AN122: 26.92132311 | AO122: 29.77449583 | AP122: 26.70189897 | AQ122: 29.54256779 | AR122: 26.48111171 | AS122: 29.30930426 | AT122: 26.25892198 | AU122: 29.07466533 | AV122: 26.03528969 | AW122: 28.83861038 | AX122: 25.81017403 | AY122: 28.60109799 | AZ122: 25.58353338 | BA122: 28.36208598 | BB122: 25.35532537 | BC122: 28.1215314 | BD122: 25.1255068 | BE122: 27.87939047 | BF122: 24.89403368 | BG122: 27.63561858 | BH122: 24.66086117 | BI122: 27.39017029 | BJ122: 24.42594358 | BK122: 27.1429993 | BL122: 24.18923437 | BM122: 26.89405845 | BN122: 23.9506861 | BO122: 26.64329966 | BP122: 23.71025042 | BQ122: 26.39067396 | BR122: 23.46787809 | BS122: 26.13613144 | BT122: 23.2235189 | BU122: 25.87962124 | BV122: 22.97712169 | BW122: 25.62109155 | BX122: 22.72863433 | BY122: 25.36048956 | BZ122: 0 | CA122: 0 | CB122: =CB102-CB113-CB120 -> 0 | CC122: 0 | CD122: 0 | CE122: 0 | CF122: 0 | CG122: 0 | CH122: 0 | CI122: 0 | CJ122: 0 | CK122: 0 | CL122: 0 | CM122: 0 | CN122: 0 | CO122: 0 | CP122: 0 | CQ122: 0 | CR122: 0 | CS122: 0 | CT122: 0 | CU122: 0 | CV122: 0 | CW122: 0 | CX122: 0 | CY122: 0 | CZ122: 0 | DA122: 0 | DB122: 0 | DC122: 0 | DD122: 0 | DE122: 0 | DF122: 0 | DG122: 0 | DH122: 0 | DI122: 0
A124: Depreciation Expense and After-tax Cash Flow
B126: Plant Balance
C127: Panels and Other
D128: Opening Balance | F128: Panel % | N128: =M130 -> 0 | O128: 4.086800666 | P128: 8.173601331 | Q128: 12.260402 | R128: 16.34720266 | S128: 20.43400333 | T128: 24.52080399 | U128: 121.3647167 | V128: 218.4920386 | W128: 315.256193 | X128: 396.9046163 | Y128: 457.9246503 | Z128: 499.2004605 | AA128: 524.7924313 | AB128: 539.4576879 | AC128: 539.4576879 | AD128: 539.4576879 | AE128: 539.4576879 | AF128: 539.4576879 | AG128: 539.4576879 | AH128: 539.4576879 | AI128: 539.4576879 | AJ128: 539.4576879 | AK128: 539.4576879 | AL128: 539.4576879 | AM128: 539.4576879 | AN128: 539.4576879 | AO128: 539.4576879 | AP128: 539.4576879 | AQ128: 539.4576879 | AR128: 539.4576879 | AS128: 539.4576879 | AT128: 539.4576879 | AU128: 539.4576879 | AV128: 539.4576879 | AW128: 539.4576879 | AX128: 539.4576879 | AY128: 539.4576879 | AZ128: 539.4576879 | BA128: 539.4576879 | BB128: 539.4576879 | BC128: 539.4576879 | BD128: 539.4576879 | BE128: 539.4576879 | BF128: 539.4576879 | BG128: 539.4576879 | BH128: 539.4576879 | BI128: 539.4576879 | BJ128: 539.4576879 | BK128: 539.4576879 | BL128: 539.4576879 | BM128: 539.4576879 | BN128: 539.4576879 | BO128: 539.4576879 | BP128: 539.4576879 | BQ128: 539.4576879 | BR128: 539.4576879 | BS128: 539.4576879 | BT128: 539.4576879 | BU128: 539.4576879 | BV128: 539.4576879 | BW128: 539.4576879 | BX128: 539.4576879 | BY128: 539.4576879 | BZ128: =BY130 -> 539.4576879 | CA128: 539.4576879 | CB128: 539.4576879 | CC128: 539.4576879 | CD128: 539.4576879 | CE128: 539.4576879 | CF128: 539.4576879 | CG128: 539.4576879 | CH128: 539.4576879 | CI128: 539.4576879 | CJ128: 539.4576879 | CK128: 539.4576879 | CL128: 539.4576879 | CM128: 539.4576879 | CN128: 539.4576879 | CO128: 539.4576879 | CP128: 539.4576879 | CQ128: 539.4576879 | CR128: 539.4576879 | CS128: 539.4576879 | CT128: 539.4576879 | CU128: 539.4576879 | CV128: 539.4576879 | CW128: 539.4576879 | CX128: 539.4576879 | CY128: 539.4576879 | CZ128: 539.4576879 | DA128: 539.4576879 | DB128: 539.4576879 | DC128: 539.4576879 | DD128: 539.4576879 | DE128: 539.4576879 | DF128: 539.4576879 | DG128: 539.4576879 | DH128: 539.4576879 | DI128: 539.4576879
D129: Add: Capital Expenditures | F129: ='Operating Assumptions'!E47 -> 0.9017672184 | N129: =N113*$F$129 -> 4.086800666 | O129: 4.086800666 | P129: 4.086800666 | Q129: 4.086800666 | R129: 4.086800666 | S129: 4.086800666 | T129: 96.84391276 | U129: 97.12732182 | V129: 96.76415447 | W129: 81.64842323 | X129: 61.02003403 | Y129: 41.27581018 | Z129: 25.59197082 | AA129: 14.66525656 | AB129: 0 | AC129: 0 | AD129: 0 | AE129: 0 | AF129: 0 | AG129: 0 | AH129: 0 | AI129: 0 | AJ129: 0 | AK129: 0 | AL129: 0 | AM129: 0 | AN129: 0 | AO129: 0 | AP129: 0 | AQ129: 0 | AR129: 0 | AS129: 0 | AT129: =AT113*$F$129 -> 0 | AU129: 0 | AV129: 0 | AW129: 0 | AX129: 0 | AY129: 0 | AZ129: 0 | BA129: 0 | BB129: 0 | BC129: 0 | BD129: 0 | BE129: 0 | BF129: 0 | BG129: 0 | BH129: 0 | BI129: 0 | BJ129: 0 | BK129: 0 | BL129: 0 | BM129: 0 | BN129: 0 | BO129: 0 | BP129: 0 | BQ129: 0 | BR129: 0 | BS129: 0 | BT129: 0 | BU129: 0 | BV129: 0 | BW129: 0 | BX129: 0 | BY129: 0 | BZ129: =BZ113*$F$129 -> 0 | CA129: 0 | CB129: 0 | CC129: 0 | CD129: 0 | CE129: 0 | CF129: 0 | CG129: 0 | CH129: 0 | CI129: 0 | CJ129: 0 | CK129: 0 | CL129: 0 | CM129: 0 | CN129: 0 | CO129: 0 | CP129: 0 | CQ129: 0 | CR129: 0 | CS129: 0 | CT129: 0 | CU129: 0 | CV129: 0 | CW129: 0 | CX129: 0 | CY129: 0 | CZ129: 0 | DA129: 0 | DB129: 0 | DC129: 0 | DD129: 0 | DE129: 0 | DF129: =DF113*$F$129 -> 0 | DG129: 0 | DH129: 0 | DI129: 0
D130: Closing Balance | N130: =SUM(N128:N129) -> 4.086800666 | O130: 8.173601331 | P130: 12.260402 | Q130: 16.34720266 | R130: 20.43400333 | S130: 24.52080399 | T130: 121.3647167 | U130: 218.4920386 | V130: 315.256193 | W130: 396.9046163 | X130: 457.9246503 | Y130: 499.2004605 | Z130: 524.7924313 | AA130: 539.4576879 | AB130: 539.4576879 | AC130: 539.4576879 | AD130: 539.4576879 | AE130: 539.4576879 | AF130: 539.4576879 | AG130: 539.4576879 | AH130: 539.4576879 | AI130: 539.4576879 | AJ130: 539.4576879 | AK130: 539.4576879 | AL130: 539.4576879 | AM130: 539.4576879 | AN130: 539.4576879 | AO130: 539.4576879 | AP130: 539.4576879 | AQ130: 539.4576879 | AR130: 539.4576879 | AS130: 539.4576879 | AT130: 539.4576879 | AU130: 539.4576879 | AV130: 539.4576879 | AW130: 539.4576879 | AX130: 539.4576879 | AY130: 539.4576879 | AZ130: 539.4576879 | BA130: 539.4576879 | BB130: 539.4576879 | BC130: 539.4576879 | BD130: 539.4576879 | BE130: 539.4576879 | BF130: 539.4576879 | BG130: 539.4576879 | BH130: 539.4576879 | BI130: 539.4576879 | BJ130: 539.4576879 | BK130: 539.4576879 | BL130: 539.4576879 | BM130: 539.4576879 | BN130: 539.4576879 | BO130: 539.4576879 | BP130: 539.4576879 | BQ130: 539.4576879 | BR130: 539.4576879 | BS130: 539.4576879 | BT130: 539.4576879 | BU130: 539.4576879 | BV130: 539.4576879 | BW130: 539.4576879 | BX130: 539.4576879 | BY130: 539.4576879 | BZ130: =SUM(BZ128:BZ129) -> 539.4576879 | CA130: 539.4576879 | CB130: 539.4576879 | CC130: 539.4576879 | CD130: 539.4576879 | CE130: 539.4576879 | CF130: 539.4576879 | CG130: 539.4576879 | CH130: 539.4576879 | CI130: 539.4576879 | CJ130: 539.4576879 | CK130: 539.4576879 | CL130: 539.4576879 | CM130: 539.4576879 | CN130: 539.4576879 | CO130: 539.4576879 | CP130: 539.4576879 | CQ130: 539.4576879 | CR130: 539.4576879 | CS130: 539.4576879 | CT130: 539.4576879 | CU130: 539.4576879 | CV130: 539.4576879 | CW130: 539.4576879 | CX130: 539.4576879 | CY130: 539.4576879 | CZ130: 539.4576879 | DA130: 539.4576879 | DB130: 539.4576879 | DC130: 539.4576879 | DD130: 539.4576879 | DE130: 539.4576879 | DF130: 539.4576879 | DG130: 539.4576879 | DH130: 539.4576879 | DI130: 539.4576879
D132: Depreciation Rate (lookup function on year) | L132: =SUM(M132:EA132)=1 -> FALSE | N132: =IF(N14,LOOKUP(N1,'Operating Assumptions'!$I$176:$R$176,'Operating Assumptions'!$I$177:$R$177))/N5 -> 0 | O132: =IF(O14,LOOKUP(O1,'Operating Assumptions'!$I$176:$R$176,'Operating Assumptions'!$I$177:$R$177))/O5 -> 0 | P132: =IF(P14,LOOKUP(P1,'Operating Assumptions'!$I$176:$R$176,'Operating Assumptions'!$I$177:$R$177))/P5 -> 0 | Q132: =IF(Q14,LOOKUP(Q1,'Operating Assumptions'!$I$176:$R$176,'Operating Assumptions'!$I$177:$R$177))/Q5 -> 0 | R132: =IF(R14,LOOKUP(R1,'Operating Assumptions'!$I$176:$R$176,'Operating Assumptions'!$I$177:$R$177))/R5 -> 0 | S132: =IF(S14,LOOKUP(S1,'Operating Assumptions'!$I$176:$R$176,'Operating Assumptions'!$I$177:$R$177))/S5 -> 0 | T132: =IF(T14,LOOKUP(T1,'Operating Assumptions'!$I$176:$R$176,'Operating Assumptions'!$I$177:$R$177))/T5 -> 0 | U132: =IF(U14,LOOKUP(U1,'Operating Assumptions'!$I$176:$R$176,'Operating Assumptions'!$I$177:$R$177))/U5 -> 0 | V132: =IF(V14,LOOKUP(V1,'Operating Assumptions'!$I$176:$R$176,'Operating Assumptions'!$I$177:$R$177))/V5 -> 0 | W132: =IF(W14,LOOKUP(W1,'Operating Assumptions'!$I$176:$R$176,'Operating Assumptions'!$I$177:$R$177))/W5 -> 0 | X132: =IF(X14,LOOKUP(X1,'Operating Assumptions'!$I$176:$R$176,'Operating Assumptions'!$I$177:$R$177))/X5 -> 0 | Y132: =IF(Y14,LOOKUP(Y1,'Operating Assumptions'!$I$176:$R$176,'Operating Assumptions'!$I$177:$R$177))/Y5 -> 0 | Z132: =IF(Z14,LOOKUP(Z1,'Operating Assumptions'!$I$176:$R$176,'Operating Assumptions'!$I$177:$R$177))/Z5 -> 0 | AA132: =IF(AA14,LOOKUP(AA1,'Operating Assumptions'!$I$176:$R$176,'Operating Assumptions'!$I$177:$R$177))/AA5 -> 0 | AB132: =IF(AB14,LOOKUP(AB1,'Operating Assumptions'!$I$176:$R$176,'Operating Assumptions'!$I$177:$R$177))/AB5 -> 0.04 | AC132: =IF(AC14,LOOKUP(AC1,'Operating Assumptions'!$I$176:$R$176,'Operating Assumptions'!$I$177:$R$177))/AC5 -> 0.04 | AD132: =IF(AD14,LOOKUP(AD1,'Operating Assumptions'!$I$176:$R$176,'Operating Assumptions'!$I$177:$R$177))/AD5 -> 0.0368 | AE132: =IF(AE14,LOOKUP(AE1,'Operating Assumptions'!$I$176:$R$176,'Operating Assumptions'!$I$177:$R$177))/AE5 -> 0.0368 | AF132: =IF(AF14,LOOKUP(AF1,'Operating Assumptions'!$I$176:$R$176,'Operating Assumptions'!$I$177:$R$177))/AF5 -> 0.033856 | AG132: =IF(AG14,LOOKUP(AG1,'Operating Assumptions'!$I$176:$R$176,'Operating Assumptions'!$I$177:$R$177))/AG5 -> 0.033856 | AH132: =IF(AH14,LOOKUP(AH1,'Operating Assumptions'!$I$176:$R$176,'Operating Assumptions'!$I$177:$R$177))/AH5 -> 0.03114752 | AI132: =IF(AI14,LOOKUP(AI1,'Operating Assumptions'!$I$176:$R$176,'Operating Assumptions'!$I$177:$R$177))/AI5 -> 0.03114752 | AJ132: =IF(AJ14,LOOKUP(AJ1,'Operating Assumptions'!$I$176:$R$176,'Operating Assumptions'!$I$177:$R$177))/AJ5 -> 0.0286557184 | AK132: =IF(AK14,LOOKUP(AK1,'Operating Assumptions'!$I$176:$R$176,'Operating Assumptions'!$I$177:$R$177))/AK5 -> 0.0286557184 | AL132: =IF(AL14,LOOKUP(AL1,'Operating Assumptions'!$I$176:$R$176,'Operating Assumptions'!$I$177:$R$177))/AL5 -> 0.02636326093 | AM132: =IF(AM14,LOOKUP(AM1,'Operating Assumptions'!$I$176:$R$176,'Operating Assumptions'!$I$177:$R$177))/AM5 -> 0.02636326093 | AN132: =IF(AN14,LOOKUP(AN1,'Operating Assumptions'!$I$176:$R$176,'Operating Assumptions'!$I$177:$R$177))/AN5 -> 0.02425420005 | AO132: =IF(AO14,LOOKUP(AO1,'Operating Assumptions'!$I$176:$R$176,'Operating Assumptions'!$I$177:$R$177))/AO5 -> 0.02425420005 | AP132: =IF(AP14,LOOKUP(AP1,'Operating Assumptions'!$I$176:$R$176,'Operating Assumptions'!$I$177:$R$177))/AP5 -> 0.02231386405 | AQ132: =IF(AQ14,LOOKUP(AQ1,'Operating Assumptions'!$I$176:$R$176,'Operating Assumptions'!$I$177:$R$177))/AQ5 -> 0.02231386405 | AR132: =IF(AR14,LOOKUP(AR1,'Operating Assumptions'!$I$176:$R$176,'Operating Assumptions'!$I$177:$R$177))/AR5 -> 0.02052875493 | AS132: =IF(AS14,LOOKUP(AS1,'Operating Assumptions'!$I$176:$R$176,'Operating Assumptions'!$I$177:$R$177))/AS5 -> 0.02052875493 | AT132: =IF(AT14,LOOKUP(AT1,'Operating Assumptions'!$I$176:$R$176,'Operating Assumptions'!$I$177:$R$177))/AT5 -> 0.01888645453 | AU132: =IF(AU14,LOOKUP(AU1,'Operating Assumptions'!$I$176:$R$176,'Operating Assumptions'!$I$177:$R$177))/AU5 -> 0.01888645453 | AV132: =IF(AV14,LOOKUP(AV1,'Operating Assumptions'!$I$176:$R$176,'Operating Assumptions'!$I$177:$R$177))/AV5 -> 0.01888645453 | AW132: =IF(AW14,LOOKUP(AW1,'Operating Assumptions'!$I$176:$R$176,'Operating Assumptions'!$I$177:$R$177))/AW5 -> 0.01888645453 | AX132: =IF(AX14,LOOKUP(AX1,'Operating Assumptions'!$I$176:$R$176,'Operating Assumptions'!$I$177:$R$177))/AX5 -> 0.01888645453 | AY132: =IF(AY14,LOOKUP(AY1,'Operating Assumptions'!$I$176:$R$176,'Operating Assumptions'!$I$177:$R$177))/AY5 -> 0.01888645453 | AZ132: =IF(AZ14,LOOKUP(AZ1,'Operating Assumptions'!$I$176:$R$176,'Operating Assumptions'!$I$177:$R$177))/AZ5 -> 0.01888645453 | BA132: =IF(BA14,LOOKUP(BA1,'Operating Assumptions'!$I$176:$R$176,'Operating Assumptions'!$I$177:$R$177))/BA5 -> 0.01888645453 | BB132: =IF(BB14,LOOKUP(BB1,'Operating Assumptions'!$I$176:$R$176,'Operating Assumptions'!$I$177:$R$177))/BB5 -> 0.01888645453 | BC132: =IF(BC14,LOOKUP(BC1,'Operating Assumptions'!$I$176:$R$176,'Operating Assumptions'!$I$177:$R$177))/BC5 -> 0.01888645453 | BD132: =IF(BD14,LOOKUP(BD1,'Operating Assumptions'!$I$176:$R$176,'Operating Assumptions'!$I$177:$R$177))/BD5 -> 0.01888645453 | BE132: =IF(BE14,LOOKUP(BE1,'Operating Assumptions'!$I$176:$R$176,'Operating Assumptions'!$I$177:$R$177))/BE5 -> 0.01888645453 | BF132: =IF(BF14,LOOKUP(BF1,'Operating Assumptions'!$I$176:$R$176,'Operating Assumptions'!$I$177:$R$177))/BF5 -> 0.01888645453 | BG132: =IF(BG14,LOOKUP(BG1,'Operating Assumptions'!$I$176:$R$176,'Operating Assumptions'!$I$177:$R$177))/BG5 -> 0.01888645453 | BH132: =IF(BH14,LOOKUP(BH1,'Operating Assumptions'!$I$176:$R$176,'Operating Assumptions'!$I$177:$R$177))/BH5 -> 0.01888645453 | BI132: =IF(BI14,LOOKUP(BI1,'Operating Assumptions'!$I$176:$R$176,'Operating Assumptions'!$I$177:$R$177))/BI5 -> 0.01888645453 | BJ132: =IF(BJ14,LOOKUP(BJ1,'Operating Assumptions'!$I$176:$R$176,'Operating Assumptions'!$I$177:$R$177))/BJ5 -> 0.01888645453 | BK132: =IF(BK14,LOOKUP(BK1,'Operating Assumptions'!$I$176:$R$176,'Operating Assumptions'!$I$177:$R$177))/BK5 -> 0.01888645453 | BL132: =IF(BL14,LOOKUP(BL1,'Operating Assumptions'!$I$176:$R$176,'Operating Assumptions'!$I$177:$R$177))/BL5 -> 0.01888645453 | BM132: =IF(BM14,LOOKUP(BM1,'Operating Assumptions'!$I$176:$R$176,'Operating Assumptions'!$I$177:$R$177))/BM5 -> 0.01888645453 | BN132: =IF(BN14,LOOKUP(BN1,'Operating Assumptions'!$I$176:$R$176,'Operating Assumptions'!$I$177:$R$177))/BN5 -> 0.01888645453 | BO132: =IF(BO14,LOOKUP(BO1,'Operating Assumptions'!$I$176:$R$176,'Operating Assumptions'!$I$177:$R$177))/BO5 -> 0.01888645453 | BP132: =IF(BP14,LOOKUP(BP1,'Operating Assumptions'!$I$176:$R$176,'Operating Assumptions'!$I$177:$R$177))/BP5 -> 0.01888645453 | BQ132: =IF(BQ14,LOOKUP(BQ1,'Operating Assumptions'!$I$176:$R$176,'Operating Assumptions'!$I$177:$R$177))/BQ5 -> 0.01888645453 | BR132: =IF(BR14,LOOKUP(BR1,'Operating Assumptions'!$I$176:$R$176,'Operating Assumptions'!$I$177:$R$177))/BR5 -> 0.01888645453 | BS132: =IF(BS14,LOOKUP(BS1,'Operating Assumptions'!$I$176:$R$176,'Operating Assumptions'!$I$177:$R$177))/BS5 -> 0.01888645453 | BT132: =IF(BT14,LOOKUP(BT1,'Operating Assumptions'!$I$176:$R$176,'Operating Assumptions'!$I$177:$R$177))/BT5 -> 0.01888645453 | BU132: =IF(BU14,LOOKUP(BU1,'Operating Assumptions'!$I$176:$R$176,'Operating Assumptions'!$I$177:$R$177))/BU5 -> 0.01888645453 | BV132: =IF(BV14,LOOKUP(BV1,'Operating Assumptions'!$I$176:$R$176,'Operating Assumptions'!$I$177:$R$177))/BV5 -> 0.01888645453 | BW132: =IF(BW14,LOOKUP(BW1,'Operating Assumptions'!$I$176:$R$176,'Operating Assumptions'!$I$177:$R$177))/BW5 -> 0.01888645453 | BX132: =IF(BX14,LOOKUP(BX1,'Operating Assumptions'!$I$176:$R$176,'Operating Assumptions'!$I$177:$R$177))/BX5 -> 0.01888645453 | BY132: =IF(BY14,LOOKUP(BY1,'Operating Assumptions'!$I$176:$R$176,'Operating Assumptions'!$I$177:$R$177))/BY5 -> 0.01888645453 | BZ132: =IF(BZ14,LOOKUP(BZ1,'Operating Assumptions'!$I$176:$R$176,'Operating Assumptions'!$I$177:$R$177))/BZ5 -> 0 | CA132: =IF(CA14,LOOKUP(CA1,'Operating Assumptions'!$I$176:$R$176,'Operating Assumptions'!$I$177:$R$177))/CA5 -> 0 | CB132: =IF(CB14,LOOKUP(CB1,'Operating Assumptions'!$I$176:$R$176,'Operating Assumptions'!$I$177:$R$177))/CB5 -> 0 | CC132: =IF(CC14,LOOKUP(CC1,'Operating Assumptions'!$I$176:$R$176,'Operating Assumptions'!$I$177:$R$177))/CC5 -> 0 | CD132: =IF(CD14,LOOKUP(CD1,'Operating Assumptions'!$I$176:$R$176,'Operating Assumptions'!$I$177:$R$177))/CD5 -> 0 | CE132: =IF(CE14,LOOKUP(CE1,'Operating Assumptions'!$I$176:$R$176,'Operating Assumptions'!$I$177:$R$177))/CE5 -> 0 | CF132: =IF(CF14,LOOKUP(CF1,'Operating Assumptions'!$I$176:$R$176,'Operating Assumptions'!$I$177:$R$177))/CF5 -> 0 | CG132: =IF(CG14,LOOKUP(CG1,'Operating Assumptions'!$I$176:$R$176,'Operating Assumptions'!$I$177:$R$177))/CG5 -> 0 | CH132: =IF(CH14,LOOKUP(CH1,'Operating Assumptions'!$I$176:$R$176,'Operating Assumptions'!$I$177:$R$177))/CH5 -> 0 | CI132: =IF(CI14,LOOKUP(CI1,'Operating Assumptions'!$I$176:$R$176,'Operating Assumptions'!$I$177:$R$177))/CI5 -> 0 | CJ132: =IF(CJ14,LOOKUP(CJ1,'Operating Assumptions'!$I$176:$R$176,'Operating Assumptions'!$I$177:$R$177))/CJ5 -> 0 | CK132: =IF(CK14,LOOKUP(CK1,'Operating Assumptions'!$I$176:$R$176,'Operating Assumptions'!$I$177:$R$177))/CK5 -> 0 | CL132: =IF(CL14,LOOKUP(CL1,'Operating Assumptions'!$I$176:$R$176,'Operating Assumptions'!$I$177:$R$177))/CL5 -> 0 | CM132: =IF(CM14,LOOKUP(CM1,'Operating Assumptions'!$I$176:$R$176,'Operating Assumptions'!$I$177:$R$177))/CM5 -> 0 | CN132: =IF(CN14,LOOKUP(CN1,'Operating Assumptions'!$I$176:$R$176,'Operating Assumptions'!$I$177:$R$177))/CN5 -> 0 | CO132: =IF(CO14,LOOKUP(CO1,'Operating Assumptions'!$I$176:$R$176,'Operating Assumptions'!$I$177:$R$177))/CO5 -> 0 | CP132: =IF(CP14,LOOKUP(CP1,'Operating Assumptions'!$I$176:$R$176,'Operating Assumptions'!$I$177:$R$177))/CP5 -> 0 | CQ132: =IF(CQ14,LOOKUP(CQ1,'Operating Assumptions'!$I$176:$R$176,'Operating Assumptions'!$I$177:$R$177))/CQ5 -> 0 | CR132: =IF(CR14,LOOKUP(CR1,'Operating Assumptions'!$I$176:$R$176,'Operating Assumptions'!$I$177:$R$177))/CR5 -> 0 | CS132: =IF(CS14,LOOKUP(CS1,'Operating Assumptions'!$I$176:$R$176,'Operating Assumptions'!$I$177:$R$177))/CS5 -> 0 | CT132: =IF(CT14,LOOKUP(CT1,'Operating Assumptions'!$I$176:$R$176,'Operating Assumptions'!$I$177:$R$177))/CT5 -> 0 | CU132: =IF(CU14,LOOKUP(CU1,'Operating Assumptions'!$I$176:$R$176,'Operating Assumptions'!$I$177:$R$177))/CU5 -> 0 | CV132: =IF(CV14,LOOKUP(CV1,'Operating Assumptions'!$I$176:$R$176,'Operating Assumptions'!$I$177:$R$177))/CV5 -> 0 | CW132: =IF(CW14,LOOKUP(CW1,'Operating Assumptions'!$I$176:$R$176,'Operating Assumptions'!$I$177:$R$177))/CW5 -> 0 | CX132: =IF(CX14,LOOKUP(CX1,'Operating Assumptions'!$I$176:$R$176,'Operating Assumptions'!$I$177:$R$177))/CX5 -> 0 | CY132: =IF(CY14,LOOKUP(CY1,'Operating Assumptions'!$I$176:$R$176,'Operating Assumptions'!$I$177:$R$177))/CY5 -> 0 | CZ132: =IF(CZ14,LOOKUP(CZ1,'Operating Assumptions'!$I$176:$R$176,'Operating Assumptions'!$I$177:$R$177))/CZ5 -> 0 | DA132: =IF(DA14,LOOKUP(DA1,'Operating Assumptions'!$I$176:$R$176,'Operating Assumptions'!$I$177:$R$177))/DA5 -> 0 | DB132: =IF(DB14,LOOKUP(DB1,'Operating Assumptions'!$I$176:$R$176,'Operating Assumptions'!$I$177:$R$177))/DB5 -> 0 | DC132: =IF(DC14,LOOKUP(DC1,'Operating Assumptions'!$I$176:$R$176,'Operating Assumptions'!$I$177:$R$177))/DC5 -> 0 | DD132: =IF(DD14,LOOKUP(DD1,'Operating Assumptions'!$I$176:$R$176,'Operating Assumptions'!$I$177:$R$177))/DD5 -> 0 | DE132: =IF(DE14,LOOKUP(DE1,'Operating Assumptions'!$I$176:$R$176,'Operating Assumptions'!$I$177:$R$177))/DE5 -> 0 | DF132: =IF(DF14,LOOKUP(DF1,'Operating Assumptions'!$I$176:$R$176,'Operating Assumptions'!$I$177:$R$177))/DF5 -> 0 | DG132: =IF(DG14,LOOKUP(DG1,'Operating Assumptions'!$I$176:$R$176,'Operating Assumptions'!$I$177:$R$177))/DG5 -> 0 | DH132: =IF(DH14,LOOKUP(DH1,'Operating Assumptions'!$I$176:$R$176,'Operating Assumptions'!$I$177:$R$177))/DH5 -> 0 | DI132: =IF(DI14,LOOKUP(DI1,'Operating Assumptions'!$I$176:$R$176,'Operating Assumptions'!$I$177:$R$177))/DI5 -> 0
D133: Depreciation Expense | N133: =N132*N128 -> 0 | O133: 0 | P133: 0 | Q133: 0 | R133: 0 | S133: 0 | T133: 0 | U133: 0 | V133: 0 | W133: 0 | X133: 0 | Y133: 0 | Z133: 0 | AA133: 0 | AB133: 21.57830751 | AC133: 21.57830751 | AD133: 19.85204291 | AE133: 19.85204291 | AF133: 18.26387948 | AG133: 18.26387948 | AH133: 16.80276912 | AI133: 16.80276912 | AJ133: 15.45854759 | AK133: 15.45854759 | AL133: 14.22186378 | AM133: 14.22186378 | AN133: 13.08411468 | AO133: 13.08411468 | AP133: 12.03738551 | AQ133: 12.03738551 | AR133: 11.07439467 | AS133: 11.07439467 | AT133: 10.18844309 | AU133: 10.18844309 | AV133: 10.18844309 | AW133: 10.18844309 | AX133: 10.18844309 | AY133: 10.18844309 | AZ133: 10.18844309 | BA133: 10.18844309 | BB133: 10.18844309 | BC133: 10.18844309 | BD133: 10.18844309 | BE133: 10.18844309 | BF133: 10.18844309 | BG133: 10.18844309 | BH133: 10.18844309 | BI133: 10.18844309 | BJ133: 10.18844309 | BK133: 10.18844309 | BL133: 10.18844309 | BM133: 10.18844309 | BN133: 10.18844309 | BO133: 10.18844309 | BP133: 10.18844309 | BQ133: 10.18844309 | BR133: 10.18844309 | BS133: 10.18844309 | BT133: 10.18844309 | BU133: 10.18844309 | BV133: 10.18844309 | BW133: 10.18844309 | BX133: 10.18844309 | BY133: 10.18844309 | BZ133: =BZ132*BZ128 -> 0 | CA133: 0 | CB133: 0 | CC133: 0 | CD133: 0 | CE133: 0 | CF133: 0 | CG133: 0 | CH133: 0 | CI133: 0 | CJ133: 0 | CK133: 0 | CL133: 0 | CM133: 0 | CN133: 0 | CO133: 0 | CP133: 0 | CQ133: 0 | CR133: 0 | CS133: 0 | CT133: 0 | CU133: 0 | CV133: 0 | CW133: 0 | CX133: 0 | CY133: 0 | CZ133: 0 | DA133: 0 | DB133: 0 | DC133: 0 | DD133: 0 | DE133: 0 | DF133: 0 | DG133: 0 | DH133: 0 | DI133: 0
D135: Accumulated Depreciation | N135: =M135+N133 -> 0 | O135: =N135+O133 -> 0 | P135: 0 | Q135: 0 | R135: 0 | S135: 0 | T135: 0 | U135: 0 | V135: 0 | W135: 0 | X135: 0 | Y135: 0 | Z135: 0 | AA135: 0 | AB135: 21.57830751 | AC135: 43.15661503 | AD135: 63.00865794 | AE135: 82.86070086 | AF135: 101.1245803 | AG135: 119.3884598 | AH135: 136.1912289 | AI135: 152.9939981 | AJ135: 168.4525457 | AK135: 183.9110932 | AL135: 198.132957 | AM135: 212.3548208 | AN135: 225.4389355 | AO135: 238.5230502 | AP135: 250.5604357 | AQ135: 262.5978212 | AR135: 273.6722159 | AS135: 284.7466105 | AT135: 294.9350536 | AU135: 305.1234967 | AV135: 315.3119398 | AW135: 325.5003829 | AX135: 335.688826 | AY135: 345.8772691 | AZ135: 356.0657122 | BA135: 366.2541553 | BB135: 376.4425984 | BC135: 386.6310415 | BD135: 396.8194846 | BE135: 407.0079276 | BF135: 417.1963707 | BG135: 427.3848138 | BH135: 437.5732569 | BI135: 447.7617 | BJ135: 457.9501431 | BK135: 468.1385862 | BL135: 478.3270293 | BM135: 488.5154724 | BN135: 498.7039155 | BO135: 508.8923586 | BP135: 519.0808017 | BQ135: 529.2692448 | BR135: 539.4576879 | BS135: 549.646131 | BT135: 559.834574 | BU135: 570.0230171 | BV135: 580.2114602 | BW135: 590.3999033 | BX135: 600.5883464 | BY135: 610.7767895 | BZ135: 610.7767895 | CA135: =BZ135+CA133 -> 610.7767895 | CB135: 610.7767895 | CC135: 610.7767895 | CD135: 610.7767895 | CE135: 610.7767895 | CF135: 610.7767895 | CG135: 610.7767895 | CH135: 610.7767895 | CI135: 610.7767895 | CJ135: 610.7767895 | CK135: 610.7767895 | CL135: 610.7767895 | CM135: 610.7767895 | CN135: 610.7767895 | CO135: 610.7767895 | CP135: 610.7767895 | CQ135: 610.7767895 | CR135: 610.7767895 | CS135: 610.7767895 | CT135: 610.7767895 | CU135: 610.7767895 | CV135: 610.7767895 | CW135: 610.7767895 | CX135: 610.7767895 | CY135: 610.7767895 | CZ135: 610.7767895 | DA135: 610.7767895 | DB135: 610.7767895 | DC135: 610.7767895 | DD135: 610.7767895 | DE135: 610.7767895 | DF135: 610.7767895 | DG135: 610.7767895 | DH135: 610.7767895 | DI135: 610.7767895
D136: Net Plant for Panels | N136: =N130-N135 -> 4.086800666 | O136: =O130-O135 -> 8.173601331 | P136: 12.260402 | Q136: 16.34720266 | R136: 20.43400333 | S136: 24.52080399 | T136: 121.3647167 | U136: 218.4920386 | V136: 315.256193 | W136: 396.9046163 | X136: 457.9246503 | Y136: 499.2004605 | Z136: 524.7924313 | AA136: 539.4576879 | AB136: 517.8793803 | AC136: 496.3010728 | AD136: 476.4490299 | AE136: 456.596987 | AF136: 438.3331075 | AG136: 420.069228 | AH136: 403.2664589 | AI136: 386.4636898 | AJ136: 371.0051422 | AK136: 355.5465946 | AL136: 341.3247308 | AM136: 327.102867 | AN136: 314.0187524 | AO136: 300.9346377 | AP136: 288.8972522 | AQ136: 276.8598667 | AR136: 265.785472 | AS136: 254.7110773 | AT136: 244.5226342 | AU136: 234.3341911 | AV136: 224.1457481 | AW136: 213.957305 | AX136: 203.7688619 | AY136: 193.5804188 | AZ136: 183.3919757 | BA136: 173.2035326 | BB136: 163.0150895 | BC136: 152.8266464 | BD136: 142.6382033 | BE136: 132.4497602 | BF136: 122.2613171 | BG136: 112.072874 | BH136: 101.8844309 | BI136: 91.69598784 | BJ136: 81.50754475 | BK136: 71.31910165 | BL136: 61.13065856 | BM136: 50.94221547 | BN136: 40.75377237 | BO136: 30.56532928 | BP136: 20.37688619 | BQ136: 10.18844309 | BR136: 0 | BS136: -10.18844309 | BT136: -20.37688619 | BU136: -30.56532928 | BV136: -40.75377237 | BW136: -50.94221547 | BX136: -61.13065856 | BY136: -71.31910165 | BZ136: -71.31910165 | CA136: =CA130-CA135 -> -71.31910165 | CB136: -71.31910165 | CC136: -71.31910165 | CD136: -71.31910165 | CE136: -71.31910165 | CF136: -71.31910165 | CG136: -71.31910165 | CH136: -71.31910165 | CI136: -71.31910165 | CJ136: -71.31910165 | CK136: -71.31910165 | CL136: -71.31910165 | CM136: -71.31910165 | CN136: -71.31910165 | CO136: -71.31910165 | CP136: -71.31910165 | CQ136: -71.31910165 | CR136: -71.31910165 | CS136: -71.31910165 | CT136: -71.31910165 | CU136: -71.31910165 | CV136: -71.31910165 | CW136: -71.31910165 | CX136: -71.31910165 | CY136: -71.31910165 | CZ136: -71.31910165 | DA136: -71.31910165 | DB136: -71.31910165 | DC136: -71.31910165 | DD136: -71.31910165 | DE136: -71.31910165 | DF136: -71.31910165 | DG136: -71.31910165 | DH136: -71.31910165 | DI136: -71.31910165
C138: Inverters - Initial
D139: Opening Balance | N139: =M141 -> 0 | O139: =N141 -> 0.4451900544 | P139: 0.8903801088 | Q139: 1.335570163 | R139: 1.780760218 | S139: 2.225950272 | T139: 2.671140326 | U139: 13.22069983 | V139: 23.80113211 | W139: 34.34200325 | X139: 43.23626283 | Y139: 49.88339698 | Z139: 54.37972104 | AA139: 57.16754747 | AB139: 58.76508718 | AC139: 58.76508718 | AD139: 58.76508718 | AE139: 58.76508718 | AF139: 58.76508718 | AG139: 58.76508718 | AH139: 58.76508718 | AI139: 58.76508718 | AJ139: 58.76508718 | AK139: 58.76508718 | AL139: 58.76508718 | AM139: 58.76508718 | AN139: 58.76508718 | AO139: 58.76508718 | AP139: 58.76508718 | AQ139: 58.76508718 | AR139: 58.76508718 | AS139: 58.76508718 | AT139: 58.76508718 | AU139: 58.76508718 | AV139: 58.76508718 | AW139: 58.76508718 | AX139: 58.76508718 | AY139: 58.76508718 | AZ139: 58.76508718 | BA139: 58.76508718 | BB139: 58.76508718 | BC139: 58.76508718 | BD139: 58.76508718 | BE139: 58.76508718 | BF139: 58.76508718 | BG139: 58.76508718 | BH139: 58.76508718 | BI139: 58.76508718 | BJ139: 58.76508718 | BK139: 58.76508718 | BL139: 58.76508718 | BM139: 58.76508718 | BN139: 58.76508718 | BO139: 58.76508718 | BP139: 58.76508718 | BQ139: 58.76508718 | BR139: 58.76508718 | BS139: 58.76508718 | BT139: 58.76508718 | BU139: 58.76508718 | BV139: 58.76508718 | BW139: 58.76508718 | BX139: 58.76508718 | BY139: 58.76508718 | BZ139: 58.76508718 | CA139: =BZ141 -> 58.76508718 | CB139: 58.76508718 | CC139: 58.76508718 | CD139: 58.76508718 | CE139: 58.76508718 | CF139: 58.76508718 | CG139: 58.76508718 | CH139: 58.76508718 | CI139: 58.76508718 | CJ139: 58.76508718 | CK139: 58.76508718 | CL139: 58.76508718 | CM139: 58.76508718 | CN139: 58.76508718 | CO139: 58.76508718 | CP139: 58.76508718 | CQ139: 58.76508718 | CR139: 58.76508718 | CS139: 58.76508718 | CT139: 58.76508718 | CU139: 58.76508718 | CV139: 58.76508718 | CW139: 58.76508718 | CX139: 58.76508718 | CY139: 58.76508718 | CZ139: 58.76508718 | DA139: 58.76508718 | DB139: 58.76508718 | DC139: 58.76508718 | DD139: 58.76508718 | DE139: 58.76508718 | DF139: 58.76508718 | DG139: 58.76508718 | DH139: 58.76508718 | DI139: 58.76508718
D140: Add: Capital Expenditures | F140: =1-F129 -> 0.09823278155 | N140: =$F$140*N113 -> 0.4451900544 | O140: =$F$140*O113 -> 0.4451900544 | P140: 0.4451900544 | Q140: 0.4451900544 | R140: 0.4451900544 | S140: 0.4451900544 | T140: 10.5495595 | U140: 10.58043228 | V140: 10.54087114 | W140: 8.894259582 | X140: 6.64713415 | Y140: 4.496324065 | Z140: 2.787826423 | AA140: 1.597539714 | AB140: 0 | AC140: 0 | AD140: 0 | AE140: 0 | AF140: 0 | AG140: 0 | AH140: 0 | AI140: 0 | AJ140: 0 | AK140: 0 | AL140: 0 | AM140: 0 | AN140: 0 | AO140: 0 | AP140: 0 | AQ140: 0 | AR140: 0 | AS140: 0 | AT140: 0 | AU140: 0 | AV140: 0 | AW140: 0 | AX140: 0 | AY140: 0 | AZ140: 0 | BA140: 0 | BB140: 0 | BC140: 0 | BD140: 0 | BE140: 0 | BF140: 0 | BG140: 0 | BH140: 0 | BI140: 0 | BJ140: 0 | BK140: 0 | BL140: 0 | BM140: 0 | BN140: 0 | BO140: 0 | BP140: 0 | BQ140: 0 | BR140: 0 | BS140: 0 | BT140: 0 | BU140: 0 | BV140: 0 | BW140: 0 | BX140: 0 | BY140: 0 | BZ140: 0 | CA140: =$F$140*CA113 -> 0 | CB140: 0 | CC140: 0 | CD140: 0 | CE140: 0 | CF140: 0 | CG140: 0 | CH140: 0 | CI140: 0 | CJ140: 0 | CK140: 0 | CL140: 0 | CM140: 0 | CN140: 0 | CO140: 0 | CP140: 0 | CQ140: 0 | CR140: 0 | CS140: 0 | CT140: 0 | CU140: 0 | CV140: 0 | CW140: 0 | CX140: 0 | CY140: 0 | CZ140: 0 | DA140: 0 | DB140: 0 | DC140: 0 | DD140: 0 | DE140: 0 | DF140: 0 | DG140: 0 | DH140: 0 | DI140: 0
D141: Closing Balance | N141: =SUM(N139:N140) -> 0.4451900544 | O141: =SUM(O139:O140) -> 0.8903801088 | P141: 1.335570163 | Q141: 1.780760218 | R141: 2.225950272 | S141: 2.671140326 | T141: 13.22069983 | U141: 23.80113211 | V141: 34.34200325 | W141: 43.23626283 | X141: 49.88339698 | Y141: 54.37972104 | Z141: 57.16754747 | AA141: 58.76508718 | AB141: 58.76508718 | AC141: 58.76508718 | AD141: 58.76508718 | AE141: 58.76508718 | AF141: 58.76508718 | AG141: 58.76508718 | AH141: 58.76508718 | AI141: 58.76508718 | AJ141: 58.76508718 | AK141: 58.76508718 | AL141: 58.76508718 | AM141: 58.76508718 | AN141: 58.76508718 | AO141: 58.76508718 | AP141: 58.76508718 | AQ141: 58.76508718 | AR141: 58.76508718 | AS141: 58.76508718 | AT141: 58.76508718 | AU141: 58.76508718 | AV141: 58.76508718 | AW141: 58.76508718 | AX141: 58.76508718 | AY141: 58.76508718 | AZ141: 58.76508718 | BA141: 58.76508718 | BB141: 58.76508718 | BC141: 58.76508718 | BD141: 58.76508718 | BE141: 58.76508718 | BF141: 58.76508718 | BG141: 58.76508718 | BH141: 58.76508718 | BI141: 58.76508718 | BJ141: 58.76508718 | BK141: 58.76508718 | BL141: 58.76508718 | BM141: 58.76508718 | BN141: 58.76508718 | BO141: 58.76508718 | BP141: 58.76508718 | BQ141: 58.76508718 | BR141: 58.76508718 | BS141: 58.76508718 | BT141: 58.76508718 | BU141: 58.76508718 | BV141: 58.76508718 | BW141: 58.76508718 | BX141: 58.76508718 | BY141: 58.76508718 | BZ141: 58.76508718 | CA141: =SUM(CA139:CA140) -> 58.76508718 | CB141: 58.76508718 | CC141: 58.76508718 | CD141: 58.76508718 | CE141: 58.76508718 | CF141: 58.76508718 | CG141: 58.76508718 | CH141: 58.76508718 | CI141: 58.76508718 | CJ141: 58.76508718 | CK141: 58.76508718 | CL141: 58.76508718 | CM141: 58.76508718 | CN141: 58.76508718 | CO141: 58.76508718 | CP141: 58.76508718 | CQ141: 58.76508718 | CR141: 58.76508718 | CS141: 58.76508718 | CT141: 58.76508718 | CU141: 58.76508718 | CV141: 58.76508718 | CW141: 58.76508718 | CX141: 58.76508718 | CY141: 58.76508718 | CZ141: 58.76508718 | DA141: 58.76508718 | DB141: 58.76508718 | DC141: 58.76508718 | DD141: 58.76508718 | DE141: 58.76508718 | DF141: 58.76508718 | DG141: 58.76508718 | DH141: 58.76508718 | DI141: 58.76508718
D143: Depreciation Rate | N143: =IF(N14,LOOKUP(N1,'Operating Assumptions'!$I$176:$AB$176,'Operating Assumptions'!$I$178:$AB$178))/N5 -> 0 | O143: =IF(O14,LOOKUP(O1,'Operating Assumptions'!$I$176:$AB$176,'Operating Assumptions'!$I$178:$AB$178))/O5 -> 0 | P143: =IF(P14,LOOKUP(P1,'Operating Assumptions'!$I$176:$AB$176,'Operating Assumptions'!$I$178:$AB$178))/P5 -> 0 | Q143: =IF(Q14,LOOKUP(Q1,'Operating Assumptions'!$I$176:$AB$176,'Operating Assumptions'!$I$178:$AB$178))/Q5 -> 0 | R143: =IF(R14,LOOKUP(R1,'Operating Assumptions'!$I$176:$AB$176,'Operating Assumptions'!$I$178:$AB$178))/R5 -> 0 | S143: =IF(S14,LOOKUP(S1,'Operating Assumptions'!$I$176:$AB$176,'Operating Assumptions'!$I$178:$AB$178))/S5 -> 0 | T143: =IF(T14,LOOKUP(T1,'Operating Assumptions'!$I$176:$AB$176,'Operating Assumptions'!$I$178:$AB$178))/T5 -> 0 | U143: =IF(U14,LOOKUP(U1,'Operating Assumptions'!$I$176:$AB$176,'Operating Assumptions'!$I$178:$AB$178))/U5 -> 0 | V143: =IF(V14,LOOKUP(V1,'Operating Assumptions'!$I$176:$AB$176,'Operating Assumptions'!$I$178:$AB$178))/V5 -> 0 | W143: =IF(W14,LOOKUP(W1,'Operating Assumptions'!$I$176:$AB$176,'Operating Assumptions'!$I$178:$AB$178))/W5 -> 0 | X143: =IF(X14,LOOKUP(X1,'Operating Assumptions'!$I$176:$AB$176,'Operating Assumptions'!$I$178:$AB$178))/X5 -> 0 | Y143: =IF(Y14,LOOKUP(Y1,'Operating Assumptions'!$I$176:$AB$176,'Operating Assumptions'!$I$178:$AB$178))/Y5 -> 0 | Z143: =IF(Z14,LOOKUP(Z1,'Operating Assumptions'!$I$176:$AB$176,'Operating Assumptions'!$I$178:$AB$178))/Z5 -> 0 | AA143: =IF(AA14,LOOKUP(AA1,'Operating Assumptions'!$I$176:$AB$176,'Operating Assumptions'!$I$178:$AB$178))/AA5 -> 0 | AB143: =IF(AB14,LOOKUP(AB1,'Operating Assumptions'!$I$176:$AB$176,'Operating Assumptions'!$I$178:$AB$178))/AB5 -> 0.04 | AC143: =IF(AC14,LOOKUP(AC1,'Operating Assumptions'!$I$176:$AB$176,'Operating Assumptions'!$I$178:$AB$178))/AC5 -> 0.04 | AD143: =IF(AD14,LOOKUP(AD1,'Operating Assumptions'!$I$176:$AB$176,'Operating Assumptions'!$I$178:$AB$178))/AD5 -> 0.0368 | AE143: =IF(AE14,LOOKUP(AE1,'Operating Assumptions'!$I$176:$AB$176,'Operating Assumptions'!$I$178:$AB$178))/AE5 -> 0.0368 | AF143: =IF(AF14,LOOKUP(AF1,'Operating Assumptions'!$I$176:$AB$176,'Operating Assumptions'!$I$178:$AB$178))/AF5 -> 0.033856 | AG143: =IF(AG14,LOOKUP(AG1,'Operating Assumptions'!$I$176:$AB$176,'Operating Assumptions'!$I$178:$AB$178))/AG5 -> 0.033856 | AH143: =IF(AH14,LOOKUP(AH1,'Operating Assumptions'!$I$176:$AB$176,'Operating Assumptions'!$I$178:$AB$178))/AH5 -> 0.03114752 | AI143: =IF(AI14,LOOKUP(AI1,'Operating Assumptions'!$I$176:$AB$176,'Operating Assumptions'!$I$178:$AB$178))/AI5 -> 0.03114752 | AJ143: =IF(AJ14,LOOKUP(AJ1,'Operating Assumptions'!$I$176:$AB$176,'Operating Assumptions'!$I$178:$AB$178))/AJ5 -> 0.0286557184 | AK143: =IF(AK14,LOOKUP(AK1,'Operating Assumptions'!$I$176:$AB$176,'Operating Assumptions'!$I$178:$AB$178))/AK5 -> 0.0286557184 | AL143: =IF(AL14,LOOKUP(AL1,'Operating Assumptions'!$I$176:$AB$176,'Operating Assumptions'!$I$178:$AB$178))/AL5 -> 0.02636326093 | AM143: =IF(AM14,LOOKUP(AM1,'Operating Assumptions'!$I$176:$AB$176,'Operating Assumptions'!$I$178:$AB$178))/AM5 -> 0.02636326093 | AN143: =IF(AN14,LOOKUP(AN1,'Operating Assumptions'!$I$176:$AB$176,'Operating Assumptions'!$I$178:$AB$178))/AN5 -> 0.02425420005 | AO143: =IF(AO14,LOOKUP(AO1,'Operating Assumptions'!$I$176:$AB$176,'Operating Assumptions'!$I$178:$AB$178))/AO5 -> 0.02425420005 | AP143: =IF(AP14,LOOKUP(AP1,'Operating Assumptions'!$I$176:$AB$176,'Operating Assumptions'!$I$178:$AB$178))/AP5 -> 0.02231386405 | AQ143: =IF(AQ14,LOOKUP(AQ1,'Operating Assumptions'!$I$176:$AB$176,'Operating Assumptions'!$I$178:$AB$178))/AQ5 -> 0.02231386405 | AR143: =IF(AR14,LOOKUP(AR1,'Operating Assumptions'!$I$176:$AB$176,'Operating Assumptions'!$I$178:$AB$178))/AR5 -> 0.02052875493 | AS143: =IF(AS14,LOOKUP(AS1,'Operating Assumptions'!$I$176:$AB$176,'Operating Assumptions'!$I$178:$AB$178))/AS5 -> 0.02052875493 | AT143: =IF(AT14,LOOKUP(AT1,'Operating Assumptions'!$I$176:$AB$176,'Operating Assumptions'!$I$178:$AB$178))/AT5 -> 0.01888645453 | AU143: =IF(AU14,LOOKUP(AU1,'Operating Assumptions'!$I$176:$AB$176,'Operating Assumptions'!$I$178:$AB$178))/AU5 -> 0.01888645453 | AV143: =IF(AV14,LOOKUP(AV1,'Operating Assumptions'!$I$176:$AB$176,'Operating Assumptions'!$I$178:$AB$178))/AV5 -> 0.01737553817 | AW143: =IF(AW14,LOOKUP(AW1,'Operating Assumptions'!$I$176:$AB$176,'Operating Assumptions'!$I$178:$AB$178))/AW5 -> 0.01737553817 | AX143: =IF(AX14,LOOKUP(AX1,'Operating Assumptions'!$I$176:$AB$176,'Operating Assumptions'!$I$178:$AB$178))/AX5 -> 0.01598549512 | AY143: =IF(AY14,LOOKUP(AY1,'Operating Assumptions'!$I$176:$AB$176,'Operating Assumptions'!$I$178:$AB$178))/AY5 -> 0.01598549512 | AZ143: =IF(AZ14,LOOKUP(AZ1,'Operating Assumptions'!$I$176:$AB$176,'Operating Assumptions'!$I$178:$AB$178))/AZ5 -> 0.01470665551 | BA143: =IF(BA14,LOOKUP(BA1,'Operating Assumptions'!$I$176:$AB$176,'Operating Assumptions'!$I$178:$AB$178))/BA5 -> 0.01470665551 | BB143: =IF(BB14,LOOKUP(BB1,'Operating Assumptions'!$I$176:$AB$176,'Operating Assumptions'!$I$178:$AB$178))/BB5 -> 0.01409387819 | BC143: =IF(BC14,LOOKUP(BC1,'Operating Assumptions'!$I$176:$AB$176,'Operating Assumptions'!$I$178:$AB$178))/BC5 -> 0.01409387819 | BD143: =IF(BD14,LOOKUP(BD1,'Operating Assumptions'!$I$176:$AB$176,'Operating Assumptions'!$I$178:$AB$178))/BD5 -> 0.01409387819 | BE143: =IF(BE14,LOOKUP(BE1,'Operating Assumptions'!$I$176:$AB$176,'Operating Assumptions'!$I$178:$AB$178))/BE5 -> 0.01409387819 | BF143: =IF(BF14,LOOKUP(BF1,'Operating Assumptions'!$I$176:$AB$176,'Operating Assumptions'!$I$178:$AB$178))/BF5 -> 0.01409387819 | BG143: =IF(BG14,LOOKUP(BG1,'Operating Assumptions'!$I$176:$AB$176,'Operating Assumptions'!$I$178:$AB$178))/BG5 -> 0.01409387819 | BH143: =IF(BH14,LOOKUP(BH1,'Operating Assumptions'!$I$176:$AB$176,'Operating Assumptions'!$I$178:$AB$178))/BH5 -> 0.01409387819 | BI143: =IF(BI14,LOOKUP(BI1,'Operating Assumptions'!$I$176:$AB$176,'Operating Assumptions'!$I$178:$AB$178))/BI5 -> 0.01409387819 | BJ143: =IF(BJ14,LOOKUP(BJ1,'Operating Assumptions'!$I$176:$AB$176,'Operating Assumptions'!$I$178:$AB$178))/BJ5 -> 0.01409387819 | BK143: =IF(BK14,LOOKUP(BK1,'Operating Assumptions'!$I$176:$AB$176,'Operating Assumptions'!$I$178:$AB$178))/BK5 -> 0.01409387819 | BL143: =IF(BL14,LOOKUP(BL1,'Operating Assumptions'!$I$176:$AB$176,'Operating Assumptions'!$I$178:$AB$178))/BL5 -> 0.01409387819 | BM143: =IF(BM14,LOOKUP(BM1,'Operating Assumptions'!$I$176:$AB$176,'Operating Assumptions'!$I$178:$AB$178))/BM5 -> 0.01409387819 | BN143: =IF(BN14,LOOKUP(BN1,'Operating Assumptions'!$I$176:$AB$176,'Operating Assumptions'!$I$178:$AB$178))/BN5 -> 0.01409387819 | BO143: =IF(BO14,LOOKUP(BO1,'Operating Assumptions'!$I$176:$AB$176,'Operating Assumptions'!$I$178:$AB$178))/BO5 -> 0.01409387819 | BP143: =IF(BP14,LOOKUP(BP1,'Operating Assumptions'!$I$176:$AB$176,'Operating Assumptions'!$I$178:$AB$178))/BP5 -> 0.01409387819 | BQ143: =IF(BQ14,LOOKUP(BQ1,'Operating Assumptions'!$I$176:$AB$176,'Operating Assumptions'!$I$178:$AB$178))/BQ5 -> 0.01409387819 | BR143: =IF(BR14,LOOKUP(BR1,'Operating Assumptions'!$I$176:$AB$176,'Operating Assumptions'!$I$178:$AB$178))/BR5 -> 0.01409387819 | BS143: =IF(BS14,LOOKUP(BS1,'Operating Assumptions'!$I$176:$AB$176,'Operating Assumptions'!$I$178:$AB$178))/BS5 -> 0.01409387819 | BT143: =IF(BT14,LOOKUP(BT1,'Operating Assumptions'!$I$176:$AB$176,'Operating Assumptions'!$I$178:$AB$178))/BT5 -> 0.01409387819 | BU143: =IF(BU14,LOOKUP(BU1,'Operating Assumptions'!$I$176:$AB$176,'Operating Assumptions'!$I$178:$AB$178))/BU5 -> 0.01409387819 | BV143: =IF(BV14,LOOKUP(BV1,'Operating Assumptions'!$I$176:$AB$176,'Operating Assumptions'!$I$178:$AB$178))/BV5 -> 0.01409387819 | BW143: =IF(BW14,LOOKUP(BW1,'Operating Assumptions'!$I$176:$AB$176,'Operating Assumptions'!$I$178:$AB$178))/BW5 -> 0.01409387819 | BX143: =IF(BX14,LOOKUP(BX1,'Operating Assumptions'!$I$176:$AB$176,'Operating Assumptions'!$I$178:$AB$178))/BX5 -> 0.01409387819 | BY143: =IF(BY14,LOOKUP(BY1,'Operating Assumptions'!$I$176:$AB$176,'Operating Assumptions'!$I$178:$AB$178))/BY5 -> 0.01409387819 | BZ143: =IF(BZ14,LOOKUP(BZ1,'Operating Assumptions'!$I$176:$AB$176,'Operating Assumptions'!$I$178:$AB$178))/BZ5 -> 0 | CA143: =IF(CA14,LOOKUP(CA1,'Operating Assumptions'!$I$176:$AB$176,'Operating Assumptions'!$I$178:$AB$178))/CA5 -> 0 | CB143: =IF(CB14,LOOKUP(CB1,'Operating Assumptions'!$I$176:$AB$176,'Operating Assumptions'!$I$178:$AB$178))/CB5 -> 0 | CC143: =IF(CC14,LOOKUP(CC1,'Operating Assumptions'!$I$176:$AB$176,'Operating Assumptions'!$I$178:$AB$178))/CC5 -> 0 | CD143: =IF(CD14,LOOKUP(CD1,'Operating Assumptions'!$I$176:$AB$176,'Operating Assumptions'!$I$178:$AB$178))/CD5 -> 0 | CE143: =IF(CE14,LOOKUP(CE1,'Operating Assumptions'!$I$176:$AB$176,'Operating Assumptions'!$I$178:$AB$178))/CE5 -> 0 | CF143: =IF(CF14,LOOKUP(CF1,'Operating Assumptions'!$I$176:$AB$176,'Operating Assumptions'!$I$178:$AB$178))/CF5 -> 0 | CG143: =IF(CG14,LOOKUP(CG1,'Operating Assumptions'!$I$176:$AB$176,'Operating Assumptions'!$I$178:$AB$178))/CG5 -> 0 | CH143: =IF(CH14,LOOKUP(CH1,'Operating Assumptions'!$I$176:$AB$176,'Operating Assumptions'!$I$178:$AB$178))/CH5 -> 0 | CI143: =IF(CI14,LOOKUP(CI1,'Operating Assumptions'!$I$176:$AB$176,'Operating Assumptions'!$I$178:$AB$178))/CI5 -> 0 | CJ143: =IF(CJ14,LOOKUP(CJ1,'Operating Assumptions'!$I$176:$AB$176,'Operating Assumptions'!$I$178:$AB$178))/CJ5 -> 0 | CK143: =IF(CK14,LOOKUP(CK1,'Operating Assumptions'!$I$176:$AB$176,'Operating Assumptions'!$I$178:$AB$178))/CK5 -> 0 | CL143: =IF(CL14,LOOKUP(CL1,'Operating Assumptions'!$I$176:$AB$176,'Operating Assumptions'!$I$178:$AB$178))/CL5 -> 0 | CM143: =IF(CM14,LOOKUP(CM1,'Operating Assumptions'!$I$176:$AB$176,'Operating Assumptions'!$I$178:$AB$178))/CM5 -> 0 | CN143: =IF(CN14,LOOKUP(CN1,'Operating Assumptions'!$I$176:$AB$176,'Operating Assumptions'!$I$178:$AB$178))/CN5 -> 0 | CO143: =IF(CO14,LOOKUP(CO1,'Operating Assumptions'!$I$176:$AB$176,'Operating Assumptions'!$I$178:$AB$178))/CO5 -> 0 | CP143: =IF(CP14,LOOKUP(CP1,'Operating Assumptions'!$I$176:$AB$176,'Operating Assumptions'!$I$178:$AB$178))/CP5 -> 0 | CQ143: =IF(CQ14,LOOKUP(CQ1,'Operating Assumptions'!$I$176:$AB$176,'Operating Assumptions'!$I$178:$AB$178))/CQ5 -> 0 | CR143: =IF(CR14,LOOKUP(CR1,'Operating Assumptions'!$I$176:$AB$176,'Operating Assumptions'!$I$178:$AB$178))/CR5 -> 0 | CS143: =IF(CS14,LOOKUP(CS1,'Operating Assumptions'!$I$176:$AB$176,'Operating Assumptions'!$I$178:$AB$178))/CS5 -> 0 | CT143: =IF(CT14,LOOKUP(CT1,'Operating Assumptions'!$I$176:$AB$176,'Operating Assumptions'!$I$178:$AB$178))/CT5 -> 0 | CU143: =IF(CU14,LOOKUP(CU1,'Operating Assumptions'!$I$176:$AB$176,'Operating Assumptions'!$I$178:$AB$178))/CU5 -> 0 | CV143: =IF(CV14,LOOKUP(CV1,'Operating Assumptions'!$I$176:$AB$176,'Operating Assumptions'!$I$178:$AB$178))/CV5 -> 0 | CW143: =IF(CW14,LOOKUP(CW1,'Operating Assumptions'!$I$176:$AB$176,'Operating Assumptions'!$I$178:$AB$178))/CW5 -> 0 | CX143: =IF(CX14,LOOKUP(CX1,'Operating Assumptions'!$I$176:$AB$176,'Operating Assumptions'!$I$178:$AB$178))/CX5 -> 0 | CY143: =IF(CY14,LOOKUP(CY1,'Operating Assumptions'!$I$176:$AB$176,'Operating Assumptions'!$I$178:$AB$178))/CY5 -> 0 | CZ143: =IF(CZ14,LOOKUP(CZ1,'Operating Assumptions'!$I$176:$AB$176,'Operating Assumptions'!$I$178:$AB$178))/CZ5 -> 0 | DA143: =IF(DA14,LOOKUP(DA1,'Operating Assumptions'!$I$176:$AB$176,'Operating Assumptions'!$I$178:$AB$178))/DA5 -> 0 | DB143: =IF(DB14,LOOKUP(DB1,'Operating Assumptions'!$I$176:$AB$176,'Operating Assumptions'!$I$178:$AB$178))/DB5 -> 0 | DC143: =IF(DC14,LOOKUP(DC1,'Operating Assumptions'!$I$176:$AB$176,'Operating Assumptions'!$I$178:$AB$178))/DC5 -> 0 | DD143: =IF(DD14,LOOKUP(DD1,'Operating Assumptions'!$I$176:$AB$176,'Operating Assumptions'!$I$178:$AB$178))/DD5 -> 0 | DE143: =IF(DE14,LOOKUP(DE1,'Operating Assumptions'!$I$176:$AB$176,'Operating Assumptions'!$I$178:$AB$178))/DE5 -> 0 | DF143: =IF(DF14,LOOKUP(DF1,'Operating Assumptions'!$I$176:$AB$176,'Operating Assumptions'!$I$178:$AB$178))/DF5 -> 0 | DG143: =IF(DG14,LOOKUP(DG1,'Operating Assumptions'!$I$176:$AB$176,'Operating Assumptions'!$I$178:$AB$178))/DG5 -> 0 | DH143: =IF(DH14,LOOKUP(DH1,'Operating Assumptions'!$I$176:$AB$176,'Operating Assumptions'!$I$178:$AB$178))/DH5 -> 0 | DI143: =IF(DI14,LOOKUP(DI1,'Operating Assumptions'!$I$176:$AB$176,'Operating Assumptions'!$I$178:$AB$178))/DI5 -> 0
D144: Depreciation Expense | N144: =N143*N139 -> 0 | O144: =O143*O139 -> 0 | P144: 0 | Q144: 0 | R144: 0 | S144: 0 | T144: 0 | U144: 0 | V144: 0 | W144: 0 | X144: 0 | Y144: 0 | Z144: 0 | AA144: 0 | AB144: 2.350603487 | AC144: 2.350603487 | AD144: 2.162555208 | AE144: 2.162555208 | AF144: 1.989550792 | AG144: 1.989550792 | AH144: 1.830386728 | AI144: 1.830386728 | AJ144: 1.68395579 | AK144: 1.68395579 | AL144: 1.549239327 | AM144: 1.549239327 | AN144: 1.425300181 | AO144: 1.425300181 | AP144: 1.311276166 | AQ144: 1.311276166 | AR144: 1.206374073 | AS144: 1.206374073 | AT144: 1.109864147 | AU144: 1.109864147 | AV144: 1.021075015 | AW144: 1.021075015 | AX144: 0.9393890141 | AY144: 0.9393890141 | AZ144: 0.864237893 | BA144: 0.864237893 | BB144: 0.8282279808 | BC144: 0.8282279808 | BD144: 0.8282279808 | BE144: 0.8282279808 | BF144: 0.8282279808 | BG144: 0.8282279808 | BH144: 0.8282279808 | BI144: 0.8282279808 | BJ144: 0.8282279808 | BK144: 0.8282279808 | BL144: 0.8282279808 | BM144: 0.8282279808 | BN144: 0.8282279808 | BO144: 0.8282279808 | BP144: 0.8282279808 | BQ144: 0.8282279808 | BR144: 0.8282279808 | BS144: 0.8282279808 | BT144: 0.8282279808 | BU144: 0.8282279808 | BV144: 0.8282279808 | BW144: 0.8282279808 | BX144: 0.8282279808 | BY144: 0.8282279808 | BZ144: 0 | CA144: =CA143*CA139 -> 0 | CB144: 0 | CC144: 0 | CD144: 0 | CE144: 0 | CF144: 0 | CG144: 0 | CH144: 0 | CI144: 0 | CJ144: 0 | CK144: 0 | CL144: 0 | CM144: 0 | CN144: 0 | CO144: 0 | CP144: 0 | CQ144: 0 | CR144: 0 | CS144: 0 | CT144: 0 | CU144: 0 | CV144: 0 | CW144: 0 | CX144: 0 | CY144: 0 | CZ144: 0 | DA144: 0 | DB144: 0 | DC144: 0 | DD144: 0 | DE144: 0 | DF144: 0 | DG144: 0 | DH144: 0 | DI144: 0
D146: Accumulated Depreciation | N146: =M146+N144 -> 0 | O146: =N146+O144 -> 0 | P146: 0 | Q146: 0 | R146: 0 | S146: 0 | T146: 0 | U146: 0 | V146: 0 | W146: 0 | X146: 0 | Y146: 0 | Z146: 0 | AA146: 0 | AB146: 2.350603487 | AC146: 4.701206974 | AD146: 6.863762183 | AE146: 9.026317391 | AF146: 11.01586818 | AG146: 13.00541897 | AH146: 14.8358057 | AI146: 16.66619243 | AJ146: 18.35014822 | AK146: 20.03410401 | AL146: 21.58334334 | AM146: 23.13258266 | AN146: 24.55788284 | AO146: 25.98318303 | AP146: 27.29445919 | AQ146: 28.60573536 | AR146: 29.81210943 | AS146: 31.0184835 | AT146: 32.12834765 | AU146: 33.2382118 | AV146: 34.25928681 | AW146: 35.28036183 | AX146: 36.21975084 | AY146: 37.15913986 | AZ146: 38.02337775 | BA146: 38.88761564 | BB146: 39.71584362 | BC146: 40.5440716 | BD146: 41.37229958 | BE146: 42.20052757 | BF146: 43.02875555 | BG146: 43.85698353 | BH146: 44.68521151 | BI146: 45.51343949 | BJ146: 46.34166747 | BK146: 47.16989545 | BL146: 47.99812343 | BM146: 48.82635141 | BN146: 49.65457939 | BO146: 50.48280737 | BP146: 51.31103535 | BQ146: 52.13926333 | BR146: 52.96749132 | BS146: 53.7957193 | BT146: 54.62394728 | BU146: 55.45217526 | BV146: 56.28040324 | BW146: 57.10863122 | BX146: 57.9368592 | BY146: 58.76508718 | BZ146: 58.76508718 | CA146: =BZ146+CA144 -> 58.76508718 | CB146: 58.76508718 | CC146: 58.76508718 | CD146: 58.76508718 | CE146: 58.76508718 | CF146: 58.76508718 | CG146: 58.76508718 | CH146: 58.76508718 | CI146: 58.76508718 | CJ146: 58.76508718 | CK146: 58.76508718 | CL146: 58.76508718 | CM146: 58.76508718 | CN146: 58.76508718 | CO146: 58.76508718 | CP146: 58.76508718 | CQ146: 58.76508718 | CR146: 58.76508718 | CS146: 58.76508718 | CT146: 58.76508718 | CU146: 58.76508718 | CV146: 58.76508718 | CW146: 58.76508718 | CX146: 58.76508718 | CY146: 58.76508718 | CZ146: 58.76508718 | DA146: 58.76508718 | DB146: 58.76508718 | DC146: 58.76508718 | DD146: 58.76508718 | DE146: 58.76508718 | DF146: 58.76508718 | DG146: 58.76508718 | DH146: 58.76508718 | DI146: 58.76508718
D147: Net Plant for Inverters | N147: =N141-N146 -> 0.4451900544 | O147: =O141-O146 -> 0.8903801088 | P147: 1.335570163 | Q147: 1.780760218 | R147: 2.225950272 | S147: 2.671140326 | T147: 13.22069983 | U147: 23.80113211 | V147: 34.34200325 | W147: 43.23626283 | X147: 49.88339698 | Y147: 54.37972104 | Z147: 57.16754747 | AA147: 58.76508718 | AB147: 56.41448369 | AC147: 54.06388021 | AD147: 51.901325 | AE147: 49.73876979 | AF147: 47.749219 | AG147: 45.75966821 | AH147: 43.92928148 | AI147: 42.09889475 | AJ147: 40.41493896 | AK147: 38.73098317 | AL147: 37.18174384 | AM147: 35.63250452 | AN147: 34.20720434 | AO147: 32.78190416 | AP147: 31.47062799 | AQ147: 30.15935182 | AR147: 28.95297775 | AS147: 27.74660368 | AT147: 26.63673953 | AU147: 25.52687538 | AV147: 24.50580037 | AW147: 23.48472535 | AX147: 22.54533634 | AY147: 21.60594732 | AZ147: 20.74170943 | BA147: 19.87747154 | BB147: 19.04924356 | BC147: 18.22101558 | BD147: 17.3927876 | BE147: 16.56455962 | BF147: 15.73633163 | BG147: 14.90810365 | BH147: 14.07987567 | BI147: 13.25164769 | BJ147: 12.42341971 | BK147: 11.59519173 | BL147: 10.76696375 | BM147: 9.938735769 | BN147: 9.110507788 | BO147: 8.282279808 | BP147: 7.454051827 | BQ147: 6.625823846 | BR147: 5.797595865 | BS147: 4.969367885 | BT147: 4.141139904 | BU147: 3.312911923 | BV147: 2.484683942 | BW147: 1.656455962 | BX147: 0.8282279808 | BY147: -8.526512829e-14 | BZ147: -8.526512829e-14 | CA147: =CA141-CA146 -> -8.526512829e-14 | CB147: -8.526512829e-14 | CC147: -8.526512829e-14 | CD147: -8.526512829e-14 | CE147: -8.526512829e-14 | CF147: -8.526512829e-14 | CG147: -8.526512829e-14 | CH147: -8.526512829e-14 | CI147: -8.526512829e-14 | CJ147: -8.526512829e-14 | CK147: -8.526512829e-14 | CL147: -8.526512829e-14 | CM147: -8.526512829e-14 | CN147: -8.526512829e-14 | CO147: -8.526512829e-14 | CP147: -8.526512829e-14 | CQ147: -8.526512829e-14 | CR147: -8.526512829e-14 | CS147: -8.526512829e-14 | CT147: -8.526512829e-14 | CU147: -8.526512829e-14 | CV147: -8.526512829e-14 | CW147: -8.526512829e-14 | CX147: -8.526512829e-14 | CY147: -8.526512829e-14 | CZ147: -8.526512829e-14 | DA147: -8.526512829e-14 | DB147: -8.526512829e-14 | DC147: -8.526512829e-14 | DD147: -8.526512829e-14 | DE147: -8.526512829e-14 | DF147: -8.526512829e-14 | DG147: -8.526512829e-14 | DH147: -8.526512829e-14 | DI147: -8.526512829e-14
D149: Total Base Depreciation | N149: =N144+N133 -> 0 | O149: =O144+O133 -> 0 | P149: 0 | Q149: 0 | R149: 0 | S149: 0 | T149: 0 | U149: 0 | V149: 0 | W149: 0 | X149: 0 | Y149: 0 | Z149: 0 | AA149: 0 | AB149: 23.928911 | AC149: 23.928911 | AD149: 22.01459812 | AE149: 22.01459812 | AF149: 20.25343027 | AG149: 20.25343027 | AH149: 18.63315585 | AI149: 18.63315585 | AJ149: 17.14250338 | AK149: 17.14250338 | AL149: 15.77110311 | AM149: 15.77110311 | AN149: 14.50941486 | AO149: 14.50941486 | AP149: 13.34866167 | AQ149: 13.34866167 | AR149: 12.28076874 | AS149: 12.28076874 | AT149: 11.29830724 | AU149: 11.29830724 | AV149: 11.20951811 | AW149: 11.20951811 | AX149: 11.12783211 | AY149: 11.12783211 | AZ149: 11.05268099 | BA149: 11.05268099 | BB149: 11.01667107 | BC149: 11.01667107 | BD149: 11.01667107 | BE149: 11.01667107 | BF149: 11.01667107 | BG149: 11.01667107 | BH149: 11.01667107 | BI149: 11.01667107 | BJ149: 11.01667107 | BK149: 11.01667107 | BL149: 11.01667107 | BM149: 11.01667107 | BN149: 11.01667107 | BO149: 11.01667107 | BP149: 11.01667107 | BQ149: 11.01667107 | BR149: 11.01667107 | BS149: 11.01667107 | BT149: 11.01667107 | BU149: 11.01667107 | BV149: 11.01667107 | BW149: 11.01667107 | BX149: 11.01667107 | BY149: 11.01667107 | BZ149: 0 | CA149: =CA144+CA133 -> 0 | CB149: 0 | CC149: 0 | CD149: 0 | CE149: 0 | CF149: 0 | CG149: 0 | CH149: 0 | CI149: 0 | CJ149: 0 | CK149: 0 | CL149: 0 | CM149: 0 | CN149: 0 | CO149: 0 | CP149: 0 | CQ149: 0 | CR149: 0 | CS149: 0 | CT149: 0 | CU149: 0 | CV149: 0 | CW149: 0 | CX149: 0 | CY149: 0 | CZ149: 0 | DA149: 0 | DB149: 0 | DC149: 0 | DD149: 0 | DE149: 0 | DF149: 0 | DG149: 0 | DH149: 0 | DI149: 0
C151: Inverters - Replacement
D152: Opening Balance | N152: =M154 -> 0 | O152: =N154 -> 0 | P152: 0 | Q152: 0 | R152: 0 | S152: 0 | T152: 0 | U152: 0 | V152: 0 | W152: 0 | X152: 0 | Y152: 0 | Z152: 0 | AA152: 0 | AB152: 0 | AC152: 0 | AD152: 0 | AE152: 0 | AF152: 0 | AG152: 0 | AH152: 0 | AI152: 0 | AJ152: 0 | AK152: 0 | AL152: 0 | AM152: 0 | AN152: 0 | AO152: 0 | AP152: 0 | AQ152: 0 | AR152: 0 | AS152: 0 | AT152: 0 | AU152: 0 | AV152: 0 | AW152: 0 | AX152: 0 | AY152: 0 | AZ152: 0 | BA152: 0 | BB152: 0 | BC152: 0 | BD152: 0 | BE152: 0 | BF152: 0 | BG152: 0 | BH152: 0 | BI152: 0 | BJ152: 0 | BK152: 0 | BL152: 0 | BM152: 0 | BN152: 0 | BO152: 0 | BP152: 0 | BQ152: 0 | BR152: 0 | BS152: 0 | BT152: 0 | BU152: 0 | BV152: 0 | BW152: 0 | BX152: 0 | BY152: 0 | BZ152: 0 | CA152: =BZ154 -> 0 | CB152: 0 | CC152: 0 | CD152: 0 | CE152: 0 | CF152: 0 | CG152: 0 | CH152: 0 | CI152: 0 | CJ152: 0 | CK152: 0 | CL152: 0 | CM152: 0 | CN152: 0 | CO152: 0 | CP152: 0 | CQ152: 0 | CR152: 0 | CS152: 0 | CT152: 0 | CU152: 0 | CV152: 0 | CW152: 0 | CX152: 0 | CY152: 0 | CZ152: 0 | DA152: 0 | DB152: 0 | DC152: 0 | DD152: 0 | DE152: 0 | DF152: 0 | DG152: 0 | DH152: 0 | DI152: 0
